Workbook

Sheet Contents
A3: Data set for the paper "Financial Development in Economic Growth: A Meta-Analysis"
A6: This file contains:
A7: Studies | B7: List of studies used in the meta-analysis with bibliographical information.
A8: Excluded studies | B8: Studies that did not fulfill the inclusion criteria with bibliographical information.
A9: Variables | B9: List and description of the variables included in the data set (so called moderator variables)
A10: Stata | B10: Data used for estimation in Stata
A11: Data | B11: Separate sheet for each study included in the meta-analysis with data retrieved from each study
A12: List of Economies | B12: List of economies according to which the devision into regions was performed
A13: Countries | B13: List of countries according to which the devision into regions was performed

Sheet Studies
A1: idstudy | B1: study | C1: type, authors | D1: Type | E1: title | F1: Outlet | G1: Journal impact factor | H1: Volume | I1: Issue | J1: Page start | K1: Page end | L1: year
A2: 1 | B2: Al-Malkawi and Abdullah (2011) | C2: Al-Malkawi, H.-A.N., Abdullah, N. | D2: Article | E2: Finance-growth nexus: Evidence from a panel of MENA countries | F2: International Research Journal of Finance and Economics | G2: 0.074 | H2: 63 | J2: 129 | K2: 139 | L2: 2011
A3: 2 | B3: Andersen (2003) | C3: Andersen, S.R. | D3: Article | E3: The influence and effects of financial development on economic growth: An empirical approach | F3: Report - Chr. Michelsen Institute | G3: 0.019 | I3: 14 | J3: 1 | K3: 44 | L3: 2003
A4: 3 | B4: Andersen and Tarp (2003) | C4: Andersen, T.B., Tarp, F. | D4: Article | E4: Financial liberalization, financial development and economic growth in LDCs | F4: Journal of International Development | G4: 0.02 | H4: 15 | I4: 2 | J4: 189 | K4: 209 | L4: 2003
A5: 4 | B5: Anwar and Cooray (2012) | C5: Anwar, S., Cooray, A. | D5: Article | E5: Financial development, political rights, civil liberties and economic growth: Evidence from South Asia | F5: Economic Modelling | G5: 0.065 | H5: 29 | I5: 3 | J5: 974 | K5: 342 | L5: 2012
A6: 5 | B6: Anwar and Sun (2011) | C6: Anwar, S., Sun, S. | D6: Article | E6: Financial development, foreign investment and economic growth in Malaysia | F6: Journal of Asian Economics | G6: 0.022 | H6: 22 | I6: 4 | J6: 335 | K6: 198 | L6: 2011
A7: 6 | B7: Apergis et al. (2007) | C7: Apergis, N., Filippidis, I., Economidou, C. | D7: Article | E7: Financial deepening and economic growth linkages: A panel data analysis | F7: Review of World Economics | G7: 0.142 | H7: 143 | I7: 1 | J7: 179 | K7: 640 | L7: 2007
A8: 7 | B8: Atje and Jovanovic (1993) | C8: Atje, R., Jovanovic, B. | D8: Article | E8: Stock markets and development | F8: European Economic Review | G8: 0.725 | H8: 37 | I8: 2012-03-02 | J8: 632 | K8: 188 | L8: 1993
A9: 8 | B9: Bangake and Eggoh (2011) | C9: Bangake, C., Eggoh, J.C. | D9: Article | E9: Further evidence on finance-growth causality: A panel data analysis | F9: Economic Systems | G9: 0.07 | H9: 35 | I9: 2 | J9: 176 | K9: 442 | L9: 2011
A10: 9 | B10: Beck and Levine (2004) | C10: Beck, T., Levine, R. | D10: Article | E10: Stock markets, banks, and growth: panel evidence | F10: Journal of Banking and Finance | G10: 0.222 | H10: 28 | I10: 3 | J10: 423 | K10: 300 | L10: 2004
A11: 10 | B11: Beck et al. (2000) | C11: Beck, T., Levine, R., Loayza, N. | D11: Article | E11: Finance and the sources of growth | F11: Journal of Financial Economics | G11: 1.544 | H11: 58 | I11: 2012-02-01 | J11: 261 | K11: 360 | L11: 2000
A12: 11 | B12: Benhabib and Spiegel (2000) | C12: Benhabib, J., Spiegel, M.M. | D12: Article | E12: The role of financial development in growth and investment | F12: Journal of Economic Growth | G12: 2.539 | H12: 5 | I12: 4 | J12: 341 | K12: 308 | L12: 2000
A13: 12 | B13: Cole et al. (2008) | C13: Cole, R.A., Moshirian, F., Wu, Q. | D13: Article | E13: Bank stock returns and economic growth | F13: Journal of Banking and Finance | G13: 0.222 | H13: 32 | I13: 6 | J13: 995 | K13: 3547 | L13: 2008
A14: 13 | B14: Compton and Giedeman (2011) | C14: Compton, R.A., Giedeman, D.C. | D14: Article | E14: Panel evidence on finance, institutions and economic growth | F14: Applied Economics | G14: 0.042 | H14: 43 | I14: 25 | J14: 3523 | K14: 836 | L14: 2011
A15: 14 | B15: Dawson (2003) | C15: Dawson, P.J. | D15: Article | E15: Financial development and growth in economies in transition | F15: Applied Economics Letters | G15: 0.005 | H15: 10 | I15: 13 | J15: 833 | K15: 331 | L15: 2003
A16: 15 | B16: Dawson (2008) | C16: Dawson, P.J. | D16: Article | E16: Financial development and economic growth in developing countries | F16: Progress in Development Studies | G16: 0 | H16: 8 | I16: 4 | J16: 325 | K16: 448 | L16: 2008
A17: 16 | B17: De Gregorio and Guidotti (1995) | C17: De Gregorio, J., Guidotti, P.E. | D17: Article | E17: Financial development and economic growth | F17: World Development | G17: 0.076 | H17: 23 | I17: 3 | J17: 433 | K17: 345 | L17: 1995
A18: 17 | B18: Deidda and Fattouh (2002) | C18: Deidda, L., Fattouh, B. | D18: Article | E18: Non-linearity between finance and growth. | F18: Economics Letters | G18: 0.146 | H18: 74 | I18: 3 | J18: 339 | K18: 23 | L18: 2002
A19: 18 | B19: Djalilov and Piesse (2011) | C19: Djalilov, K., Piesse, J. | D19: Article | E19: Financial development and growth in transition countries: A study of central Asia | F19: Emerging Markets Finance and Trade | G19: 0.011 | H19: 47 | I19: 6 | J19: 4 | K19: 305 | L19: 2011
A20: 19 | B20: Ergungor (2008) | C20: Ergungor, O.E. | D20: Article | E20: Financial system structure and economic growth: Structure matters | F20: International Review of Economics and Finance | G20: 0.04 | H20: 17 | I20: 2 | J20: 292 | K20: 759 | L20: 2008
A21: 20 | B21: Giedeman and Compton (2009) | C21: Giedeman, D., Compton, R. | D21: Article | E21: A note on finance, inflation, and economic growth | F21: Economics Bulletin | G21: 0.016 | H21: 29 | I21: 2 | J21: 749 | K21: 69 | L21: 2009
A22: 21 | B22: Graff (2003) | C22: Graff, M. | D22: Article | E22: Financial development and economic growth in corporatist and liberal market economies | F22: Emerging Markets Finance and Trade | G22: 0.011 | H22: 39 | I22: 2 | J22: 47 | K22: 362 | L22: 2003
A23: 22 | B23: Hao (2006) | C23: HAO, C. | D23: Article | E23: Development of financial intermediation and economic growth: The Chinese experience | F23: China Economic Review | G23: 0.073 | H23: 17 | I23: 4 | J23: 347 | K23: 172 | L23: 2006
A24: 23 | B24: Hassan et al. (2011a) | C24: Hassan, M.K., Sanchez, B., Yu, J.-S. | D24: Article | E24: Financial development and economic growth in the organization of islamic conference countries | F24: Journal of King Abdulaziz University, Islamic Economics | G24: 0 | H24: 24 | I24: 1 | J24: 145 | K24: 104 | L24: 2011
A25: 24 | B25: Hassan et al. (2011b) | C25: Hassan, M.K., Sanchez, B., Yu, J.-S. | D25: Article | E25: Financial development and economic growth: New evidence from panel data | F25: Quarterly Review of Economics and Finance | G25: 0.044 | H25: 51 | I25: 1 | J25: 88 | K25: 466 | L25: 2011
A26: 25 | B26: Huang and Lin (2009) | C26: Huang, H.-C., Lin, S.-C. | D26: Article | E26: Non-linear finance-growth nexus: A threshold with instrumental variable approach | F26: Economics of Transition | G26: 0.186 | H26: 17 | I26: 3 | J26: 439 | K26: 236 | L26: 2009
A27: 26 | B27: Huang et al. (2010) | C27: Huang, H.-C., Lin, S.-C., Kim, D.-H., Yeh, C.-C. | D27: Article | E27: Inflation and Finance-Growth Nexus | F27: Economic Modelling | G27: 0.065 | H27: 27 | I27: 1 | J27: 229 | K27: 30 | L27: 2010
A28: 27 | B28: Hwang et al. (2010) | C28: Hwang, J.-T., Chung, C.-P., Wang, C.-H. | D28: Article | E28: Debt overhang, financial sector development and economic growth | F28: Hitotsubashi Journal of Economics | G28: 0.011 | H28: 51 | I28: 1 | J28: 12 | K28: 656 | L28: 2010
A29: 28 | B29: Chakraborty (2010) | C29: Chakraborty, I. | D29: Article | E29: Financial development and economic growth in india: An analysis of the post-reform period | F29: South Asia Economic Journal | G29: 0 | H29: 11 | I29: 2 | J29: 287 | K29: 1007 | L29: 2010
A30: 29 | B30: Jalilian and Kirkpatrick (2005) | C30: Jalilian, H., Kirkpatrick, C. | D30: Article | E30: Does financial development contribute to poverty reduction? | F30: Journal of Development Studies | G30: 0.435 | H30: 41 | I30: 4 | J30: 636 | K30: 111 | L30: 2005
A31: 30 | B31: Jeanneney and Kpodar (2006) | C31: Jeanneney, S.G., Kpodar, K. | D31: Article | E31: Financial development, financial instability, and economic growth. | F31: Economie et Prevision | G31: 0.001 | H31: 174 | I31: 3 | J31: 87 | L31: 2006
A32: 31 | B32: Ketteni et al. (2007) | C32: Ketteni, E., Mamuneas, T., Savvides, A., Stengos, T. | D32: Article | E32: Is the Financial Development and Economic Growth Relationship Nonlinear? | F32: Economics Bulletin | G32: 0.016 | H32: 15 | I32: 14 | K32: 737 | L32: 2007
A33: 32 | B33: King and Levine (1993) | C33: King, R.G., Levine, R. | D33: Article | E33: Finance and Growth: Schumpeter Might be Right | F33: Quarterly Journal of Economics | G33: 4.004 | H33: 108 | I33: 3 | J33: 717 | K33: 687 | L33: 1993
A34: 33 | B34: Lartey (2010) | C34: Lartey, E.K.K. | D34: Article | E34: A note on the effect of financial development on economic growth | F34: Applied Economics Letters | G34: 0.005 | H34: 17 | I34: 7 | J34: 685 | K34: 714 | L34: 2010
A35: 34 | B35: Lartey and Farka (2011) | C35: Lartey, E.K.K., Farka, M. | D35: Article | E35: Financial development, crises and growth | F35: Applied Economics Letters | G35: 0.005 | H35: 18 | I35: 8 | J35: 711 | K35: 24 | L35: 2011
A36: 35 | B36: Leitao (2010) | C36: Leitão, N.C. | D36: Article | E36: Financial Development and Economic Growth: A Panel Approach | F36: Theoretical and Applied Economics | G36: 0.001 | H36: 17 | I36: 10 | J36: 15 | K36: 312 | L36: 2010
A37: 36 | B37: Lensink (2001) | C37: Lensink, R. | D37: Article | E37: Financial development uncertainty and economic growth | F37: Economist | G37: 0.054 | H37: 149 | I37: 3 | J37: 299 | K37: 613 | L37: 2001
A38: 37 | B38: Levine (1998) | C38: Levine, R. | D38: Article | E38: The Legal Environment, Banks, and Long-run Economic Growth | F38: Journal of Money, Credit and Banking | G38: 0.735 | H38: 30 | I38: 3 | J38: 596 | K38: 35 | L38: 1998
A39: 38 | B39: Levine (1999) | C39: Levine, R. | D39: Article | E39: Law, Finance, and Economic Growth | F39: Journal of Financial Intermediation | G39: 0.674 | H39: 8 | I39: 2012-02-01 | J39: 8 | K39: 558 | L39: 1999
A40: 39 | B40: Levine and Zervos (1998) | C40: Levine, R., Zervos, S. | D40: Article | E40: Stock Markets, Banks, and Economic Growth | F40: American Economic Review | G40: 1.759 | H40: 88 | I40: 3 | J40: 537 | K40: 77 | L40: 1998
A41: 40 | B41: Levine et al. (2000) | C41: Levine, R., Loayza, N., Beck, T. | D41: Article | E41: Financial Intermediation and Growth: Causality and Causes | F41: Journal of Monetary Economics | G41: 1.93 | H41: 46 | I41: 1 | J41: 31 | K41: 690 | L41: 2000
A42: 41 | B42: Liu and Hsu (2006) | C42: Liu, W.-C., Hsu, C.-M. | D42: Article | E42: The Role of Financial Development in Economic Growth: The Experience of Taiwan, Korea and Japan | F42: Journal of Asian Economics | G42: 0.022 | H42: 17 | I42: 4 | J42: 667 | K42: 1076 | L42: 2006
A43: 42 | B43: Loayza and Ranciere (2006) | C43: Loayza, N.V., RanciÃ¨re, R. | D43: Article | E43: Financial development, financial fragility, and growth | F43: Journal of Money, Credit and Banking | G43: 0.735 | H43: 38 | I43: 4 | J43: 1051 | K43: 777 | L43: 2006
A44: 43 | B44: Lu and Yao (2009) | C44: Feng Lu, S., Yao, Y. | D44: Article | E44: The Effectiveness of Law, Financial Development, and Economic Growth in an Economy of Financial Repression: Evidence from China | F44: World Development | G44: 0.076 | H44: 37 | I44: 4 | J44: 763 | L44: 2009
A45: 44 | B45: Manning (2003) | C45: Manning, M.J. | D45: Article | E45: Finance causes growth: Can we be so sure? | F45: Contributions to Macroeconomics | G45: 0.5 | H45: 3 | I45: 1 | K45: 313 | L45: 2003
A46: 45 | B46: Masten et al. (2008) | C46: Masten, A.B., Coricelli, F., Masten, I. | D46: Article | E46: Non-linear growth effects of financial development: Does financial integration matter? | F46: Journal of International Money and Finance | G46: 0.467 | H46: 27 | I46: 2 | J46: 295 | K46: 312 | L46: 2008
A47: 46 | B47: McCaig and Stengos (2005) | C47: McCaig, B., Stengos, T. | D47: Article | E47: Financial Intermediation and Growth: Some Robustness Results | F47: Economics Letters | G47: 0.146 | H47: 88 | I47: 3 | J47: 306 | K47: 1602 | L47: 2005
A48: 47 | B48: Minier (2003) | C48: Minier, J.A. | D48: Article | E48: Are small stock markets different? | F48: Journal of Monetary Economics | G48: 1.93 | H48: 50 | I48: 7 | J48: 1593 | L48: 2003
A49: 48 | B49: Moshirian and Wu (2012) | C49: Moshirian, F., Wu, Q. | D49: Article in Press | E49: Banking industry volatility and economic growth | F49: Research in International Business and Finance | G49: 0.017 | K49: 315 | L49: 2012
A50: 49 | B50: Naceur and Ghazouani (2007) | C50: Naceur, S.B., Ghazouani, S. | D50: Article | E50: Stock Markets, Banks, and Economic Growth: Empirical Evidence from the MENA Region | F50: Research in International Business and Finance | G50: 0.017 | H50: 21 | I50: 2 | J50: 297 | K50: 146 | L50: 2007
A51: 50 | B51: Odedokun (1996) | C51: Odedokun, M.O. | D51: Article | E51: Alternative Econometric Approaches for Analysing the Role of the Financial Sector in Economic Growth: Time-Series Evidence from LDCs | F51: Journal of Development Economics | G51: 0.435 | H51: 50 | I51: 1 | J51: 119 | K51: 174 | L51: 1996
A52: 51 | B52: Ram (1999) | C52: Ram, R. | D52: Article | E52: Financial Development and Economic Growth: Additional Evidence | F52: Journal of Development Studies | G52: 0.435 | H52: 35 | I52: 4 | J52: 164 | K52: 447 | L52: 1999
A53: 52 | B53: Rioja and Valev (2004) | C53: Rioja, F., Valev, N. | D53: Article | E53: Does one Size Fit All?: a Reexamination of the Finance and Growth Relationship | F53: Journal of Development Economics | G53: 0.435 | H53: 74 | I53: 2 | J53: 429 | K53: 1957 | L53: 2004
A54: 53 | B54: Rousseau and Wachtel (2000) | C54: Rousseau, P. L., Wachtel, P. | D54: Article | E54: Equity Market and Growth, Cross Country Evidence on Timing and Outcomes 1980-1995 | F54: Journal of Banking and Finance | G54: 0.222 | H54: 24 | I54: 12 | J54: 1933 | K54: 793 | L54: 2000
A55: 54 | B55: Rousseau and Wachtel (2002) | C55: Rousseau, P.L., Wachtel, P. | D55: Article | E55: Inflation Treshold and the Finace-Growth Nexus | F55: Journal of International Money and Finance | G55: 0.467 | H55: 21 | I55: 6 | J55: 777 | K55: 288 | L55: 2002
A56: 55 | B56: Rousseau and Wachtel (2011) | C56: Rousseau, P.L., Wachtel, P. | D56: Article | E56: What is happening to the impact of financial deepening on economic growth? | F56: Economic Inquiry | G56: 0.233 | H56: 49 | I56: 1 | J56: 276 | K56: 324 | L56: 2011
A57: 56 | B57: Rousseau and Yilmazkuday (2009) | C57: Rousseau, P.L., Yilmazkuday, H. | D57: Article | E57: Inflation, financial development, and growth: A trilateral analysis | F57: Economic Systems | G57: 0.07 | H57: 33 | I57: 4 | J57: 310 | K57: 1707 | L57: 2009
A58: 57 | B58: Saci et al. (2009) | C58: Saci, K., Giorgioni, G., Holden, K. | D58: Article | E58: Does financial development affect growth? | F58: Applied Economics | G58: 0.042 | H58: 41 | I58: 13 | J58: 1701 | K58: 134 | L58: 2009
A59: 58 | B59: Seetanah et al. (2009) | C59: Seetanah, B., Ramessur, S.T., Rojid, S. | D59: Article | E59: Financial development and economic growth: New evidence from a sample of island economies | F59: Journal of Economic Studies | G59: 0.011 | H59: 36 | I59: 2 | J59: 124 | K59: 1944 | L59: 2009
A60: 59 | B60: Shen and Lee (2006) | C60: Shen, C.-H., Lee, C.-C. | D60: Article | E60: Same Financial Development yet Different Economic Growth-Why? | F60: Journal of Money, Credit and Banking | G60: 0.735 | H60: 38 | I60: 7 | J60: 1907 | K60: 125 | L60: 2006
A61: 60 | B61: Shen et al. (2011) | C61: Shen, C.-H., Lee, C.-C., Chen, S.-W., Xie, Z. | D61: Article | E61: Roles played by financial development in economic growth: Application of the flexible regression model | F61: Empirical Economics | G61: 0.149 | H61: 41 | I61: 1 | J61: 103 | K61: 1904 | L61: 2011
A62: 61 | B62: Tang (2006) | C62: Tang, D. | D62: Article | E62: The effect of financial development on economic growth: Evidence from the APEC countries, 1981-2000 | F62: Applied Economics | G62: 0.042 | H62: 38 | I62: 16 | J62: 1889 | K62: 389 | L62: 2006
A63: 62 | B63: Tsangarides (2002) | C63: Tsangarides, C.G. | D63: Article | E63: On cross-country growth and convergence: Evidence from African and OECD countries | F63: Journal of African Economies | G63: 0.101 | H63: 10 | I63: 4 | J63: 355 | K63: 328 | L63: 2002
A64: 63 | B64: Wang (1999) | C64: Wang, E.C. | D64: Article | E64: A production function approach for analyzing the finance-growth nexus : the evidence from taiwan | F64: Journal of Asian Economics | G64: 0.022 | H64: 10 | I64: 2 | J64: 319 | K64: 36 | L64: 1999
A65: 64 | B65: Yao (2010) | C65: Yao, Y. | D65: Article | E65: Financial intermediation development and economic growth: Does the Chinese counterexample exist? | F65: China and World Economy | G65: 0.016 | H65: 18 | I65: 5 | J65: 22 | K65: 74 | L65: 2010
A66: 65 | B66: Yay and Oktayer (2009) | C66: Yay, G., Oktayer, A. | D66: Article | E66: Financial development and economic growth - A comparative analysis | F66: Journal for Economic Forecasting | G66: 0.002 | H66: 11 | I66: 3 | J66: 56 | K66: 295 | L66: 2009
A67: 66 | B67: Yilmazkuday (2011) | C67: Yilmazkuday, H. | D67: Article | E67: Thresholds in the finance-growth nexus: A cross-country analysis | F67: World Bank Economic Review | G67: 0.809 | H67: 25 | I67: 2 | J67: 278 | K67: 3489 | L67: 2011
A68: 67 | B68: Yu et al. (2012) | C68: Yu, J.-S., Hassan, M.K., Sanchez, B. | D68: Article | E68: A re-examination of financial development, stock markets development and economic growth | F68: Applied Economics | G68: 0.042 | H68: 44 | I68: 27 | J68: 3479 | L68: 2012

Sheet Excluded studies
A1: Study | B1: Authors | C1: Title | D1: Reason for exclusion | E1: Outlet | F1: Volume | G1: Issue | H1: Page start | I1: Page end | J1: year | K1: Notes
A2: Abu-Bader and Abu-Qarn (2008a) | B2: Abu-Bader, S., Abu-Qarn, A.S. | C2: Financial development and economic growth: Empirical evidence from six MENA countries | D2: MENA - Variance Decomposition, Granger causality | E2: Review of Development Economics | F2: 12 | G2: 4 | H2: 803 | I2: 817 | J2: 2008
A3: Acaravci et al. (2009) | B3: Acaravci, S.K., Ozturk, I., Acaravci, A. | C3: Financial development and economic growth: Literature survey and empirical evidence from sub-Saharan African countries | D3: Review | E3: South African Journal of Economic and Management Sciences | F3: 12 | G3: 1 | H3: 11 | I3: 27 | J3: 2009
A4: Aka (2010) | B4: Aka, B.E. | C4: Developpement financier, croissance economique et productivite globale des facteurs en Afrique Sub-saharienne | D4: Study not written in english | E4: African Development Review | F4: 22 | G4: 1 | H4: 23 | I4: 50 | J4: 2010
A5: Akhter and Daly (2009) | B5: Akhter, S., Daly, K.J. | C5: Finance and poverty: Evidence from fixed effect vector decomposition | D5: excluded - investigates the impact of financial development on poverty reduction (dep. Var. is the head count index - defined as percentage of population under a dollar daily income) | E5: Emerging Markets Review | F5: 10 | G5: 3 | H5: 191 | I5: 206 | J5: 2009
A6: Akimov et al. (2009) | B6: Akimov, A., Wijeweera, A., Dollery, B. | C6: Financial development and economic growth: Evidence from transition economies | D6: Missing some observations, studies cannot be used to compute standard statistics for MA | E6: Applied Financial Economics | F6: 19 | G6: 12 | H6: 999
A7: Al-Awad and Harb (2005) | B7: Al-Awad, M., Harb, N. | C7: Financial development and economic growth in the Middle East | D7: No coefficients (Granger, Impulse Responses) | E7: Applied Financial Economics | F7: 15 | G7: 15 | H7: 1041 | I7: 1051 | J7: 2005
A8: Andersen et al. (2012) | B8: Andersen, T.B., Jones, S., Tarp, F. | C8: The finance-growth thesis: A sceptical assessment | D8: Does not contain an empirical estimate on the finance-growth nexus (examines only the presence, not the extent of financial development-growth relationship) | E8: Journal of African Economies | F8: 21 | H8: i57 | I8: i88 | J8: 2012
A9: Andini (2009) | B9: Andini, C. | C9: Financial intermediation and growth: Causality and causes without outliers | D9: Conference Paper | E9: Portuguese Economic Journal | F9: 8 | G9: 1 | H9: 15 | I9: 22 | J9: 2009
A10: Ang (2008b) | B10: Ang, J.B. | C10: Article | D10: Only coeffs, no p-val, no SE | E10: What are the mechanisms linking financial development and economic growth in Malaysia? | F10: Economic Modelling | G10: 25 | H10: 1 | I10: 38 | J10: 53
A11: Ang (2009) | B11: Ang, J.B. | C11: Financial development and the FDI-growth nexus: the Malaysian experience | D11: No coeffs, just ECM, Johansen, CI vectors + Causality | E11: Applied Economics | F11: 41 | G11: 13 | H11: 1595 | I11: 1601 | J11: 2008
A12: Ang and McKibbin (2007) | B12: Ang, J.B., McKibbin, W.J. | C12: Financial liberalization, financial sector development and growth: evidence from Malaysia | D12: No coeffs, just ECM, Johansen, CI vectors + Causality | E12: Journal of Development Economics | F12: 84 | G12: 1 | H12: 215 | I12: 233 | J12: 2007
A13: Ansari (2002) | B13: Ansari, M.I. | C13: Impact of financial development, money, and public spending on Malaysian national income: An econometric study | D13: ECM | E13: Journal of Asian Economics | F13: 13 | G13: 1 | H13: 72 | I13: 93 | J13: 2002
A14: Arestis and Demetriades (1997) | B14: Arestis, P., Demetriades, P. | C14: Financial development and economic growth: assessing the evidence | D14: ECM (just Cointegration Analysis) | E14: Economic Journal | F14: 107 | G14: 442 | H14: 783 | I14: 799 | J14: 1997
A15: Arestis et al. (2001) | B15: Arestis, P., Demetriades, P.O., Luintel, K.B. | C15: Financial development and economic growth: the role of stock markets | D15: ECM (just Cointegration Analysis) | E15: Journal of Money, Credit and Banking | F15: 33 | G15: 1 | H15: 16 | I15: 41 | J15: 2001
A16: Arestis et al. (2002) | B16: Arestis, P., Demetriades, P., Fattouh, B., Mouratidis, K. | C16: The impact of financial liberalization policies on financial development: evidence from developing economies | D16: ECM | E16: International Journal of Finance and Economics | F16: 7 | G16: 2 | H16: 109 | I16: 121 | J16: 2002
A17: Aziakpono (2011) | B17: Aziakpono, M.J. | C17: Financial development and economic growth: Theory and a survey of evidence | D17: Review | E17: Journal for Studies in Economics and Econometrics | F17: 35 | G17: 1 | H17: 15 | I17: 44 | J17: 2011
A18: Barajas et al. (2010) | B18: Barajas, A., Chami, R. Yousefi, S. R. | C18: The Finance and Growth Nexus Re-examined: Are There Cross-Region Differences? | D18: Not published - Working Paper, IMF Working paper | K18: IMF Working Paper
A19: Beck and Levine (2002) | B19: Beck, T., Levine, R. | C19: Industry growth and capital allocation: does having a market- or bank-based system matter? | D19: no empirical estimate | E19: Journal of Financial Economics | F19: 64 | G19: 2 | H19: 147 | I19: 180 | J19: 2002
A20: Bell and Rousseau (2001) | B20: Bell, C., Rousseau, P.L. | C20: Post-independence India: a case of finance-led industrialization? | D20: VAR | E20: Journal of Development Economics | F20: 65 | G20: 1 | H20: 153 | I20: 175 | J20: 2001
A21: Bhaskara and Tamazian (2011) | B21: Bhaskara Rao, B., Tamazian, A. | C21: A simultaneous equations model of finance and growth: FIML estimates for India | D21: ECM | E21: Applied Economics | F21: 43 | G21: 25 | H21: 3699 | I21: 3708 | J21: 2011
A22: Bhattacharya and Sivasubramanian (2003) | B22: Bhattacharya, P.C., Sivasubramanian, M.N. | C22: Financial development and economic growth in India: 1970-1971 to 1998-1999 | D22: ECM | E22: Applied Financial Economics | F22: 13 | G22: 12 | H22: 905 | I22: 909 | J22: 2003
A23: Bordo and Rousseau (2006) | B23: Bordo, M.D., Rousseau, P.L. | C23: Legal-political factors and the historical evolution of the finance-growth link | D23: Conference Paper | E23: European Review of Economic History | F23: 10 | G23: 3 | H23: 421 | I23: 444 | J23: 2006
A24: Calderon and Liu (2003) | B24: Calderon , C., Liu, L. | C24: The direction of causality between financial development and economic growth | D24: Causality testing | E24: Journal of Development Economics | F24: 72 | G24: 1 | H24: 321 | I24: 334 | J24: 2003
A25: Caporale et al. (2005) | B25: Caporale, G.M., Howells, P., Soliman, A.M. | C25: Endogenous Growth Models and stock market development: evidence from four countries | D25: VAR - Causality testing, no coeffs | E25: Review of Development Economics | F25: 9 | G25: 2 | H25: 166 | I25: 176 | J25: 2005
A26: Claessens and Feijen (2006) | B26: Claessens, S., Feijen, E. | C26: Financial sector development and the millennium development goals | D26: Review | E26: World Bank Working Paper | G26: 89 | H26: 1 | I26: 106 | J26: 2006
A27: Claessens and Laeven (2002) | B27: Claessens, S., Laeven, L. | C27: Financial Development, Property Rights and Growth | D27: Not published - Working Paper | K27: World Bank Policy Research Working Paper 2924
A28: Colle (2011) | B28: Colle, A.D. | C28: Finance-growth nexus: Does causality withstand financial liberalization? Evidence from cointegrated VAR | D28: Cointegration tests + Granger Causality, no coeffs | E28: Empirical Economics | F28: 41 | G28: 1 | H28: 127 | I28: 154 | J28: 2011
A29: Corporale et al. (2009) | B29: Corporale, G. M., Rault, C., Sova, R., Sova, A. | C29: Financial Depth and Economic Growth in New E.U Members | D29: Not published article | K29: Asongu, DIW Berlin Discussion Paper No. 940
A30: Craigwell et al. (2001) | B30: Craigwell, R., Downes, D., Howard, M. | C30: The finance-growth Nexus: A multivariate var analysis of a small open economy | D30: not found | E30: Savings and Development | F30: 25 | G30: 2 | H30: 209 | I30: 448 | J30: 2007
A31: Dawson (2010) | B31: Dawson, P.J. | C31: Financial development and economic growth: A panel approach | D31: Estimates elasticities as cointegrating parameters. P. 744 "the magnitude of the effect of financial development on GDP estimate here is not directly comparable with many other studies that use growth rates … " | E31: Applied Economics Letters | F31: 17 | G31: 8 | H31: 741 | I31: 745 | J31: 2010
A32: de Guevara and Maudos (2011) | B32: de Guevara, J.F., Maudos, J. | C32: Banking competition and economic growth: Cross-country evidence | D32: dep. var. is the average annual real growth rate of value added in a particular sector in each country, not GDP/GDP per capita growth rate | E32: European Journal of Finance | F32: 17 | G32: 8 | H32: 739 | I32: 764 | J32: 2011
A33: Deidda (2006) | B33: Deidda, L.G. | C33: Interaction between economic and financial development | D33: Pure theory, no empirics | E33: Journal of Monetary Economics | F33: 53 | G33: 2 | H33: 233 | I33: 248 | J33: 2006
A34: Demetriades and Hussein (1996) | B34: Demetriades, P.O., Hussein, K.A. | C34: Does financial development cause economic growth? Time-series evidence from sixteen countries | D34: Cointegration, Causality, no coeffs | E34: Journal of Economic Development | F34: 51 | G34: 2 | H34: 387 | I34: 411 | J34: 1996
A35: Demetriades and Luintel (1996a) | B35: Demetriades, P.O., Luintel, K.B. | C35: Banking sector policies and financial development in Nepal | D35: ECM - cannot determine the effect of FD on growth, see p. 386, FD only as a part of EC term | E35: Oxford Bulletin of Economics and Statistics | F35: 58 | G35: 1 | H35: 355 | I35: 372 | J35: 1996
A36: Demetriades and Luintel (1996b) | B36: Demetriades, P.O., Luintel, K.B. | C36: Financial development, economic growth and banker sector controls: evidence from India | D36: Regress Financial Development per se, links to economic development only mentioned, no empirics | E36: Economic Journal | F36: 106 | G36: 435 | H36: 359 | I36: 374 | J36: 1996
A37: Demetriades and Luintel (1997) | B37: Demetriades, P.O., Luintel, K.B. | C37: The direct costs of financial repression: evidence from India | D37: Regress Financial Development per se, links to economic development only mentioned, no empirics | E37: Review of Economics and Statistics | F37: 79 | G37: 2 | H37: 311 | I37: 319 | J37: 1997
A38: Demetriades and Luintel (2001) | B38: Demetriades, P.O., Luintel, K.B. | C38: Financial restraints in the South Korean miracle | D38: Regress Financial Development per se, links to economic development only mentioned, no empirics | E38: Journal of Development Economics | F38: 64 | G38: 2 | H38: 459 | I38: 479 | J38: 2001
A39: Demirguc-Kunt and Maksimovic (1998) | B39: Demirgüç-Kunt, A., Maksimovic, V. | C39: Law, finance, and firm growth | D39: Investigate Growth of Firms depending on the quality of business environment | E39: Journal of Finance | F39: 53 | G39: 6 | H39: 2107 | I39: 2137 | J39: 1998
A40: Demirguc-Kunt and Maksimovic (2002) | B40: Demirgüç-Kunt, A., Maksimovic, V. | C40: Funding growth in bank-based and market-based financial systems: evidence from firm-level data | D40: Investigate Growth of Firms depending on the quality of business environment | E40: Journal of Financial Economics | F40: 65 | G40: 3 | H40: 337 | I40: 363 | J40: 2002
A41: Deng and Su (2011) | B41: Deng, H.-H., Su, J.-R. | C41: Orientation of market allocation in China's financial development | D41: Conference Paper | E41: 2011 IEEE 18th International Conference on Industrial Engineering and Engineering Management, IE and EM 2011 | G41: PART 3 | H41: 1904 | I41: 1910 | J41: 2011
A42: Estrada et al. (2010) | B42: Estrada, G., Park, D., Ramayandi, A. | C42: Financial Development and Economic Growth in Developing Asia | D42: Working Paper | E42: ADB Economics Working Paper Series | F42: 233
A43: Evans et al. (2002) | B43: Evans, A.D., Green, C.J., Murinde, V. | C43: Human capital and financial development in economic growth: New evidence using the translog production function | D43: Lacks variable description, impossible to disentagle the effect of specific FinDev indicators | E43: International Journal of Finance and Economics | F43: 7 | G43: 2 | H43: 123 | I43: 140 | J43: 2002
A44: Fase and Abma (2003) | B44: Fase, M.M.G., Abma, R.C.N. | C44: Financial environment and economic growth in selected Asian countries | D44: ECM | E44: Journal of Asian Economics | F44: 14 | G44: 1 | H44: 11 | I44: 21 | J44: 2003
A45: Favara (2003) | B45: Favara, G. | C45: An Empirical Reassessment of the Relationship between Finance and Growth | D45: Not published - Working Paper | K45: IMF Working Paper
A46: Federici and Caprioli (2009) | B46: Federici, D., Caprioli, F. | C46: Financial development and growth: An empirical analysis | D46: VAR, only impulse response, no t-statistics | E46: Economic Modelling | F46: 26 | G46: 2 | H46: 285 | I46: 294 | J46: 2009
A47: Galfason and Herbertsson (2001) | B47: Gylfason, T., Herbertsson, T.T. | C47: Does inflation matter for growth? | D47: Does not regress on FinDevelopment, only on other variables (inflation, openness…) | E47: Japan and the World Economy | F47: 13 | G47: 4 | H47: 405 | I47: 428 | J47: 2001
A48: Gillman et al. (2000) | B48: Gillman, M., Kejak, M., Valentinyi, A. | C48: Non-linearity in the Inflation-Growth Effect | D48: Theoretical model only, no empirics | E48: Finance a Uver | F48: 2000 | G48: 11 | H48: 595 | I48: 596 | J48: 2000
A49: Goaied and Sassi (2010) | B49: Goaied, M., Sassi, S. | C49: Financial Development and Economic Growth in the MENA Region: What about Islamic Banking Development | D49: Not published article
A50: Goldsmith (1969) | B50: Goldsmith, R. W. | C50: Financial structure and development | D50: not found - letter instead of an article found | E50: The Economic Journal | F50: 80 | H50: 365 | I50: 54 | J50: 2010
A51: Gondo (2009) | B51: Gondo, J. | C51: Financial Development and Economic Growth: Evidence from South Africa: 1970-1999 | D51: Not published
A52: Greenwood and Jovanovic (1990) | B52: GREENWOOD, J., JOVANOVIC, B. | C52: FINANCIAL DEVELOPMENT, GROWTH, AND THE DISTRIBUTION OF INCOME | D52: Theoretical model only, no empirics | E52: JOURNAL OF POLITICAL ECONOMY | F52: 98 | G52: 4 | H52: 1076 | I52: 1107 | J52: 1990
A53: Gulde and Pattillo (2006) | B53: Gulde, A.-M., Pattillo, C. | C53: Adding depth | D53: Only summary statistics, no regression | E53: Finance and Development | F53: 43 | G53: 2 | H53: 44 | I53: 47 | J53: 2006
A54: Gupta (1984) | B54: Gupta, K. L. | C54: Finance and Economic Growth in Developing Countries | D54: Overview - book
A55: Habibullah (1999) | B55: Habibullah, M.S. | C55: Financial development and economic growth in Asian countries: Testing the financial-led growth hypothesis | D55: Cointegration, Causality, no coeffs | E55: Savings and Development | F55: 23 | G55: 3 | H55: 279 | I55: 291 | J55: 1999
A56: Habibullah and Eng (2006) | B56: Habibullah, M.S., Eng, Y.-K. | C56: Does financial development cause economic growth? A panel data dynamic analysis for the Asian developing countries | D56: Conference Paper | E56: Journal of the Asia Pacific Economy | F56: 11 | G56: 4 | H56: 377 | I56: 393 | J56: 2006
A57: Hahn (2005) | B57: Hahn, F.R. | C57: Finance-Growth Nexus and the P-bias: Evidence from OECD countries | D57: ARDL | E57: Economic Notes | F57: 34 | G57: 1 | H57: 113 | I57: 126 | J57: 2005
A58: Hahn (2008) | B58: Hahn, F.R. | C58: The finance-specialization-growth nexus: Evidence from OECD countries | D58: Dependent variable is difference between min/max output gap and s.d. of output gap respectively | E58: Applied Financial Economics | F58: 18 | G58: 4 | H58: 255 | I58: 265 | J58: 2008
A59: Handa and Khan (2008) | B59: Handa, J., Khan, S.R. | C59: Financial development and economic growth: A symbiotic relationship | D59: Cointegration, Causality, no coeffs | E59: Applied Financial Economics | F59: 18 | G59: 13 | H59: 1033 | I59: 1049 | J59: 2008
A60: Harris (1997) | B60: Harris, R.D.F. | C60: Stock Markets and Development: a re-assessment | D60: Regress EconGrowth ~ Investment*StockTraded + LaggedInvestment*StockTraded + … | E60: European Economic Review | F60: 41 | G60: 1 | H60: 139 | I60: 146 | J60: 1997
A61: Harris (2012) | B61: Harris, L. | C61: From financial development to economic growth and vice versa: A review of international experience and policy lessons for Africa | D61: Review | E61: Journal of African Economies | F61: 21 | G61: SUPPL.1 | H61: i89 | I61: i106 | J61: 2012
A62: Hassan (1996) | B62: Hassan, M.K. | C62: Financial repression in economic development: a test of the McKinnon-Shaw hypothesis for Bangladesh | D62: different authors, this paper with this title and authors could not be found | E62: The economy of Bangladesh | H62: 81 | I62: 367 | J62: 1969
A63: Henry (2000) | B63: Henry, P.B. | C63: Do Stock Market Liberalizations Cause Investment Booms? | D63: Dependent Variable is not growth rate of GDP, but that of Investment | E63: Journal of Financial Economics | F63: 58 | G63: 1 az 2 | H63: 301 | I63: 334 | J63: 2000
A64: Hodges and Knabb Shawn (2010) | B64: Hodges, H., Knabb Shawn, D. | C64: How robust is the relationship between financial intermediation and economic growth? | D64: Not found - permission required | E64: Applied Econometrics and International Development | F64: 10 | G64: 1 | H64: 39 | I64: 223 | J64: 2001
A65: Horng et al. (2012) | B65: Horng, M.-S., Chang, Y.-W., Wu, T.-Y. | C65: Does insurance demand or financial development promote economic growth? Evidence from Taiwan | D65: ECM | E65: Applied Economics Letters | F65: 19 | G65: 2 | H65: 105 | I65: 111 | J65: 2012
A66: Hou and Cheng (2010) | B66: Hou, H., Cheng, S.-Y. | C66: The roles of stock market in the finance-growth nexus: Time series cointegration and causality evidence from Taiwan | D66: Cointegration, Causality, no coeffs | E66: Applied Financial Economics | F66: 20 | G66: 12 | H66: 975 | I66: 981 | J66: 2010
A67: Hung (2009) | B67: Hung, F.-S. | C67: Explaining the nonlinear effects of financial development on economic growth | D67: Theoretical model only | E67: Journal of Economics/ Zeitschrift fur Nationalokonomie | F67: 97 | G67: 1 | H67: 41 | I67: 65 | J67: 2009
A68: Hye and Dolgopolova (2011) | B68: Hye, Q.M.A., Dolgopolova, I. | C68: Economics, finance and development in China: Johansen-Juselius co-integration approach | D68: Cointegration, Impulse Response | E68: Chinese Management Studies | F68: 5 | G68: 3 | H68: 311 | I68: 324 | J68: 2011
A69: Chakraborty (2008) | B69: Chakraborty, I. | C69: Does financial development cause economic growth? The case of India | D69: Johansen + Causality, no coeffs | E69: South Asia Economic Journal | F69: 9 | G69: 1 | H69: 109 | I69: 139 | J69: 2008
A70: Chang (2002) | B70: Chang, T. | C70: Financial development and economic growth in Mainland China: A note on testing demand-following or supply-leading hypothesis | D70: Cointegration tests + Granger Causality, no coeffs | E70: Applied Economics Letters | F70: 9 | G70: 13 | H70: 869 | I70: 873 | J70: 2002
A71: Chang and Caudill (2005) | B71: Chang, T., Caudill, S.B. | C71: Financial development and economic growth: The case of Taiwan | D71: Cointegration tests + Granger Causality, no coeffs | E71: Applied Economics | F71: 37 | G71: 12 | H71: 1329 | I71: 1335 | J71: 2005
A72: Chiou-Wei et al. (2010) | B72: Chiou-Wei, S.Z., Zhu, Z., Wu, W.-C. | C72: Financial development and economic growth in South Korea: An application of smooth transition error correction analysis | D72: ECM | E72: Applied Economics | F72: 42 | G72: 16 | H72: 2041 | I72: 2052 | J72: 2010
A73: Choe and Moosa (1999) | B73: Choe, C., Moosa, I.A. | C73: Financial System and Economic Growth: the Korean Experience | D73: Causality, no coeffs | E73: World Development | F73: 27 | G73: 6 | H73: 1069 | I73: 1082 | J73: 1999
A74: Choong (2011) | B74: Choong, C.-K. | C74: Does domestic financial development enhance the linkages between foreign direct investment and economic growth? | D74: No p-values or SEs avaliable, useless for MA. | E74: Empirical Economics | H74: 1 | I74: 16 | J74: 2011
A75: Christopoulos and Tsionas (2004) | B75: Christopoulos, D.K., Tsionas, E.G. | C75: Financial Development and Economic Growth: Evidence from Panel Unit Root and Cointegration Testis | D75: FMOLS - model v levels GDP, not growth rate | E75: Journal of Development Economics | F75: 73 | G75: 1 | H75: 55 | I75: 74 | J75: 2004
A76: Imai et al. (2010) | B76: Imai, K.S., Gaiha, R., Thapa, G. | C76: Is the Millennium development goal on poverty still achievable? The role of institutions, finance and openness | D76: Dependent variable is poverty head-count ratio | E76: Oxford Development Studies | F76: 38 | G76: 3 | H76: 309 | I76: 337 | J76: 2010
A77: Iyare and Moore (2011) | B77: Iyare, S., Moore, W. | C77: Financial sector development and growth in small open economies | D77: ECM | E77: Applied Economics | F77: 43 | G77: 10 | H77: 1289 | I77: 1297 | J77: 2011
A78: Jalil and Feridun (2011) | B78: Jalil, A., Feridun, M. | C78: Impact of financial development on economic growth: Empirical evidence from Pakistan | D78: ARDL | E78: Journal of the Asia Pacific Economy | F78: 16 | G78: 1 | H78: 71 | I78: 80 | J78: 2011
A79: Jalil and Ma (2008) | B79: Jalil, A., Ma, Y. | C79: Financial development and economic growth: Time series evidence from Pakistan and China | D79: ARDL | E79: Journal of Economic Cooperation Among Islamic Countries | F79: 29 | G79: 2 | H79: 29 | I79: 68 | J79: 2008
A80: Jie and Yong (2011) | B80: Jie, D., Yong, L. | C80: Empirical study on the relationship between financial development and economic growth in China | D80: Conference Paper | E80: 2011 International Conference on E-Business and E-Government, ICEE2011 - Proceedings | H80: 4104 | I80: 4106 | J80: 2011
A81: Jung (1986) | B81: Jung, W.S. | C81: Financial Development and Economic Growth: International Evidence | D81: Causality, no coefficients | E81: Economic Development and Cultural Change | F81: 34 | G81: 2 | H81: 333 | I81: 346 | J81: 1986
A82: Kabir and Hoque (2007) | B82: Kabir, S.H., Hoque, H.A.A.B. | C82: Financial liberalization, financial development and economic growth: Evidence from Bangladesh | D82: Could not be found - permission required | E82: Savings and Development | F82: 31 | G82: 4 | H82: 431 | I82: 844 | J82: 2006
A83: Kang and Sawada (2000) | B83: Kang, S.J., Sawada, Y. | C83: Financial repression and external openness in an endogenous growth model | D83: Theoretical model only, no empirics | E83: Journal of International Trade and Economic Development | F83: 9 | G83: 4 | H83: 427 | I83: 443 | J83: 2000
A84: Kar et al. (2011) | B84: Kar, M., NazlioÇ§lu, Åž., AÇ§ir, H. | C84: Financial development and economic growth nexus in the MENA countries: Bootstrap panel granger causality analysis | D84: Causality, no coeffs | E84: Economic Modelling | F84: 28 | G84: 2012-02-01 | H84: 685 | I84: 693 | J84: 2011
A85: Katircioglu (2007) | B85: Katircioglu, S.T., Kahyalar, N., Benar, H. | C85: Financial development, trade and growth triangle: The case of India | D85: Cointegration, Causality, no coeffs | E85: International Journal of Social Economics | F85: 34 | G85: 9 | H85: 586 | I85: 598 | J85: 2007
A86: Kemal et al. (2008) | B86: Kemal, A.R., Abdul, Q., Hanif, M.N. | C86: Financial Development and Economic Growth: Evidence from Heterogenous Panel of High Income Countries | D86: Not published | K86: MPRA 10198
A87: Kendall (2012) | B87: Kendall, J. | C87: Local financial development and growth | D87: Deals with Indian districts (9 states, 209 districts) | E87: Journal of Banking and Finance | F87: 36 | G87: 5 | H87: 1548 | I87: 1562 | J87: 2012
A88: Khalifa Al-Yousif (2002) | B88: Khalifa Al-Yousif, Y. | C88: Financial development and economic growth another look at the evidence from developing countries | D88: Cointegration, Causality, no coeffs | E88: Review of Financial Economics | F88: 11 | G88: 2 | H88: 131 | I88: 150 | J88: 2002
A89: Khan (2008) | B89: Khan, M.A. | C89: Financial development and economic growth in Pakistan: Evidence based on Autoregressive Distributed Lag (ARDL) approach | D89: ARDL | E89: South Asia Economic Journal | F89: 9 | G89: 2 | H89: 375 | I89: 391 | J89: 2008
A90: Khan and Qayyum (2007) | B90: Khan, M.A., Qayyum, A. | C90: Trade liberalisation, financial development and economic growth | D90: Working Paper | E90: PIDE Working Papers | G90: 19 | H90: 1 | I90: 34 | J90: 2007
A91: Khan and Senhadji (2003) | B91: Khan, M.S., Senhadji, A.S. | C91: Financial development and economic growth: A review and new evidence | D91: Review | E91: Journal of African Economies | F91: 12 | G91: SUPPL. 2 | H91: ii89 | I91: ii110 | J91: 2003
A92: Khan et al. (2005) | B92: Khan, M.A., Qayyum, A., Sheikh, S.A. | C92: Financial development and economic growth: The case of Pakistan | D92: ARDL | E92: Pakistan Development Review | F92: 44 | G92: 4 PART II | H92: 819 | I92: 835 | J92: 2005
A93: Kiran et al. (2009) | B93: Kiran, B., Yavuz, N.C. | C93: Financial development and economic growth: A panel data analysis of emerging countries | D93: FMOLS - model v levels GDP, not growth rate | E93: International Research Journal of Finance and Economics | F93: 30 | H93: 87 | I93: 94 | J93: 2009
A94: Kirkpatrick (2000) | B94: Kirkpatrick, C. | C94: Financial development, economic growth, and poverty reduction | D94: no regression | E94: Pakistan Development Review | F94: 39 | G94: 4 PART I | H94: 363 | I94: 388 | J94: 2000
A95: Koetter and Wedow (2010) | B95: Koetter, M., Wedow, M. | C95: Finance and growth in a bank-based economy: Is it quantity or quality that matters? | D95: Deals with German districts only | E95: Journal of International Money and Finance | F95: 29 | G95: 8 | H95: 1529 | I95: 1545 | J95: 2010
A96: Kularatne, C. (2002) | C96: An examination of the impact of financial deepening on long-run economic growth: An application of a VECM structure to a middle-income country context | D96: Cointegration, no coeffs | E96: South African Journal of Economics | F96: 70 | G96: 4 | H96: 647 | I96: 687 | J96: 2002
A97: Lal et al. (2009) | B97: Lal, I., Sulaiman, D., Hussain, A. | C97: "Effects of financial structure and financial development on economic growth: A case study of Pakistan" | D97: ECM + FMOLS | E97: European Journal of Social Sciences | F97: 11 | G97: 3 | H97: 418 | I97: 427 | J97: 2009
A98: Lawrence, P. | C98: Finance and development: Why should causation matter? | D98: Summary statistics, no coeffs | E98: Journal of International Development | F98: 18 | G98: 7 | H98: 997 | I98: 1016 | J98: 2006
A99: Lee and Chang (2009) | B99: Lee, C.-C., Chang, C.-P. | C99: FDI, financial development, and economic growth: international evidence | D99: Model in levels (p. 264) | E99: Journal of Applied Economics | F99: 12 | G99: 2 | H99: 249 | I99: 271 | J99: 2009
A100: Lee and Wang (2010) | B100: Lee, Y.-M., Wang, K.-M. | C100: Finance, investment and growth: Nonlinear time series evidence from 10 Asian economies | D100: VECM | E100: Applied Economics Letters | F100: 17 | G100: 5 | H100: 495 | I100: 501 | J100: 2010
A101: Levine (1997) | B101: Levine, R. | C101: Financial Development and Economic Growth: Views and Agenda | D101: Author only reports regression results from King and Levine (1993) and other studies, no new results are presented | E101: Journal of Economic Literature | F101: 35 | G101: 2 | H101: 688 | I101: 726 | J101: 1997
A102: Levine (2002) | B102: Levine, R. | C102: Bank-based or Market-based Financial Systems: which is Better? | D102: Review | E102: Journal of Financial Intermediation | F102: 11 | G102: 4 | H102: 398 | I102: 428 | J102: 2002
A103: Levine (2005) | B103: Levine, R. | C103: Chapter 12 Finance and Growth: Theory and Evidence | D103: Review | E103: Handbook of Economic Growth | F103: 1 | G103: SUPPL. PART A | H103: 865 | I103: 934 | J103: 2005
A104: Liand and Teng (2006) | B104: LIANG, Q., TENG, J.-Z. | C104: Financial development and economic growth: Evidence from China | D104: Cointegration, Causality, no coeffs | E104: China Economic Review | F104: 17 | G104: 4 | H104: 395 | I104: 411 | J104: 2006
A105: Luintel and Khan (1999) | B105: Luintel, K.B., Khan, M. | C105: A Quantitative Reassessment of the Finance-growth Nexus: Evidence from a Multivariate VAR | D105: Cointegration, Causality, no coeffs | E105: Journal of Development Economics | F105: 60 | G105: 2 | H105: 381 | I105: 405 | J105: 1999
A106: Luintel et al. (2008) | B106: Luintel, K.B., Khan, M., Arestis, P., Theodoridis, K. | C106: Financial structure and economic growth | D106: Models levels of GDP (namely log(GDP)) | E106: Journal of Development Economics | F106: 86 | G106: 1 | H106: 181 | I106: 200 | J106: 2008
A107: Ma and Jalil (2008) | B107: Ma, Y., Jalil, A. | C107: Financial development, economic growth and adaptive efficiency: A comparison between China and Pakistan | D107: ARDL | E107: China and World Economy | F107: 16 | G107: 6 | H107: 97 | I107: 111 | J107: 2008
A108: Majid (2008) | B108: Majid, M.S.Abd. | C108: Does financial development matter for economic growth in Malaysia? an ARDL bound testing approach | D108: ARDL | E108: Journal of Economic Cooperation Among Islamic Countries | F108: 29 | G108: 1 | H108: 61 | I108: 82 | J108: 2008
A109: Majid and Mahrizal (2007) | B109: Majid, M.S.Abd., Mahrizal | C109: Does financial development cause economic growth in the asean-4 countries? | D109: ARDL | E109: Savings and Development | F109: 31 | G109: 4 | H109: 369 | I109: 398 | J109: 2007
A110: Masih and Khan (2011) | B110: Masih, R., Khan, S.F. | C110: Is the finance led growth hypothesis robust to alternative measures of financial development? | D110: Granger Causality | E110: Applied Financial Economics | F110: 21 | G110: 10 | H110: 601 | I110: 623 | J110: 2011
A111: Masih et al. (2009) | B111: Masih, M., Al-Elg, A., Madani, H. | C111: Causality between financial development and economic growth: An application of vector error correction and variance decomposition methods to Saudi Arabia | D111: ECM | E111: Applied Economics | F111: 41 | G111: 13 | H111: 1691 | I111: 1699 | J111: 2009
A112: Maswana (2009) | B112: Maswana, J.-C. | C112: A contribution to the empirics of finance-growth nexus in China: A complex system perspective | D112: Cointegration, Causality, no coeffs | E112: Global Economic Review | F112: 38 | G112: 1 | H112: 29 | I112: 47 | J112: 2009
A113: Mihci (2006) | B113: Mihci, S. | C113: Finance-growth Nexus: A threshold effect | D113: not found | E113: Ekonomicky Casopis | F113: 54 | G113: 8 | H113: 830 | I113: 44 | J113: 2008
A114: Mirdala, R. | B114: Article | C114: Financial deepening and economic growth in the European transition economies | D114: Cointegration, Causality, no coeffs | E114: Journal of Applied Economic Sciences | F114: 6 | G114: 2 | H114: 175 | I114: 192 | J114: 2011
A115: Mishkin (2007) | B115: Mishkin, F.S. | C115: Is financial globalization beneficial? | D115: no empirical estimate | E115: Journal of Money, Credit and Banking | F115: 39 | G115: 2012-03-02 | H115: 259 | I115: 294
A116: Mohamed (2008) | B116: Mohamed, E.M.O.S. | C116: Financial development and economic growth: Opportunities and conditions [DÃ©veloppement financier et croissance economique en mauritanie: OpportunitÃ©s et conditions] | D116: not found, other permission required | E116: Savings and Development | F116: 32 | G116: SUPPL. | H116: 23 | I116: 58 | J116: 1992
A117: Mohammad (2010) | B117: Mohammad, S.D. | C117: The effectiveness of financial development and openness on economic growth: Case study of pakistan | D117: ARDL (Tab. 5) | E117: European Journal of Social Sciences | F117: 13 | G117: 3 | H117: 415 | I117: 426 | J117: 2010
A118: Muhammad and Umer (2010) | B118: Muhammad, S.D., Umer, M. | C118: The bound testing approach for co-integration and causality between financial development and economi growth in case of Pakistan | D118: ARDL | E118: European Journal of Social Sciences | F118: 13 | G118: 4 | H118: 525 | I118: 531 | J118: 2010
A119: Mukhopadhyay (2011) | B119: Mukhopadhyay, B., Pradhan, R.P., Feridun, M. | C119: Finance-growth nexus revisited for some Asian countries | D119: Cointegration, Causality, no coeffs | E119: Applied Economics Letters | F119: 18 | G119: 16 | H119: 1527 | I119: 1530 | J119: 2011
A120: Mukhopadhyay, B., Pradhan, R.P. (2010) | B120: Article | C120: An investigation of the finance-growth nexus: Study of Asian developing countries using multivariate VAR model | D120: ECM | E120: International Research Journal of Finance and Economics | F120: 58 | H120: 134 | I120: 140 | J120: 2010
A121: Murinde (2012) | B121: Murinde, V. | C121: Financial development and economic growth: Global and African evidence | D121: Literature review | E121: Journal of African Economies | F121: 21 | G121: SUPPL.1 | H121: i10 | I121: i56 | J121: 2012
A122: Ndikumana (2005) | B122: Ndikumana, L. | C122: Financial Development, Financial Structure, and Domestic Investment: International Evidence | D122: Investigates determinants of domestic investment as opposed to gdp growth | E122: Journal of International Money and Finance | F122: 24 | G122: 4 | H122: 651 | I122: 673 | J122: 2005
A123: Neusser, K., Kugler, M. | C123: Manufacturing Growth and Financial Development: Evidence from OECD Countries | D123: Cointegration, Causality, no coeffs | E123: Review of Economics and Statistics | F123: 80 | G123: 4 | H123: 638 | I123: 646 | J123: 1998
A124: Odedokun (1992) | B124: Odedokun, M.O. | C124: Supply-leading and demand-following relationships between economic activities and development banking in developing countries: an empirical analysis | D124: not found, other permission required | E124: Singapore Economic Review | F124: 37 | G124: 1 | H124: 46 | I124: 159 | J124: 2011
A125: Ono (2012) | B125: Ono, S. | C125: Financial Development and Economic Growth: Evidence from Russia | D125: Cointegration, Causality, no coeffs | E125: Europe - Asia Studies | F125: 64 | G125: 2 | H125: 247 | I125: 256 | J125: 2012
A126: Park (2011) | B126: Park, C.-Y. | C126: Asian financial system: Development and challenges | D126: Working Paper | E126: ADB Economics Working Paper Series | F126: 285 | H126: 1 | I126: 36 | J126: 2011
A127: Perera and Paudel (2009) | B127: Perera, N., Paudel, R.C. | C127: Financial development and economic growth in Sri Lanka | D127: Cointegration, Causality, no coeffs | E127: Applied Econometrics and International Development | F127: 9 | G127: 1 | H127: 157 | I127: 164 | J127: 2009
A128: Rajan and Zingales (1998) | B128: Rajan, R.G., Zingales, L. | C128: Financial Dependence and Growth | D128: Models cumulative value added over industries instead of GDP growth | E128: American Economic Review | F128: 88 | G128: 3 | H128: 559 | I128: 586 | J128: 1998
A129: Rengin and Kara (2011) | B129: Rengin, A.K., Kara, E. | C129: The relationship between financial development and economic growth: Econometric model | D129: ECM | E129: European Journal of Scientific Research | F129: 54 | G129: 4 | H129: 522 | I129: 531 | J129: 2011
A130: Rioja and Valev (2011) | B130: Rioja, F., Valev, N. | C130: Stock markets, banks and the sources of economic growth in low and high income countries | D130: Studies effect on SOURCES of economic growth, i.e. productivity and capital accumulation | E130: Journal of Economics and Finance
A131: Rousseau and Vuthipadadorm (2005) | B131: Rousseau, P.L., Vuthipadadorn, D. | C131: Finance, Investment, and Growth: Time Series Evidence from 10 Asian Economies | D131: VAR | E131: Journal of Macroeconomics | F131: 27 | G131: 1 | H131: 87 | I131: 106 | J131: 2005
A132: Safdari, M., Mehrizi, M.A., Elahi, M. | C132: Financial development and economic growth in Iran | D132: Cointegration, no coeffs | E132: European Journal of Economics, Finance and Administrative Sciences
A133: Shahbaz and Malik (2011) | B133: Shahbaz, M., Malik, N. | C133: Does financial instability weaken the finance-growth nexus? (a case for Pakistan) | D133: ARDL | E133: Actual Problems of Economics | G133: 7 | H133: 389 | I133: 401 | J133: 2011
A134: Shahbaz et al. (2008) | B134: Shahbaz, M., Ahmad, K., Chaudhary, A.R. | C134: Economic growth and its determinants in Pakistan | D134: Conference Paper | E134: Pakistan Development Review | F134: 47 | G134: 4 | H134: 471 | I134: 486 | J134: 2008
A135: Shan (2005) | B135: Shan, J. | C135: Does financial development 'lead' economic growth? A vector auto-regression appraisal | D135: Variance decomposition, Literature review | E135: Applied Economics | F135: 37 | G135: 12 | H135: 1353 | I135: 1367 | J135: 2005
A136: Shan and Morris (2002) | B136: Shan, J., Morris, A. | C136: Does financial development 'lead' economic growth? | D136: Granger Causality Testing, Direction of causality testing | E136: International Review of Applied Economics | F136: 16 | G136: 2 | H136: 153 | I136: 168 | J136: 2002
A137: Shan et al. (2001) | B137: Shan, J.Z., Morris, A.G., Sun, F. | C137: Financial development and economic growth: An egg-and-chicken problem? | D137: Granger Causality tested | E137: Review of International Economics | F137: 9 | G137: 3 | H137: 443 | I137: 454 | J137: 2001
A138: Singh (2008) | B138: Singh, T. | C138: Financial development and economic growth nexus: A time-series evidence from India | D138: ECM | E138: Applied Economics | F138: 40 | G138: 12 | H138: 1615 | I138: 1627 | J138: 2008
A139: Spears (1991) | B139: Spears, A. | C139: Financial development and economic growth - causality tests | D139: No coeffiecients, Anthology | E139: Atlantic Economic Journal | F139: 19 | G139: 3 | H139: 66 | J139: 1991
A140: Stengos and Liang (2005) | C140: Financial Intermediation and Economic Growth: a Semiparametric Approach | D140: No coefficients for FD | E140: New Trends in Macroeconomics
A141: Suntsova (2011) | B141: Suntsova, O.O. | C141: Influence of financial development upon economic growth: Theoretical determination | D141: not found, other permission required | E141: Actual Problems of Economics | F141: 126 | G141: 12 | H141: 152
A142: Teng and Liang (2010) | B142: Teng, J.-Z., Liang, Q. | C142: Reassessment of the finance-growth nexus in the presence of structural breaks | D142: No empirical effect, ony causality tests | E142: Applied Economics | F142: 42 | G142: 8 | H142: 977 | I142: 988 | J142: 2010
A143: Wadud (2009) | B143: Wadud, M. | C143: Financial development and economic growth: A cointegration and errorcorrection modeling approach for south Asian countries | D143: ECM | E143: Economics Bulletin | F143: 29 | G143: 3 | H143: 1670 | I143: 1677 | J143: 2009
A144: Waheed and Younus (2010) | B144: Waheed, A., Younus, N. | C144: Effects of financial sector's development and financial sector's efficiency on economic growth: Empirical evidence from developing and developed countries | D144: Missing list of countries, missing estimation method, missing obs. Count | E144: International Journal of Economic Perspectives | F144: 4 | G144: 2 | H144: 449 | I144: 458 | J144: 2010
A145: Wang and Zhou (2010) | B145: Wang, W., Zhou, S. | C145: Financial development and economic growth in China: Analysis based on panel data model | D145: Conference Paper | E145: 2010 International Conference on Management and Service Science, MASS 2010 | J145: 2010
A146: Wang et al. (2010) | B146: Wang, J., Shen, H., Jin, H. | C146: Econometric analysis on the relationship between financial development and economic growth in China based on var model | D146: Conference Paper | E146: Proceedings - 2010 International Conference of Information Science and Management Engineering, ISME 2010 | F146: 2 | H146: 523 | I146: 526 | J146: 2010
A147: Wen (2012) | B147: Wen, Y. | C147: Empirical analysis about the relationship between economic growth and financial development: Evidence from China | D147: Conference Paper | E147: Advanced Materials Research | F147: 468-471 | H147: 1578 | I147: 1584 | J147: 2012
A148: Xu (2000) | B148: Xu, Z. | C148: Financial Development, Investment, and Economic Growth | D148: VAR - Only Impulse Reponses | E148: Economic Inquiry | F148: 38 | G148: 2 | H148: 331 | I148: 344 | J148: 2000
A149: Yahyaoui and Rahmani (2009) | B149: Yahyaoui, A., Rahmani, A. | C149: Financial development and economic growth: Role of institutional quality | D149: French study, not in English | E149: Panoeconomicus | F149: 56 | G149: 3 | H149: 327 | I149: 357 | J149: 2009
A150: Yang and Yi (2008) | B150: Yang, Y.Y., Yi, M.H. | C150: Does financial development cause economic growth? Implication for policy in Korea | D150: VAR | E150: Journal of Policy Modeling | F150: 30 | G150: 5 | H150: 827 | I150: 840 | J150: 2008
A151: Yazdani (2011) | B151: Yazdani, M. | C151: The role of performance of privately owned banks in economic growth of Iran | D151: excluded - does not contain an empirical estimate on the finance-growth nexus | E151: Australian Journal of Basic and Applied Sciences | F151: 5 | G151: 11 | H151: 695 | I151: 700 | J151: 2011
A152: Zang and Kim (2007) | B152: Zang, H., Kim, Y.C. | C152: Does financial development precede growth? Robinson and Lucas might be right | D152: Forward looking = regression of growth[t] = a*FD[t+1] + b*FD[t] + c*FD[t-1], more lags of FD (similar exclusion reason as in VAR) | E152: Applied Economics Letters | F152: 14 | G152: 1 | H152: 15 | I152: 19 | J152: 2007
A153: Zhang et al. (2012) | B153: Zhang, J., Wang, L., Wang, S. | C153: Financial development and economic growth: Recent evidence from China | D153: Data on cities | E153: Journal of Comparative Economics
A154: Zheng et al. (2010) | B154: Zheng, C., Han, X., He, L. | C154: Financial development and economic growth: Evidence from cointegration and granger causality tests | D154: Conference Paper | E154: ICAMS 2010 - Proceedings of 2010 IEEE International Conference on Advanced Management Science | F154: 3 | H154: 237 | I154: 241 | J154: 2010
A155: Zhou and Liu (2009) | B155: Zhou, Y.-Y., Liu, C.-Z. | C155: Empirical analysis of the relationship between China's fictitious economy and real economy | D155: Conference Paper | E155: Proceedings - International Conference on Management and Service Science, MASS 2009 | J155: 2009

Sheet Variables
A1: Variable | B1: Description | C1: Dummy
A2: ID Study | B2: ID of the study from which the information is taken | C2: No
A3: Study | B3: Label of the study | C3: No
A4: Dep. Var. | B4: Dependent variable used in the estimation | C4: No
A5: Coefficient | B5: The original non-adjusted regression coefficient on financial development derived from the study | C5: No
A6: SE | B6: The original non-adjusted standard error of the regression coefficient Beta derived from the study | C6: No
A7: t | B7: the t-statistics of the coefficient | C7: No
A8: p | B8: the p-value of the coefficient (if t-statistics not available) | C8: No
A9: N | B9: Number of cross-sectional units (=number of countries or provinces in some cases) | C9: No
A10: T | B10: Number of time units included in the estimation | C10: No
A11: Sample size | B11: Total number of observations used | C11: No
A12: Length | B12: Number of years in the time unit T | C12: No
A13: Depth | B13: Financial depth is used as an indicator of financial development (considered M1/GDP, M2/GDP, M3/GDP or (M3-M1)/GDP) | C13: Yes
A14: Activity (Private domestic credit provided by deposit money banks to GDP) | B14: Activity (Private domestic credit provided by deposit money banks to GDP) is used as an indicator of financial development in the estimation | C14: Yes
A15: Activity (Private domestic credit to GDP) | B15: Private credit (measures the activity of financial intermediaries and equals private credit by deposit money banks and other financial institutions to GDP - usually termed as "private credit") is used as an indicator of financial development in the estimation | C15: Yes
A16: Bank | B16: Bank ratio (=bank credit divided by bank credit plus central bank domestic assets) is used as an indicator of financial development | C16: Yes
A17: Private credit/Domestic credit | B17: Private credit/Domestic credit (=total credit allocated to private sector to total domestic credit) is used as an indicator of financial development | C17: Yes
A18: Stock market cap. | B18: Stock market cap. (= total value of listed shares relative to the size of real economy - GDP) is used as an indicator of financial development | C18: Yes
A19: Stock market activity | B19: Stock market activity (= the total value of traded shares relative to GDP) is used as an indicator of financial development | C19: Yes
A20: Turnover Ratio | B20: Turnover ratio (= equals total value of shares traded relative to total value of listed shares) is used as an indicator of financial development | C20: Yes
A21: Other | B21: Other indicator of financial development is considered in primary studies and used for estimation | C21: Yes
A22: NonLinear | B22: Non-linear specification of financial development is considered in primary studies and used for estimation | C22: Yes
A23: Change | B23: Financial development is measured in changes | C23: Yes
A24: Joint | B24: Primary study simultaneously examined the effects of more than one financial development indicator in the same regression | C24: Yes
A25: OLS | B25: Ordinary Least Squares estimator is used for estimation | C25: Yes
A26: DOLS | B26: Dynamic Ordinary Least Squares estimator is used for estimation | C26: Yes
A27: IV | B27: Instrumental Variables estimator is used for estimation | C27: Yes
A28: FE | B28: Fixed Effects estimator is used for estimation | C28: Yes
A29: RE | B29: Random Effects estimator is used for estimation | C29: Yes
A30: GMM | B30: Generalised Method of Moments estimator is used for estimation | C30: Yes
A31: GMM-SYS | B31: System GMM estimator is used for estimation | C31: Yes
A32: GMM levels | B32: GMM in levels is used for estimation | C32: Yes
A33: Homogeneous | B33: Study deals with countries within the same income group or regions or single country studies | C33: Yes
A34: Start | B34: Initial year of the sample period used for the estimation | C34: No
A35: End | B35: The last year of the sample period used for the estimation | C35: No
A36: Regressors (all but constant) | B36: Total number of explanatory variables included in the regression (excluding the constant term) | C36: No
A37: Endogeneity | B37: The method employed for estimation takes into account the issues of endogeneity | C37: Yes
A38: Year | B38: Year of publication | C38: No
A39: East Asia & Pacific | B39: East Asia & Pacific countries included in the sample | C39: Yes
A40: South Asia | B40: Countries from South Asia are included in the sample | C40: Yes
A41: Asia | B41: Asia countries included in the sample | C41: Yes
A42: Europe | B42: European countries included in the sample | C42: Yes
A43: Latin America & Caribian | B43: Latin America & Caribian countries included in the sample | C43: Yes
A44: Middle East & North Africa | B44: Middle East & North African countries included in the sample | C44: Yes
A45: Sub-Saharan Africa | B45: Sub-Saharan African countries included in the sample | C45: Yes
A46: Rest of the world (mainly high Income OECD countries) | B46: Rest of the world (mainly high income OECD countries) included in the sample | C46: Yes
A47: Macro Stab | B47: The primary study controls for macroeconomic stability in the conditioning data set (=conrol for inflation or government size by including e. g. government final consumption expenditure to GDP, interest rate) | C47: Yes
A48: Pol Stab | B48: The primary study controls for political stability in the conditioning data set (= e.g. number of revolutions and coups or number of assassinations) or some measure of political rights, civil liberties or indices of democracy, political freedom, political instability or ethnic division. | C48: Yes
A49: Trade | B49: The primary study controls for the effects of trade in the conditioning data set (= e. g. black market exchange rate premium, trade openness, current account balance, growth rate of real exports) | C49: Yes
A50: Income | B50: The primary study controls for the level of initial income in the estimation (= convergence term) | C50: Yes
A51: Human | B51: The primary study controls for the level of human capital (= e.g. school enrollment rates) | C51: Yes
A52: Investment | B52: The primary study controls for the amount of investments in the economy (e. g. share of investment in GDP, foreign direct investments) | C52: Yes
A53: Dummy for financial crisis | B53: Dummy variable for financial criris or some indicators of financial fragility is included in the estimation | C53: Yes
A54: Time dummy | B54: Time dummies are included in the estimation | C54: Yes
A55: Log | B55: Logarithmic transformation is applied | C55: Yes
A56: Panel | B56: The coefficient is derived from a regression using panel data | C56: Yes
A57: Cross-section | B57: The coefficient is derived from a regression using cross sectional data (=one observation per country) | C57: Yes
A58: Time series | B58: The coefficient is derived from a regression using time series data (=one cross-sectional unit) | C58: Yes
A59: Notes | C59: No

Sheet Stata
A1: idstudy | B1: study | C1: depvar | D1: real_pc_gdp | E1: pc_gdp | F1: gdp | G1: real_gdp | H1: ft | I1: seft | J1: pcc | K1: sepcc | L1: prec | M1: tstat | N1: n | O1: t | P1: samsize | Q1: ln_samsize | R1: len | S1: fddepth | T1: fdacti1 | U1: fdacti2 | V1: fdbank | W1: fdpricr | X1: fdmktc | Y1: fdmkta | Z1: fdmkttr | AA1: fdother | AB1: fdnonl | AC1: fdchg | AD1: fdjoint | AE1: OLS | AF1: DOLS | AG1: IV | AH1: FE | AI1: RE | AJ1: GMM | AK1: GMMSYS | AL1: GMMlev | AM1: GMM_all | AN1: Homo | AO1: Start | AP1: 1960s | AQ1: 1970s | AR1: 1980s | AS1: 1990s | AT1: 2000s | AU1: End | AV1: regcnt | AW1: endo | AX1: Year | AY1: Year_adj | AZ1: regeap | BA1: regsa | BB1: regasi | BC1: regeu | BD1: reglac | BE1: regmena | BF1: regssa | BG1: regrow | BH1: macro | BI1: polstab | BJ1: Trade | BK1: Income | BL1: Human | BM1: invest | BN1: fincri | BO1: timdum | BP1: Log | BQ1: Panel | BR1: xsec | BS1: timser | BT1: journal impact | BU1: Notes | BV1: depvar_se | BW1: real_pc_gdp_se | BX1: pc_gdp_se | BY1: gdp_se | BZ1: real_gdp_se | CA1: ft_se | CB1: seft_se | CC1: pcc_se | CE1: prec_se | CG1: n_se | CH1: t_se | CI1: samsize_se | CJ1: ln_samsize_se | CK1: len_se | CL1: fddepth_se | CM1: fdacti1_se | CN1: fdacti2_se | CO1: fdbank_se | CP1: fdpricr_se | CQ1: fdmktc_se | CR1: fdmkta_se | CS1: fdmkttr_se | CT1: fdother_se | CU1: fdnonl_se | CV1: fdchg_se | CW1: fdjoint_se | CX1: ols_se | CY1: dols_se | CZ1: iv_se | DA1: fe_se | DB1: re_se | DC1: gmm_se | DD1: gmmsys_se | DE1: gmmlev_se | DF1: gmm_all_se | DG1: homo_se | DH1: start_se | DI1: sixtys_se | DJ1: seventys_se | DK1: eightys_se | DL1: ninetys_se | DM1: mill_se | DN1: end_se | DO1: regcnt_se | DP1: endo_se | DQ1: year _se | DR1: year_adj_se | DS1: regeap_se | DT1: regsa_se | DU1: regasi_se | DV1: regeu_se | DW1: reglac_se | DX1: regmena_se | DY1: regssa_se | DZ1: regrow_se | EA1: macro_se | EB1: polstab_se | EC1: trade_se | ED1: income_se | EE1: human_se | EF1: invest_se | EG1: fincri_se | EH1: timdum_se | EI1: log _se | EJ1: panel_se | EK1: xsec_se | EL1: timser_se | EM1: journal impact_se
A2: 1 | B2: Al-Malkawi and Abdullah (2011) | C2: 1 | D2: =IF(C2=1,1,0) -> 1 | E2: =IF(C2=2,1,0) -> 0 | F2: =IF(C2=3,1,0) -> 0 | G2: =IF(C2=4,1,0) -> 0 | H2: 0.107319306 | I2: 0.068041382 | J2: 0.106909181 | K2: 0.067186459 | L2: 14.88395164 | M2: 1.591231083 | N2: 13 | O2: 25 | P2: 226 | Q2: =LN(P2) -> 5.420534999 | R2: 1 | S2: 1 | AE2: 1 | AM2: =AJ2+AK2+AL2 -> 0 | AN2: 1 | AO2: 1980 | AR2: 1 | AS2: 1 | AT2: 1 | AU2: 2005 | AV2: 6 | AW2: 0 | AX2: 2011 | AY2: =AX2-2005.75 -> 5.25 | BE2: 1 | BH2: 1 | BJ2: 1 | BP2: 1 | BQ2: 1 | BT2: 0.074 | BV2: 14.88395164 | BW2: =D2*L2 -> 14.88395164 | BX2: =E2*L2 -> 0 | BY2: =F2*L2 -> 0 | BZ2: =G2*L2 -> 0 | CA2: 1.597335364 | CB2: 1.012724635 | CC2: 1.591231083 | CE2: 221.5320164 | CG2: 193.4913713 | CH2: 372.0987909 | CI2: 3363.77307 | CJ2: =Q2*L2 -> 80.67898079 | CK2: 14.88395164 | CL2: 14.88395164 | CM2: 0 | CN2: 0 | CO2: 0 | CP2: 0 | CQ2: 0 | CR2: 0 | CS2: 0 | CT2: 0 | CU2: 0 | CV2: 0 | CW2: 0 | CX2: 14.88395164 | CY2: 0 | CZ2: 0 | DA2: 0 | DB2: 0 | DC2: 0 | DD2: 0 | DE2: 0 | DF2: =AM2*L2 -> 0 | DG2: 14.88395164 | DH2: 29470.22424 | DI2: 0 | DJ2: 0 | DK2: 14.88395154 | DL2: 14.88395154 | DM2: 14.88395154 | DO2: 89.30370983 | DP2: 0 | DQ2: 29931.62674 | DR2: =AY2*L2 -> 78.14074611 | DS2: 0 | DT2: 0 | DU2: 0 | DV2: 0 | DW2: 0 | DX2: 14.88395164 | DY2: 0 | DZ2: 0 | EA2: 14.88395164 | EB2: 0 | EC2: 14.88395164 | ED2: 0 | EE2: 0 | EF2: 0 | EG2: 0 | EH2: 0 | EI2: 14.88395164 | EJ2: 14.88395164 | EK2: 0 | EL2: 0 | EM2: =BT2*L2 -> 1.101412421
A3: 1 | B3: Al-Malkawi and Abdullah (2011) | C3: 1 | D3: =IF(C3=1,1,0) -> 1 | E3: =IF(C3=2,1,0) -> 0 | F3: =IF(C3=3,1,0) -> 0 | G3: =IF(C3=4,1,0) -> 0 | H3: 0.178820432 | I3: 0.068680282 | J3: 0.176938468 | K3: 0.067123378 | L3: 14.89793925 | M3: 2.636018541 | N3: 13 | O3: 25 | P3: 222 | Q3: =LN(P3) -> 5.402677382 | R3: 1 | T3: 1 | AE3: 1 | AM3: =AJ3+AK3+AL3 -> 0 | AN3: 1 | AO3: 1980 | AR3: 1 | AS3: 1 | AT3: 1 | AU3: 2005 | AV3: 6 | AW3: 0 | AX3: 2011 | AY3: =AX3-2005.75 -> 5.25 | BE3: 1 | BH3: 1 | BJ3: 1 | BP3: 1 | BQ3: 1 | BT3: 0.074 | BV3: 14.89793925 | BW3: =D3*L3 -> 14.89793925 | BX3: =E3*L3 -> 0 | BY3: =F3*L3 -> 0 | BZ3: =G3*L3 -> 0 | CA3: 2.664055925 | CB3: 1.023194668 | CC3: 2.636018541 | CE3: 221.9485937 | CG3: 193.6732102 | CH3: 372.4484811 | CI3: 3307.342512 | CJ3: =Q3*L3 -> 80.48875942 | CK3: 14.89793925 | CL3: 0 | CM3: 14.89793925 | CN3: 0 | CO3: 0 | CP3: 0 | CQ3: 0 | CR3: 0 | CS3: 0 | CT3: 0 | CU3: 0 | CV3: 0 | CW3: 0 | CX3: 14.89793925 | CY3: 0 | CZ3: 0 | DA3: 0 | DB3: 0 | DC3: 0 | DD3: 0 | DE3: 0 | DF3: =AM3*L3 -> 0 | DG3: 14.89793925 | DH3: 29497.91971 | DI3: 0 | DJ3: 0 | DK3: 14.89793914 | DL3: 14.89793914 | DM3: 14.89793914 | DO3: 89.38763547 | DP3: 0 | DQ3: 29959.75582 | DR3: 78.21418106 | DS3: 0 | DT3: 0 | DU3: 0 | DV3: 0 | DW3: 0 | DX3: 14.89793925 | DY3: 0 | DZ3: 0 | EA3: 14.89793925 | EB3: 0 | EC3: 14.89793925 | ED3: 0 | EE3: 0 | EF3: 0 | EG3: 0 | EH3: 0 | EI3: 14.89793925 | EJ3: 14.89793925 | EK3: 0 | EL3: 0 | EM3: 1.102447504
A4: 1 | B4: Al-Malkawi and Abdullah (2011) | C4: 1 | D4: 1 | E4: 0 | F4: 0 | G4: 0 | H4: 0.281353352 | I4: 0.069337525 | J4: 0.274157176 | K4: 0.066205119 | L4: 15.10457227 | M4: 4.141026879 | N4: 13 | O4: 25 | P4: 218 | Q4: 5.384495063 | R4: 1 | S4: 1 | AH4: 1 | AM4: 0 | AN4: 1 | AO4: 1980 | AR4: 1 | AS4: 1 | AT4: 1 | AU4: 2005 | AV4: 6 | AW4: 1 | AX4: 2011 | AY4: 5.25 | BE4: 1 | BH4: 1 | BJ4: 1 | BP4: 1 | BQ4: 1 | BT4: 0.074 | BV4: 15.10457227 | BW4: 15.10457227 | BX4: 0 | BY4: 0 | BZ4: 0 | CA4: 4.249722047 | CB4: 1.047313651 | CC4: 4.141026879 | CE4: 228.1481036 | CG4: 196.3594396 | CH4: 377.6143069 | CI4: 3292.796756 | CJ4: 81.33049481 | CK4: 15.10457227 | CL4: 15.10457227 | CM4: 0 | CN4: 0 | CO4: 0 | CP4: 0 | CQ4: 0 | CR4: 0 | CS4: 0 | CT4: 0 | CU4: 0 | CV4: 0 | CW4: 0 | CX4: 0 | CY4: 0 | CZ4: 0 | DA4: 15.10457227 | DB4: 0 | DC4: 0 | DD4: 0 | DE4: 0 | DF4: 0 | DG4: 15.10457227 | DH4: 29907.0531 | DI4: 0 | DJ4: 0 | DK4: 15.1045722 | DL4: 15.1045722 | DM4: 15.1045722 | DO4: 90.62743365 | DP4: 15.10457227 | DQ4: 30375.29484 | DR4: 79.29900442 | DS4: 0 | DT4: 0 | DU4: 0 | DV4: 0 | DW4: 0 | DX4: 15.10457227 | DY4: 0 | DZ4: 0 | EA4: 15.10457227 | EB4: 0 | EC4: 15.10457227 | ED4: 0 | EE4: 0 | EF4: 0 | EG4: 0 | EH4: 0 | EI4: 15.10457227 | EJ4: 15.10457227 | EK4: 0 | EL4: 0 | EM4: 1.117738348
A5: 1 | B5: Al-Malkawi and Abdullah (2011) | C5: 1 | D5: 1 | E5: 0 | F5: 0 | G5: 0 | H5: 0.282032758 | I5: 0.069504805 | J5: 0.274785399 | K5: 0.066350189 | L5: 15.07154718 | M5: 4.1414411 | N5: 13 | O5: 25 | P5: 217 | Q5: 5.379897354 | R5: 1 | T5: 1 | AH5: 1 | AM5: 0 | AN5: 1 | AO5: 1980 | AR5: 1 | AS5: 1 | AT5: 1 | AU5: 2005 | AV5: 6 | AW5: 1 | AX5: 2011 | AY5: 5.25 | BE5: 1 | BH5: 1 | BJ5: 1 | BP5: 1 | BQ5: 1 | BT5: 0.074 | BV5: =C5*$L5 -> 15.07154718 | BW5: 15.07154718 | BX5: 0 | BY5: 0 | BZ5: 0 | CA5: =H5*$L5 -> 4.250670019 | CB5: 1.047544948 | CC5: 4.141441105 | CD5: 1.000000004 | CE5: 227.1515344 | CF5: 62.41792493 | CG5: 195.9301133 | CH5: 376.7886795 | CI5: 3270.525738 | CJ5: 81.08337679 | CK5: =R5*$L5 -> 15.07154718 | CL5: 0 | CM5: 15.07154718 | CN5: 0 | CO5: 0 | CP5: 0 | CQ5: 0 | CR5: 0 | CS5: 0 | CT5: 0 | CU5: 0 | CV5: 0 | CW5: 0 | CX5: 0 | CY5: 0 | CZ5: 0 | DA5: =AH5*$L5 -> 15.07154718 | DB5: 0 | DC5: 0 | DD5: 0 | DE5: 0 | DF5: 0 | DG5: =AN5*$L5 -> 15.07154718 | DH5: 29841.66342 | DI5: 0 | DJ5: 0 | DK5: 15.07154718 | DL5: 15.07154718 | DM5: 15.07154718 | DN5: 30218.4521 | DO5: 90.42928308 | DP5: 15.07154718 | DQ5: 30308.88138 | DR5: 79.1256227 | DS5: =AZ5*$L5 -> 0 | DT5: 0 | DU5: 0 | DV5: 0 | DW5: 0 | DX5: 15.07154718 | DY5: 0 | DZ5: 0 | EA5: 15.07154718 | EB5: 0 | EC5: 15.07154718 | ED5: 0 | EE5: 0 | EF5: 0 | EG5: 0 | EH5: 0 | EI5: =BP5*$L5 -> 15.07154718 | EJ5: 15.07154718 | EK5: 0 | EL5: 0 | EM5: 1.115294491
A6: 1 | B6: Al-Malkawi and Abdullah (2011) | C6: 1 | D6: 1 | E6: 0 | F6: 0 | G6: 0 | H6: 0.281353352 | I6: 0.069337525 | J6: 0.274157176 | K6: 0.066205119 | L6: 15.10457227 | M6: 4.141026879 | N6: 13 | O6: 25 | P6: 218 | Q6: 5.384495063 | R6: 1 | S6: 1 | AI6: 1 | AM6: 0 | AN6: 1 | AO6: 1980 | AR6: 1 | AS6: 1 | AT6: 1 | AU6: 2005 | AV6: 6 | AW6: 1 | AX6: 2011 | AY6: 5.25 | BE6: 1 | BH6: 1 | BJ6: 1 | BP6: 1 | BQ6: 1 | BT6: 0.074 | BV6: 15.10457227 | BW6: 15.10457227 | BX6: 0 | BY6: 0 | BZ6: 0 | CA6: 4.249722039 | CB6: 1.047313657 | CC6: 4.141026878 | CD6: 1.000000005 | CE6: 228.1481035 | CF6: 62.54843977 | CG6: 196.3594395 | CH6: 377.6143068 | CI6: 3292.796755 | CJ6: 81.33049481 | CK6: 15.10457227 | CL6: 15.10457227 | CM6: 0 | CN6: 0 | CO6: 0 | CP6: 0 | CQ6: 0 | CR6: 0 | CS6: 0 | CT6: 0 | CU6: 0 | CV6: 0 | CW6: 0 | CX6: 0 | CY6: 0 | CZ6: 0 | DA6: 0 | DB6: 15.10457227 | DC6: 0 | DD6: 0 | DE6: 0 | DF6: 0 | DG6: 15.10457227 | DH6: 29907.05309 | DI6: 0 | DJ6: 0 | DK6: 15.10457227 | DL6: 15.10457227 | DM6: 15.10457227 | DN6: 30284.6674 | DO6: 90.62743362 | DP6: 15.10457227 | DQ6: 30375.29483 | DR6: 79.29900442 | DS6: 0 | DT6: 0 | DU6: 0 | DV6: 0 | DW6: 0 | DX6: 15.10457227 | DY6: 0 | DZ6: 0 | EA6: 15.10457227 | EB6: 0 | EC6: 15.10457227 | ED6: 0 | EE6: 0 | EF6: 0 | EG6: 0 | EH6: 0 | EI6: 15.10457227 | EJ6: 15.10457227 | EK6: 0 | EL6: 0 | EM6: 1.117738348
A7: 1 | B7: Al-Malkawi and Abdullah (2011) | C7: 1 | D7: 1 | E7: 0 | F7: 0 | G7: 0 | H7: 0.282032758 | I7: 0.069504805 | J7: 0.274785399 | K7: 0.066350189 | L7: 15.07154718 | M7: 4.1414411 | N7: 13 | O7: 25 | P7: 217 | Q7: 5.379897354 | R7: 1 | T7: 1 | AI7: 1 | AM7: 0 | AN7: 1 | AO7: 1980 | AR7: 1 | AS7: 1 | AT7: 1 | AU7: 2005 | AV7: 6 | AW7: 1 | AX7: 2011 | AY7: 5.25 | BE7: 1 | BH7: 1 | BJ7: 1 | BP7: 1 | BQ7: 1 | BT7: 0.074 | BV7: 15.07154718 | BW7: 15.07154718 | BX7: 0 | BY7: 0 | BZ7: 0 | CA7: 4.250670019 | CB7: 1.047544948 | CC7: 4.141441105 | CD7: 1.000000004 | CE7: 227.1515344 | CF7: 62.41792493 | CG7: 195.9301133 | CH7: 376.7886795 | CI7: 3270.525738 | CJ7: 81.08337679 | CK7: 15.07154718 | CL7: 0 | CM7: 15.07154718 | CN7: 0 | CO7: 0 | CP7: 0 | CQ7: 0 | CR7: 0 | CS7: 0 | CT7: 0 | CU7: 0 | CV7: 0 | CW7: 0 | CX7: 0 | CY7: 0 | CZ7: 0 | DA7: 0 | DB7: 15.07154718 | DC7: 0 | DD7: 0 | DE7: 0 | DF7: 0 | DG7: 15.07154718 | DH7: 29841.66342 | DI7: 0 | DJ7: 0 | DK7: 15.07154718 | DL7: 15.07154718 | DM7: 15.07154718 | DN7: 30218.4521 | DO7: 90.42928308 | DP7: 15.07154718 | DQ7: 30308.88138 | DR7: 79.1256227 | DS7: 0 | DT7: 0 | DU7: 0 | DV7: 0 | DW7: 0 | DX7: 15.07154718 | DY7: 0 | DZ7: 0 | EA7: 15.07154718 | EB7: 0 | EC7: 15.07154718 | ED7: 0 | EE7: 0 | EF7: 0 | EG7: 0 | EH7: 0 | EI7: 15.07154718 | EJ7: 15.07154718 | EK7: 0 | EL7: 0 | EM7: 1.115294491
A8: 2 | B8: Andersen (2003) | C8: 2 | D8: 0 | E8: 1 | F8: 0 | G8: 0 | H8: 0.397416622 | I8: 0.141421356 | J8: 0.377736357 | K8: 0.127183959 | L8: 7.862626788 | M8: 2.97 | N8: 60 | O8: 1 | P8: 60 | Q8: 4.094344562 | R8: 35 | S8: 1 | AE8: 1 | AM8: 0 | AN8: 0 | AO8: 1965 | AP8: 1 | AQ8: 1 | AR8: 1 | AS8: 1 | AU8: 1999 | AV8: 6 | AW8: 0 | AX8: 2003 | AY8: -2.75 | AZ8: 1 | BA8: 1 | BB8: 1 | BC8: 1 | BD8: 1 | BE8: 1 | BF8: 1 | BG8: 1 | BH8: 1 | BJ8: 1 | BK8: 1 | BL8: 1 | BP8: 0 | BR8: 1 | BT8: 0.019 | BV8: 15.72525358 | BW8: 0 | BX8: 7.862626788 | BY8: 0 | BZ8: 0 | CA8: 3.124738578 | CB8: 1.111943342 | CC8: 2.969999999 | CD8: 1.000000003 | CE8: 61.82090001 | CF8: 23.35200156 | CG8: 471.7576073 | CH8: 7.862626788 | CI8: 471.7576073 | CJ8: 32.19230323 | CK8: 275.1919376 | CL8: 7.862626788 | CM8: 0 | CN8: 0 | CO8: 0 | CP8: 0 | CQ8: 0 | CR8: 0 | CS8: 0 | CT8: 0 | CU8: 0 | CV8: 0 | CW8: 0 | CX8: 7.862626788 | CY8: 0 | CZ8: 0 | DA8: 0 | DB8: 0 | DC8: 0 | DD8: 0 | DE8: 0 | DF8: 0 | DG8: 0 | DH8: 15450.06164 | DI8: 7.862626788 | DJ8: 7.862626788 | DK8: 7.862626788 | DL8: 7.862626788 | DM8: 0 | DN8: 15717.39095 | DO8: 47.17576073 | DP8: 0 | DQ8: 15748.84146 | DR8: -21.62222367 | DS8: 7.862626788 | DT8: 7.862626788 | DU8: 7.862626788 | DV8: 7.862626788 | DW8: 7.862626788 | DX8: 7.862626788 | DY8: 7.862626788 | DZ8: 7.862626788 | EA8: 7.862626788 | EB8: 0 | EC8: 7.862626788 | ED8: 7.862626788 | EE8: 7.862626788 | EF8: 0 | EG8: 0 | EH8: 0 | EI8: 0 | EJ8: 0 | EK8: 7.862626788 | EL8: 0 | EM8: 0.149389909
A9: 2 | B9: Andersen (2003) | C9: 2 | D9: 0 | E9: 1 | F9: 0 | G9: 0 | H9: 0.46146169 | I9: 0.141421356 | J9: 0.43127478 | K9: 0.123929534 | L9: 8.069101561 | M9: 3.48 | N9: 60 | O9: 1 | P9: 60 | Q9: 4.094344562 | R9: 35 | U9: 1 | AE9: 1 | AM9: 0 | AN9: 0 | AO9: 1965 | AP9: 1 | AQ9: 1 | AR9: 1 | AS9: 1 | AU9: 1999 | AV9: 6 | AW9: 0 | AX9: 2003 | AY9: -2.75 | AZ9: 1 | BA9: 1 | BB9: 1 | BC9: 1 | BD9: 1 | BE9: 1 | BF9: 1 | BG9: 1 | BH9: 1 | BJ9: 1 | BK9: 1 | BL9: 1 | BP9: 0 | BR9: 1 | BT9: 0.019 | BV9: 16.13820312 | BW9: 0 | BX9: 8.069101561 | BY9: 0 | BZ9: 0 | CA9: 3.723581243 | CB9: 1.141143284 | CC9: 3.480000001 | CD9: 0.9999999963 | CE9: 65.1104 | CF9: 28.08047343 | CG9: 484.1460937 | CH9: 8.069101561 | CI9: 484.1460937 | CJ9: 33.0376821 | CK9: 282.4185546 | CL9: 0 | CM9: 0 | CN9: 8.069101561 | CO9: 0 | CP9: 0 | CQ9: 0 | CR9: 0 | CS9: 0 | CT9: 0 | CU9: 0 | CV9: 0 | CW9: 0 | CX9: 8.069101561 | CY9: 0 | CZ9: 0 | DA9: 0 | DB9: 0 | DC9: 0 | DD9: 0 | DE9: 0 | DF9: 0 | DG9: 0 | DH9: 15855.78457 | DI9: 8.069101561 | DJ9: 8.069101561 | DK9: 8.069101561 | DL9: 8.069101561 | DM9: 0 | DN9: 16130.13402 | DO9: 48.41460937 | DP9: 0 | DQ9: 16162.41043 | DR9: -22.19002929 | DS9: 8.069101561 | DT9: 8.069101561 | DU9: 8.069101561 | DV9: 8.069101561 | DW9: 8.069101561 | DX9: 8.069101561 | DY9: 8.069101561 | DZ9: 8.069101561 | EA9: 8.069101561 | EB9: 0 | EC9: 8.069101561 | ED9: 8.069101561 | EE9: 8.069101561 | EF9: 0 | EG9: 0 | EH9: 0 | EI9: 0 | EJ9: 0 | EK9: 8.069101561 | EL9: 0 | EM9: 0.1533129297
A10: 2 | B10: Andersen (2003) | C10: 2 | D10: 0 | E10: 1 | F10: 0 | G10: 0 | H10: 0.351244084 | I10: 0.141421356 | J10: 0.3374784 | K10: 0.129302069 | L10: 7.733828289 | M10: 2.61 | N10: 60 | O10: 1 | P10: 60 | Q10: 4.094344562 | R10: 35 | T10: 1 | AE10: 1 | AM10: 0 | AN10: 0 | AO10: 1965 | AP10: 1 | AQ10: 1 | AR10: 1 | AS10: 1 | AU10: 1999 | AV10: 6 | AW10: 0 | AX10: 2003 | AY10: -2.75 | AZ10: 1 | BA10: 1 | BB10: 1 | BC10: 1 | BD10: 1 | BE10: 1 | BF10: 1 | BG10: 1 | BH10: 1 | BJ10: 1 | BK10: 1 | BL10: 1 | BP10: 0 | BR10: 1 | BT10: 0.019 | BV10: 15.46765658 | BW10: 0 | BX10: 7.733828289 | BY10: 0 | BZ10: 0 | CA10: 2.716461433 | CB10: 1.093728484 | CC10: 2.609999997 | CD10: 0.9999999991 | CE10: 59.8121 | CF10: 20.18529183 | CG10: 464.0296973 | CH10: 7.733828289 | CI10: 464.0296973 | CJ10: 31.6649578 | CK10: 270.6839901 | CL10: 0 | CM10: 7.733828289 | CN10: 0 | CO10: 0 | CP10: 0 | CQ10: 0 | CR10: 0 | CS10: 0 | CT10: 0 | CU10: 0 | CV10: 0 | CW10: 0 | CX10: 7.733828289 | CY10: 0 | CZ10: 0 | DA10: 0 | DB10: 0 | DC10: 0 | DD10: 0 | DE10: 0 | DF10: 0 | DG10: 0 | DH10: 15196.97259 | DI10: 7.733828289 | DJ10: 7.733828289 | DK10: 7.733828289 | DL10: 7.733828289 | DM10: 0 | DN10: 15459.92275 | DO10: 46.40296973 | DP10: 0 | DQ10: 15490.85806 | DR10: -21.26802779 | DS10: 7.733828289 | DT10: 7.733828289 | DU10: 7.733828289 | DV10: 7.733828289 | DW10: 7.733828289 | DX10: 7.733828289 | DY10: 7.733828289 | DZ10: 7.733828289 | EA10: 7.733828289 | EB10: 0 | EC10: 7.733828289 | ED10: 7.733828289 | EE10: 7.733828289 | EF10: 0 | EG10: 0 | EH10: 0 | EI10: 0 | EJ10: 0 | EK10: 7.733828289 | EL10: 0 | EM10: 0.1469427375
A11: 2 | B11: Andersen (2003) | C11: 2 | D11: 0 | E11: 1 | F11: 0 | G11: 0 | H11: 0.303028654 | I11: 0.141421356 | J11: 0.294081794 | K11: 0.131286515 | L11: 7.616928515 | M11: 2.24 | N11: 60 | O11: 1 | P11: 60 | Q11: 4.094344562 | R11: 35 | S11: 1 | AE11: 1 | AM11: 0 | AN11: 0 | AO11: 1965 | AP11: 1 | AQ11: 1 | AR11: 1 | AS11: 1 | AU11: 1999 | AV11: 6 | AW11: 1 | AX11: 2003 | AY11: -2.75 | AZ11: 1 | BA11: 1 | BB11: 1 | BC11: 1 | BD11: 1 | BE11: 1 | BF11: 1 | BG11: 1 | BH11: 1 | BJ11: 1 | BK11: 1 | BL11: 1 | BP11: 0 | BR11: 1 | BT11: 0.019 | BV11: 15.23385703 | BW11: 0 | BX11: 7.616928515 | BY11: 0 | BZ11: 0 | CA11: 2.308147596 | CB11: 1.077196359 | CC11: 2.240000002 | CD11: 0.9999999997 | CE11: 58.0176 | CF11: 17.06191987 | CG11: 457.0157109 | CH11: 7.616928515 | CI11: 457.0157109 | CJ11: 31.18632985 | CK11: 266.592498 | CL11: 7.616928515 | CM11: 0 | CN11: 0 | CO11: 0 | CP11: 0 | CQ11: 0 | CR11: 0 | CS11: 0 | CT11: 0 | CU11: 0 | CV11: 0 | CW11: 0 | CX11: 7.616928515 | CY11: 0 | CZ11: 0 | DA11: 0 | DB11: 0 | DC11: 0 | DD11: 0 | DE11: 0 | DF11: 0 | DG11: 0 | DH11: 14967.26453 | DI11: 7.616928515 | DJ11: 7.616928515 | DK11: 7.616928515 | DL11: 7.616928515 | DM11: 0 | DN11: 15226.2401 | DO11: 45.70157109 | DP11: 7.616928515 | DQ11: 15256.70782 | DR11: -20.94655342 | DS11: 7.616928515 | DT11: 7.616928515 | DU11: 7.616928515 | DV11: 7.616928515 | DW11: 7.616928515 | DX11: 7.616928515 | DY11: 7.616928515 | DZ11: 7.616928515 | EA11: 7.616928515 | EB11: 0 | EC11: 7.616928515 | ED11: 7.616928515 | EE11: 7.616928515 | EF11: 0 | EG11: 0 | EH11: 0 | EI11: 0 | EJ11: 0 | EK11: 7.616928515 | EL11: 0 | EM11: 0.1447216418
A12: 2 | B12: Andersen (2003) | C12: 2 | D12: 0 | E12: 1 | F12: 0 | G12: 0 | H12: 0.270053097 | I12: 0.141421356 | J12: 0.263674241 | K12: 0.132499619 | L12: 7.547191531 | M12: 1.99 | N12: 60 | O12: 1 | P12: 60 | Q12: 4.094344562 | R12: 35 | U12: 1 | AE12: 1 | AM12: 0 | AN12: 0 | AO12: 1965 | AP12: 1 | AQ12: 1 | AR12: 1 | AS12: 1 | AU12: 1999 | AV12: 6 | AW12: 1 | AX12: 2003 | AY12: -2.75 | AZ12: 1 | BA12: 1 | BB12: 1 | BC12: 1 | BD12: 1 | BE12: 1 | BF12: 1 | BG12: 1 | BH12: 1 | BJ12: 1 | BK12: 1 | BL12: 1 | BP12: 0 | BR12: 1 | BT12: 0.019 | BV12: 15.09438306 | BW12: 0 | BX12: 7.547191531 | BY12: 0 | BZ12: 0 | CA12: 2.038142447 | CB12: 1.06733406 | CC12: 1.989999999 | CD12: 1.000000002 | CE12: 56.96010001 | CF12: 15.01891115 | CG12: 452.8314919 | CH12: 7.547191531 | CI12: 452.8314919 | CJ12: 30.9008026 | CK12: 264.1517036 | CL12: 0 | CM12: 0 | CN12: 7.547191531 | CO12: 0 | CP12: 0 | CQ12: 0 | CR12: 0 | CS12: 0 | CT12: 0 | CU12: 0 | CV12: 0 | CW12: 0 | CX12: 7.547191531 | CY12: 0 | CZ12: 0 | DA12: 0 | DB12: 0 | DC12: 0 | DD12: 0 | DE12: 0 | DF12: 0 | DG12: 0 | DH12: 14830.23136 | DI12: 7.547191531 | DJ12: 7.547191531 | DK12: 7.547191531 | DL12: 7.547191531 | DM12: 0 | DN12: 15086.83587 | DO12: 45.28314919 | DP12: 7.547191531 | DQ12: 15117.02464 | DR12: -20.75477671 | DS12: 7.547191531 | DT12: 7.547191531 | DU12: 7.547191531 | DV12: 7.547191531 | DW12: 7.547191531 | DX12: 7.547191531 | DY12: 7.547191531 | DZ12: 7.547191531 | EA12: 7.547191531 | EB12: 0 | EC12: 7.547191531 | ED12: 7.547191531 | EE12: 7.547191531 | EF12: 0 | EG12: 0 | EH12: 0 | EI12: 0 | EJ12: 0 | EK12: 7.547191531 | EL12: 0 | EM12: 0.1433966391
A13: 2 | B13: Andersen (2003) | C13: 2 | D13: 0 | E13: 1 | F13: 0 | G13: 0 | H13: 0.268727869 | I13: 0.141421356 | J13: 0.262440719 | K13: 0.132545818 | L13: 7.544560955 | M13: 1.98 | N13: 60 | O13: 1 | P13: 60 | Q13: 4.094344562 | R13: 35 | T13: 1 | AE13: 1 | AM13: 0 | AN13: 0 | AO13: 1965 | AP13: 1 | AQ13: 1 | AR13: 1 | AS13: 1 | AU13: 1999 | AV13: 6 | AW13: 1 | AX13: 2003 | AY13: -2.75 | AZ13: 1 | BA13: 1 | BB13: 1 | BC13: 1 | BD13: 1 | BE13: 1 | BF13: 1 | BG13: 1 | BH13: 1 | BJ13: 1 | BK13: 1 | BL13: 1 | BP13: 0 | BR13: 1 | BT13: 0.019 | BV13: 15.08912191 | BW13: 0 | BX13: 7.544560955 | BY13: 0 | BZ13: 0 | CA13: 2.027433788 | CB13: 1.066962041 | CC13: 1.980000002 | CD13: 1.000000003 | CE13: 56.9204 | CF13: 14.93823069 | CG13: 452.6736573 | CH13: 7.544560955 | CI13: 452.6736573 | CJ13: 30.89003212 | CK13: 264.0596334 | CL13: 0 | CM13: 7.544560955 | CN13: 0 | CO13: 0 | CP13: 0 | CQ13: 0 | CR13: 0 | CS13: 0 | CT13: 0 | CU13: 0 | CV13: 0 | CW13: 0 | CX13: 7.544560955 | CY13: 0 | CZ13: 0 | DA13: 0 | DB13: 0 | DC13: 0 | DD13: 0 | DE13: 0 | DF13: 0 | DG13: 0 | DH13: 14825.06228 | DI13: 7.544560955 | DJ13: 7.544560955 | DK13: 7.544560955 | DL13: 7.544560955 | DM13: 0 | DN13: 15081.57735 | DO13: 45.26736573 | DP13: 7.544560955 | DQ13: 15111.75559 | DR13: -20.74754263 | DS13: 7.544560955 | DT13: 7.544560955 | DU13: 7.544560955 | DV13: 7.544560955 | DW13: 7.544560955 | DX13: 7.544560955 | DY13: 7.544560955 | DZ13: 7.544560955 | EA13: 7.544560955 | EB13: 0 | EC13: 7.544560955 | ED13: 7.544560955 | EE13: 7.544560955 | EF13: 0 | EG13: 0 | EH13: 0 | EI13: 0 | EJ13: 0 | EK13: 7.544560955 | EL13: 0 | EM13: 0.1433466581
A14: 2 | B14: Andersen (2003) | C14: 2 | D14: 0 | E14: 1 | F14: 0 | G14: 0 | H14: 0.228765173 | I14: 0.141421356 | J14: 0.224856284 | K14: 0.133843026 | L14: 7.471438951 | M14: 1.68 | N14: 60 | O14: 1 | P14: 60 | Q14: 4.094344562 | R14: 35 | S14: 1 | AB14: 1 | AD14: 1 | AE14: 1 | AM14: 0 | AN14: 0 | AO14: 1965 | AP14: 1 | AQ14: 1 | AR14: 1 | AS14: 1 | AU14: 1999 | AV14: 6 | AW14: 0 | AX14: 2003 | AY14: -2.75 | AZ14: 1 | BA14: 1 | BB14: 1 | BC14: 1 | BD14: 1 | BE14: 1 | BF14: 1 | BG14: 1 | BH14: 1 | BJ14: 1 | BK14: 1 | BL14: 1 | BP14: 0 | BR14: 1 | BT14: 0.019 | BV14: 14.9428779 | BW14: 0 | BX14: 7.471438951 | BY14: 0 | BZ14: 0 | CA14: 1.709205024 | CB14: 1.056621028 | CC14: 1.679999999 | CD14: 0.9999999978 | CE14: 55.8224 | CF14: 12.55201744 | CG14: 448.2863371 | CH14: 7.471438951 | CI14: 448.2863371 | CJ14: 30.59064544 | CK14: 261.5003633 | CL14: 7.471438951 | CM14: 0 | CN14: 0 | CO14: 0 | CP14: 0 | CQ14: 0 | CR14: 0 | CS14: 0 | CT14: 0 | CU14: 7.471438951 | CV14: 0 | CW14: 7.471438951 | CX14: 7.471438951 | CY14: 0 | CZ14: 0 | DA14: 0 | DB14: 0 | DC14: 0 | DD14: 0 | DE14: 0 | DF14: 0 | DG14: 0 | DH14: 14681.37754 | DI14: 7.471438951 | DJ14: 7.471438951 | DK14: 7.471438951 | DL14: 7.471438951 | DM14: 0 | DN14: 14935.40646 | DO14: 44.82863371 | DP14: 0 | DQ14: 14965.29222 | DR14: -20.54645712 | DS14: 7.471438951 | DT14: 7.471438951 | DU14: 7.471438951 | DV14: 7.471438951 | DW14: 7.471438951 | DX14: 7.471438951 | DY14: 7.471438951 | DZ14: 7.471438951 | EA14: 7.471438951 | EB14: 0 | EC14: 7.471438951 | ED14: 7.471438951 | EE14: 7.471438951 | EF14: 0 | EG14: 0 | EH14: 0 | EI14: 0 | EJ14: 0 | EK14: 7.471438951 | EL14: 0 | EM14: 0.1419573401
A15: 2 | B15: Andersen (2003) | C15: 2 | D15: 0 | E15: 1 | F15: 0 | G15: 0 | H15: 0.28987494 | I15: 0.141421356 | J15: 0.282019703 | K15: 0.131784908 | L15: 7.588122297 | M15: 2.14 | N15: 60 | O15: 1 | P15: 60 | Q15: 4.094344562 | R15: 35 | S15: 1 | AB15: 1 | AD15: 1 | AE15: 1 | AM15: 0 | AN15: 0 | AO15: 1965 | AP15: 1 | AQ15: 1 | AR15: 1 | AS15: 1 | AU15: 1999 | AV15: 6 | AW15: 0 | AX15: 2003 | AY15: -2.75 | AZ15: 1 | BA15: 1 | BB15: 1 | BC15: 1 | BD15: 1 | BE15: 1 | BF15: 1 | BG15: 1 | BH15: 1 | BJ15: 1 | BK15: 1 | BL15: 1 | BP15: 0 | BR15: 1 | BT15: 0.019 | BV15: 15.17624459 | BW15: 0 | BX15: 7.588122297 | BY15: 0 | BZ15: 0 | CA15: 2.199606496 | CB15: 1.073122545 | CC15: 2.139999997 | CD15: 0.9999999988 | CE15: 57.57959999 | CF15: 16.23858172 | CG15: 455.2873378 | CH15: 7.588122297 | CI15: 455.2873378 | CJ15: 31.06838726 | CK15: 265.5842804 | CL15: 7.588122297 | CM15: 0 | CN15: 0 | CO15: 0 | CP15: 0 | CQ15: 0 | CR15: 0 | CS15: 0 | CT15: 0 | CU15: 7.588122297 | CV15: 0 | CW15: 7.588122297 | CX15: 7.588122297 | CY15: 0 | CZ15: 0 | DA15: 0 | DB15: 0 | DC15: 0 | DD15: 0 | DE15: 0 | DF15: 0 | DG15: 0 | DH15: 14910.66031 | DI15: 7.588122297 | DJ15: 7.588122297 | DK15: 7.588122297 | DL15: 7.588122297 | DM15: 0 | DN15: 15168.65647 | DO15: 45.52873378 | DP15: 0 | DQ15: 15199.00896 | DR15: -20.86733632 | DS15: 7.588122297 | DT15: 7.588122297 | DU15: 7.588122297 | DV15: 7.588122297 | DW15: 7.588122297 | DX15: 7.588122297 | DY15: 7.588122297 | DZ15: 7.588122297 | EA15: 7.588122297 | EB15: 0 | EC15: 7.588122297 | ED15: 7.588122297 | EE15: 7.588122297 | EF15: 0 | EG15: 0 | EH15: 0 | EI15: 0 | EJ15: 0 | EK15: 7.588122297 | EL15: 0 | EM15: 0.1441743236
A16: 2 | B16: Andersen (2003) | C16: 2 | D16: 0 | E16: 1 | F16: 0 | G16: 0 | H16: 0.3769898 | I16: 0.141421356 | J16: 0.36009043 | K16: 0.128146061 | L16: 7.803595325 | M16: 2.81 | N16: 60 | O16: 1 | P16: 60 | Q16: 4.094344562 | R16: 35 | S16: 1 | AB16: 1 | AD16: 1 | AE16: 1 | AM16: 0 | AN16: 0 | AO16: 1965 | AP16: 1 | AQ16: 1 | AR16: 1 | AS16: 1 | AU16: 1999 | AV16: 6 | AW16: 0 | AX16: 2003 | AY16: -2.75 | AZ16: 1 | BA16: 1 | BB16: 1 | BC16: 1 | BD16: 1 | BE16: 1 | BF16: 1 | BG16: 1 | BH16: 1 | BJ16: 1 | BK16: 1 | BL16: 1 | BP16: 0 | BR16: 1 | BT16: 0.019 | BV16: 15.60719065 | BW16: 0 | BX16: 7.803595325 | BY16: 0 | BZ16: 0 | CA16: 2.941875841 | CB16: 1.103595033 | CC16: 2.809999996 | CD16: 1.000000003 | CE16: 60.8961 | CF16: 21.92810286 | CG16: 468.2157195 | CH16: 7.803595325 | CI16: 468.2157195 | CJ16: 31.95060808 | CK16: 273.1258364 | CL16: 7.803595325 | CM16: 0 | CN16: 0 | CO16: 0 | CP16: 0 | CQ16: 0 | CR16: 0 | CS16: 0 | CT16: 0 | CU16: 7.803595325 | CV16: 0 | CW16: 7.803595325 | CX16: 7.803595325 | CY16: 0 | CZ16: 0 | DA16: 0 | DB16: 0 | DC16: 0 | DD16: 0 | DE16: 0 | DF16: 0 | DG16: 0 | DH16: 15334.06481 | DI16: 7.803595325 | DJ16: 7.803595325 | DK16: 7.803595325 | DL16: 7.803595325 | DM16: 0 | DN16: 15599.38705 | DO16: 46.82157195 | DP16: 0 | DQ16: 15630.60144 | DR16: -21.45988714 | DS16: 7.803595325 | DT16: 7.803595325 | DU16: 7.803595325 | DV16: 7.803595325 | DW16: 7.803595325 | DX16: 7.803595325 | DY16: 7.803595325 | DZ16: 7.803595325 | EA16: 7.803595325 | EB16: 0 | EC16: 7.803595325 | ED16: 7.803595325 | EE16: 7.803595325 | EF16: 0 | EG16: 0 | EH16: 0 | EI16: 0 | EJ16: 0 | EK16: 7.803595325 | EL16: 0 | EM16: 0.1482683112
A17: 2 | B17: Andersen (2003) | C17: 2 | D17: 0 | E17: 1 | F17: 0 | G17: 0 | H17: 0.348656917 | I17: 0.141421356 | J17: 0.335183891 | K17: 0.12941463 | L17: 7.727101656 | M17: 2.59 | N17: 60 | O17: 1 | P17: 60 | Q17: 4.094344562 | R17: 35 | S17: 1 | AB17: 1 | AD17: 1 | AE17: 1 | AM17: 0 | AN17: 0 | AO17: 1965 | AP17: 1 | AQ17: 1 | AR17: 1 | AS17: 1 | AU17: 1999 | AV17: 6 | AW17: 0 | AX17: 2003 | AY17: -2.75 | AZ17: 1 | BA17: 1 | BB17: 1 | BC17: 1 | BD17: 1 | BE17: 1 | BF17: 1 | BG17: 1 | BH17: 1 | BJ17: 1 | BK17: 1 | BL17: 1 | BP17: 0 | BR17: 1 | BT17: 0.019 | BV17: 15.45420331 | BW17: 0 | BX17: 7.727101656 | BY17: 0 | BZ17: 0 | CA17: 2.694107441 | CB17: 1.092777194 | CC17: 2.589999999 | CD17: 1.000000002 | CE17: 59.7081 | CF17: 20.01319329 | CG17: 463.6260994 | CH17: 7.727101656 | CI17: 463.6260994 | CJ17: 31.63741665 | CK17: 270.448558 | CL17: 7.727101656 | CM17: 0 | CN17: 0 | CO17: 0 | CP17: 0 | CQ17: 0 | CR17: 0 | CS17: 0 | CT17: 0 | CU17: 7.727101656 | CV17: 0 | CW17: 7.727101656 | CX17: 7.727101656 | CY17: 0 | CZ17: 0 | DA17: 0 | DB17: 0 | DC17: 0 | DD17: 0 | DE17: 0 | DF17: 0 | DG17: 0 | DH17: 15183.75475 | DI17: 7.727101656 | DJ17: 7.727101656 | DK17: 7.727101656 | DL17: 7.727101656 | DM17: 0 | DN17: 15446.47621 | DO17: 46.36260994 | DP17: 0 | DQ17: 15477.38462 | DR17: -21.24952955 | DS17: 7.727101656 | DT17: 7.727101656 | DU17: 7.727101656 | DV17: 7.727101656 | DW17: 7.727101656 | DX17: 7.727101656 | DY17: 7.727101656 | DZ17: 7.727101656 | EA17: 7.727101656 | EB17: 0 | EC17: 7.727101656 | ED17: 7.727101656 | EE17: 7.727101656 | EF17: 0 | EG17: 0 | EH17: 0 | EI17: 0 | EJ17: 0 | EK17: 7.727101656 | EL17: 0 | EM17: 0.1468149315
A18: 2 | B18: Andersen (2003) | C18: 2 | D18: 0 | E18: 1 | F18: 0 | G18: 0 | H18: 0.277994675 | I18: 0.141421356 | J18: 0.271048093 | K18: 0.132218582 | L18: 7.563233436 | M18: 2.05 | N18: 60 | O18: 1 | P18: 60 | Q18: 4.094344562 | R18: 35 | U18: 1 | AB18: 1 | AD18: 1 | AE18: 1 | AM18: 0 | AN18: 0 | AO18: 1965 | AP18: 1 | AQ18: 1 | AR18: 1 | AS18: 1 | AU18: 1999 | AV18: 6 | AW18: 0 | AX18: 2003 | AY18: -2.75 | AZ18: 1 | BA18: 1 | BB18: 1 | BC18: 1 | BD18: 1 | BE18: 1 | BF18: 1 | BG18: 1 | BH18: 1 | BJ18: 1 | BK18: 1 | BL18: 1 | BP18: 0 | BR18: 1 | BT18: 0.019 | BV18: 15.12646687 | BW18: 0 | BX18: 7.563233436 | BY18: 0 | BZ18: 0 | CA18: 2.102538621 | CB18: 1.069602728 | CC18: 2.05 | CD18: 1 | CE18: 57.20250001 | CF18: 15.50462854 | CG18: 453.7940062 | CH18: 7.563233436 | CI18: 453.7940062 | CJ18: 30.96648369 | CK18: 264.7131703 | CL18: 0 | CM18: 0 | CN18: 7.563233436 | CO18: 0 | CP18: 0 | CQ18: 0 | CR18: 0 | CS18: 0 | CT18: 0 | CU18: 7.563233436 | CV18: 0 | CW18: 7.563233436 | CX18: 7.563233436 | CY18: 0 | CZ18: 0 | DA18: 0 | DB18: 0 | DC18: 0 | DD18: 0 | DE18: 0 | DF18: 0 | DG18: 0 | DH18: 14861.7537 | DI18: 7.563233436 | DJ18: 7.563233436 | DK18: 7.563233436 | DL18: 7.563233436 | DM18: 0 | DN18: 15118.90364 | DO18: 45.37940062 | DP18: 0 | DQ18: 15149.15657 | DR18: -20.79889195 | DS18: 7.563233436 | DT18: 7.563233436 | DU18: 7.563233436 | DV18: 7.563233436 | DW18: 7.563233436 | DX18: 7.563233436 | DY18: 7.563233436 | DZ18: 7.563233436 | EA18: 7.563233436 | EB18: 0 | EC18: 7.563233436 | ED18: 7.563233436 | EE18: 7.563233436 | EF18: 0 | EG18: 0 | EH18: 0 | EI18: 0 | EJ18: 0 | EK18: 7.563233436 | EL18: 0 | EM18: 0.1437014353
A19: 2 | B19: Andersen (2003) | C19: 2 | D19: 0 | E19: 1 | F19: 0 | G19: 0 | H19: 0.382110899 | I19: 0.141421356 | J19: 0.364539258 | K19: 0.127908512 | L19: 7.818088002 | M19: 2.85 | N19: 60 | O19: 1 | P19: 60 | Q19: 4.094344562 | R19: 35 | U19: 1 | AB19: 1 | AD19: 1 | AE19: 1 | AM19: 0 | AN19: 0 | AO19: 1965 | AP19: 1 | AQ19: 1 | AR19: 1 | AS19: 1 | AU19: 1999 | AV19: 6 | AW19: 0 | AX19: 2003 | AY19: -2.75 | AZ19: 1 | BA19: 1 | BB19: 1 | BC19: 1 | BD19: 1 | BE19: 1 | BF19: 1 | BG19: 1 | BH19: 1 | BJ19: 1 | BK19: 1 | BL19: 1 | BP19: 0 | BR19: 1 | BT19: 0.019 | BV19: 15.636176 | BW19: 0 | BX19: 7.818088002 | BY19: 0 | BZ19: 0 | CA19: 2.987376635 | CB19: 1.105644607 | CC19: 2.849999999 | CD19: 1.000000003 | CE19: 61.12250001 | CF19: 22.28155081 | CG19: 469.0852801 | CH19: 7.818088002 | CI19: 469.0852801 | CJ19: 32.0099461 | CK19: 273.6330801 | CL19: 0 | CM19: 0 | CN19: 7.818088002 | CO19: 0 | CP19: 0 | CQ19: 0 | CR19: 0 | CS19: 0 | CT19: 0 | CU19: 7.818088002 | CV19: 0 | CW19: 7.818088002 | CX19: 7.818088002 | CY19: 0 | CZ19: 0 | DA19: 0 | DB19: 0 | DC19: 0 | DD19: 0 | DE19: 0 | DF19: 0 | DG19: 0 | DH19: 15362.54292 | DI19: 7.818088002 | DJ19: 7.818088002 | DK19: 7.818088002 | DL19: 7.818088002 | DM19: 0 | DN19: 15628.35792 | DO19: 46.90852801 | DP19: 0 | DQ19: 15659.63027 | DR19: -21.49974201 | DS19: 7.818088002 | DT19: 7.818088002 | DU19: 7.818088002 | DV19: 7.818088002 | DW19: 7.818088002 | DX19: 7.818088002 | DY19: 7.818088002 | DZ19: 7.818088002 | EA19: 7.818088002 | EB19: 0 | EC19: 7.818088002 | ED19: 7.818088002 | EE19: 7.818088002 | EF19: 0 | EG19: 0 | EH19: 0 | EI19: 0 | EJ19: 0 | EK19: 7.818088002 | EL19: 0 | EM19: 0.148543672
A20: 2 | B20: Andersen (2003) | C20: 2 | D20: 0 | E20: 1 | F20: 0 | G20: 0 | H20: 0.351244084 | I20: 0.141421356 | J20: 0.3374784 | K20: 0.129302069 | L20: 7.733828289 | M20: 2.61 | N20: 60 | O20: 1 | P20: 60 | Q20: 4.094344562 | R20: 35 | U20: 1 | AB20: 1 | AD20: 1 | AE20: 1 | AM20: 0 | AN20: 0 | AO20: 1965 | AP20: 1 | AQ20: 1 | AR20: 1 | AS20: 1 | AU20: 1999 | AV20: 6 | AW20: 0 | AX20: 2003 | AY20: -2.75 | AZ20: 1 | BA20: 1 | BB20: 1 | BC20: 1 | BD20: 1 | BE20: 1 | BF20: 1 | BG20: 1 | BH20: 1 | BJ20: 1 | BK20: 1 | BL20: 1 | BP20: 0 | BR20: 1 | BT20: 0.019 | BV20: 15.46765658 | BW20: 0 | BX20: 7.733828289 | BY20: 0 | BZ20: 0 | CA20: 2.716461433 | CB20: 1.093728484 | CC20: 2.609999997 | CD20: 0.9999999991 | CE20: 59.8121 | CF20: 20.18529183 | CG20: 464.0296973 | CH20: 7.733828289 | CI20: 464.0296973 | CJ20: 31.6649578 | CK20: 270.6839901 | CL20: 0 | CM20: 0 | CN20: 7.733828289 | CO20: 0 | CP20: 0 | CQ20: 0 | CR20: 0 | CS20: 0 | CT20: 0 | CU20: 7.733828289 | CV20: 0 | CW20: 7.733828289 | CX20: 7.733828289 | CY20: 0 | CZ20: =AG20*$L20 -> 0 | DA20: 0 | DB20: 0 | DC20: 0 | DD20: 0 | DE20: 0 | DF20: 0 | DG20: 0 | DH20: 15196.97259 | DI20: 7.733828289 | DJ20: 7.733828289 | DK20: 7.733828289 | DL20: 7.733828289 | DM20: 0 | DN20: 15459.92275 | DO20: 46.40296973 | DP20: 0 | DQ20: 15490.85806 | DR20: -21.26802779 | DS20: 7.733828289 | DT20: 7.733828289 | DU20: 7.733828289 | DV20: 7.733828289 | DW20: 7.733828289 | DX20: 7.733828289 | DY20: 7.733828289 | DZ20: 7.733828289 | EA20: 7.733828289 | EB20: 0 | EC20: 7.733828289 | ED20: 7.733828289 | EE20: 7.733828289 | EF20: 0 | EG20: 0 | EH20: =BO20*$L20 -> 0 | EI20: 0 | EJ20: 0 | EK20: 7.733828289 | EL20: 0 | EM20: 0.1469427375
A21: 2 | B21: Andersen (2003) | C21: 2 | D21: 0 | E21: 1 | F21: 0 | G21: 0 | H21: 0.329182391 | I21: 0.141421356 | J21: 0.317785927 | K21: 0.130240134 | L21: 7.678124771 | M21: 2.44 | N21: 60 | O21: 1 | P21: 60 | Q21: 4.094344562 | R21: 35 | U21: 1 | AB21: 1 | AD21: 1 | AE21: 1 | AM21: 0 | AN21: 0 | AO21: 1965 | AP21: 1 | AQ21: 1 | AR21: 1 | AS21: 1 | AU21: 1999 | AV21: 6 | AW21: 0 | AX21: 2003 | AY21: -2.75 | AZ21: 1 | BA21: 1 | BB21: 1 | BC21: 1 | BD21: 1 | BE21: 1 | BF21: 1 | BG21: 1 | BH21: 1 | BJ21: 1 | BK21: 1 | BL21: 1 | BP21: 0 | BR21: 1 | BT21: 0.019 | BV21: 15.35624954 | BW21: 0 | BX21: 7.678124771 | BY21: 0 | BZ21: 0 | CA21: 2.527503471 | CB21: 1.085850817 | CC21: 2.439999998 | CD21: 0.999999999 | CE21: 58.9536 | CF21: 18.73462444 | CG21: 460.6874863 | CH21: 7.678124771 | CI21: 460.6874863 | CJ21: 31.4368884 | CK21: =R21*$L21 -> 268.734367 | CL21: 0 | CM21: 0 | CN21: 7.678124771 | CO21: 0 | CP21: 0 | CQ21: 0 | CR21: 0 | CS21: 0 | CT21: 0 | CU21: 7.678124771 | CV21: 0 | CW21: 7.678124771 | CX21: 7.678124771 | CY21: 0 | CZ21: 0 | DA21: 0 | DB21: 0 | DC21: 0 | DD21: 0 | DE21: 0 | DF21: 0 | DG21: 0 | DH21: 15087.51518 | DI21: 7.678124771 | DJ21: 7.678124771 | DK21: 7.678124771 | DL21: 7.678124771 | DM21: 0 | DN21: 15348.57142 | DO21: 46.06874863 | DP21: 0 | DQ21: 15379.28392 | DR21: -21.11484312 | DS21: =AZ21*$L21 -> 7.678124771 | DT21: 7.678124771 | DU21: 7.678124771 | DV21: 7.678124771 | DW21: 7.678124771 | DX21: 7.678124771 | DY21: 7.678124771 | DZ21: 7.678124771 | EA21: 7.678124771 | EB21: 0 | EC21: 7.678124771 | ED21: 7.678124771 | EE21: 7.678124771 | EF21: 0 | EG21: 0 | EH21: 0 | EI21: 0 | EJ21: 0 | EK21: 7.678124771 | EL21: 0 | EM21: 0.1458843706
A22: 2 | B22: Andersen (2003) | C22: 2 | D22: 0 | E22: 1 | F22: 0 | G22: 0 | H22: 0.232778642 | I22: 0.141421356 | J22: 0.228663375 | K22: 0.133721272 | L22: 7.478241772 | M22: 1.71 | N22: 60 | O22: 1 | P22: 60 | Q22: 4.094344562 | R22: 35 | T22: 1 | AB22: 1 | AD22: 1 | AE22: 1 | AM22: 0 | AN22: 0 | AO22: 1965 | AP22: 1 | AQ22: 1 | AR22: 1 | AS22: 1 | AU22: 1999 | AV22: 6 | AW22: 0 | AX22: 2003 | AY22: -2.75 | AZ22: 1 | BA22: 1 | BB22: 1 | BC22: 1 | BD22: 1 | BE22: 1 | BF22: 1 | BG22: 1 | BH22: 1 | BJ22: 1 | BK22: 1 | BL22: 1 | BP22: 0 | BR22: 1 | BT22: 0.019 | BV22: 14.95648354 | BW22: 0 | BX22: 7.478241772 | BY22: 0 | BZ22: 0 | CA22: 1.740774964 | CB22: 1.057583092 | CC22: 1.710000003 | CD22: 1.000000002 | CE22: 55.9241 | CF22: 12.78779343 | CG22: 448.6945063 | CH22: 7.478241772 | CI22: 448.6945063 | CJ22: 30.61849853 | CK22: 261.738462 | CL22: 0 | CM22: 7.478241772 | CN22: 0 | CO22: 0 | CP22: 0 | CQ22: 0 | CR22: 0 | CS22: 0 | CT22: 0 | CU22: 7.478241772 | CV22: 0 | CW22: 7.478241772 | CX22: 7.478241772 | CY22: 0 | CZ22: 0 | DA22: 0 | DB22: 0 | DC22: 0 | DD22: 0 | DE22: 0 | DF22: 0 | DG22: 0 | DH22: 14694.74508 | DI22: 7.478241772 | DJ22: 7.478241772 | DK22: 7.478241772 | DL22: 7.478241772 | DM22: 0 | DN22: 14949.0053 | DO22: 44.86945063 | DP22: 0 | DQ22: 14978.91827 | DR22: -20.56516487 | DS22: 7.478241772 | DT22: 7.478241772 | DU22: 7.478241772 | DV22: 7.478241772 | DW22: 7.478241772 | DX22: 7.478241772 | DY22: 7.478241772 | DZ22: 7.478241772 | EA22: 7.478241772 | EB22: 0 | EC22: 7.478241772 | ED22: 7.478241772 | EE22: 7.478241772 | EF22: 0 | EG22: 0 | EH22: 0 | EI22: 0 | EJ22: 0 | EK22: 7.478241772 | EL22: 0 | EM22: 0.1420865937
A23: 2 | B23: Andersen (2003) | C23: 2 | D23: 0 | E23: 1 | F23: 0 | G23: 0 | H23: 0.244796753 | I23: 0.141421356 | J23: 0.240021336 | K23: 0.133345187 | L23: 7.499333304 | M23: 1.8 | N23: 60 | O23: 1 | P23: 60 | Q23: 4.094344562 | R23: 35 | T23: 1 | AB23: 1 | AD23: 1 | AE23: 1 | AM23: 0 | AN23: 0 | AO23: 1965 | AP23: 1 | AQ23: 1 | AR23: 1 | AS23: 1 | AU23: 1999 | AV23: 6 | AW23: 0 | AX23: 2003 | AY23: -2.75 | AZ23: 1 | BA23: 1 | BB23: 1 | BC23: 1 | BD23: 1 | BE23: 1 | BF23: 1 | BG23: 1 | BH23: 1 | BJ23: 1 | BK23: 1 | BL23: 1 | BP23: 0 | BR23: 1 | BT23: 0.019 | BV23: 14.99866661 | BW23: 0 | BX23: 7.499333304 | BY23: 0 | BZ23: 0 | CA23: 1.835812442 | CB23: 1.060565885 | CC23: 1.799999999 | CD23: 1.000000002 | CE23: 56.24 | CF23: 13.49879995 | CG23: 449.9599982 | CH23: 7.499333304 | CI23: 449.9599982 | CJ23: 30.70485453 | CK23: 262.4766656 | CL23: 0 | CM23: 7.499333304 | CN23: 0 | CO23: 0 | CP23: 0 | CQ23: 0 | CR23: 0 | CS23: 0 | CT23: 0 | CU23: 7.499333304 | CV23: 0 | CW23: 7.499333304 | CX23: 7.499333304 | CY23: 0 | CZ23: 0 | DA23: 0 | DB23: 0 | DC23: 0 | DD23: 0 | DE23: 0 | DF23: 0 | DG23: 0 | DH23: 14736.18994 | DI23: 7.499333304 | DJ23: 7.499333304 | DK23: 7.499333304 | DL23: 7.499333304 | DM23: 0 | DN23: 14991.16727 | DO23: 44.99599982 | DP23: 0 | DQ23: 15021.16461 | DR23: -20.62316659 | DS23: 7.499333304 | DT23: 7.499333304 | DU23: 7.499333304 | DV23: 7.499333304 | DW23: 7.499333304 | DX23: 7.499333304 | DY23: 7.499333304 | DZ23: 7.499333304 | EA23: 7.499333304 | EB23: 0 | EC23: 7.499333304 | ED23: 7.499333304 | EE23: 7.499333304 | EF23: 0 | EG23: 0 | EH23: 0 | EI23: 0 | EJ23: 0 | EK23: 7.499333304 | EL23: 0 | EM23: 0.1424873328
A24: 2 | B24: Andersen (2003) | C24: 2 | D24: 0 | E24: 1 | F24: 0 | G24: 0 | H24: 0.305653368 | I24: 0.141421356 | J24: 0.296477657 | K24: 0.131184804 | L24: 7.622834119 | M24: 2.26 | N24: 60 | O24: 1 | P24: 60 | Q24: 4.094344562 | R24: 35 | T24: 1 | AB24: 1 | AD24: 1 | AE24: 1 | AM24: 0 | AN24: 0 | AO24: 1965 | AP24: 1 | AQ24: 1 | AR24: 1 | AS24: 1 | AU24: 1999 | AV24: 6 | AW24: 0 | AX24: 2003 | AY24: -2.75 | AZ24: 1 | BA24: 1 | BB24: 1 | BC24: 1 | BD24: 1 | BE24: 1 | BF24: 1 | BG24: 1 | BH24: 1 | BJ24: 1 | BK24: 1 | BL24: 1 | BP24: 0 | BR24: 1 | BT24: 0.019 | BV24: 15.24566824 | BW24: 0 | BX24: 7.622834119 | BY24: 0 | BZ24: 0 | CA24: 2.329944922 | CB24: 1.078031538 | CC24: 2.259999999 | CD24: 0.9999999998 | CE24: 58.10760001 | CF24: 17.22760511 | CG24: 457.3700471 | CH24: 7.622834119 | CI24: 457.3700471 | CJ24: 31.21050942 | CK24: 266.7991942 | CL24: 0 | CM24: 7.622834119 | CN24: 0 | CO24: 0 | CP24: 0 | CQ24: 0 | CR24: 0 | CS24: 0 | CT24: 0 | CU24: 7.622834119 | CV24: 0 | CW24: 7.622834119 | CX24: 7.622834119 | CY24: 0 | CZ24: 0 | DA24: 0 | DB24: 0 | DC24: 0 | DD24: 0 | DE24: 0 | DF24: 0 | DG24: 0 | DH24: 14978.86904 | DI24: 7.622834119 | DJ24: 7.622834119 | DK24: 7.622834119 | DL24: 7.622834119 | DM24: 0 | DN24: 15238.0454 | DO24: 45.73700471 | DP24: 0 | DQ24: 15268.53674 | DR24: -20.96279383 | DS24: 7.622834119 | DT24: 7.622834119 | DU24: 7.622834119 | DV24: 7.622834119 | DW24: 7.622834119 | DX24: 7.622834119 | DY24: 7.622834119 | DZ24: 7.622834119 | EA24: 7.622834119 | EB24: 0 | EC24: 7.622834119 | ED24: 7.622834119 | EE24: 7.622834119 | EF24: 0 | EG24: 0 | EH24: 0 | EI24: 0 | EJ24: 0 | EK24: 7.622834119 | EL24: 0 | EM24: 0.1448338483
A25: 2 | B25: Andersen (2003) | C25: 2 | D25: 0 | E25: 1 | F25: 0 | G25: 0 | H25: 0.317439136 | I25: 0.141421356 | J25: 0.307189542 | K25: 0.130718954 | L25: 7.65 | M25: 2.35 | N25: 60 | O25: 1 | P25: 60 | Q25: 4.094344562 | R25: 35 | T25: 1 | AB25: 1 | AD25: 1 | AE25: 1 | AM25: 0 | AN25: 0 | AO25: 1965 | AP25: 1 | AQ25: 1 | AR25: 1 | AS25: 1 | AU25: 1999 | AV25: 6 | AW25: 0 | AX25: 2003 | AY25: -2.75 | AZ25: 1 | BA25: 1 | BB25: 1 | BC25: 1 | BD25: 1 | BE25: 1 | BF25: 1 | BG25: 1 | BH25: 1 | BJ25: 1 | BK25: 1 | BL25: 1 | BP25: 0 | BR25: 1 | BT25: 0.019 | BV25: 15.3 | BW25: 0 | BX25: 7.65 | BY25: 0 | BZ25: 0 | CA25: 2.42840939 | CB25: 1.081873373 | CC25: 2.349999996 | CD25: 0.9999999981 | CE25: 58.5225 | CF25: 17.9775 | CG25: 459 | CH25: 7.65 | CI25: 459 | CJ25: 31.3217359 | CK25: 267.75 | CL25: 0 | CM25: 7.65 | CN25: 0 | CO25: 0 | CP25: 0 | CQ25: 0 | CR25: 0 | CS25: 0 | CT25: 0 | CU25: 7.65 | CV25: 0 | CW25: 7.65 | CX25: 7.65 | CY25: 0 | CZ25: 0 | DA25: 0 | DB25: 0 | DC25: 0 | DD25: 0 | DE25: 0 | DF25: 0 | DG25: 0 | DH25: 15032.25 | DI25: 7.65 | DJ25: 7.65 | DK25: 7.65 | DL25: 7.65 | DM25: 0 | DN25: 15292.35 | DO25: 45.9 | DP25: 0 | DQ25: 15322.95 | DR25: -21.0375 | DS25: 7.65 | DT25: 7.65 | DU25: 7.65 | DV25: 7.65 | DW25: 7.65 | DX25: 7.65 | DY25: 7.65 | DZ25: 7.65 | EA25: 7.65 | EB25: 0 | EC25: 7.65 | ED25: 7.65 | EE25: 7.65 | EF25: 0 | EG25: 0 | EH25: 0 | EI25: 0 | EJ25: 0 | EK25: 7.65 | EL25: 0 | EM25: 0.14535
A26: 3 | B26: Andersen and Tarp (2003) | C26: 1 | D26: 1 | E26: 0 | F26: 0 | G26: 0 | H26: -0.04763533499 | I26: 0.1961161351 | J26: -0.04759933748 | K26: 0.1854848542 | L26: =1/K26 -> 5.391275769 | M26: -0.2566211548 | N26: 33 | O26: 1 | P26: 33 | Q26: 3.496507561 | R26: 36 | U26: 1 | AJ26: 1 | AM26: 1 | AN26: 0 | AO26: 1960 | AP26: 1 | AQ26: 1 | AR26: 1 | AS26: 1 | AU26: 1995 | AV26: 3 | AW26: 1 | AX26: 2003 | AY26: -2.75 | BD26: 1 | BF26: 1 | BK26: 1 | BL26: 1 | BP26: 0 | BR26: 1 | BT26: 0.02 | BV26: 5.391275769 | BW26: 5.391275769 | BX26: 0 | BY26: 0 | BZ26: 0 | CA26: =H26*$L26 -> -0.2568152273 | CB26: 1.057316167 | CC26: -0.2566211548 | CD26: 1 | CE26: 29.06585442 | CF26: -1.383515414 | CG26: 177.9121004 | CH26: 5.391275769 | CI26: 177.9121004 | CJ26: 18.85063649 | CK26: 194.0859277 | CL26: 0 | CM26: 0 | CN26: 5.391275769 | CO26: 0 | CP26: 0 | CQ26: 0 | CR26: 0 | CS26: 0 | CT26: 0 | CU26: 0 | CV26: 0 | CW26: 0 | CX26: 0 | CY26: 0 | CZ26: 0 | DA26: 0 | DB26: 0 | DC26: 5.391275769 | DD26: 0 | DE26: 0 | DF26: 5.391275769 | DG26: =AN26*$L26 -> 0 | DH26: 10566.90051 | DI26: 5.391275769 | DJ26: 5.391275769 | DK26: 5.391275769 | DL26: 5.391275769 | DM26: 0 | DN26: 10755.59516 | DO26: 16.17382731 | DP26: 5.391275769 | DQ26: 10798.72537 | DR26: -14.82600836 | DS26: 0 | DT26: 0 | DU26: 0 | DV26: 0 | DW26: 5.391275769 | DX26: 0 | DY26: 5.391275769 | DZ26: 0 | EA26: 0 | EB26: 0 | EC26: 0 | ED26: 5.391275769 | EE26: 5.391275769 | EF26: 0 | EG26: 0 | EH26: 0 | EI26: 0 | EJ26: 0 | EK26: 5.391275769 | EL26: 0 | EM26: 0.1078255154
A27: 3 | B27: Andersen and Tarp (2003) | C27: 1 | D27: 1 | E27: 0 | F27: 0 | G27: 0 | H27: 0.04268668027 | I27: 0.1961161351 | J27: 0.04266077194 | K27: 0.1855262839 | L27: =1/K27 -> 5.390071848 | M27: 0.2299446259 | N27: 33 | O27: 1 | P27: 33 | Q27: 3.496507561 | R27: 36 | V27: 1 | AJ27: 1 | AM27: 1 | AN27: 0 | AO27: 1960 | AP27: 1 | AQ27: 1 | AR27: 1 | AS27: 1 | AU27: 1995 | AV27: 3 | AW27: 1 | AX27: 2003 | AY27: -2.75 | BD27: 1 | BF27: 1 | BK27: 1 | BL27: 1 | BP27: 0 | BR27: 1 | BT27: 0.02 | BV27: 5.390071848 | BW27: 5.390071848 | BX27: 0 | BY27: 0 | BZ27: 0 | CA27: 0.2300842736 | CB27: 1.057080059 | CC27: 0.2299446259 | CD27: 1 | CE27: 29.05287453 | CF27: 1.239418055 | CG27: 177.872371 | CH27: 5.390071848 | CI27: 177.872371 | CJ27: 18.84642697 | CK27: 194.0425865 | CL27: 0 | CM27: 0 | CN27: 0 | CO27: 5.390071848 | CP27: 0 | CQ27: 0 | CR27: 0 | CS27: 0 | CT27: 0 | CU27: 0 | CV27: 0 | CW27: 0 | CX27: 0 | CY27: 0 | CZ27: 0 | DA27: 0 | DB27: 0 | DC27: 5.390071848 | DD27: 0 | DE27: 0 | DF27: 5.390071848 | DG27: 0 | DH27: 10564.54082 | DI27: 5.390071848 | DJ27: 5.390071848 | DK27: 5.390071848 | DL27: 5.390071848 | DM27: 0 | DN27: 10753.19334 | DO27: 16.17021555 | DP27: 5.390071848 | DQ27: 10796.31391 | DR27: -14.82269758 | DS27: 0 | DT27: 0 | DU27: 0 | DV27: 0 | DW27: 5.390071848 | DX27: 0 | DY27: 5.390071848 | DZ27: 0 | EA27: 0 | EB27: 0 | EC27: 0 | ED27: 5.390071848 | EE27: 5.390071848 | EF27: 0 | EG27: 0 | EH27: 0 | EI27: 0 | EJ27: 0 | EK27: 5.390071848 | EL27: 0 | EM27: 0.107801437
A28: 3 | B28: Andersen and Tarp (2003) | C28: 1 | D28: 1 | E28: 0 | F28: 0 | G28: 0 | H28: -0.0643224255 | I28: 0.1961161351 | J28: -0.06423386341 | K28: 0.1853118537 | L28: 5.39630887 | M28: -0.3466257669 | N28: 33 | O28: 1 | P28: 33 | Q28: 3.496507561 | R28: 36 | S28: 1 | AJ28: 1 | AM28: 1 | AN28: 0 | AO28: 1960 | AP28: 1 | AQ28: 1 | AR28: 1 | AS28: 1 | AU28: 1995 | AV28: 3 | AW28: 1 | AX28: 2003 | AY28: -2.75 | BD28: 1 | BF28: 1 | BK28: 1 | BL28: 1 | BP28: 0 | BR28: 1 | BT28: 0.02 | BV28: =C28*$L28 -> 5.39630887 | BW28: 5.39630887 | BX28: 0 | BY28: 0 | BZ28: 0 | CA28: -0.3471036753 | CB28: 1.05830324 | CC28: -0.3466257669 | CD28: 1 | CE28: 29.12014942 | CF28: -1.8704997 | CG28: 178.0781927 | CH28: 5.39630887 | CI28: 178.0781927 | CJ28: 18.86823477 | CK28: 194.2671193 | CL28: 5.39630887 | CM28: 0 | CN28: 0 | CO28: 0 | CP28: 0 | CQ28: 0 | CR28: 0 | CS28: 0 | CT28: 0 | CU28: 0 | CV28: 0 | CW28: 0 | CX28: 0 | CY28: 0 | CZ28: 0 | DA28: 0 | DB28: 0 | DC28: 5.39630887 | DD28: 0 | DE28: 0 | DF28: 5.39630887 | DG28: 0 | DH28: 10576.76539 | DI28: 5.39630887 | DJ28: 5.39630887 | DK28: 5.39630887 | DL28: 5.39630887 | DM28: 0 | DN28: 10765.6362 | DO28: 16.18892661 | DP28: 5.39630887 | DQ28: 10808.80667 | DR28: -14.83984939 | DS28: 0 | DT28: 0 | DU28: 0 | DV28: 0 | DW28: 5.39630887 | DX28: 0 | DY28: 5.39630887 | DZ28: 0 | EA28: 0 | EB28: 0 | EC28: 0 | ED28: 5.39630887 | EE28: 5.39630887 | EF28: 0 | EG28: 0 | EH28: 0 | EI28: 0 | EJ28: 0 | EK28: 5.39630887 | EL28: 0 | EM28: 0.1079261774
A29: 3 | B29: Andersen and Tarp (2003) | C29: 1 | D29: 1 | E29: 0 | F29: 0 | G29: 0 | H29: 0.09369935202 | I29: 0.179605302 | J29: 0.09342609831 | K29: 0.1707484876 | L29: 5.856567249 | M29: 0.5471562275 | N29: 38 | O29: 1 | P29: 38 | Q29: 3.63758616 | R29: 36 | U29: 1 | AJ29: 1 | AM29: 1 | AN29: 0 | AO29: 1960 | AP29: 1 | AQ29: 1 | AR29: 1 | AS29: 1 | AU29: 1995 | AV29: 3 | AW29: 1 | AX29: 2003 | AY29: -2.75 | BA29: 1 | BD29: 1 | BF29: 1 | BK29: 1 | BL29: 1 | BP29: 0 | BR29: 1 | BT29: 0.02 | BV29: 5.856567249 | BW29: 5.856567249 | BX29: 0 | BY29: 0 | BZ29: 0 | CA29: 0.5487565563 | CB29: 1.05187053 | CC29: 0.5471562275 | CD29: 1 | CE29: 34.29937994 | CF29: 3.204457242 | CG29: 222.5495554 | CH29: 5.856567249 | CI29: 222.5495554 | CJ29: 21.30376797 | CK29: 210.8364209 | CL29: 0 | CM29: 0 | CN29: 5.856567249 | CO29: 0 | CP29: 0 | CQ29: 0 | CR29: 0 | CS29: 0 | CT29: 0 | CU29: 0 | CV29: 0 | CW29: 0 | CX29: 0 | CY29: 0 | CZ29: 0 | DA29: 0 | DB29: 0 | DC29: 5.856567249 | DD29: 0 | DE29: 0 | DF29: 5.856567249 | DG29: 0 | DH29: 11478.87181 | DI29: 5.856567249 | DJ29: 5.856567249 | DK29: 5.856567249 | DL29: 5.856567249 | DM29: 0 | DN29: 11683.85166 | DO29: 17.56970175 | DP29: 5.856567249 | DQ29: 11730.7042 | DR29: -16.10555993 | DS29: 0 | DT29: 5.856567249 | DU29: 0 | DV29: 0 | DW29: 5.856567249 | DX29: 0 | DY29: 5.856567249 | DZ29: 0 | EA29: 0 | EB29: 0 | EC29: 0 | ED29: 5.856567249 | EE29: 5.856567249 | EF29: 0 | EG29: 0 | EH29: 0 | EI29: 0 | EJ29: 0 | EK29: 5.856567249 | EL29: 0 | EM29: 0.117131345
A30: 3 | B30: Andersen and Tarp (2003) | C30: 1 | D30: 1 | E30: 0 | F30: 0 | G30: 0 | H30: 0.1083983927 | I30: 0.179605302 | J30: 0.1079758108 | K30: 0.1704959224 | L30: 5.865242911 | M30: 0.6333043586 | N30: 38 | O30: 1 | P30: 38 | Q30: 3.63758616 | R30: 36 | V30: 1 | AJ30: 1 | AM30: 1 | AN30: 0 | AO30: 1960 | AP30: 1 | AQ30: 1 | AR30: 1 | AS30: 1 | AU30: 1995 | AV30: 3 | AW30: 1 | AX30: 2003 | AY30: -2.75 | BA30: 1 | BD30: 1 | BF30: 1 | BK30: 1 | BL30: 1 | BP30: 0 | BR30: 1 | BT30: 0.02 | BV30: 5.865242911 | BW30: 5.865242911 | BX30: 0 | BY30: 0 | BZ30: 0 | CA30: 0.6357829044 | CB30: 1.053428725 | CC30: 0.6333043586 | CD30: 1 | CE30: 34.40107441 | CF30: 3.7144839 | CG30: 222.8792306 | CH30: 5.865242911 | CI30: 222.8792306 | CJ30: 21.33532644 | CK30: 211.1487448 | CL30: 0 | CM30: 0 | CN30: 0 | CO30: 5.865242911 | CP30: 0 | CQ30: 0 | CR30: 0 | CS30: 0 | CT30: 0 | CU30: 0 | CV30: 0 | CW30: 0 | CX30: 0 | CY30: 0 | CZ30: 0 | DA30: 0 | DB30: 0 | DC30: 5.865242911 | DD30: 0 | DE30: 0 | DF30: 5.865242911 | DG30: 0 | DH30: 11495.87611 | DI30: 5.865242911 | DJ30: 5.865242911 | DK30: 5.865242911 | DL30: 5.865242911 | DM30: 0 | DN30: 11701.15961 | DO30: 17.59572873 | DP30: 5.865242911 | DQ30: 11748.08155 | DR30: -16.12941801 | DS30: 0 | DT30: 5.865242911 | DU30: 0 | DV30: 0 | DW30: 5.865242911 | DX30: 0 | DY30: 5.865242911 | DZ30: 0 | EA30: 0 | EB30: 0 | EC30: 0 | ED30: 5.865242911 | EE30: 5.865242911 | EF30: 0 | EG30: 0 | EH30: 0 | EI30: 0 | EJ30: 0 | EK30: 5.865242911 | EL30: 0 | EM30: 0.1173048582
A31: 3 | B31: Andersen and Tarp (2003) | C31: 1 | D31: 1 | E31: 0 | F31: 0 | G31: 0 | H31: 0.1482248555 | I31: 0.179605302 | J31: 0.1471487813 | K31: 0.1696317149 | L31: 5.895124036 | M31: 0.8674603175 | N31: 38 | O31: 1 | P31: 38 | Q31: 3.63758616 | R31: 36 | S31: 1 | AJ31: 1 | AM31: 1 | AN31: 0 | AO31: 1960 | AP31: 1 | AQ31: 1 | AR31: 1 | AS31: 1 | AU31: 1995 | AV31: 3 | AW31: 1 | AX31: 2003 | AY31: -2.75 | BA31: 1 | BD31: 1 | BF31: 1 | BK31: 1 | BL31: 1 | BP31: 0 | BR31: 1 | BT31: 0.02 | BV31: 5.895124036 | BW31: 5.895124036 | BX31: 0 | BY31: 0 | BZ31: 0 | CA31: 0.8738039086 | CB31: 1.058795533 | CC31: 0.8674603175 | CD31: 1 | CE31: 34.7524874 | CF31: 5.113786168 | CG31: 224.0147134 | CH31: 5.895124036 | CI31: 224.0147134 | CJ31: 21.4440216 | CK31: 212.2244653 | CL31: 5.895124036 | CM31: 0 | CN31: 0 | CO31: 0 | CP31: 0 | CQ31: 0 | CR31: 0 | CS31: 0 | CT31: 0 | CU31: 0 | CV31: 0 | CW31: 0 | CX31: 0 | CY31: 0 | CZ31: 0 | DA31: 0 | DB31: 0 | DC31: 5.895124036 | DD31: 0 | DE31: 0 | DF31: 5.895124036 | DG31: 0 | DH31: 11554.44311 | DI31: 5.895124036 | DJ31: 5.895124036 | DK31: 5.895124036 | DL31: 5.895124036 | DM31: 0 | DN31: 11760.77245 | DO31: 17.68537211 | DP31: 5.895124036 | DQ31: 11807.93344 | DR31: -16.2115911 | DS31: 0 | DT31: 5.895124036 | DU31: 0 | DV31: 0 | DW31: 5.895124036 | DX31: 0 | DY31: 5.895124036 | DZ31: 0 | EA31: 0 | EB31: 0 | EC31: 0 | ED31: 5.895124036 | EE31: 5.895124036 | EF31: 0 | EG31: 0 | EH31: 0 | EI31: 0 | EJ31: 0 | EK31: 5.895124036 | EL31: 0 | EM31: 0.1179024807
A32: 3 | B32: Andersen and Tarp (2003) | C32: 1 | D32: 1 | E32: 0 | F32: 0 | G32: 0 | H32: 1.186278344 | I32: 0.1601281538 | J32: 0.8294210652 | K32: 0.08619754396 | L32: 11.60125862 | M32: 9.622328284 | N32: 46 | O32: 1 | P32: 46 | Q32: 3.828641396 | R32: 36 | U32: 1 | AJ32: 1 | AM32: 1 | AN32: 0 | AO32: 1960 | AP32: 1 | AQ32: 1 | AR32: 1 | AS32: 1 | AU32: 1995 | AV32: 3 | AW32: 1 | AX32: 2003 | AY32: -2.75 | AZ32: 1 | BB32: 1 | BC32: 1 | BE32: 1 | BK32: 1 | BL32: 1 | BP32: 0 | BR32: 1 | BT32: 0.02 | BV32: 11.60125862 | BW32: 11.60125862 | BX32: 0 | BY32: 0 | BZ32: 0 | CA32: 13.76232187 | CB32: 1.857688125 | CC32: 9.622328284 | CD32: 1 | CE32: 134.5892016 | CF32: 111.631119 | CG32: 533.6578966 | CH32: 11.60125862 | CI32: 533.6578966 | CJ32: 44.41705901 | CK32: 417.6453104 | CL32: 0 | CM32: 0 | CN32: 11.60125862 | CO32: 0 | CP32: 0 | CQ32: 0 | CR32: 0 | CS32: 0 | CT32: 0 | CU32: 0 | CV32: 0 | CW32: 0 | CX32: 0 | CY32: 0 | CZ32: 0 | DA32: 0 | DB32: 0 | DC32: 11.60125862 | DD32: 0 | DE32: 0 | DF32: 11.60125862 | DG32: 0 | DH32: 22738.4669 | DI32: 11.60125862 | DJ32: 11.60125862 | DK32: 11.60125862 | DL32: 11.60125862 | DM32: 0 | DN32: 23144.51095 | DO32: 34.80377586 | DP32: 11.60125862 | DQ32: 23237.32102 | DR32: -31.90346121 | DS32: 11.60125862 | DT32: 0 | DU32: 11.60125862 | DV32: 11.60125862 | DW32: 0 | DX32: 11.60125862 | DY32: 0 | DZ32: 0 | EA32: 0 | EB32: 0 | EC32: 0 | ED32: 11.60125862 | EE32: 11.60125862 | EF32: 0 | EG32: 0 | EH32: 0 | EI32: 0 | EJ32: 0 | EK32: 11.60125862 | EL32: 0 | EM32: 0.2320251724
A33: 3 | B33: Andersen and Tarp (2003) | C33: 1 | D33: 1 | E33: 0 | F33: 0 | G33: 0 | H33: 0.2528743578 | I33: 0.1601281538 | J33: 0.2476186932 | K33: 0.149497968 | L33: 6.689054127 | M33: 1.656334842 | N33: 46 | O33: 1 | P33: 46 | Q33: 3.828641396 | R33: 36 | V33: 1 | AJ33: 1 | AM33: 1 | AN33: 0 | AO33: 1960 | AP33: 1 | AQ33: 1 | AR33: 1 | AS33: 1 | AU33: 1995 | AV33: 3 | AW33: 1 | AX33: 2003 | AY33: -2.75 | AZ33: 1 | BB33: 1 | BC33: 1 | BE33: 1 | BK33: 1 | BL33: 1 | BP33: 0 | BR33: 1 | BT33: 0.02 | BV33: 6.689054127 | BW33: 6.689054127 | BX33: 0 | BY33: 0 | BZ33: 0 | CA33: 1.691490267 | CB33: 1.071105888 | CC33: 1.656334842 | CD33: 1 | CE33: 44.74344511 | CF33: 11.07931341 | CG33: 307.6964898 | CH33: 6.689054127 | CI33: 307.6964898 | CJ33: 25.60998953 | CK33: 240.8059486 | CL33: 0 | CM33: 0 | CN33: 0 | CO33: 6.689054127 | CP33: 0 | CQ33: 0 | CR33: 0 | CS33: 0 | CT33: 0 | CU33: 0 | CV33: 0 | CW33: 0 | CX33: 0 | CY33: 0 | CZ33: 0 | DA33: 0 | DB33: 0 | DC33: 6.689054127 | DD33: 0 | DE33: 0 | DF33: 6.689054127 | DG33: 0 | DH33: 13110.54609 | DI33: 6.689054127 | DJ33: 6.689054127 | DK33: 6.689054127 | DL33: 6.689054127 | DM33: 0 | DN33: 13344.66298 | DO33: 20.06716238 | DP33: 6.689054127 | DQ33: 13398.17542 | DR33: -18.39489885 | DS33: 6.689054127 | DT33: 0 | DU33: 6.689054127 | DV33: 6.689054127 | DW33: 0 | DX33: 6.689054127 | DY33: 0 | DZ33: 0 | EA33: 0 | EB33: 0 | EC33: 0 | ED33: 6.689054127 | EE33: 6.689054127 | EF33: 0 | EG33: 0 | EH33: 0 | EI33: 0 | EJ33: 0 | EK33: 6.689054127 | EL33: 0 | EM33: 0.1337810825
A34: 3 | B34: Andersen and Tarp (2003) | C34: 1 | D34: 1 | E34: 0 | F34: 0 | G34: 0 | H34: 0.3048439387 | I34: 0.1601281538 | J34: 0.2957391988 | K34: 0.1474011635 | L34: 6.784206964 | M34: 2.006355932 | N34: 46 | O34: 1 | P34: 46 | Q34: 3.828641396 | R34: 36 | S34: 1 | AJ34: 1 | AM34: 1 | AN34: 0 | AO34: 1960 | AP34: 1 | AQ34: 1 | AR34: 1 | AS34: 1 | AU34: 1995 | AV34: 3 | AW34: 1 | AX34: 2003 | AY34: -2.75 | AZ34: 1 | BB34: 1 | BC34: 1 | BE34: 1 | BK34: 1 | BL34: 1 | BP34: 0 | BR34: 1 | BT34: 0.02 | BV34: 6.784206964 | BW34: 6.784206964 | BX34: 0 | BY34: 0 | BZ34: 0 | CA34: 2.068124372 | CB34: 1.086342536 | CC34: 2.006355932 | CD34: 1 | CE34: 46.02546413 | CF34: 13.61153389 | CG34: 312.0735203 | CH34: 6.784206964 | CI34: 312.0735203 | CJ34: 25.97429562 | CK34: 244.2314507 | CL34: 6.784206964 | CM34: 0 | CN34: 0 | CO34: 0 | CP34: 0 | CQ34: 0 | CR34: 0 | CS34: 0 | CT34: 0 | CU34: 0 | CV34: 0 | CW34: 0 | CX34: 0 | CY34: 0 | CZ34: 0 | DA34: 0 | DB34: 0 | DC34: 6.784206964 | DD34: 0 | DE34: 0 | DF34: 6.784206964 | DG34: 0 | DH34: 13297.04565 | DI34: 6.784206964 | DJ34: 6.784206964 | DK34: 6.784206964 | DL34: 6.784206964 | DM34: 0 | DN34: 13534.49289 | DO34: 20.35262089 | DP34: 6.784206964 | DQ34: 13588.76655 | DR34: -18.65656915 | DS34: 6.784206964 | DT34: 0 | DU34: 6.784206964 | DV34: 6.784206964 | DW34: 0 | DX34: 6.784206964 | DY34: 0 | DZ34: 0 | EA34: 0 | EB34: 0 | EC34: 0 | ED34: 6.784206964 | EE34: 6.784206964 | EF34: 0 | EG34: 0 | EH34: 0 | EI34: 0 | EJ34: 0 | EK34: 6.784206964 | EL34: 0 | EM34: 0.1356841393
A35: 4 | B35: Anwar and Cooray (2012) | C35: 1 | D35: 1 | E35: 0 | F35: 0 | G35: 0 | H35: 0.353668135 | I35: 0.079305159 | J35: 0.339624612 | K35: 0.073897457 | L35: 13.53226547 | M35: 4.595890411 | N35: 8 | O35: 1 | P35: 168 | Q35: 5.123963979 | R35: 1 | S35: 1 | AE35: 1 | AM35: =AJ35+AK35+AL35 -> 0 | AN35: 1 | AO35: 1970 | AQ35: 1 | AR35: 1 | AS35: 1 | AT35: 1 | AU35: 2009 | AV35: 5 | AW35: 0 | AX35: 2012 | AY35: 6.25 | BA35: 1 | BH35: 1 | BL35: 1 | BP35: 1 | BQ35: 1 | BT35: 0.065 | BV35: 13.53226547 | BW35: 13.53226547 | BX35: 0 | BY35: 0 | BZ35: 0 | CA35: 4.785931091 | CB35: 1.073178465 | CC35: 4.59589041 | CD35: 1.000000006 | CE35: 183.1222088 | CF35: 62.19280911 | CG35: 108.2581238 | CH35: 13.53226547 | CI35: 2273.420599 | CJ35: 69.33884083 | CK35: 13.53226547 | CL35: 13.53226547 | CM35: 0 | CN35: 0 | CO35: 0 | CP35: 0 | CQ35: 0 | CR35: 0 | CS35: 0 | CT35: 0 | CU35: 0 | CV35: 0 | CW35: 0 | CX35: 13.53226547 | CY35: 0 | CZ35: 0 | DA35: 0 | DB35: 0 | DC35: 0 | DD35: 0 | DE35: 0 | DF35: 0 | DG35: 13.53226547 | DH35: 26658.56298 | DI35: 0 | DJ35: 13.53226547 | DK35: 13.53226547 | DL35: 13.53226547 | DM35: 13.53226547 | DN35: 27186.32133 | DO35: 67.66132735 | DP35: 0 | DQ35: 27226.91813 | DR35: 84.57665919 | DS35: 0 | DT35: 13.53226547 | DU35: 0 | DV35: 0 | DW35: 0 | DX35: 0 | DY35: 0 | DZ35: 0 | EA35: 13.53226547 | EB35: 0 | EC35: 0 | ED35: 0 | EE35: 13.53226547 | EF35: 0 | EG35: 0 | EH35: 0 | EI35: 13.53226547 | EJ35: 13.53226547 | EK35: 0 | EL35: 0 | EM35: 0.8795972556
A36: 4 | B36: Anwar and Cooray (2012) | C36: 1 | D36: 1 | E36: 0 | F36: 0 | G36: 0 | H36: 0.653412453 | I36: 0.083624201 | J36: 0.573962726 | K36: 0.067771109 | L36: 14.75555018 | M36: 8.469135802 | N36: 8 | O36: 1 | P36: 154 | Q36: 5.036952602 | R36: 1 | S36: 1 | AE36: 1 | AM36: 0 | AN36: 1 | AO36: 1970 | AQ36: 1 | AR36: 1 | AS36: 1 | AT36: 1 | AU36: 2009 | AV36: 7 | AW36: 0 | AX36: 2012 | AY36: 6.25 | BA36: 1 | BH36: 1 | BJ36: 1 | BL36: 1 | BP36: 1 | BQ36: 1 | BT36: 0.065 | BV36: 14.75555018 | BW36: 14.75555018 | BX36: 0 | BY36: 0 | BZ36: 0 | CA36: 9.641460238 | CB36: 1.233921094 | CC36: 8.469135805 | CD36: 0.9999999996 | CE36: 217.7262611 | CF36: 124.9667583 | CG36: 118.0444014 | CH36: 14.75555018 | CI36: 2272.354728 | CJ36: 74.32300688 | CK36: 14.75555018 | CL36: 14.75555018 | CM36: 0 | CN36: 0 | CO36: 0 | CP36: 0 | CQ36: 0 | CR36: 0 | CS36: 0 | CT36: 0 | CU36: 0 | CV36: 0 | CW36: 0 | CX36: 14.75555018 | CY36: 0 | CZ36: 0 | DA36: 0 | DB36: 0 | DC36: 0 | DD36: 0 | DE36: 0 | DF36: 0 | DG36: 14.75555018 | DH36: 29068.43385 | DI36: 0 | DJ36: 14.75555018 | DK36: 14.75555018 | DL36: 14.75555018 | DM36: 14.75555018 | DN36: 29643.90031 | DO36: 103.2888513 | DP36: 0 | DQ36: 29688.16696 | DR36: 92.22218863 | DS36: 0 | DT36: 14.75555018 | DU36: 0 | DV36: 0 | DW36: 0 | DX36: 0 | DY36: 0 | DZ36: 0 | EA36: 14.75555018 | EB36: 0 | EC36: 14.75555018 | ED36: 0 | EE36: 14.75555018 | EF36: 0 | EG36: 0 | EH36: 0 | EI36: 14.75555018 | EJ36: 14.75555018 | EK36: 0 | EL36: 0 | EM36: 0.9591107617
A37: 4 | B37: Anwar and Cooray (2012) | C37: 1 | D37: 1 | E37: 0 | F37: 0 | G37: 0 | H37: 0.403679516 | I37: 0.088388348 | J37: 0.383092889 | K37: 0.080704902 | L37: 12.39082107 | M37: 4.746835443 | N37: 8 | O37: 1 | P37: 140 | Q37: 4.941642423 | R37: 1 | S37: 1 | AE37: 1 | AM37: 0 | AN37: 1 | AO37: 1970 | AQ37: 1 | AR37: 1 | AS37: 1 | AT37: 1 | AU37: 2009 | AV37: 8 | AW37: 0 | AX37: 2012 | AY37: 6.25 | BA37: 1 | BH37: 1 | BJ37: 1 | BL37: 1 | BP37: 1 | BQ37: 1 | BT37: 0.065 | BV37: 12.39082107 | BW37: 12.39082107 | BX37: 0 | BY37: 0 | BZ37: 0 | CA37: 5.001920652 | CB37: 1.095204205 | CC37: 4.746835441 | CD37: 1 | CE37: 153.5324468 | CF37: 58.81718862 | CG37: 99.12656856 | CH37: 12.39082107 | CI37: 1734.71495 | CJ37: 61.23100705 | CK37: 12.39082107 | CL37: 12.39082107 | CM37: 0 | CN37: 0 | CO37: 0 | CP37: 0 | CQ37: 0 | CR37: 0 | CS37: 0 | CT37: 0 | CU37: 0 | CV37: 0 | CW37: 0 | CX37: 12.39082107 | CY37: 0 | CZ37: 0 | DA37: 0 | DB37: 0 | DC37: 0 | DD37: 0 | DE37: 0 | DF37: 0 | DG37: 12.39082107 | DH37: 24409.91751 | DI37: 0 | DJ37: 12.39082107 | DK37: 12.39082107 | DL37: 12.39082107 | DM37: 12.39082107 | DN37: 24893.15953 | DO37: 99.12656856 | DP37: 0 | DQ37: 24930.33199 | DR37: 77.44263169 | DS37: 0 | DT37: 12.39082107 | DU37: 0 | DV37: 0 | DW37: 0 | DX37: 0 | DY37: 0 | DZ37: 0 | EA37: 12.39082107 | EB37: 0 | EC37: 12.39082107 | ED37: 0 | EE37: 12.39082107 | EF37: 0 | EG37: 0 | EH37: 0 | EI37: 12.39082107 | EJ37: 12.39082107 | EK37: 0 | EL37: 0 | EM37: 0.8054033696
A38: 4 | B38: Anwar and Cooray (2012) | C38: 1 | D38: 1 | E38: 0 | F38: 0 | G38: 0 | H38: 0.174386013 | I38: 0.092450033 | J38: 0.172639534 | K38: 0.089916424 | L38: 11.12143876 | M38: 1.92 | N38: 8 | O38: 1 | P38: 133 | Q38: 4.890349128 | R38: 1 | S38: 1 | AE38: 1 | AM38: 0 | AN38: 1 | AO38: 1970 | AQ38: 1 | AR38: 1 | AS38: 1 | AT38: 1 | AU38: 2009 | AV38: 12 | AW38: 0 | AX38: 2012 | AY38: 6.25 | BA38: 1 | BH38: 1 | BI38: 1 | BJ38: 1 | BL38: 1 | BP38: 1 | BQ38: 1 | BT38: 0.065 | BV38: 11.12143876 | BW38: 11.12143876 | BX38: 0 | BY38: 0 | BZ38: 0 | CA38: 1.939423364 | CB38: 1.02817738 | CC38: 1.920000005 | CD38: 1.000000003 | CE38: 123.6864001 | CF38: 21.35316242 | CG38: 88.97151008 | CH38: 11.12143876 | CI38: 1479.151355 | CJ38: 54.38771834 | CK38: =R38*$L38 -> 11.12143876 | CL38: 11.12143876 | CM38: 0 | CN38: 0 | CO38: 0 | CP38: 0 | CQ38: 0 | CR38: 0 | CS38: 0 | CT38: 0 | CU38: 0 | CV38: 0 | CW38: 0 | CX38: 11.12143876 | CY38: 0 | CZ38: 0 | DA38: 0 | DB38: 0 | DC38: 0 | DD38: 0 | DE38: 0 | DF38: 0 | DG38: 11.12143876 | DH38: 21909.23436 | DI38: 0 | DJ38: 11.12143876 | DK38: 11.12143876 | DL38: 11.12143876 | DM38: 11.12143876 | DN38: 22342.97047 | DO38: 133.4572651 | DP38: 0 | DQ38: 22376.33479 | DR38: 69.50899225 | DS38: =AZ38*$L38 -> 0 | DT38: 11.12143876 | DU38: 0 | DV38: 0 | DW38: 0 | DX38: 0 | DY38: 0 | DZ38: 0 | EA38: 11.12143876 | EB38: 11.12143876 | EC38: 11.12143876 | ED38: 0 | EE38: 11.12143876 | EF38: 0 | EG38: 0 | EH38: 0 | EI38: 11.12143876 | EJ38: 11.12143876 | EK38: 0 | EL38: 0 | EM38: 0.7228935194
A39: 4 | B39: Anwar and Cooray (2012) | C39: 1 | D39: 1 | E39: 0 | F39: 0 | G39: 0 | H39: 0.148953061 | I39: 0.092847669 | J39: 0.147861142 | K39: 0.090662227 | L39: 11.0299519 | M39: 1.630901288 | N39: 8 | O39: 1 | P39: 133 | Q39: 4.890349128 | R39: 1 | S39: 1 | AE39: 1 | AM39: 0 | AN39: 1 | AO39: 1970 | AQ39: 1 | AR39: 1 | AS39: 1 | AT39: 1 | AU39: 2009 | AV39: 13 | AW39: 0 | AX39: 2012 | AY39: 6.25 | BA39: 1 | BH39: 1 | BI39: 1 | BJ39: 1 | BL39: 1 | BN39: 1 | BP39: 1 | BQ39: 1 | BT39: 0.065 | BV39: 11.0299519 | BW39: 11.0299519 | BX39: 0 | BY39: 0 | BZ39: 0 | CA39: 1.642945098 | CB39: 1.024105323 | CC39: 1.630901284 | CD39: 1.000000003 | CE39: 121.6598389 | CF39: 17.98876276 | CG39: 88.2396152 | CH39: 11.0299519 | CI39: 1466.983603 | CJ39: 53.94031566 | CK39: 11.0299519 | CL39: 11.0299519 | CM39: 0 | CN39: 0 | CO39: 0 | CP39: 0 | CQ39: 0 | CR39: 0 | CS39: 0 | CT39: 0 | CU39: 0 | CV39: 0 | CW39: 0 | CX39: 11.0299519 | CY39: 0 | CZ39: 0 | DA39: 0 | DB39: 0 | DC39: 0 | DD39: 0 | DE39: 0 | DF39: 0 | DG39: 11.0299519 | DH39: 21729.00524 | DI39: 0 | DJ39: 11.0299519 | DK39: 11.0299519 | DL39: 11.0299519 | DM39: 11.0299519 | DN39: 22159.17337 | DO39: 143.3893747 | DP39: 0 | DQ39: 22192.26322 | DR39: 68.93719938 | DS39: 0 | DT39: 11.0299519 | DU39: 0 | DV39: 0 | DW39: 0 | DX39: 0 | DY39: 0 | DZ39: 0 | EA39: 11.0299519 | EB39: 11.0299519 | EC39: 11.0299519 | ED39: 0 | EE39: 11.0299519 | EF39: 0 | EG39: 11.0299519 | EH39: 0 | EI39: 11.0299519 | EJ39: 11.0299519 | EK39: 0 | EL39: 0 | EM39: 0.7169468735
A40: 4 | B40: Anwar and Cooray (2012) | C40: 1 | D40: 1 | E40: 0 | F40: 0 | G40: 0 | H40: 0.235126438 | I40: 0.079056942 | J40: 0.230887214 | K40: 0.076209716 | L40: 13.12168647 | M40: 3.02962963 | N40: 8 | O40: 39 | P40: 168 | Q40: 5.123963979 | R40: 1 | S40: 1 | AH40: 1 | AM40: 0 | AN40: 1 | AO40: 1970 | AQ40: 1 | AR40: 1 | AS40: 1 | AT40: 1 | AU40: 2009 | AV40: 4 | AW40: 0 | AX40: 2012 | AY40: 6.25 | BA40: 1 | BH40: 1 | BL40: 1 | BP40: 1 | BQ40: 1 | BT40: 0.065 | BV40: 13.12168647 | BW40: 13.12168647 | BX40: 0 | BY40: 0 | BZ40: 0 | CA40: 3.0852554 | CB40: 1.037360406 | CC40: 3.029629632 | CD40: 0.9999999993 | CE40: 172.1786558 | CF40: 39.75385013 | CG40: 104.9734918 | CH40: 511.7457723 | CI40: 2204.443327 | CJ40: 67.23504882 | CK40: 13.12168647 | CL40: 13.12168647 | CM40: 0 | CN40: 0 | CO40: 0 | CP40: 0 | CQ40: 0 | CR40: 0 | CS40: 0 | CT40: 0 | CU40: 0 | CV40: 0 | CW40: 0 | CX40: 0 | CY40: 0 | CZ40: 0 | DA40: 13.12168647 | DB40: 0 | DC40: 0 | DD40: 0 | DE40: 0 | DF40: 0 | DG40: 13.12168647 | DH40: 25849.72235 | DI40: 0 | DJ40: 13.12168647 | DK40: 13.12168647 | DL40: 13.12168647 | DM40: 13.12168647 | DN40: 26361.46812 | DO40: 52.48674588 | DP40: 0 | DQ40: 26400.83318 | DR40: 82.01054044 | DS40: 0 | DT40: 13.12168647 | DU40: 0 | DV40: 0 | DW40: 0 | DX40: 0 | DY40: 0 | DZ40: 0 | EA40: 13.12168647 | EB40: 0 | EC40: 0 | ED40: 0 | EE40: 13.12168647 | EF40: 0 | EG40: 0 | EH40: 0 | EI40: 13.12168647 | EJ40: 13.12168647 | EK40: 0 | EL40: 0 | EM40: 0.8529096206
A41: 4 | B41: Anwar and Cooray (2012) | C41: 1 | D41: 1 | E41: 0 | F41: 0 | G41: 0 | H41: 0.369003865 | I41: 0.083333333 | J41: 0.353120096 | K41: 0.077165173 | L41: 12.95921412 | M41: 4.57615894 | N41: 8 | O41: 39 | P41: 154 | Q41: 5.036952602 | R41: 1 | S41: 1 | AH41: 1 | AM41: 0 | AN41: 1 | AO41: 1970 | AQ41: 1 | AR41: 1 | AS41: 1 | AT41: 1 | AU41: 2009 | AV41: 6 | AW41: 0 | AX41: 2012 | AY41: 6.25 | BA41: 1 | BH41: 1 | BJ41: 1 | BL41: 1 | BP41: 1 | BQ41: 1 | BT41: 0.065 | BV41: 12.95921412 | BW41: 12.95921412 | BX41: 0 | BY41: 0 | BZ41: 0 | CA41: 4.782000098 | CB41: 1.079934506 | CC41: 4.576158934 | CD41: 0.9999999995 | CE41: 167.9412306 | CF41: 59.30342355 | CG41: 103.673713 | CH41: 505.4093507 | CI41: 1995.718974 | CJ41: 65.27494729 | CK41: 12.95921412 | CL41: 12.95921412 | CM41: 0 | CN41: 0 | CO41: 0 | CP41: 0 | CQ41: 0 | CR41: 0 | CS41: 0 | CT41: 0 | CU41: 0 | CV41: 0 | CW41: 0 | CX41: 0 | CY41: 0 | CZ41: 0 | DA41: =AH41*$L41 -> 12.95921412 | DB41: 0 | DC41: 0 | DD41: 0 | DE41: 0 | DF41: 0 | DG41: 12.95921412 | DH41: 25529.65182 | DI41: 0 | DJ41: 12.95921412 | DK41: 12.95921412 | DL41: 12.95921412 | DM41: 12.95921412 | DN41: 26035.06117 | DO41: 77.75528472 | DP41: 0 | DQ41: 26073.93881 | DR41: 80.99508825 | DS41: 0 | DT41: 12.95921412 | DU41: 0 | DV41: 0 | DW41: 0 | DX41: 0 | DY41: 0 | DZ41: 0 | EA41: 12.95921412 | EB41: 0 | EC41: 12.95921412 | ED41: 0 | EE41: 12.95921412 | EF41: 0 | EG41: 0 | EH41: 0 | EI41: =BP41*$L41 -> 12.95921412 | EJ41: 12.95921412 | EK41: 0 | EL41: 0 | EM41: 0.8423489178
A42: 4 | B42: Anwar and Cooray (2012) | C42: 1 | D42: 1 | E42: 0 | F42: 0 | G42: 0 | H42: 0.150846064 | I42: 0.088045091 | J42: 0.149712239 | K42: 0.086057867 | L42: 11.6200882 | M42: 1.739669421 | N42: 8 | O42: 39 | P42: 140 | Q42: 4.941642423 | R42: 1 | S42: 1 | AH42: 1 | AM42: 0 | AN42: 1 | AO42: 1970 | AQ42: 1 | AR42: 1 | AS42: 1 | AT42: 1 | AU42: 2009 | AV42: 7 | AW42: 0 | AX42: 2012 | AY42: 6.25 | BA42: 1 | BH42: 1 | BJ42: 1 | BL42: 1 | BP42: 1 | BQ42: 1 | BT42: 0.065 | BV42: 11.6200882 | BW42: 11.6200882 | BX42: 0 | BY42: 0 | BZ42: 0 | CA42: 1.752844568 | CB42: 1.023091723 | CC42: 1.739669422 | CD42: 1.000000005 | CE42: 135.0264498 | CF42: 20.21511211 | CG42: 92.9607056 | CH42: 453.1834398 | CI42: 1626.812348 | CJ42: 57.4223208 | CK42: 11.6200882 | CL42: 11.6200882 | CM42: 0 | CN42: 0 | CO42: 0 | CP42: 0 | CQ42: 0 | CR42: 0 | CS42: 0 | CT42: 0 | CU42: 0 | CV42: 0 | CW42: 0 | CX42: 0 | CY42: 0 | CZ42: 0 | DA42: 11.6200882 | DB42: 0 | DC42: 0 | DD42: 0 | DE42: 0 | DF42: 0 | DG42: 11.6200882 | DH42: 22891.57375 | DI42: 0 | DJ42: 11.6200882 | DK42: 11.6200882 | DL42: 11.6200882 | DM42: 11.6200882 | DN42: 23344.75719 | DO42: 81.3406174 | DP42: 0 | DQ42: 23379.61746 | DR42: 72.62555125 | DS42: 0 | DT42: 11.6200882 | DU42: 0 | DV42: 0 | DW42: 0 | DX42: 0 | DY42: 0 | DZ42: 0 | EA42: 11.6200882 | EB42: 0 | EC42: 11.6200882 | ED42: 0 | EE42: 11.6200882 | EF42: 0 | EG42: 0 | EH42: 0 | EI42: 11.6200882 | EJ42: 11.6200882 | EK42: 0 | EL42: 0 | EM42: 0.755305733
A43: 4 | B43: Anwar and Cooray (2012) | C43: 1 | D43: 1 | E43: 0 | F43: 0 | G43: 0 | H43: 0.168492957 | I43: 0.092057462 | J43: 0.16691636 | K43: 0.089633733 | L43: 11.15651408 | M43: 1.862204724 | N43: 8 | O43: 39 | P43: 133 | Q43: 4.890349128 | R43: 1 | S43: 1 | AH43: 1 | AM43: 0 | AN43: 1 | AO43: 1970 | AQ43: 1 | AR43: 1 | AS43: 1 | AT43: 1 | AU43: 2009 | AV43: 11 | AW43: 0 | AX43: 2012 | AY43: 6.25 | BA43: 1 | BH43: 1 | BI43: 1 | BJ43: 1 | BL43: 1 | BP43: 1 | BQ43: 1 | BT43: 0.065 | BV43: 11.15651408 | BW43: 11.15651408 | BX43: 0 | BY43: 0 | BZ43: 0 | CA43: 1.879794047 | CB43: 1.027040371 | CC43: 1.862204721 | CD43: 1.000000004 | CE43: 124.4678064 | CF43: 20.77571322 | CG43: 89.25211264 | CH43: 435.1040491 | CI43: 1483.816373 | CJ43: 54.55924891 | CK43: 11.15651408 | CL43: 11.15651408 | CM43: 0 | CN43: 0 | CO43: 0 | CP43: 0 | CQ43: 0 | CR43: 0 | CS43: 0 | CT43: 0 | CU43: 0 | CV43: 0 | CW43: 0 | CX43: 0 | CY43: 0 | CZ43: 0 | DA43: 11.15651408 | DB43: 0 | DC43: 0 | DD43: 0 | DE43: 0 | DF43: 0 | DG43: 11.15651408 | DH43: 21978.33274 | DI43: 0 | DJ43: 11.15651408 | DK43: 11.15651408 | DL43: 11.15651408 | DM43: 11.15651408 | DN43: 22413.43679 | DO43: 122.7216549 | DP43: 0 | DQ43: 22446.90633 | DR43: 69.728213 | DS43: 0 | DT43: 11.15651408 | DU43: 0 | DV43: 0 | DW43: 0 | DX43: 0 | DY43: 0 | DZ43: 0 | EA43: 11.15651408 | EB43: 11.15651408 | EC43: 11.15651408 | ED43: 0 | EE43: 11.15651408 | EF43: 0 | EG43: 0 | EH43: 0 | EI43: 11.15651408 | EJ43: 11.15651408 | EK43: 0 | EL43: 0 | EM43: 0.7251734152
A44: 4 | B44: Anwar and Cooray (2012) | C44: 1 | D44: 1 | E44: 0 | F44: 0 | G44: 0 | H44: 0.175527147 | I44: 0.092450033 | J44: 0.173746439 | K44: 0.089898655 | L44: 11.12363698 | M44: 1.932692308 | N44: 8 | O44: 39 | P44: 133 | Q44: 4.890349128 | R44: 1 | S44: 1 | AH44: 1 | AM44: 0 | AN44: 1 | AO44: 1970 | AQ44: 1 | AR44: 1 | AS44: 1 | AT44: 1 | AU44: 2009 | AV44: 12 | AW44: 0 | AX44: 2012 | AY44: 6.25 | BA44: 1 | BH44: 1 | BI44: 1 | BJ44: 1 | BL44: 1 | BN44: 1 | BP44: 1 | BQ44: 1 | BT44: 0.065 | BV44: 11.12363698 | BW44: 11.12363698 | BX44: 0 | BY44: 0 | BZ44: 0 | CA44: 1.952500263 | CB44: 1.028380606 | CC44: 1.932692314 | CD44: 1.000000003 | CE44: 123.7352997 | CF44: 21.49856763 | CG44: 88.98909584 | CH44: 433.8218422 | CI44: 1479.443718 | CJ44: 54.39846841 | CK44: 11.12363698 | CL44: 11.12363698 | CM44: 0 | CN44: 0 | CO44: 0 | CP44: 0 | CQ44: 0 | CR44: 0 | CS44: 0 | CT44: 0 | CU44: 0 | CV44: 0 | CW44: 0 | CX44: 0 | CY44: 0 | CZ44: 0 | DA44: 11.12363698 | DB44: 0 | DC44: 0 | DD44: 0 | DE44: 0 | DF44: 0 | DG44: 11.12363698 | DH44: 21913.56485 | DI44: 0 | DJ44: 11.12363698 | DK44: 11.12363698 | DL44: 11.12363698 | DM44: 11.12363698 | DN44: 22347.38669 | DO44: 133.4836438 | DP44: 0 | DQ44: 22380.7576 | DR44: 69.52273113 | DS44: 0 | DT44: 11.12363698 | DU44: 0 | DV44: 0 | DW44: 0 | DX44: 0 | DY44: 0 | DZ44: 0 | EA44: 11.12363698 | EB44: 11.12363698 | EC44: 11.12363698 | ED44: 0 | EE44: 11.12363698 | EF44: 0 | EG44: 11.12363698 | EH44: 0 | EI44: 11.12363698 | EJ44: 11.12363698 | EK44: 0 | EL44: 0 | EM44: 0.7230364037
A45: 4 | B45: Anwar and Cooray (2012) | C45: 1 | D45: 1 | E45: 0 | F45: 0 | G45: 0 | H45: 0.229436748 | I45: 0.077849894 | J45: 0.225493808 | K45: 0.075164603 | L45: 13.3041347 | M45: 3 | N45: 8 | O45: 39 | P45: 173 | Q45: 5.153291594 | R45: 1 | S45: 1 | AK45: 1 | AM45: 1 | AN45: 1 | AO45: 1970 | AQ45: 1 | AR45: 1 | AS45: 1 | AT45: 1 | AU45: 2009 | AV45: 4 | AW45: 1 | AX45: 2012 | AY45: 6.25 | BA45: 1 | BH45: 1 | BL45: 1 | BP45: 1 | BQ45: 1 | BT45: 0.065 | BV45: 13.3041347 | BW45: 13.3041347 | BX45: 0 | BY45: 0 | BZ45: 0 | CA45: 3.052457401 | CB45: 1.035725476 | CC45: 2.999999996 | CD45: 1.000000003 | CE45: 177.0000001 | CF45: 39.9124041 | CG45: 106.4330776 | CH45: 518.8612533 | CI45: 2301.615303 | CJ45: 68.56008552 | CK45: 13.3041347 | CL45: 13.3041347 | CM45: 0 | CN45: 0 | CO45: 0 | CP45: 0 | CQ45: 0 | CR45: 0 | CS45: 0 | CT45: 0 | CU45: 0 | CV45: 0 | CW45: 0 | CX45: 0 | CY45: 0 | CZ45: 0 | DA45: 0 | DB45: 0 | DC45: 0 | DD45: 13.3041347 | DE45: 0 | DF45: 13.3041347 | DG45: 13.3041347 | DH45: 26209.14536 | DI45: 0 | DJ45: 13.3041347 | DK45: 13.3041347 | DL45: 13.3041347 | DM45: 13.3041347 | DN45: 26728.00661 | DO45: 53.2165388 | DP45: 13.3041347 | DQ45: 26767.91902 | DR45: 83.15084187 | DS45: 0 | DT45: 13.3041347 | DU45: 0 | DV45: 0 | DW45: 0 | DX45: 0 | DY45: 0 | DZ45: 0 | EA45: 13.3041347 | EB45: 0 | EC45: 0 | ED45: 0 | EE45: 13.3041347 | EF45: 0 | EG45: 0 | EH45: 0 | EI45: 13.3041347 | EJ45: 13.3041347 | EK45: 0 | EL45: 0 | EM45: 0.8647687555
A46: 4 | B46: Anwar and Cooray (2012) | C46: 1 | D46: 1 | E46: 0 | F46: 0 | G46: 0 | H46: 0.204762649 | I46: 0.083333333 | J46: 0.201948098 | K46: 0.080779239 | L46: 12.3794184 | M46: 2.5 | N46: 8 | O46: 39 | P46: 154 | Q46: 5.036952602 | R46: 1 | S46: 1 | AK46: 1 | AM46: 1 | AN46: 1 | AO46: 1970 | AQ46: 1 | AR46: 1 | AS46: 1 | AT46: 1 | AU46: 2009 | AV46: 6 | AW46: 1 | AX46: 2012 | AY46: 6.25 | BA46: 1 | BH46: 1 | BJ46: 1 | BL46: 1 | BP46: 1 | BQ46: 1 | BT46: 0.065 | BV46: 12.3794184 | BW46: 12.3794184 | BX46: 0 | BY46: 0 | BZ46: 0 | CA46: 2.534842505 | CB46: 1.031618196 | CC46: 2.5 | CD46: 0.9999999976 | CE46: 153.2499999 | CF46: 30.948546 | CG46: 99.0353472 | CH46: 482.7973176 | CI46: 1906.430434 | CJ46: 62.35454373 | CK46: 12.3794184 | CL46: 12.3794184 | CM46: 0 | CN46: 0 | CO46: 0 | CP46: 0 | CQ46: 0 | CR46: 0 | CS46: 0 | CT46: 0 | CU46: 0 | CV46: 0 | CW46: 0 | CX46: 0 | CY46: 0 | CZ46: 0 | DA46: 0 | DB46: 0 | DC46: 0 | DD46: 12.3794184 | DE46: 0 | DF46: 12.3794184 | DG46: 12.3794184 | DH46: 24387.45425 | DI46: 0 | DJ46: 12.3794184 | DK46: 12.3794184 | DL46: 12.3794184 | DM46: 12.3794184 | DN46: 24870.25157 | DO46: 74.2765104 | DP46: 12.3794184 | DQ46: 24907.38982 | DR46: 77.371365 | DS46: 0 | DT46: 12.3794184 | DU46: 0 | DV46: 0 | DW46: 0 | DX46: 0 | DY46: 0 | DZ46: 0 | EA46: 12.3794184 | EB46: 0 | EC46: 12.3794184 | ED46: 0 | EE46: 12.3794184 | EF46: 0 | EG46: 0 | EH46: 0 | EI46: 12.3794184 | EJ46: 12.3794184 | EK46: 0 | EL46: 0 | EM46: 0.804662196
A47: 4 | B47: Anwar and Cooray (2012) | C47: 1 | D47: 1 | E47: 0 | F47: 0 | G47: 0 | H47: 0.198770206 | I47: 0.086710997 | J47: 0.196193149 | K47: 0.084082778 | L47: 11.89304185 | M47: 2.333333333 | N47: 8 | O47: 39 | P47: 144 | Q47: 4.9698133 | R47: 1 | S47: 1 | AK47: 1 | AM47: 1 | AN47: 1 | AO47: 1970 | AQ47: 1 | AR47: 1 | AS47: 1 | AT47: 1 | AU47: 2009 | AV47: 7 | AW47: 1 | AX47: 2012 | AY47: 6.25 | BA47: 1 | BH47: 1 | BJ47: 1 | BL47: 1 | BP47: 1 | BQ47: 1 | BT47: 0.065 | BV47: 11.89304185 | BW47: 11.89304185 | BX47: 0 | BY47: 0 | BZ47: 0 | CA47: 2.363982378 | CB47: 1.031257516 | CC47: 2.333333332 | CD47: 0.9999999976 | CE47: 141.4444444 | CF47: 27.75043098 | CG47: 95.1443348 | CH47: 463.8286321 | CI47: 1712.598026 | CJ47: 59.10619756 | CK47: 11.89304185 | CL47: 11.89304185 | CM47: 0 | CN47: 0 | CO47: 0 | CP47: 0 | CQ47: 0 | CR47: 0 | CS47: 0 | CT47: 0 | CU47: 0 | CV47: 0 | CW47: 0 | CX47: 0 | CY47: 0 | CZ47: 0 | DA47: 0 | DB47: 0 | DC47: 0 | DD47: 11.89304185 | DE47: 0 | DF47: 11.89304185 | DG47: 11.89304185 | DH47: 23429.29244 | DI47: 0 | DJ47: 11.89304185 | DK47: 11.89304185 | DL47: 11.89304185 | DM47: 11.89304185 | DN47: 23893.12108 | DO47: 83.25129295 | DP47: 11.89304185 | DQ47: 23928.8002 | DR47: 74.33151156 | DS47: 0 | DT47: 11.89304185 | DU47: 0 | DV47: 0 | DW47: 0 | DX47: 0 | DY47: 0 | DZ47: 0 | EA47: 11.89304185 | EB47: 0 | EC47: 11.89304185 | ED47: 0 | EE47: 11.89304185 | EF47: 0 | EG47: 0 | EH47: 0 | EI47: 11.89304185 | EJ47: 11.89304185 | EK47: 0 | EL47: 0 | EM47: 0.7730477203
A48: 4 | B48: Anwar and Cooray (2012) | C48: 1 | D48: 1 | E48: 0 | F48: 0 | G48: 0 | H48: 0.152133189 | I48: 0.090166963 | J48: 0.150970271 | K48: 0.088065992 | L48: 11.35512111 | M48: 1.714285714 | N48: 8 | O48: 39 | P48: 138 | Q48: 4.927253685 | R48: 1 | S48: 1 | AK48: 1 | AM48: 1 | AN48: 1 | AO48: 1970 | AQ48: 1 | AR48: 1 | AS48: 1 | AT48: 1 | AU48: 2009 | AV48: 11 | AW48: 1 | AX48: 2012 | AY48: 6.25 | BA48: 1 | BH48: 1 | BI48: 1 | BJ48: 1 | BL48: 1 | BP48: 1 | BQ48: 1 | BT48: 0.065 | BV48: 11.35512111 | BW48: 11.35512111 | BX48: 0 | BY48: 0 | BZ48: 0 | CA48: 1.727490786 | CB48: 1.023856785 | CC48: 1.714285711 | CD48: 1.000000005 | CE48: 128.9387754 | CF48: 19.4659219 | CG48: 90.84096888 | CH48: 442.8497233 | CI48: 1567.006713 | CJ48: 55.94956233 | CK48: 11.35512111 | CL48: 11.35512111 | CM48: 0 | CN48: 0 | CO48: 0 | CP48: 0 | CQ48: 0 | CR48: 0 | CS48: 0 | CT48: 0 | CU48: 0 | CV48: 0 | CW48: 0 | CX48: 0 | CY48: 0 | CZ48: 0 | DA48: 0 | DB48: 0 | DC48: 0 | DD48: 11.35512111 | DE48: 0 | DF48: 11.35512111 | DG48: 11.35512111 | DH48: 22369.58859 | DI48: 0 | DJ48: 11.35512111 | DK48: 11.35512111 | DL48: 11.35512111 | DM48: 11.35512111 | DN48: 22812.43831 | DO48: 124.9063322 | DP48: 11.35512111 | DQ48: 22846.50367 | DR48: 70.96950694 | DS48: 0 | DT48: 11.35512111 | DU48: 0 | DV48: 0 | DW48: 0 | DX48: 0 | DY48: 0 | DZ48: 0 | EA48: 11.35512111 | EB48: 11.35512111 | EC48: 11.35512111 | ED48: 0 | EE48: 11.35512111 | EF48: 0 | EG48: 0 | EH48: 0 | EI48: 11.35512111 | EJ48: 11.35512111 | EK48: 0 | EL48: 0 | EM48: 0.7380828722
A49: 4 | B49: Anwar and Cooray (2012) | C49: 1 | D49: 1 | E49: 0 | F49: 0 | G49: 0 | H49: 0.221784127 | I49: 0.090535746 | J49: 0.21821789 | K49: 0.087287156 | L49: 11.45643924 | M49: 2.5 | N49: 8 | O49: 39 | P49: 138 | Q49: 4.927253685 | R49: 1 | S49: 1 | AK49: 1 | AM49: 1 | AN49: 1 | AO49: 1970 | AQ49: 1 | AR49: 1 | AS49: 1 | AT49: 1 | AU49: 2009 | AV49: 12 | AW49: 1 | AX49: 2012 | AY49: 6.25 | BA49: 1 | BH49: 1 | BI49: 1 | BJ49: 1 | BL49: 1 | BN49: 1 | BP49: 1 | BQ49: 1 | BT49: 0.065 | BV49: 11.45643924 | BW49: 11.45643924 | BX49: 0 | BY49: 0 | BZ49: 0 | CA49: 2.540856375 | CB49: 1.037217273 | CC49: 2.499999998 | CD49: 0.9999999991 | CE49: 131.2500001 | CF49: 28.6410981 | CG49: 91.65151392 | CH49: 446.8011304 | CI49: 1580.988615 | CJ49: 56.44878246 | CK49: 11.45643924 | CL49: 11.45643924 | CM49: 0 | CN49: 0 | CO49: 0 | CP49: 0 | CQ49: 0 | CR49: 0 | CS49: 0 | CT49: 0 | CU49: 0 | CV49: 0 | CW49: 0 | CX49: 0 | CY49: 0 | CZ49: 0 | DA49: 0 | DB49: 0 | DC49: 0 | DD49: 11.45643924 | DE49: 0 | DF49: 11.45643924 | DG49: 11.45643924 | DH49: 22569.1853 | DI49: =AP49*$L49 -> 0 | DJ49: 11.45643924 | DK49: 11.45643924 | DL49: 11.45643924 | DM49: 11.45643924 | DN49: 23015.98643 | DO49: 137.4772709 | DP49: 11.45643924 | DQ49: 23050.35575 | DR49: 71.60274525 | DS49: 0 | DT49: 11.45643924 | DU49: 0 | DV49: 0 | DW49: 0 | DX49: 0 | DY49: 0 | DZ49: 0 | EA49: 11.45643924 | EB49: 11.45643924 | EC49: 11.45643924 | ED49: 0 | EE49: 11.45643924 | EF49: 0 | EG49: 11.45643924 | EH49: 0 | EI49: 11.45643924 | EJ49: 11.45643924 | EK49: 0 | EL49: 0 | EM49: 0.7446685506
A50: 5 | B50: Anwar and Sun (2011) | C50: 2 | D50: 0 | E50: 1 | F50: 0 | G50: 0 | H50: 0.181440788 | I50: 0.196116135 | J50: 0.179475606 | K50: 0.182680096 | L50: 5.474050112 | M50: 0.982458459 | N50: 1 | O50: 38 | P50: 38 | Q50: 3.63758616 | R50: 1 | U50: 1 | AJ50: 1 | AM50: 1 | AO50: 1970 | AQ50: 1 | AR50: 1 | AS50: 1 | AT50: 1 | AU50: 2007 | AV50: 8 | AW50: 1 | AX50: 2011 | AY50: 5.25 | AZ50: 1 | BH50: 1 | BJ50: 1 | BK50: 1 | BL50: 1 | BM50: 1 | BP50: 1 | BS50: 1 | BT50: 0.022 | BV50: 10.94810022 | BW50: 0 | BX50: 5.474050112 | BY50: 0 | BZ50: 0 | CA50: 0.9932159659 | CB50: 1.073549551 | CC50: 0.9824584611 | CD50: 1 | CE50: 29.96522463 | CF50: 5.378026838 | CG50: 5.474050112 | CH50: 208.0139043 | CI50: 208.0139043 | CJ50: 19.91232893 | CK50: 5.474050112 | CL50: 0 | CM50: 0 | CN50: 5.474050112 | CO50: 0 | CP50: 0 | CQ50: 0 | CR50: 0 | CS50: 0 | CT50: 0 | CU50: 0 | CV50: 0 | CW50: 0 | CX50: 0 | CY50: 0 | CZ50: 0 | DA50: 0 | DB50: 0 | DC50: 5.474050112 | DD50: 0 | DE50: 0 | DF50: 5.474050112 | DG50: =AN50*$L50 -> 0 | DH50: 10783.87872 | DI50: 0 | DJ50: 5.474050112 | DK50: 5.474050112 | DL50: 5.474050112 | DM50: 5.474050112 | DN50: 10986.41857 | DO50: 43.7924009 | DP50: 5.474050112 | DQ50: 11008.31478 | DR50: 28.73876309 | DS50: 5.474050112 | DT50: 0 | DU50: 0 | DV50: 0 | DW50: 0 | DX50: 0 | DY50: 0 | DZ50: 0 | EA50: 5.474050112 | EB50: 0 | EC50: 5.474050112 | ED50: 5.474050112 | EE50: 5.474050112 | EF50: 5.474050112 | EG50: 0 | EH50: 0 | EI50: 5.474050112 | EJ50: 0 | EK50: 0 | EL50: 5.474050112 | EM50: 0.1204291025
A51: 6 | B51: Apergis et al. (2007) | C51: 1 | D51: 1 | E51: 0 | F51: 0 | G51: 0 | H51: 0.235618468 | I51: 0.051231552 | J51: 0.231352962 | K51: 0.049646558 | L51: 20.14238318 | M51: 4.66 | N51: 15 | O51: 26 | P51: 390 | Q51: 5.966146739 | R51: 1 | S51: 1 | AF51: 1 | AM51: 0 | AN51: 1 | AO51: 1975 | AQ51: 1 | AR51: 1 | AS51: 1 | AU51: 2000 | AV51: 5 | AW51: 1 | AX51: 2007 | AY51: 1.25 | BB51: 1 | BC51: 1 | BG51: 1 | BH51: 1 | BJ51: 1 | BL51: 1 | BM51: 1 | BP51: 0 | BQ51: 1 | BT51: 0.142 | BV51: 20.14238318 | BW51: 20.14238318 | BX51: 0 | BY51: 0 | BZ51: 0 | CA51: 4.745917467 | CB51: 1.031925551 | CC51: 4.66000001 | CD51: 0.9999999948 | CE51: 405.7156002 | CF51: 93.86350562 | CG51: 302.1357477 | CH51: 523.7019627 | CI51: 7855.52944 | CJ51: 120.1724137 | CK51: 20.14238318 | CL51: 20.14238318 | CM51: 0 | CN51: 0 | CO51: 0 | CP51: 0 | CQ51: 0 | CR51: 0 | CS51: 0 | CT51: 0 | CU51: 0 | CV51: 0 | CW51: 0 | CX51: 0 | CY51: 20.14238318 | CZ51: 0 | DA51: 0 | DB51: 0 | DC51: 0 | DD51: 0 | DE51: 0 | DF51: 0 | DG51: 20.14238318 | DH51: 39781.20678 | DI51: 0 | DJ51: 20.14238318 | DK51: 20.14238318 | DL51: 20.14238318 | DM51: 0 | DN51: 40284.76636 | DO51: 100.7119159 | DP51: 20.14238318 | DQ51: 40425.76304 | DR51: 25.17797897 | DS51: 0 | DT51: 0 | DU51: 20.14238318 | DV51: 20.14238318 | DW51: 0 | DX51: 0 | DY51: 0 | DZ51: 20.14238318 | EA51: 20.14238318 | EB51: 0 | EC51: 20.14238318 | ED51: 0 | EE51: 20.14238318 | EF51: 20.14238318 | EG51: 0 | EH51: 0 | EI51: 0 | EJ51: 20.14238318 | EK51: 0 | EL51: 0 | EM51: 2.860218412
A52: 6 | B52: Apergis et al. (2007) | C52: 1 | D52: 1 | E52: 0 | F52: 0 | G52: 0 | H52: 0.154518733 | I52: 0.051231552 | J52: 0.153300601 | K52: 0.050427829 | L52: 19.83032022 | M52: 3.04 | N52: 15 | O52: 26 | P52: 390 | Q52: 5.966146739 | R52: 1 | T52: 1 | AF52: 1 | AM52: 0 | AN52: 1 | AO52: 1975 | AQ52: 1 | AR52: 1 | AS52: 1 | AU52: 2000 | AV52: 5 | AW52: 1 | AX52: 2007 | AY52: 1.25 | BB52: 1 | BC52: 1 | BG52: 1 | BH52: 1 | BJ52: 1 | BL52: 1 | BM52: 1 | BP52: 0 | BQ52: 1 | BT52: 0.142 | BV52: 19.83032022 | BW52: 19.83032022 | BX52: 0 | BY52: 0 | BZ52: 0 | CA52: 3.064155955 | CB52: 1.015938082 | CC52: 3.040000008 | CD52: 0.9999999971 | CE52: 393.2416 | CF52: 60.28417347 | CG52: 297.4548033 | CH52: 515.5883257 | CI52: 7733.824886 | CJ52: 118.3106003 | CK52: 19.83032022 | CL52: 0 | CM52: 19.83032022 | CN52: 0 | CO52: 0 | CP52: 0 | CQ52: 0 | CR52: 0 | CS52: 0 | CT52: 0 | CU52: 0 | CV52: 0 | CW52: 0 | CX52: 0 | CY52: 19.83032022 | CZ52: 0 | DA52: 0 | DB52: 0 | DC52: 0 | DD52: 0 | DE52: 0 | DF52: 0 | DG52: 19.83032022 | DH52: 39164.88243 | DI52: 0 | DJ52: 19.83032022 | DK52: 19.83032022 | DL52: 19.83032022 | DM52: 0 | DN52: 39660.64044 | DO52: 99.1516011 | DP52: 19.83032022 | DQ52: 39799.45268 | DR52: 24.78790028 | DS52: 0 | DT52: 0 | DU52: 19.83032022 | DV52: 19.83032022 | DW52: 0 | DX52: 0 | DY52: 0 | DZ52: 19.83032022 | EA52: 19.83032022 | EB52: 0 | EC52: 19.83032022 | ED52: 0 | EE52: 19.83032022 | EF52: 19.83032022 | EG52: 0 | EH52: 0 | EI52: 0 | EJ52: 19.83032022 | EK52: 0 | EL52: 0 | EM52: 2.815905471
A53: 6 | B53: Apergis et al. (2007) | C53: 1 | D53: 1 | E53: 0 | F53: 0 | G53: 0 | H53: 0.199231335 | I53: 0.051231552 | J53: 0.196636489 | K53: 0.05003473 | L53: 19.98611768 | M53: 3.93 | N53: 15 | O53: 26 | P53: 390 | Q53: 5.966146739 | R53: 1 | U53: 1 | AF53: 1 | AM53: 0 | AN53: 1 | AO53: 1975 | AQ53: 1 | AR53: 1 | AS53: 1 | AU53: 2000 | AV53: 5 | AW53: 1 | AX53: 2007 | AY53: 1.25 | BB53: 1 | BC53: 1 | BG53: 1 | BH53: 1 | BJ53: 1 | BL53: 1 | BM53: 1 | BP53: 0 | BQ53: 1 | BT53: 0.142 | BV53: 19.98611768 | BW53: 19.98611768 | BX53: 0 | BY53: 0 | BZ53: 0 | CA53: 3.981860907 | CB53: 1.023919827 | CC53: 3.930000009 | CD53: 1.000000002 | CE53: 399.4448999 | CF53: 78.54544248 | CG53: 299.7917652 | CH53: 519.6390597 | CI53: 7794.585895 | CJ53: 119.2401108 | CK53: 19.98611768 | CL53: 0 | CM53: 0 | CN53: 19.98611768 | CO53: 0 | CP53: 0 | CQ53: 0 | CR53: 0 | CS53: 0 | CT53: 0 | CU53: 0 | CV53: 0 | CW53: 0 | CX53: 0 | CY53: 19.98611768 | CZ53: 0 | DA53: 0 | DB53: 0 | DC53: 0 | DD53: 0 | DE53: 0 | DF53: 0 | DG53: 19.98611768 | DH53: 39472.58242 | DI53: 0 | DJ53: 19.98611768 | DK53: 19.98611768 | DL53: 19.98611768 | DM53: 0 | DN53: 39972.23536 | DO53: 99.9305884 | DP53: 19.98611768 | DQ53: 40112.13818 | DR53: 24.9826471 | DS53: 0 | DT53: 0 | DU53: 19.98611768 | DV53: 19.98611768 | DW53: 0 | DX53: 0 | DY53: 0 | DZ53: 19.98611768 | EA53: 19.98611768 | EB53: 0 | EC53: 19.98611768 | ED53: 0 | EE53: 19.98611768 | EF53: 19.98611768 | EG53: 0 | EH53: 0 | EI53: 0 | EJ53: 19.98611768 | EK53: 0 | EL53: 0 | EM53: 2.838028711
A54: 6 | B54: Apergis et al. (2007) | C54: 1 | D54: 1 | E54: 0 | F54: 0 | G54: 0 | H54: 0.104059236 | I54: 0.027831517 | J54: 0.10368526 | K54: 0.027649403 | L54: 36.16714669 | M54: 3.75 | N54: 50 | O54: 26 | P54: 1300 | Q54: 7.170119543 | R54: 1 | S54: 1 | AF54: 1 | AM54: 0 | AN54: 1 | AO54: 1975 | AQ54: 1 | AR54: 1 | AS54: 1 | AU54: 2000 | AV54: 5 | AW54: 1 | AX54: 2007 | AY54: 1.25 | AZ54: 1 | BA54: 1 | BD54: 1 | BE54: 1 | BF54: 1 | BH54: 1 | BJ54: 1 | BL54: 1 | BM54: 1 | BP54: 0 | BQ54: 1 | BT54: 0.142 | BV54: 36.16714669 | BW54: 36.16714669 | BX54: 0 | BY54: 0 | BZ54: 0 | CA54: 3.763525653 | CB54: 1.006586558 | CC54: 3.750000008 | CD54: =K54*$L54 -> 1.000000014 | CE54: 1308.0625 | CF54: 135.6268001 | CG54: 1808.357335 | CH54: 940.3458139 | CI54: 47017.2907 | CJ54: 259.3227653 | CK54: 36.16714669 | CL54: 36.16714669 | CM54: =T54*$L54 -> 0 | CN54: 0 | CO54: 0 | CP54: 0 | CQ54: 0 | CR54: 0 | CS54: 0 | CT54: 0 | CU54: 0 | CV54: 0 | CW54: 0 | CX54: 0 | CY54: 36.16714669 | CZ54: 0 | DA54: 0 | DB54: 0 | DC54: 0 | DD54: 0 | DE54: 0 | DF54: 0 | DG54: 36.16714669 | DH54: 71430.11471 | DI54: 0 | DJ54: 36.16714669 | DK54: 36.16714669 | DL54: 36.16714669 | DM54: 0 | DN54: 72334.29338 | DO54: 180.8357335 | DP54: 36.16714669 | DQ54: 72587.46341 | DR54: 45.20893336 | DS54: 36.16714669 | DT54: 36.16714669 | DU54: =BB54*$L54 -> 0 | DV54: 0 | DW54: 36.16714669 | DX54: 36.16714669 | DY54: 36.16714669 | DZ54: 0 | EA54: 36.16714669 | EB54: 0 | EC54: 36.16714669 | ED54: 0 | EE54: 36.16714669 | EF54: 36.16714669 | EG54: 0 | EH54: 0 | EI54: 0 | EJ54: 36.16714669 | EK54: 0 | EL54: 0 | EM54: 5.13573483
A55: 6 | B55: Apergis et al. (2007) | C55: 1 | D55: 1 | E55: 0 | F55: 0 | G55: 0 | H55: 0.114283917 | I55: 0.027831517 | J55: 0.113788955 | K55: 0.027618678 | L55: 36.20738046 | M55: 4.12 | N55: 50 | O55: 26 | P55: 1300 | Q55: 7.170119543 | R55: 1 | T55: 1 | AF55: 1 | AM55: 0 | AN55: 1 | AO55: 1975 | AQ55: 1 | AR55: 1 | AS55: 1 | AU55: 2000 | AV55: 5 | AW55: 1 | AX55: 2007 | AY55: 1.25 | AZ55: 1 | BA55: 1 | BD55: 1 | BE55: 1 | BF55: 1 | BH55: 1 | BJ55: 1 | BL55: 1 | BM55: 1 | BP55: 0 | BQ55: 1 | BT55: 0.142 | BV55: 36.20738046 | BW55: 36.20738046 | BX55: 0 | BY55: 0 | BZ55: 0 | CA55: =H55*$L55 -> 4.137921263 | CB55: 1.007706325 | CC55: 4.119999986 | CD55: 0.9999999821 | CE55: 1310.9744 | CF55: 149.1744075 | CG55: 1810.369023 | CH55: 941.391892 | CI55: 47069.5946 | CJ55: 259.6112463 | CK55: =R55*$L55 -> 36.20738046 | CL55: 0 | CM55: 36.20738046 | CN55: 0 | CO55: 0 | CP55: 0 | CQ55: 0 | CR55: 0 | CS55: 0 | CT55: 0 | CU55: 0 | CV55: 0 | CW55: 0 | CX55: 0 | CY55: 36.20738046 | CZ55: 0 | DA55: 0 | DB55: 0 | DC55: 0 | DD55: 0 | DE55: 0 | DF55: 0 | DG55: 36.20738046 | DH55: 71509.57641 | DI55: 0 | DJ55: 36.20738046 | DK55: 36.20738046 | DL55: 36.20738046 | DM55: 0 | DN55: 72414.76092 | DO55: 181.0369023 | DP55: 36.20738046 | DQ55: 72668.21258 | DR55: 45.25922558 | DS55: =AZ55*$L55 -> 36.20738046 | DT55: 36.20738046 | DU55: 0 | DV55: 0 | DW55: 36.20738046 | DX55: 36.20738046 | DY55: 36.20738046 | DZ55: 0 | EA55: 36.20738046 | EB55: 0 | EC55: 36.20738046 | ED55: 0 | EE55: 36.20738046 | EF55: 36.20738046 | EG55: 0 | EH55: 0 | EI55: 0 | EJ55: 36.20738046 | EK55: 0 | EL55: 0 | EM55: 5.141448025
A56: 6 | B56: Apergis et al. (2007) | C56: 1 | D56: 1 | E56: 0 | F56: 0 | G56: 0 | H56: 0.108205743 | I56: 0.027831517 | J56: 0.107785403 | K56: 0.027637283 | L56: 36.18300706 | M56: 3.9 | N56: 50 | O56: 26 | P56: 1300 | Q56: 7.170119543 | R56: 1 | U56: 1 | AF56: 1 | AM56: 0 | AN56: 1 | AO56: 1975 | AQ56: 1 | AR56: 1 | AS56: 1 | AU56: 2000 | AV56: 5 | AW56: 1 | AX56: 2007 | AY56: 1.25 | AZ56: 1 | BA56: 1 | BD56: 1 | BE56: 1 | BF56: 1 | BH56: 1 | BJ56: 1 | BL56: 1 | BM56: 1 | BP56: 0 | BQ56: 1 | BT56: 0.142 | BV56: 36.18300706 | BW56: 36.18300706 | BX56: 0 | BY56: 0 | BZ56: 0 | CA56: 3.915209163 | CB56: 1.007027976 | CC56: 3.899999998 | CD56: 1.000000006 | CE56: 1309.21 | CF56: 141.1137275 | CG56: 1809.150353 | CH56: 940.7581836 | CI56: 47037.90918 | CJ56: 259.4364861 | CK56: 36.18300706 | CL56: 0 | CM56: 0 | CN56: 36.18300706 | CO56: 0 | CP56: 0 | CQ56: 0 | CR56: 0 | CS56: 0 | CT56: 0 | CU56: 0 | CV56: 0 | CW56: 0 | CX56: 0 | CY56: 36.18300706 | CZ56: 0 | DA56: 0 | DB56: 0 | DC56: 0 | DD56: 0 | DE56: 0 | DF56: 0 | DG56: 36.18300706 | DH56: 71461.43894 | DI56: 0 | DJ56: 36.18300706 | DK56: 36.18300706 | DL56: 36.18300706 | DM56: 0 | DN56: 72366.01412 | DO56: 180.9150353 | DP56: 36.18300706 | DQ56: 72619.29517 | DR56: 45.22875882 | DS56: 36.18300706 | DT56: 36.18300706 | DU56: 0 | DV56: 0 | DW56: 36.18300706 | DX56: 36.18300706 | DY56: 36.18300706 | DZ56: 0 | EA56: 36.18300706 | EB56: 0 | EC56: 36.18300706 | ED56: 0 | EE56: 36.18300706 | EF56: 36.18300706 | EG56: 0 | EH56: 0 | EI56: 0 | EJ56: 36.18300706 | EK56: 0 | EL56: 0 | EM56: 5.137987003
A57: 6 | B57: Apergis et al. (2007) | C57: 1 | D57: 1 | E57: 0 | F57: 0 | G57: 0 | H57: 0.088099992 | I57: 0.024390244 | J57: 0.087872765 | K57: 0.024274244 | L57: 41.19592698 | M57: 3.62 | N57: 65 | O57: 26 | P57: 1690 | Q57: 7.432483808 | R57: 1 | S57: 1 | AF57: 1 | AM57: 0 | AN57: 0 | AO57: 1975 | AQ57: 1 | AR57: 1 | AS57: 1 | AU57: 2000 | AV57: 5 | AW57: 1 | AX57: 2007 | AY57: 1.25 | AZ57: 1 | BA57: 1 | BB57: 1 | BC57: 1 | BD57: 1 | BE57: 1 | BF57: 1 | BG57: 1 | BH57: 1 | BJ57: 1 | BL57: 1 | BM57: 1 | BP57: 0 | BQ57: 1 | BT57: 0.142 | BV57: 41.19592698 | BW57: 41.19592698 | BX57: 0 | BY57: 0 | BZ57: 0 | CA57: 3.629360837 | CB57: 1.004778711 | CC57: 3.62000001 | CD57: 0.9999999833 | CE57: 1697.1044 | CF57: 149.1292557 | CG57: 2677.735254 | CH57: 1071.094101 | CI57: 69621.1166 | CJ57: 306.1880602 | CK57: 41.19592698 | CL57: 41.19592698 | CM57: 0 | CN57: 0 | CO57: 0 | CP57: 0 | CQ57: 0 | CR57: 0 | CS57: 0 | CT57: 0 | CU57: 0 | CV57: 0 | CW57: 0 | CX57: 0 | CY57: 41.19592698 | CZ57: 0 | DA57: 0 | DB57: 0 | DC57: 0 | DD57: 0 | DE57: 0 | DF57: 0 | DG57: 0 | DH57: 81361.95579 | DI57: 0 | DJ57: 41.19592698 | DK57: 41.19592698 | DL57: 41.19592698 | DM57: 0 | DN57: 82391.85396 | DO57: 205.9796349 | DP57: 41.19592698 | DQ57: 82680.22545 | DR57: 51.49490873 | DS57: 41.19592698 | DT57: 41.19592698 | DU57: 41.19592698 | DV57: 41.19592698 | DW57: 41.19592698 | DX57: 41.19592698 | DY57: 41.19592698 | DZ57: 41.19592698 | EA57: 41.19592698 | EB57: 0 | EC57: 41.19592698 | ED57: 0 | EE57: 41.19592698 | EF57: 41.19592698 | EG57: 0 | EH57: 0 | EI57: 0 | EJ57: 41.19592698 | EK57: 0 | EL57: 0 | EM57: 5.849821631
A58: 6 | B58: Apergis et al. (2007) | C58: 1 | D58: 1 | E58: 0 | F58: 0 | G58: 0 | H58: 0.100472815 | I58: 0.024390244 | J58: 0.10013609 | K58: 0.024246027 | L58: 41.24387106 | M58: 4.13 | N58: 65 | O58: 26 | P58: 1690 | Q58: 7.432483808 | R58: 1 | T58: 1 | AF58: 1 | AM58: 0 | AN58: 0 | AO58: 1975 | AQ58: 1 | AR58: 1 | AS58: 1 | AU58: 2000 | AV58: 5 | AW58: 1 | AX58: 2007 | AY58: 1.25 | AZ58: 1 | BA58: 1 | BB58: 1 | BC58: 1 | BD58: 1 | BE58: 1 | BF58: 1 | BG58: 1 | BH58: 1 | BJ58: 1 | BL58: 1 | BM58: 1 | BP58: 0 | BQ58: 1 | BT58: 0.142 | BV58: 41.24387106 | BW58: 41.24387106 | BX58: 0 | BY58: 0 | BZ58: 0 | CA58: 4.143887827 | CB58: 1.005948079 | CC58: 4.129999984 | CD58: 1.000000011 | CE58: 1701.0569 | CF58: 170.3371875 | CG58: 2680.851619 | CH58: 1072.340648 | CI58: 69702.14209 | CJ58: 306.5444038 | CK58: 41.24387106 | CL58: 0 | CM58: 41.24387106 | CN58: 0 | CO58: 0 | CP58: 0 | CQ58: 0 | CR58: 0 | CS58: 0 | CT58: 0 | CU58: 0 | CV58: 0 | CW58: 0 | CX58: 0 | CY58: 41.24387106 | CZ58: 0 | DA58: 0 | DB58: 0 | DC58: 0 | DD58: 0 | DE58: 0 | DF58: 0 | DG58: 0 | DH58: 81456.64534 | DI58: 0 | DJ58: 41.24387106 | DK58: 41.24387106 | DL58: 41.24387106 | DM58: 0 | DN58: 82487.74212 | DO58: 206.2193553 | DP58: 41.24387106 | DQ58: 82776.44922 | DR58: 51.55483882 | DS58: 41.24387106 | DT58: 41.24387106 | DU58: 41.24387106 | DV58: 41.24387106 | DW58: 41.24387106 | DX58: 41.24387106 | DY58: 41.24387106 | DZ58: 41.24387106 | EA58: 41.24387106 | EB58: 0 | EC58: 41.24387106 | ED58: 0 | EE58: 41.24387106 | EF58: 41.24387106 | EG58: 0 | EH58: 0 | EI58: 0 | EJ58: 41.24387106 | EK58: 0 | EL58: 0 | EM58: 5.856629691
A59: 6 | B59: Apergis et al. (2007) | C59: 1 | D59: 1 | E59: 0 | F59: 0 | G59: 0 | H59: 0.174565323 | I59: 0.024390244 | J59: 0.172813494 | K59: 0.024001874 | L59: 41.66341321 | M59: 7.2 | N59: 65 | O59: 26 | P59: 1690 | Q59: 7.432483808 | R59: 1 | U59: 1 | AF59: 1 | AM59: 0 | AN59: 0 | AO59: 1975 | AQ59: 1 | AR59: 1 | AS59: 1 | AU59: 2000 | AV59: 5 | AW59: 1 | AX59: 2007 | AY59: 1.25 | AZ59: 1 | BA59: 1 | BB59: 1 | BC59: 1 | BD59: 1 | BE59: 1 | BF59: 1 | BG59: 1 | BH59: 1 | BJ59: 1 | BL59: 1 | BM59: 1 | BP59: 0 | BQ59: 1 | BT59: 0.142 | BV59: 41.66341321 | BW59: 41.66341321 | BX59: 0 | BY59: 0 | BZ59: 0 | CA59: 7.272987184 | CB59: 1.016180814 | CC59: 7.200000009 | CD59: 0.9999999943 | CE59: 1735.84 | CF59: 299.9765751 | CG59: 2708.121859 | CH59: 1083.248743 | CI59: 70411.16832 | CJ59: 309.6626441 | CK59: 41.66341321 | CL59: 0 | CM59: 0 | CN59: 41.66341321 | CO59: 0 | CP59: 0 | CQ59: 0 | CR59: 0 | CS59: 0 | CT59: 0 | CU59: 0 | CV59: 0 | CW59: 0 | CX59: 0 | CY59: 41.66341321 | CZ59: 0 | DA59: 0 | DB59: 0 | DC59: 0 | DD59: 0 | DE59: 0 | DF59: 0 | DG59: 0 | DH59: 82285.24109 | DI59: 0 | DJ59: 41.66341321 | DK59: 41.66341321 | DL59: 41.66341321 | DM59: 0 | DN59: 83326.82642 | DO59: 208.317066 | DP59: 41.66341321 | DQ59: 83618.47031 | DR59: 52.07926651 | DS59: 41.66341321 | DT59: 41.66341321 | DU59: 41.66341321 | DV59: 41.66341321 | DW59: 41.66341321 | DX59: 41.66341321 | DY59: 41.66341321 | DZ59: 41.66341321 | EA59: 41.66341321 | EB59: 0 | EC59: 41.66341321 | ED59: 0 | EE59: 41.66341321 | EF59: 41.66341321 | EG59: 0 | EH59: 0 | EI59: 0 | EJ59: 41.66341321 | EK59: 0 | EL59: 0 | EM59: 5.916204676
A60: 7 | B60: Atje and Jovanovic (1993) | C60: 2 | D60: 0 | E60: 1 | F60: 0 | G60: 0 | H60: 0.028456658 | I60: 0.107211253 | J60: 0.028448979 | K60: 0.105366591 | L60: 9.49067437 | M60: 0.27 | N60: 94 | O60: 1 | P60: 94 | Q60: 4.543294782 | R60: 19 | U60: 1 | AE60: 1 | AM60: 0 | AN60: 0 | AO60: 1970 | AQ60: 1 | AR60: 1 | AU60: 1988 | AV60: 3 | AW60: 1 | AX60: 1993 | AY60: -12.75 | AZ60: 1 | BA60: 1 | BB60: 1 | BC60: 1 | BD60: 1 | BE60: 1 | BF60: 1 | BG60: 1 | BK60: 1 | BM60: 1 | BP60: 0 | BR60: 1 | BT60: 0.725 | BV60: 18.98134874 | BW60: 0 | BX60: 9.49067437 | BY60: 0 | BZ60: 0 | CA60: 0.2700728747 | CB60: 1.017507091 | CC60: 0.2699999958 | CD60: 1.000000005 | CE60: 90.0729 | CF60: 2.56248208 | CG60: 892.1233908 | CH60: 9.49067437 | CI60: 892.1233908 | CJ60: 43.11893135 | CK60: 180.322813 | CL60: 0 | CM60: 0 | CN60: 9.49067437 | CO60: 0 | CP60: 0 | CQ60: 0 | CR60: 0 | CS60: 0 | CT60: 0 | CU60: 0 | CV60: 0 | CW60: 0 | CX60: 9.49067437 | CY60: 0 | CZ60: 0 | DA60: 0 | DB60: 0 | DC60: 0 | DD60: 0 | DE60: 0 | DF60: 0 | DG60: 0 | DH60: 18696.62851 | DI60: 0 | DJ60: 9.49067437 | DK60: 9.49067437 | DL60: 0 | DM60: 0 | DN60: 18867.46065 | DO60: 28.47202311 | DP60: 9.49067437 | DQ60: 18914.91402 | DR60: -121.0060982 | DS60: 9.49067437 | DT60: 9.49067437 | DU60: 9.49067437 | DV60: 9.49067437 | DW60: 9.49067437 | DX60: 9.49067437 | DY60: 9.49067437 | DZ60: 9.49067437 | EA60: 0 | EB60: 0 | EC60: 0 | ED60: 9.49067437 | EE60: 0 | EF60: 9.49067437 | EG60: 0 | EH60: 0 | EI60: 0 | EJ60: 0 | EK60: 9.49067437 | EL60: 0 | EM60: 6.880738918
A61: 7 | B61: Atje and Jovanovic (1993) | C61: 2 | D61: 0 | E61: 1 | F61: 0 | G61: 0 | H61: 0.372959933 | I61: 0.174077656 | J61: 0.356578018 | K61: 0.155710925 | L61: 6.422156959 | M61: 2.29 | N61: 40 | O61: 1 | P61: 40 | Q61: 3.688879454 | R61: 9 | Y61: 1 | AE61: 1 | AM61: 0 | AN61: 0 | AO61: 1980 | AR61: 1 | AU61: 1988 | AV61: 3 | AW61: 1 | AX61: 1993 | AY61: -12.75 | AZ61: 1 | BA61: 1 | BB61: 1 | BC61: 1 | BD61: 1 | BE61: 1 | BF61: 1 | BG61: 1 | BK61: 1 | BM61: 1 | BP61: 0 | BR61: 1 | BT61: 0.725 | BV61: 12.84431392 | BW61: 0 | BX61: 6.422156959 | BY61: 0 | BZ61: 0 | CA61: 2.395207229 | CB61: 1.11795403 | CC61: 2.29 | CD61: 1.000000001 | CE61: 41.24410001 | CF61: 14.70673944 | CG61: 256.8862784 | CH61: 6.422156959 | CI61: 256.8862784 | CJ61: 23.69056286 | CK61: 57.79941263 | CL61: 0 | CM61: 0 | CN61: 0 | CO61: 0 | CP61: 0 | CQ61: 0 | CR61: 6.422156959 | CS61: 0 | CT61: 0 | CU61: 0 | CV61: 0 | CW61: 0 | CX61: 6.422156959 | CY61: 0 | CZ61: 0 | DA61: 0 | DB61: 0 | DC61: 0 | DD61: 0 | DE61: 0 | DF61: 0 | DG61: 0 | DH61: 12715.87078 | DI61: 0 | DJ61: 0 | DK61: 6.422156959 | DL61: 0 | DM61: 0 | DN61: 12767.24803 | DO61: 19.26647088 | DP61: 6.422156959 | DQ61: 12799.35882 | DR61: -81.88250123 | DS61: 6.422156959 | DT61: 6.422156959 | DU61: 6.422156959 | DV61: 6.422156959 | DW61: 6.422156959 | DX61: 6.422156959 | DY61: 6.422156959 | DZ61: 6.422156959 | EA61: 0 | EB61: 0 | EC61: 0 | ED61: 6.422156959 | EE61: 0 | EF61: 6.422156959 | EG61: 0 | EH61: 0 | EI61: 0 | EJ61: 0 | EK61: 6.422156959 | EL61: 0 | EM61: 4.656063795
A62: 7 | B62: Atje and Jovanovic (1993) | C62: 2 | D62: 0 | E62: 1 | F62: 0 | G62: 0 | H62: 0.363790394 | I62: 0.176776695 | J62: 0.348548338 | K62: 0.158431063 | L62: 6.311893535 | M62: 2.2 | N62: 40 | O62: 1 | P62: 40 | Q62: 3.688879454 | R62: 9 | Y62: 1 | AE62: 1 | AM62: 0 | AN62: 0 | AO62: 1980 | AR62: 1 | AU62: 1988 | AV62: 4 | AW62: 1 | AX62: 1993 | AY62: -12.75 | AZ62: 1 | BA62: 1 | BB62: 1 | BC62: 1 | BD62: 1 | BE62: 1 | BF62: 1 | BG62: 1 | BK62: 1 | BM62: 1 | BP62: 0 | BR62: 1 | BT62: 0.725 | BV62: 12.62378707 | BW62: 0 | BX62: 6.311893535 | BY62: 0 | BZ62: 0 | CA62: 2.296206236 | CB62: 1.115795678 | CC62: 2.200000001 | CD62: 1.000000002 | CE62: 39.84 | CF62: 13.88616578 | CG62: 252.4757414 | CH62: 6.311893535 | CI62: 252.4757414 | CJ62: 23.28381438 | CK62: 56.80704182 | CL62: 0 | CM62: 0 | CN62: 0 | CO62: 0 | CP62: 0 | CQ62: 0 | CR62: 6.311893535 | CS62: 0 | CT62: 0 | CU62: 0 | CV62: 0 | CW62: 0 | CX62: 6.311893535 | CY62: 0 | CZ62: 0 | DA62: 0 | DB62: 0 | DC62: 0 | DD62: 0 | DE62: 0 | DF62: 0 | DG62: 0 | DH62: 12497.5492 | DI62: 0 | DJ62: 0 | DK62: 6.311893535 | DL62: 0 | DM62: 0 | DN62: 12548.04435 | DO62: 25.24757414 | DP62: 6.311893535 | DQ62: 12579.60382 | DR62: -80.47664257 | DS62: 6.311893535 | DT62: 6.311893535 | DU62: 6.311893535 | DV62: 6.311893535 | DW62: 6.311893535 | DX62: 6.311893535 | DY62: 6.311893535 | DZ62: 6.311893535 | EA62: 0 | EB62: 0 | EC62: 0 | ED62: 6.311893535 | EE62: 0 | EF62: 6.311893535 | EG62: 0 | EH62: 0 | EI62: 0 | EJ62: 0 | EK62: 6.311893535 | EL62: 0 | EM62: 4.576122813
A63: 8 | B63: Bangake and Eggoh (2011) | C63: 3 | D63: 0 | E63: 0 | F63: 1 | G63: 0 | H63: 0.389261389 | I63: 0.018361765 | J63: 0.370723303 | K63: 0.01704475 | L63: 58.66909323 | M63: 21.75 | N63: 71 | O63: 45 | P63: 2982 | Q63: 8.000349495 | R63: 1 | S63: 1 | AF63: 1 | AM63: 0 | AO63: 1960 | AP63: 1 | AQ63: 1 | AR63: 1 | AS63: 1 | AT63: 1 | AU63: 2004 | AV63: 12 | AW63: 1 | AX63: 2011 | AY63: 5.25 | AZ63: 1 | BA63: 1 | BB63: 1 | BC63: 1 | BD63: 1 | BE63: 1 | BF63: 1 | BG63: 1 | BH63: 1 | BJ63: 1 | BP63: 0 | BQ63: 1 | BT63: 0.07 | BV63: 176.0072797 | BW63: 0 | BX63: 0 | BY63: 58.66909323 | BZ63: 0 | CA63: 22.83761272 | CB63: 1.077268103 | CC63: 21.75000003 | CD63: 1.000000027 | CE63: 3442.0625 | CF63: 1276.052778 | CG63: 4165.505619 | CH63: 2640.109195 | CI63: 174951.236 | CJ63: 469.3732504 | CK63: 58.66909323 | CL63: 58.66909323 | CM63: 0 | CN63: 0 | CO63: 0 | CP63: 0 | CQ63: 0 | CR63: 0 | CS63: 0 | CT63: 0 | CU63: 0 | CV63: 0 | CW63: 0 | CX63: 0 | CY63: 58.66909323 | CZ63: 0 | DA63: 0 | DB63: 0 | DC63: 0 | DD63: 0 | DE63: 0 | DF63: 0 | DG63: 0 | DH63: 114991.4227 | DI63: 58.66909323 | DJ63: 58.66909323 | DK63: 58.66909323 | DL63: 58.66909323 | DM63: 58.66909323 | DN63: 117572.8628 | DO63: 704.0291188 | DP63: 58.66909323 | DQ63: 117983.5465 | DR63: 308.0127395 | DS63: 58.66909323 | DT63: 58.66909323 | DU63: 58.66909323 | DV63: 58.66909323 | DW63: 58.66909323 | DX63: 58.66909323 | DY63: 58.66909323 | DZ63: 58.66909323 | EA63: 58.66909323 | EB63: 0 | EC63: 58.66909323 | ED63: 0 | EE63: 0 | EF63: 0 | EG63: 0 | EH63: 0 | EI63: 0 | EJ63: 58.66909323 | EK63: 0 | EL63: 0 | EM63: 4.106836526
A64: 8 | B64: Bangake and Eggoh (2011) | C64: 3 | D64: 0 | E64: 0 | F64: 1 | G64: 0 | H64: 0.171425925 | I64: 0.036760731 | J64: 0.169766209 | K64: 0.036153915 | L64: 27.65952186 | M64: 4.695652174 | N64: 18 | O64: 45 | P64: 756 | Q64: 6.628041376 | R64: 1 | S64: 1 | AF64: 1 | AM64: 0 | AO64: 1960 | AP64: 1 | AQ64: 1 | AR64: 1 | AS64: 1 | AT64: 1 | AU64: 2004 | AV64: 12 | AW64: 1 | AX64: 2011 | AY64: 5.25 | BA64: 1 | BF64: 1 | BH64: 1 | BJ64: 1 | BP64: 0 | BQ64: 1 | BT64: 0.07 | BV64: 82.97856558 | BW64: 0 | BX64: 0 | BY64: 27.65952186 | BZ64: 0 | CA64: 4.74155912 | CB64: 1.016784243 | CC64: 4.695652169 | CD64: 1.000000002 | CE64: 765.0491495 | CF64: 129.879494 | CG64: 497.8713935 | CH64: 1244.678484 | CI64: 20910.59853 | CJ64: 183.3284553 | CK64: 27.65952186 | CL64: 27.65952186 | CM64: 0 | CN64: 0 | CO64: 0 | CP64: 0 | CQ64: 0 | CR64: 0 | CS64: 0 | CT64: 0 | CU64: 0 | CV64: 0 | CW64: 0 | CX64: 0 | CY64: 27.65952186 | CZ64: 0 | DA64: 0 | DB64: 0 | DC64: 0 | DD64: 0 | DE64: 0 | DF64: 0 | DG64: 0 | DH64: 54212.66285 | DI64: 27.65952186 | DJ64: 27.65952186 | DK64: 27.65952186 | DL64: 27.65952186 | DM64: 27.65952186 | DN64: 55429.68181 | DO64: 331.9142623 | DP64: 27.65952186 | DQ64: 55623.29846 | DR64: 145.2124898 | DS64: 0 | DT64: 27.65952186 | DU64: 0 | DV64: 0 | DW64: 0 | DX64: 0 | DY64: 27.65952186 | DZ64: 0 | EA64: 27.65952186 | EB64: 0 | EC64: 27.65952186 | ED64: 0 | EE64: 0 | EF64: 0 | EG64: 0 | EH64: 0 | EI64: 0 | EJ64: 27.65952186 | EK64: 0 | EL64: 0 | EM64: 1.93616653
A65: 8 | B65: Bangake and Eggoh (2011) | C65: 3 | D65: 0 | E65: 0 | F65: 1 | G65: 0 | H65: 0.472275985 | I65: 0.028352399 | J65: 0.440036432 | K65: 0.025429241 | L65: 39.3248071 | M65: 17.30434783 | N65: 30 | O65: 45 | P65: 1260 | Q65: 7.138867 | R65: 1 | S65: 1 | AF65: 1 | AM65: 0 | AO65: 1960 | AP65: 1 | AQ65: 1 | AR65: 1 | AS65: 1 | AT65: 1 | AU65: 2004 | AV65: 12 | AW65: 1 | AX65: 2011 | AY65: 5.25 | AZ65: 1 | BA65: 1 | BD65: 1 | BE65: 1 | BF65: 1 | BH65: 1 | BJ65: 1 | BP65: 0 | BQ65: 1 | BT65: 0.07 | BV65: 117.9744213 | BW65: 0 | BX65: 0 | BY65: 39.3248071 | BZ65: 0 | CA65: 18.57216201 | CB65: 1.114952621 | CC65: 17.30434781 | CD65: 0.999999997 | CE65: 1546.440453 | CF65: 680.4901404 | CG65: 1179.744213 | CH65: 1769.61632 | CI65: 49549.25695 | CJ65: 280.7345677 | CK65: 39.3248071 | CL65: 39.3248071 | CM65: 0 | CN65: 0 | CO65: 0 | CP65: 0 | CQ65: 0 | CR65: 0 | CS65: 0 | CT65: 0 | CU65: 0 | CV65: 0 | CW65: 0 | CX65: 0 | CY65: 39.3248071 | CZ65: 0 | DA65: 0 | DB65: 0 | DC65: 0 | DD65: 0 | DE65: 0 | DF65: 0 | DG65: 0 | DH65: 77076.62192 | DI65: 39.3248071 | DJ65: 39.3248071 | DK65: 39.3248071 | DL65: 39.3248071 | DM65: 39.3248071 | DN65: 78806.91343 | DO65: 471.8976852 | DP65: 39.3248071 | DQ65: 79082.18708 | DR65: 206.4552373 | DS65: 39.3248071 | DT65: 39.3248071 | DU65: 0 | DV65: 0 | DW65: 39.3248071 | DX65: 39.3248071 | DY65: 39.3248071 | DZ65: 0 | EA65: 39.3248071 | EB65: 0 | EC65: 39.3248071 | ED65: 0 | EE65: 0 | EF65: 0 | EG65: 0 | EH65: 0 | EI65: 0 | EJ65: 39.3248071 | EK65: 0 | EL65: 0 | EM65: 2.752736497
A66: 8 | B66: Bangake and Eggoh (2011) | C66: 3 | D66: 0 | E66: 0 | F66: 1 | G66: 0 | H66: 0.615369543 | I66: 0.032444284 | J66: 0.547895811 | K66: 0.027098402 | L66: 36.90254533 | M66: 20.21875 | N66: 23 | O66: 45 | P66: 966 | Q66: 6.873163834 | R66: 1 | S66: 1 | AF66: 1 | AM66: 0 | AO66: 1960 | AP66: 1 | AQ66: 1 | AR66: 1 | AS66: 1 | AT66: 1 | AU66: 2004 | AV66: 12 | AW66: 1 | AX66: 2011 | AY66: 5.25 | BB66: 1 | BC66: 1 | BE66: 1 | BG66: 1 | BH66: 1 | BJ66: 1 | BP66: 0 | BQ66: 1 | BT66: 0.07 | BV66: 110.707636 | BW66: 0 | BX66: 0 | BY66: 36.90254533 | BZ66: 0 | CA66: 22.70870246 | CB66: 1.197276661 | CC66: 20.21875 | CD66: 1.000000008 | CE66: 1361.797852 | CF66: 746.1233384 | CG66: 848.7585426 | CH66: 1660.61454 | CI66: 35647.85879 | CJ66: 253.63724 | CK66: 36.90254533 | CL66: 36.90254533 | CM66: 0 | CN66: 0 | CO66: 0 | CP66: 0 | CQ66: 0 | CR66: 0 | CS66: 0 | CT66: 0 | CU66: 0 | CV66: 0 | CW66: 0 | CX66: 0 | CY66: 36.90254533 | CZ66: 0 | DA66: 0 | DB66: 0 | DC66: 0 | DD66: 0 | DE66: 0 | DF66: 0 | DG66: 0 | DH66: 72328.98885 | DI66: 36.90254533 | DJ66: 36.90254533 | DK66: 36.90254533 | DL66: 36.90254533 | DM66: 36.90254533 | DN66: 73952.70084 | DO66: 442.830544 | DP66: 36.90254533 | DQ66: 74211.01866 | DR66: =AY66*L66 -> 193.738363 | DS66: 0 | DT66: 0 | DU66: 36.90254533 | DV66: 36.90254533 | DW66: 0 | DX66: 36.90254533 | DY66: 0 | DZ66: 36.90254533 | EA66: 36.90254533 | EB66: 0 | EC66: 36.90254533 | ED66: 0 | EE66: 0 | EF66: 0 | EG66: 0 | EH66: 0 | EI66: 0 | EJ66: 36.90254533 | EK66: 0 | EL66: 0 | EM66: =BT66*L66 -> 2.583178173
A67: 8 | B67: Bangake and Eggoh (2011) | C67: 3 | D67: =IF(C67=1,1,0) -> 0 | E67: =IF(C67=2,1,0) -> 0 | F67: =IF(C67=3,1,0) -> 1 | G67: =IF(C67=4,1,0) -> 0 | H67: 0.517929868 | I67: 0.018361765 | J67: 0.476100699 | K67: 0.016139007 | L67: 61.96168171 | M67: 29.5 | N67: 71 | O67: 45 | P67: 2982 | Q67: =LN(P67) -> 8.000349495 | R67: 1 | AA67: 1 | AF67: 1 | AM67: =AJ67+AK67+AL67 -> 0 | AO67: 1960 | AP67: 1 | AQ67: 1 | AR67: 1 | AS67: 1 | AT67: 1 | AU67: 2004 | AV67: 12 | AW67: 1 | AX67: 2011 | AY67: =AX67-2005.75 -> 5.25 | AZ67: 1 | BA67: 1 | BB67: 1 | BC67: 1 | BD67: 1 | BE67: 1 | BF67: 1 | BG67: 1 | BH67: 1 | BJ67: 1 | BP67: 0 | BQ67: 1 | BT67: 0.07 | BV67: 185.8850451 | BW67: =D67*L67 -> 0 | BX67: =E67*L67 -> 0 | BY67: =F67*L67 -> 61.96168171 | BZ67: =G67*L67 -> 0 | CA67: 32.09180563 | CB67: 1.137725839 | CC67: 29.49999997 | CD67: 1.000000015 | CE67: 3839.25 | CF67: 1827.86961 | CG67: 4399.279401 | CH67: 2788.275677 | CI67: 184769.7349 | CJ67: =Q67*L67 -> 495.715109 | CK67: 61.96168171 | CL67: 0 | CM67: 0 | CN67: 0 | CO67: 0 | CP67: 0 | CQ67: 0 | CR67: 0 | CS67: 0 | CT67: 61.96168171 | CU67: 0 | CV67: 0 | CW67: 0 | CX67: 0 | CY67: 61.96168171 | CZ67: 0 | DA67: 0 | DB67: 0 | DC67: 0 | DD67: 0 | DE67: 0 | DF67: =AM67*L67 -> 0 | DG67: 0 | DH67: 121444.8962 | DI67: 61.96168171 | DJ67: 61.96168171 | DK67: 61.96168171 | DL67: 61.96168171 | DM67: 61.96168171 | DN67: 124171.2101 | DO67: 743.5401805 | DP67: 61.96168171 | DQ67: 124604.9419 | DR67: 325.298829 | DS67: 61.96168171 | DT67: 61.96168171 | DU67: 61.96168171 | DV67: 61.96168171 | DW67: 61.96168171 | DX67: 61.96168171 | DY67: 61.96168171 | DZ67: 61.96168171 | EA67: 61.96168171 | EB67: 0 | EC67: 61.96168171 | ED67: 0 | EE67: 0 | EF67: 0 | EG67: 0 | EH67: 0 | EI67: 0 | EJ67: 61.96168171 | EK67: 0 | EL67: 0 | EM67: 4.33731772
A68: 8 | B68: Bangake and Eggoh (2011) | C68: 3 | D68: 0 | E68: 0 | F68: 1 | G68: 0 | H68: 0.276839491 | I68: 0.036760731 | J68: 0.269977442 | K68: 0.035324151 | L68: 28.30924346 | M68: 7.642857143 | N68: 18 | O68: 45 | P68: 756 | Q68: 6.628041376 | R68: 1 | AA68: 1 | AF68: 1 | AM68: 0 | AO68: 1960 | AP68: 1 | AQ68: 1 | AR68: 1 | AS68: 1 | AT68: 1 | AU68: 2004 | AV68: 12 | AW68: 1 | AX68: 2011 | AY68: 5.25 | BA68: 1 | BF68: 1 | BH68: 1 | BJ68: 1 | BP68: 0 | BQ68: 1 | BT68: 0.07 | BV68: 84.92773038 | BW68: 0 | BX68: 0 | BY68: 28.30924346 | BZ68: 0 | CA68: 7.83711655 | CB68: 1.040668484 | CC68: 7.642857134 | CD68: 0.9999999907 | CE68: 801.4132653 | CF68: 216.3635036 | CG68: 509.5663823 | CH68: 1273.915956 | CI68: 21401.78806 | CJ68: 187.634837 | CK68: 28.30924346 | CL68: 0 | CM68: 0 | CN68: 0 | CO68: 0 | CP68: 0 | CQ68: 0 | CR68: 0 | CS68: 0 | CT68: 28.30924346 | CU68: 0 | CV68: 0 | CW68: 0 | CX68: 0 | CY68: 28.30924346 | CZ68: 0 | DA68: 0 | DB68: 0 | DC68: 0 | DD68: 0 | DE68: 0 | DF68: 0 | DG68: 0 | DH68: 55486.11718 | DI68: 28.30924346 | DJ68: 28.30924346 | DK68: 28.30924346 | DL68: 28.30924346 | DM68: 28.30924346 | DN68: 56731.72389 | DO68: 339.7109215 | DP68: 28.30924346 | DQ68: 56929.8886 | DR68: 148.6235282 | DS68: 0 | DT68: 28.30924346 | DU68: 0 | DV68: 0 | DW68: 0 | DX68: 0 | DY68: 28.30924346 | DZ68: 0 | EA68: 28.30924346 | EB68: 0 | EC68: 28.30924346 | ED68: 0 | EE68: 0 | EF68: 0 | EG68: 0 | EH68: 0 | EI68: 0 | EJ68: 28.30924346 | EK68: 0 | EL68: 0 | EM68: 1.981647042
A69: 8 | B69: Bangake and Eggoh (2011) | C69: 3 | D69: 0 | E69: 0 | F69: 1 | G69: 0 | H69: 0.558525561 | I69: 0.028352399 | J69: 0.50688264 | K69: 0.024410779 | L69: 40.96551001 | M69: 20.76470588 | N69: 30 | O69: 45 | P69: 1260 | Q69: 7.138867 | R69: 1 | AA69: 1 | AF69: 1 | AM69: 0 | AO69: 1960 | AP69: 1 | AQ69: 1 | AR69: 1 | AS69: 1 | AT69: 1 | AU69: 2004 | AV69: 12 | AW69: 1 | AX69: 2011 | AY69: 5.25 | AZ69: 1 | BA69: 1 | BD69: 1 | BE69: 1 | BF69: 1 | BH69: 1 | BJ69: 1 | BP69: 0 | BQ69: 1 | BT69: 0.07 | BV69: =C69*$L69 -> 122.89653 | BW69: 0 | BX69: 0 | BY69: 40.96551001 | BZ69: 0 | CA69: 22.88028446 | CB69: 1.161470485 | CC69: 20.76470586 | CD69: 1.000000011 | CE69: 1678.17301 | CF69: 850.6367666 | CG69: 1228.9653 | CH69: 1843.44795 | CI69: 51616.54261 | CJ69: 292.4473275 | CK69: 40.96551001 | CL69: 0 | CM69: 0 | CN69: 0 | CO69: 0 | CP69: 0 | CQ69: 0 | CR69: 0 | CS69: 0 | CT69: 40.96551001 | CU69: 0 | CV69: 0 | CW69: 0 | CX69: 0 | CY69: 40.96551001 | CZ69: 0 | DA69: 0 | DB69: 0 | DC69: 0 | DD69: 0 | DE69: 0 | DF69: 0 | DG69: 0 | DH69: 80292.39962 | DI69: 40.96551001 | DJ69: 40.96551001 | DK69: 40.96551001 | DL69: 40.96551001 | DM69: 40.96551001 | DN69: 82094.88206 | DO69: 491.5861201 | DP69: 40.96551001 | DQ69: 82381.64063 | DR69: 215.0689276 | DS69: 40.96551001 | DT69: 40.96551001 | DU69: 0 | DV69: 0 | DW69: 40.96551001 | DX69: 40.96551001 | DY69: 40.96551001 | DZ69: 0 | EA69: 40.96551001 | EB69: 0 | EC69: 40.96551001 | ED69: 0 | EE69: 0 | EF69: 0 | EG69: 0 | EH69: 0 | EI69: 0 | EJ69: 40.96551001 | EK69: 0 | EL69: 0 | EM69: 2.867585701
A70: 8 | B70: Bangake and Eggoh (2011) | C70: 3 | D70: 0 | E70: 0 | F70: 1 | G70: 0 | H70: 0.664463897 | I70: 0.032444284 | J70: 0.581326448 | K70: 0.02635737 | L70: 37.9400518 | M70: 22.05555556 | N70: 23 | O70: 45 | P70: 966 | Q70: 6.873163834 | R70: 1 | AA70: 1 | AF70: 1 | AM70: 0 | AO70: 1960 | AP70: 1 | AQ70: 1 | AR70: 1 | AS70: 1 | AT70: 1 | AU70: 2004 | AV70: 12 | AW70: 1 | AX70: 2011 | AY70: 5.25 | BB70: 1 | BC70: 1 | BE70: 1 | BG70: 1 | BH70: 1 | BJ70: 1 | BP70: 0 | BQ70: 1 | BT70: 0.07 | BV70: 113.8201554 | BW70: 0 | BX70: 0 | BY70: 37.9400518 | BZ70: 0 | CA70: 25.20979467 | CB70: 1.230937816 | CC70: 22.05555555 | CD70: 0.9999999831 | CE70: 1439.447531 | CF70: 836.7889204 | CG70: 872.6211914 | CH70: 1707.302331 | CI70: 36650.09004 | CJ70: 260.7681919 | CK70: 37.9400518 | CL70: 0 | CM70: 0 | CN70: 0 | CO70: 0 | CP70: 0 | CQ70: 0 | CR70: 0 | CS70: 0 | CT70: 37.9400518 | CU70: 0 | CV70: 0 | CW70: 0 | CX70: 0 | CY70: 37.9400518 | CZ70: 0 | DA70: 0 | DB70: 0 | DC70: 0 | DD70: 0 | DE70: 0 | DF70: 0 | DG70: 0 | DH70: 74362.50153 | DI70: 37.9400518 | DJ70: 37.9400518 | DK70: 37.9400518 | DL70: 37.9400518 | DM70: 37.9400518 | DN70: 76031.86381 | DO70: 455.2806216 | DP70: 37.9400518 | DQ70: 76297.44417 | DR70: 199.1852719 | DS70: 0 | DT70: 0 | DU70: 37.9400518 | DV70: 37.9400518 | DW70: 0 | DX70: 37.9400518 | DY70: 0 | DZ70: 37.9400518 | EA70: 37.9400518 | EB70: 0 | EC70: 37.9400518 | ED70: 0 | EE70: 0 | EF70: 0 | EG70: 0 | EH70: 0 | EI70: 0 | EJ70: 37.9400518 | EK70: 0 | EL70: 0 | EM70: 2.655803626
A71: 8 | B71: Bangake and Eggoh (2011) | C71: 3 | D71: 0 | E71: 0 | F71: 1 | G71: 0 | H71: 0.393519203 | I71: 0.018361765 | J71: 0.374390131 | K71: 0.017017733 | L71: 58.76223277 | M71: 22 | N71: 71 | O71: 45 | P71: 2982 | Q71: 8.000349495 | R71: 1 | U71: 1 | AF71: 1 | AM71: 0 | AO71: 1960 | AP71: 1 | AQ71: 1 | AR71: 1 | AS71: 1 | AT71: 1 | AU71: 2004 | AV71: 12 | AW71: 1 | AX71: 2011 | AY71: 5.25 | AZ71: 1 | BA71: 1 | BB71: 1 | BC71: 1 | BD71: 1 | BE71: 1 | BF71: 1 | BG71: 1 | BH71: 1 | BJ71: 1 | BP71: 0 | BQ71: 1 | BT71: 0.07 | BV71: 176.2866983 | BW71: 0 | BX71: 0 | BY71: 58.76223277 | BZ71: 0 | CA71: 23.12406701 | CB71: 1.078978309 | CC71: 22.00000002 | CD71: 0.9999999878 | CE71: 3453 | CF71: 1292.769121 | CG71: 4172.118527 | CH71: 2644.300475 | CI71: 175228.9781 | CJ71: 470.1183993 | CK71: 58.76223277 | CL71: 0 | CM71: 0 | CN71: 58.76223277 | CO71: 0 | CP71: 0 | CQ71: 0 | CR71: 0 | CS71: 0 | CT71: 0 | CU71: 0 | CV71: 0 | CW71: 0 | CX71: 0 | CY71: 58.76223277 | CZ71: 0 | DA71: 0 | DB71: 0 | DC71: 0 | DD71: 0 | DE71: 0 | DF71: 0 | DG71: 0 | DH71: 115173.9762 | DI71: 58.76223277 | DJ71: 58.76223277 | DK71: 58.76223277 | DL71: 58.76223277 | DM71: 58.76223277 | DN71: 117759.5145 | DO71: 705.1467932 | DP71: 58.76223277 | DQ71: 118170.8501 | DR71: 308.501722 | DS71: 58.76223277 | DT71: 58.76223277 | DU71: 58.76223277 | DV71: 58.76223277 | DW71: 58.76223277 | DX71: 58.76223277 | DY71: 58.76223277 | DZ71: 58.76223277 | EA71: 58.76223277 | EB71: 0 | EC71: 58.76223277 | ED71: 0 | EE71: 0 | EF71: 0 | EG71: 0 | EH71: 0 | EI71: 0 | EJ71: 58.76223277 | EK71: 0 | EL71: 0 | EM71: 4.113356294
A72: 8 | B72: Bangake and Eggoh (2011) | C72: 3 | D72: 0 | E72: 0 | F72: 1 | G72: 0 | H72: 0.319091333 | I72: 0.036760731 | J72: 0.308685069 | K72: 0.034894834 | L72: 28.65753719 | M72: 8.846153846 | N72: 18 | O72: 45 | P72: 756 | Q72: 6.628041376 | R72: 1 | U72: 1 | AF72: 1 | AM72: 0 | AO72: 1960 | AP72: 1 | AQ72: 1 | AR72: 1 | AS72: 1 | AT72: 1 | AU72: 2004 | AV72: 12 | AW72: 1 | AX72: 2011 | AY72: 5.25 | BA72: 1 | BF72: 1 | BH72: 1 | BJ72: 1 | BP72: 0 | BQ72: 1 | BT72: 0.07 | BV72: 85.97261157 | BW72: 0 | BX72: 0 | BY72: 28.65753719 | BZ72: 0 | CA72: 9.144371742 | CB72: 1.053472016 | CC72: 8.846153845 | CD72: 1.000000003 | CE72: 821.2544378 | CF72: 253.5089828 | CG72: 515.8356694 | CH72: 1289.589174 | CI72: 21665.09812 | CJ72: 189.9433422 | CK72: 28.65753719 | CL72: 0 | CM72: 0 | CN72: 28.65753719 | CO72: 0 | CP72: =W72*$L72 -> 0 | CQ72: 0 | CR72: 0 | CS72: 0 | CT72: 0 | CU72: 0 | CV72: 0 | CW72: 0 | CX72: 0 | CY72: 28.65753719 | CZ72: 0 | DA72: 0 | DB72: 0 | DC72: 0 | DD72: 0 | DE72: 0 | DF72: 0 | DG72: 0 | DH72: 56168.77289 | DI72: 28.65753719 | DJ72: 28.65753719 | DK72: 28.65753719 | DL72: 28.65753719 | DM72: 28.65753719 | DN72: 57429.70453 | DO72: 343.8904463 | DP72: 28.65753719 | DQ72: 57630.30729 | DR72: 150.4520702 | DS72: 0 | DT72: 28.65753719 | DU72: 0 | DV72: 0 | DW72: 0 | DX72: =BE72*$L72 -> 0 | DY72: 28.65753719 | DZ72: 0 | EA72: 28.65753719 | EB72: 0 | EC72: 28.65753719 | ED72: 0 | EE72: 0 | EF72: 0 | EG72: 0 | EH72: 0 | EI72: 0 | EJ72: 28.65753719 | EK72: 0 | EL72: 0 | EM72: 2.006027603
A73: 8 | B73: Bangake and Eggoh (2011) | C73: 3 | D73: 0 | E73: 0 | F73: 1 | G73: 0 | H73: 0.325701288 | I73: 0.028352399 | J73: 0.31465292 | K73: 0.026879898 | L73: 37.20252252 | M73: 11.70588235 | N73: 30 | O73: 45 | P73: 1260 | Q73: 7.138867 | R73: 1 | U73: 1 | AF73: 1 | AM73: 0 | AO73: 1960 | AP73: 1 | AQ73: 1 | AR73: 1 | AS73: 1 | AT73: 1 | AU73: 2004 | AV73: 12 | AW73: 1 | AX73: 2011 | AY73: 5.25 | AZ73: 1 | BA73: 1 | BD73: 1 | BE73: 1 | BF73: 1 | BH73: 1 | BJ73: 1 | BP73: 0 | BQ73: 1 | BT73: 0.07 | BV73: 111.6075676 | BW73: 0 | BX73: 0 | BY73: 37.20252252 | BZ73: 0 | CA73: 12.1169095 | CB73: 1.054780762 | CC73: 11.70588234 | CD73: 1.000000011 | CE73: 1384.027682 | CF73: 435.4883517 | CG73: 1116.075676 | CH73: 1674.113513 | CI73: 46875.17838 | CJ73: 265.5838603 | CK73: 37.20252252 | CL73: 0 | CM73: 0 | CN73: 37.20252252 | CO73: 0 | CP73: 0 | CQ73: 0 | CR73: 0 | CS73: 0 | CT73: 0 | CU73: 0 | CV73: 0 | CW73: 0 | CX73: 0 | CY73: 37.20252252 | CZ73: 0 | DA73: 0 | DB73: 0 | DC73: 0 | DD73: 0 | DE73: 0 | DF73: 0 | DG73: 0 | DH73: 72916.94414 | DI73: 37.20252252 | DJ73: 37.20252252 | DK73: 37.20252252 | DL73: 37.20252252 | DM73: 37.20252252 | DN73: 74553.85513 | DO73: 446.4302702 | DP73: 37.20252252 | DQ73: 74814.27279 | DR73: 195.3132432 | DS73: 37.20252252 | DT73: 37.20252252 | DU73: 0 | DV73: 0 | DW73: 37.20252252 | DX73: 37.20252252 | DY73: 37.20252252 | DZ73: 0 | EA73: 37.20252252 | EB73: 0 | EC73: 37.20252252 | ED73: 0 | EE73: 0 | EF73: 0 | EG73: 0 | EH73: 0 | EI73: 0 | EJ73: 37.20252252 | EK73: 0 | EL73: 0 | EM73: 2.604176576
A74: 8 | B74: Bangake and Eggoh (2011) | C74: 3 | D74: 0 | E74: 0 | F74: 1 | G74: 0 | H74: 0.636417251 | I74: 0.032444284 | J74: 0.562455163 | K74: 0.026783579 | L74: 37.33630941 | M74: 21 | N74: 23 | O74: 45 | P74: 966 | Q74: 6.873163834 | R74: 1 | U74: 1 | AF74: 1 | AM74: 0 | AO74: 1960 | AP74: 1 | AQ74: 1 | AR74: 1 | AS74: 1 | AT74: 1 | AU74: 2004 | AV74: 12 | AW74: 1 | AX74: 2011 | AY74: 5.25 | BB74: 1 | BC74: 1 | BE74: 1 | BG74: 1 | BH74: 1 | BJ74: 1 | BP74: 0 | BQ74: 1 | BT74: 0.07 | BV74: 112.0089282 | BW74: 0 | BX74: 0 | BY74: 37.33630941 | BZ74: 0 | CA74: 23.7614714 | CB74: 1.211349826 | CC74: 21 | CD74: 0.9999999927 | CE74: 1394 | CF74: 784.0624976 | CG74: 858.7351164 | CH74: 1680.133923 | CI74: 36066.87489 | CJ74: 256.6185715 | CK74: 37.33630941 | CL74: 0 | CM74: 0 | CN74: 37.33630941 | CO74: 0 | CP74: 0 | CQ74: 0 | CR74: 0 | CS74: 0 | CT74: 0 | CU74: 0 | CV74: 0 | CW74: 0 | CX74: 0 | CY74: 37.33630941 | CZ74: 0 | DA74: 0 | DB74: 0 | DC74: 0 | DD74: 0 | DE74: 0 | DF74: 0 | DG74: 0 | DH74: 73179.16644 | DI74: 37.33630941 | DJ74: 37.33630941 | DK74: 37.33630941 | DL74: 37.33630941 | DM74: 37.33630941 | DN74: 74821.96406 | DO74: 448.0357129 | DP74: 37.33630941 | DQ74: 75083.31822 | DR74: 196.0156244 | DS74: 0 | DT74: 0 | DU74: 37.33630941 | DV74: 37.33630941 | DW74: 0 | DX74: 37.33630941 | DY74: 0 | DZ74: 37.33630941 | EA74: 37.33630941 | EB74: 0 | EC74: 37.33630941 | ED74: 0 | EE74: 0 | EF74: 0 | EG74: 0 | EH74: 0 | EI74: 0 | EJ74: 37.33630941 | EK74: 0 | EL74: 0 | EM74: 2.613541659
A75: 9 | B75: Beck and Levine (2004) | C75: 1 | D75: 1 | E75: 0 | F75: 0 | G75: 0 | H75: 0.574830549 | I75: 0.176776695 | J75: 0.51889802 | K75: 0.144493682 | L75: 6.920717819 | M75: 3.59114677 | N75: 40 | O75: 1 | P75: 40 | Q75: 3.688879454 | R75: 23 | T75: 1 | AD75: 1 | AE75: 1 | AM75: 0 | AN75: 0 | AO75: 1976 | AQ75: 1 | AR75: 1 | AS75: 1 | AU75: 1998 | AV75: 4 | AW75: 0 | AX75: 2004 | AY75: -1.75 | AZ75: 1 | BA75: 1 | BB75: 1 | BC75: 1 | BD75: 1 | BE75: 1 | BF75: 1 | BG75: 1 | BK75: 1 | BL75: 1 | BP75: 1 | BR75: 1 | BT75: 0.222 | BV75: 6.920717819 | BW75: 6.920717819 | BX75: 0 | BY75: 0 | BZ75: 0 | CA75: 3.978240023 | CB75: 1.223421623 | CC75: 3.591146773 | CD75: 0.9999999998 | CE75: 47.89633513 | CF75: 24.85331344 | CG75: 276.8287128 | CH75: 6.920717819 | CI75: 276.8287128 | CJ75: 25.52969377 | CK75: 159.1765098 | CL75: 0 | CM75: 6.920717819 | CN75: 0 | CO75: 0 | CP75: 0 | CQ75: 0 | CR75: 0 | CS75: 0 | CT75: 0 | CU75: 0 | CV75: 0 | CW75: 6.920717819 | CX75: 6.920717819 | CY75: 0 | CZ75: 0 | DA75: 0 | DB75: 0 | DC75: 0 | DD75: 0 | DE75: 0 | DF75: 0 | DG75: 0 | DH75: 13675.33841 | DI75: 0 | DJ75: 6.920717819 | DK75: 6.920717819 | DL75: 6.920717819 | DM75: 0 | DN75: 13827.5942 | DO75: 27.68287128 | DP75: 0 | DQ75: 13869.11851 | DR75: -12.11125618 | DS75: 6.920717819 | DT75: 6.920717819 | DU75: 6.920717819 | DV75: 6.920717819 | DW75: 6.920717819 | DX75: 6.920717819 | DY75: 6.920717819 | DZ75: 6.920717819 | EA75: 0 | EB75: 0 | EC75: 0 | ED75: 6.920717819 | EE75: 6.920717819 | EF75: 0 | EG75: 0 | EH75: 0 | EI75: 6.920717819 | EJ75: 0 | EK75: 6.920717819 | EL75: 0 | EM75: 1.536399356
A76: 9 | B76: Beck and Levine (2004) | C76: 1 | D76: 1 | E76: 0 | F76: 0 | G76: 0 | H76: 0.386193395 | I76: 0.176776695 | J76: 0.368073956 | K76: 0.157164296 | L76: 6.362768279 | M76: 2.341969293 | N76: 40 | O76: 1 | P76: 40 | Q76: 3.688879454 | R76: 23 | Z76: 1 | AD76: 1 | AE76: 1 | AM76: 0 | AN76: 0 | AO76: 1976 | AQ76: 1 | AR76: 1 | AS76: 1 | AU76: 1998 | AV76: 4 | AW76: 0 | AX76: 2004 | AY76: -1.75 | AZ76: 1 | BA76: 1 | BB76: 1 | BC76: 1 | BD76: 1 | BE76: 1 | BF76: 1 | BG76: 1 | BK76: 1 | BL76: 1 | BP76: 1 | BR76: 1 | BT76: 0.222 | BV76: 6.362768279 | BW76: 6.362768279 | BX76: 0 | BY76: 0 | BZ76: 0 | CA76: 2.457259083 | CB76: 1.124789147 | CC76: 2.341969292 | CD76: 0.9999999972 | CE76: 40.48482017 | CF76: 14.90140793 | CG76: 254.5107312 | CH76: 6.362768279 | CI76: 254.5107312 | CJ76: 23.47148518 | CK76: 146.3436704 | CL76: 0 | CM76: 0 | CN76: 0 | CO76: 0 | CP76: 0 | CQ76: 0 | CR76: 0 | CS76: 6.362768279 | CT76: 0 | CU76: 0 | CV76: 0 | CW76: 6.362768279 | CX76: 6.362768279 | CY76: 0 | CZ76: 0 | DA76: 0 | DB76: 0 | DC76: 0 | DD76: 0 | DE76: 0 | DF76: 0 | DG76: 0 | DH76: 12572.83012 | DI76: 0 | DJ76: 6.362768279 | DK76: 6.362768279 | DL76: 6.362768279 | DM76: 0 | DN76: 12712.81102 | DO76: 25.45107312 | DP76: 0 | DQ76: 12750.98763 | DR76: -11.13484449 | DS76: 6.362768279 | DT76: 6.362768279 | DU76: 6.362768279 | DV76: 6.362768279 | DW76: 6.362768279 | DX76: 6.362768279 | DY76: 6.362768279 | DZ76: 6.362768279 | EA76: 0 | EB76: 0 | EC76: 0 | ED76: 6.362768279 | EE76: 6.362768279 | EF76: 0 | EG76: 0 | EH76: 0 | EI76: 6.362768279 | EJ76: 0 | EK76: 6.362768279 | EL76: 0 | EM76: 1.412534558
A77: 9 | B77: Beck and Levine (2004) | C77: 1 | D77: 1 | E77: 0 | F77: 0 | G77: 0 | H77: 0.583788016 | I77: 0.179605302 | J77: 0.525413185 | K77: 0.145919094 | L77: 6.853112739 | M77: 3.600715792 | N77: 40 | O77: 1 | P77: 40 | Q77: 3.688879454 | R77: 23 | T77: 1 | AD77: 1 | AE77: 1 | AM77: 0 | AN77: 0 | AO77: 1976 | AQ77: 1 | AR77: 1 | AS77: 1 | AU77: 1998 | AV77: 5 | AW77: 0 | AX77: 2004 | AY77: -1.75 | AZ77: 1 | BA77: 1 | BB77: 1 | BC77: 1 | BD77: 1 | BE77: 1 | BF77: 1 | BG77: 1 | BH77: 1 | BK77: 1 | BL77: 1 | BP77: 1 | BR77: 1 | BT77: 0.222 | BV77: 6.853112739 | BW77: 6.853112739 | BX77: 0 | BY77: 0 | BZ77: 0 | CA77: 4.000765089 | CB77: 1.230855383 | CC77: 3.600715791 | CD77: 1.000000002 | CE77: 46.96515421 | CF77: 24.67611126 | CG77: 274.1245096 | CH77: 6.853112739 | CI77: 274.1245096 | CJ77: 25.28030678 | CK77: 157.621593 | CL77: 0 | CM77: 6.853112739 | CN77: 0 | CO77: 0 | CP77: 0 | CQ77: 0 | CR77: 0 | CS77: 0 | CT77: 0 | CU77: 0 | CV77: 0 | CW77: 6.853112739 | CX77: 6.853112739 | CY77: 0 | CZ77: 0 | DA77: 0 | DB77: 0 | DC77: 0 | DD77: 0 | DE77: 0 | DF77: 0 | DG77: 0 | DH77: 13541.75077 | DI77: 0 | DJ77: 6.853112739 | DK77: 6.853112739 | DL77: =AS77*$L77 -> 6.853112739 | DM77: 0 | DN77: 13692.51925 | DO77: 34.26556369 | DP77: 0 | DQ77: 13733.63793 | DR77: -11.99294729 | DS77: 6.853112739 | DT77: 6.853112739 | DU77: 6.853112739 | DV77: 6.853112739 | DW77: 6.853112739 | DX77: 6.853112739 | DY77: 6.853112739 | DZ77: 6.853112739 | EA77: 6.853112739 | EB77: 0 | EC77: 0 | ED77: 6.853112739 | EE77: 6.853112739 | EF77: 0 | EG77: 0 | EH77: 0 | EI77: 6.853112739 | EJ77: 0 | EK77: 6.853112739 | EL77: 0 | EM77: 1.521391028
A78: 9 | B78: Beck and Levine (2004) | C78: 1 | D78: 1 | E78: 0 | F78: 0 | G78: 0 | H78: 0.386699249 | I78: 0.179605302 | J78: 0.368511197 | K78: 0.159429082 | L78: 6.272381333 | M78: 2.311442751 | N78: 40 | O78: 1 | P78: 40 | Q78: 3.688879454 | R78: 23 | Z78: 1 | AD78: 1 | AE78: 1 | AM78: 0 | AN78: 0 | AO78: 1976 | AQ78: 1 | AR78: 1 | AS78: 1 | AU78: 1998 | AV78: 5 | AW78: 0 | AX78: 2004 | AY78: -1.75 | AZ78: 1 | BA78: 1 | BB78: 1 | BC78: 1 | BD78: 1 | BE78: 1 | BF78: 1 | BG78: 1 | BH78: 1 | BK78: 1 | BL78: 1 | BP78: 1 | BR78: 1 | BT78: 0.222 | BV78: 6.272381333 | BW78: 6.272381333 | BX78: 0 | BY78: 0 | BZ78: 0 | CA78: 2.425525151 | CB78: 1.126552944 | CC78: 2.311442753 | CD78: 0.9999999979 | CE78: 39.34276759 | CF78: 14.49825036 | CG78: 250.8952533 | CH78: 6.272381333 | CI78: 250.8952533 | CJ78: 23.13805863 | CK78: 144.2647707 | CL78: 0 | CM78: 0 | CN78: 0 | CO78: 0 | CP78: 0 | CQ78: 0 | CR78: 0 | CS78: 6.272381333 | CT78: 0 | CU78: 0 | CV78: 0 | CW78: 6.272381333 | CX78: 6.272381333 | CY78: 0 | CZ78: 0 | DA78: 0 | DB78: 0 | DC78: 0 | DD78: 0 | DE78: 0 | DF78: 0 | DG78: 0 | DH78: 12394.22551 | DI78: 0 | DJ78: 6.272381333 | DK78: 6.272381333 | DL78: 6.272381333 | DM78: 0 | DN78: 12532.2179 | DO78: 31.36190666 | DP78: 0 | DQ78: 12569.85219 | DR78: -10.97666733 | DS78: 6.272381333 | DT78: 6.272381333 | DU78: 6.272381333 | DV78: 6.272381333 | DW78: 6.272381333 | DX78: 6.272381333 | DY78: 6.272381333 | DZ78: 6.272381333 | EA78: 6.272381333 | EB78: 0 | EC78: 0 | ED78: 6.272381333 | EE78: 6.272381333 | EF78: 0 | EG78: 0 | EH78: 0 | EI78: 6.272381333 | EJ78: 0 | EK78: 6.272381333 | EL78: 0 | EM78: 1.392468656
A79: 9 | B79: Beck and Levine (2004) | C79: 1 | D79: 1 | E79: 0 | F79: 0 | G79: 0 | H79: 0.546546584 | I79: 0.179605302 | J79: 0.497927475 | K79: 0.148726776 | L79: 6.723738853 | M79: 3.347934312 | N79: 40 | O79: 1 | P79: 40 | Q79: 3.688879454 | R79: 23 | T79: 1 | AD79: 1 | AE79: 1 | AM79: 0 | AN79: 0 | AO79: 1976 | AQ79: 1 | AR79: 1 | AS79: 1 | AU79: 1998 | AV79: 5 | AW79: 0 | AX79: 2004 | AY79: -1.75 | AZ79: 1 | BA79: 1 | BB79: 1 | BC79: 1 | BD79: 1 | BE79: 1 | BF79: 1 | BG79: 1 | BJ79: 1 | BK79: 1 | BL79: 1 | BP79: 1 | BR79: 1 | BT79: 0.222 | BV79: 6.723738853 | BW79: 6.723738853 | BX79: 0 | BY79: 0 | BZ79: 0 | CA79: 3.674836502 | CB79: 1.207619147 | CC79: 3.34793431 | CD79: 1.000000002 | CE79: 45.20866416 | CF79: 22.51063601 | CG79: 268.9495541 | CH79: 6.723738853 | CI79: 268.9495541 | CJ79: 24.80306211 | CK79: 154.6459936 | CL79: 0 | CM79: 6.723738853 | CN79: 0 | CO79: 0 | CP79: 0 | CQ79: 0 | CR79: 0 | CS79: 0 | CT79: 0 | CU79: 0 | CV79: 0 | CW79: 6.723738853 | CX79: 6.723738853 | CY79: 0 | CZ79: 0 | DA79: 0 | DB79: 0 | DC79: 0 | DD79: 0 | DE79: 0 | DF79: 0 | DG79: 0 | DH79: 13286.10797 | DI79: 0 | DJ79: 6.723738853 | DK79: 6.723738853 | DL79: 6.723738853 | DM79: 0 | DN79: 13434.03023 | DO79: 33.61869427 | DP79: 0 | DQ79: 13474.37266 | DR79: -11.76654299 | DS79: 6.723738853 | DT79: 6.723738853 | DU79: 6.723738853 | DV79: 6.723738853 | DW79: 6.723738853 | DX79: 6.723738853 | DY79: 6.723738853 | DZ79: 6.723738853 | EA79: 0 | EB79: 0 | EC79: 6.723738853 | ED79: 6.723738853 | EE79: 6.723738853 | EF79: 0 | EG79: 0 | EH79: 0 | EI79: 6.723738853 | EJ79: 0 | EK79: 6.723738853 | EL79: 0 | EM79: 1.492670025
A80: 9 | B80: Beck and Levine (2004) | C80: 1 | D80: 1 | E80: 0 | F80: 0 | G80: 0 | H80: 0.386699249 | I80: 0.179605302 | J80: 0.368511197 | K80: 0.159429082 | L80: 6.272381333 | M80: 2.311442751 | N80: 40 | O80: 1 | P80: 40 | Q80: 3.688879454 | R80: 23 | Z80: 1 | AD80: 1 | AE80: 1 | AM80: 0 | AN80: 0 | AO80: 1976 | AQ80: 1 | AR80: 1 | AS80: 1 | AU80: 1998 | AV80: 5 | AW80: 0 | AX80: 2004 | AY80: -1.75 | AZ80: 1 | BA80: 1 | BB80: 1 | BC80: 1 | BD80: 1 | BE80: 1 | BF80: 1 | BG80: 1 | BJ80: 1 | BK80: 1 | BL80: 1 | BP80: 1 | BR80: 1 | BT80: 0.222 | BV80: 6.272381333 | BW80: 6.272381333 | BX80: 0 | BY80: 0 | BZ80: 0 | CA80: 2.425525151 | CB80: 1.126552944 | CC80: 2.311442753 | CD80: 0.9999999979 | CE80: 39.34276759 | CF80: 14.49825036 | CG80: 250.8952533 | CH80: 6.272381333 | CI80: 250.8952533 | CJ80: 23.13805863 | CK80: 144.2647707 | CL80: 0 | CM80: 0 | CN80: 0 | CO80: 0 | CP80: 0 | CQ80: 0 | CR80: 0 | CS80: 6.272381333 | CT80: 0 | CU80: 0 | CV80: 0 | CW80: 6.272381333 | CX80: 6.272381333 | CY80: 0 | CZ80: 0 | DA80: 0 | DB80: 0 | DC80: 0 | DD80: 0 | DE80: 0 | DF80: 0 | DG80: 0 | DH80: 12394.22551 | DI80: 0 | DJ80: 6.272381333 | DK80: 6.272381333 | DL80: 6.272381333 | DM80: 0 | DN80: 12532.2179 | DO80: 31.36190666 | DP80: 0 | DQ80: 12569.85219 | DR80: -10.97666733 | DS80: 6.272381333 | DT80: 6.272381333 | DU80: 6.272381333 | DV80: 6.272381333 | DW80: 6.272381333 | DX80: 6.272381333 | DY80: 6.272381333 | DZ80: 6.272381333 | EA80: 0 | EB80: 0 | EC80: 6.272381333 | ED80: 6.272381333 | EE80: 6.272381333 | EF80: 0 | EG80: 0 | EH80: 0 | EI80: 6.272381333 | EJ80: 0 | EK80: 6.272381333 | EL80: 0 | EM80: 1.392468656
A81: 9 | B81: Beck and Levine (2004) | C81: 1 | D81: 1 | E81: 0 | F81: 0 | G81: 0 | H81: 0.381682314 | I81: 0.179605302 | J81: 0.36416757 | K81: 0.159722368 | L81: 6.260863864 | M81: 2.280003579 | N81: 40 | O81: 1 | P81: 40 | Q81: 3.688879454 | R81: 23 | T81: 1 | AD81: 1 | AE81: 1 | AM81: 0 | AN81: 0 | AO81: 1976 | AQ81: 1 | AR81: 1 | AS81: 1 | AU81: 1998 | AV81: 5 | AW81: 0 | AX81: 2004 | AY81: -1.75 | AZ81: 1 | BA81: 1 | BB81: 1 | BC81: 1 | BD81: 1 | BE81: 1 | BF81: 1 | BG81: 1 | BH81: 1 | BK81: 1 | BL81: 1 | BP81: 1 | BR81: 1 | BT81: 0.222 | BV81: 6.260863864 | BW81: 6.260863864 | BX81: 0 | BY81: 0 | BZ81: 0 | CA81: 2.389661007 | CB81: 1.124484345 | CC81: 2.280003579 | CD81: 1.000000002 | CE81: 39.19841632 | CF81: 14.27479202 | CG81: 250.4345546 | CH81: 6.260863864 | CI81: 250.4345546 | CJ81: 23.09557207 | CK81: 143.9998689 | CL81: 0 | CM81: 6.260863864 | CN81: 0 | CO81: 0 | CP81: 0 | CQ81: 0 | CR81: 0 | CS81: 0 | CT81: 0 | CU81: 0 | CV81: 0 | CW81: 6.260863864 | CX81: 6.260863864 | CY81: 0 | CZ81: 0 | DA81: 0 | DB81: 0 | DC81: 0 | DD81: 0 | DE81: 0 | DF81: 0 | DG81: 0 | DH81: 12371.467 | DI81: 0 | DJ81: 6.260863864 | DK81: 6.260863864 | DL81: 6.260863864 | DM81: 0 | DN81: 12509.206 | DO81: 31.30431932 | DP81: 0 | DQ81: 12546.77118 | DR81: -10.95651176 | DS81: 6.260863864 | DT81: 6.260863864 | DU81: 6.260863864 | DV81: 6.260863864 | DW81: 6.260863864 | DX81: 6.260863864 | DY81: 6.260863864 | DZ81: 6.260863864 | EA81: 6.260863864 | EB81: 0 | EC81: 0 | ED81: 6.260863864 | EE81: 6.260863864 | EF81: 0 | EG81: 0 | EH81: 0 | EI81: 6.260863864 | EJ81: 0 | EK81: 6.260863864 | EL81: 0 | EM81: 1.389911778
A82: 9 | B82: Beck and Levine (2004) | C82: 1 | D82: 1 | E82: 0 | F82: 0 | G82: 0 | H82: 0.354915812 | I82: 0.179605302 | J82: 0.340727907 | K82: 0.161236444 | L82: 6.202071773 | M82: 2.113218937 | N82: 40 | O82: 1 | P82: 40 | Q82: 3.688879454 | R82: 23 | Z82: 1 | AD82: 1 | AE82: 1 | AM82: 0 | AN82: 0 | AO82: 1976 | AQ82: 1 | AR82: 1 | AS82: 1 | AU82: 1998 | AV82: 5 | AW82: 0 | AX82: 2004 | AY82: -1.75 | AZ82: 1 | BA82: 1 | BB82: 1 | BC82: 1 | BD82: 1 | BE82: 1 | BF82: 1 | BG82: 1 | BH82: 1 | BK82: 1 | BL82: 1 | BP82: 1 | BR82: 1 | BT82: 0.222 | BV82: 6.202071773 | BW82: 6.202071773 | BX82: 0 | BY82: 0 | BZ82: 0 | CA82: 2.201213339 | CB82: 1.113924974 | CC82: 2.113218934 | CD82: 0.9999999981 | CE82: 38.46569428 | CF82: 13.10633552 | CG82: 248.0828709 | CH82: 6.202071773 | CI82: 248.0828709 | CJ82: 22.87869514 | CK82: 142.6476508 | CL82: 0 | CM82: 0 | CN82: 0 | CO82: 0 | CP82: 0 | CQ82: 0 | CR82: 0 | CS82: 6.202071773 | CT82: 0 | CU82: 0 | CV82: 0 | CW82: 6.202071773 | CX82: 6.202071773 | CY82: 0 | CZ82: 0 | DA82: 0 | DB82: 0 | DC82: 0 | DD82: 0 | DE82: 0 | DF82: 0 | DG82: 0 | DH82: 12255.29382 | DI82: 0 | DJ82: 6.202071773 | DK82: 6.202071773 | DL82: 6.202071773 | DM82: 0 | DN82: 12391.7394 | DO82: 31.01035887 | DP82: 0 | DQ82: 12428.95183 | DR82: -10.8536256 | DS82: 6.202071773 | DT82: 6.202071773 | DU82: 6.202071773 | DV82: 6.202071773 | DW82: 6.202071773 | DX82: 6.202071773 | DY82: 6.202071773 | DZ82: 6.202071773 | EA82: 6.202071773 | EB82: 0 | EC82: 0 | ED82: 6.202071773 | EE82: 6.202071773 | EF82: 0 | EG82: 0 | EH82: 0 | EI82: 6.202071773 | EJ82: 0 | EK82: 6.202071773 | EL82: 0 | EM82: 1.376859934
A83: 9 | B83: Beck and Levine (2004) | C83: 1 | D83: 1 | E83: 0 | F83: 0 | G83: 0 | H83: 0.458904859 | I83: 0.179605302 | J83: 0.429191221 | K83: 0.154899863 | L83: 6.455783635 | M83: 2.770765659 | N83: 40 | O83: 1 | P83: 40 | Q83: 3.688879454 | R83: 23 | T83: 1 | AD83: 1 | AE83: 1 | AM83: 0 | AN83: 0 | AO83: 1976 | AQ83: 1 | AR83: 1 | AS83: 1 | AU83: 1998 | AV83: 5 | AW83: 0 | AX83: 2004 | AY83: -1.75 | AZ83: 1 | BA83: 1 | BB83: 1 | BC83: 1 | BD83: 1 | BE83: 1 | BF83: 1 | BG83: 1 | BJ83: 1 | BK83: 1 | BL83: 1 | BP83: 1 | BR83: 1 | BT83: 0.222 | BV83: 6.455783635 | BW83: 6.455783635 | BX83: 0 | BY83: 0 | BZ83: 0 | CA83: 2.962590479 | CB83: 1.159492969 | CC83: 2.770765661 | CD83: 1.000000001 | CE83: 41.67714234 | CF83: 17.8874636 | CG83: 258.2313454 | CH83: 6.455783635 | CI83: 258.2313454 | CJ83: 23.81460761 | CK83: 148.4830236 | CL83: 0 | CM83: 6.455783635 | CN83: 0 | CO83: 0 | CP83: 0 | CQ83: 0 | CR83: 0 | CS83: 0 | CT83: 0 | CU83: 0 | CV83: 0 | CW83: 6.455783635 | CX83: 6.455783635 | CY83: 0 | CZ83: 0 | DA83: 0 | DB83: 0 | DC83: 0 | DD83: 0 | DE83: 0 | DF83: 0 | DG83: 0 | DH83: 12756.62846 | DI83: 0 | DJ83: 6.455783635 | DK83: 6.455783635 | DL83: 6.455783635 | DM83: 0 | DN83: 12898.6557 | DO83: 32.27891818 | DP83: 0 | DQ83: 12937.3904 | DR83: -11.29762136 | DS83: 6.455783635 | DT83: 6.455783635 | DU83: 6.455783635 | DV83: 6.455783635 | DW83: 6.455783635 | DX83: 6.455783635 | DY83: 6.455783635 | DZ83: 6.455783635 | EA83: 0 | EB83: 0 | EC83: 6.455783635 | ED83: 6.455783635 | EE83: 6.455783635 | EF83: 0 | EG83: 0 | EH83: 0 | EI83: 6.455783635 | EJ83: 0 | EK83: 6.455783635 | EL83: 0 | EM83: 1.433183967
A84: 9 | B84: Beck and Levine (2004) | C84: 1 | D84: 1 | E84: 0 | F84: 0 | G84: 0 | H84: 0.360379419 | I84: 0.179605302 | J84: 0.345548193 | K84: 0.160934445 | L84: 6.213710199 | M84: 2.147136333 | N84: 40 | O84: 1 | P84: 40 | Q84: 3.688879454 | R84: 23 | Z84: 1 | AD84: 1 | AE84: 1 | AM84: 0 | AN84: 0 | AO84: 1976 | AQ84: 1 | AR84: 1 | AS84: 1 | AU84: 1998 | AV84: 5 | AW84: 0 | AX84: 2004 | AY84: -1.75 | AZ84: 1 | BA84: 1 | BB84: 1 | BC84: 1 | BD84: 1 | BE84: 1 | BF84: 1 | BG84: 1 | BJ84: 1 | BK84: 1 | BL84: 1 | BP84: 1 | BR84: 1 | BT84: 0.222 | BV84: 6.213710199 | BW84: 6.213710199 | BX84: 0 | BY84: 0 | BZ84: 0 | CA84: 2.239293271 | CB84: 1.116015297 | CC84: 2.147136331 | CD84: 1.000000002 | CE84: 38.61019444 | CF84: 13.34168293 | CG84: 248.548408 | CH84: 6.213710199 | CI84: 248.548408 | CJ84: 22.92162789 | CK84: 142.9153346 | CL84: 0 | CM84: 0 | CN84: 0 | CO84: 0 | CP84: 0 | CQ84: 0 | CR84: 0 | CS84: 6.213710199 | CT84: 0 | CU84: 0 | CV84: 0 | CW84: 6.213710199 | CX84: 6.213710199 | CY84: 0 | CZ84: 0 | DA84: 0 | DB84: 0 | DC84: 0 | DD84: 0 | DE84: 0 | DF84: 0 | DG84: 0 | DH84: 12278.29135 | DI84: 0 | DJ84: 6.213710199 | DK84: 6.213710199 | DL84: 6.213710199 | DM84: 0 | DN84: 12414.99298 | DO84: 31.068551 | DP84: 0 | DQ84: 12452.27524 | DR84: -10.87399285 | DS84: 6.213710199 | DT84: 6.213710199 | DU84: 6.213710199 | DV84: 6.213710199 | DW84: 6.213710199 | DX84: 6.213710199 | DY84: 6.213710199 | DZ84: 6.213710199 | EA84: 0 | EB84: 0 | EC84: 6.213710199 | ED84: 6.213710199 | EE84: 6.213710199 | EF84: 0 | EG84: 0 | EH84: 0 | EI84: 6.213710199 | EJ84: 0 | EK84: 6.213710199 | EL84: 0 | EM84: 1.379443664
A85: 9 | B85: Beck and Levine (2004) | C85: 1 | D85: 1 | E85: 0 | F85: 0 | G85: 0 | H85: 0.279387035 | I85: 0.085125653 | J85: 0.272337672 | K85: 0.081032005 | L85: 12.34080294 | M85: 3.360865548 | N85: 40 | O85: 5 | P85: 146 | Q85: 4.983606622 | R85: 5 | T85: 1 | AD85: 1 | AK85: 1 | AM85: 1 | AN85: 0 | AO85: 1976 | AQ85: 1 | AR85: 1 | AS85: 1 | AU85: 1998 | AV85: 4 | AW85: 1 | AX85: 2004 | AY85: -1.75 | AZ85: 1 | BA85: 1 | BB85: 1 | BC85: 1 | BD85: 1 | BE85: 1 | BF85: 1 | BG85: 1 | BK85: 1 | BL85: 1 | BP85: 1 | BQ85: 1 | BT85: 0.222 | BV85: 12.34080294 | BW85: 12.34080294 | BX85: 0 | BY85: 0 | BZ85: 0 | CA85: 3.447860343 | CB85: 1.050518909 | CC85: 3.360865543 | CD85: 1.000000006 | CE85: 152.2954172 | CF85: 41.47577944 | CG85: 493.6321176 | CH85: 61.7040147 | CI85: 1801.757229 | CJ85: 61.50170725 | CK85: 61.7040147 | CL85: 0 | CM85: 12.34080294 | CN85: 0 | CO85: 0 | CP85: 0 | CQ85: 0 | CR85: 0 | CS85: 0 | CT85: 0 | CU85: 0 | CV85: 0 | CW85: 12.34080294 | CX85: 0 | CY85: 0 | CZ85: 0 | DA85: 0 | DB85: 0 | DC85: 0 | DD85: 12.34080294 | DE85: 0 | DF85: 12.34080294 | DG85: 0 | DH85: 24385.42661 | DI85: 0 | DJ85: 12.34080294 | DK85: 12.34080294 | DL85: 12.34080294 | DM85: 0 | DN85: 24656.92427 | DO85: 49.36321176 | DP85: 12.34080294 | DQ85: 24730.96909 | DR85: -21.59640514 | DS85: 12.34080294 | DT85: 12.34080294 | DU85: 12.34080294 | DV85: 12.34080294 | DW85: 12.34080294 | DX85: 12.34080294 | DY85: 12.34080294 | DZ85: 12.34080294 | EA85: 0 | EB85: 0 | EC85: 0 | ED85: 12.34080294 | EE85: 12.34080294 | EF85: 0 | EG85: 0 | EH85: 0 | EI85: 12.34080294 | EJ85: 12.34080294 | EK85: 0 | EL85: 0 | EM85: 2.739658253
A86: 9 | B86: Beck and Levine (2004) | C86: 1 | D86: 1 | E86: 0 | F86: 0 | G86: 0 | H86: 0.279387035 | I86: 0.085125653 | J86: 0.272337672 | K86: 0.081032005 | L86: 12.34080294 | M86: 3.360865548 | N86: 40 | O86: 5 | P86: 146 | Q86: 4.983606622 | R86: 5 | Z86: 1 | AD86: 1 | AK86: 1 | AM86: 1 | AN86: 0 | AO86: 1976 | AQ86: 1 | AR86: 1 | AS86: 1 | AU86: 1998 | AV86: 4 | AW86: 1 | AX86: 2004 | AY86: -1.75 | AZ86: 1 | BA86: 1 | BB86: 1 | BC86: 1 | BD86: 1 | BE86: 1 | BF86: 1 | BG86: 1 | BK86: 1 | BL86: 1 | BP86: 1 | BQ86: 1 | BT86: 0.222 | BV86: 12.34080294 | BW86: 12.34080294 | BX86: 0 | BY86: 0 | BZ86: 0 | CA86: 3.447860343 | CB86: 1.050518909 | CC86: 3.360865543 | CD86: 1.000000006 | CE86: 152.2954172 | CF86: 41.47577944 | CG86: 493.6321176 | CH86: 61.7040147 | CI86: 1801.757229 | CJ86: 61.50170725 | CK86: 61.7040147 | CL86: 0 | CM86: 0 | CN86: 0 | CO86: 0 | CP86: 0 | CQ86: 0 | CR86: 0 | CS86: 12.34080294 | CT86: 0 | CU86: 0 | CV86: 0 | CW86: 12.34080294 | CX86: 0 | CY86: 0 | CZ86: 0 | DA86: 0 | DB86: 0 | DC86: 0 | DD86: 12.34080294 | DE86: 0 | DF86: 12.34080294 | DG86: 0 | DH86: 24385.42661 | DI86: 0 | DJ86: 12.34080294 | DK86: 12.34080294 | DL86: 12.34080294 | DM86: 0 | DN86: 24656.92427 | DO86: 49.36321176 | DP86: 12.34080294 | DQ86: 24730.96909 | DR86: -21.59640514 | DS86: 12.34080294 | DT86: 12.34080294 | DU86: 12.34080294 | DV86: 12.34080294 | DW86: 12.34080294 | DX86: 12.34080294 | DY86: 12.34080294 | DZ86: 12.34080294 | EA86: 0 | EB86: 0 | EC86: 0 | ED86: 12.34080294 | EE86: 12.34080294 | EF86: 0 | EG86: 0 | EH86: 0 | EI86: 12.34080294 | EJ86: 12.34080294 | EK86: 0 | EL86: 0 | EM86: 2.739658253
A87: 9 | B87: Beck and Levine (2004) | C87: 1 | D87: 1 | E87: 0 | F87: 0 | G87: 0 | H87: 0.280399448 | I87: 0.085435766 | J87: 0.273274738 | K87: 0.081298432 | L87: 12.30036016 | M87: 3.361377703 | N87: 40 | O87: 5 | P87: 146 | Q87: 4.983606622 | R87: 5 | T87: 1 | AD87: 1 | AK87: 1 | AM87: 1 | AN87: 0 | AO87: 1976 | AQ87: 1 | AR87: 1 | AS87: 1 | AU87: 1998 | AV87: 5 | AW87: 1 | AX87: 2004 | AY87: -1.75 | AZ87: 1 | BA87: 1 | BB87: 1 | BC87: 1 | BD87: 1 | BE87: 1 | BF87: 1 | BG87: 1 | BH87: 1 | BK87: 1 | BL87: 1 | BP87: 1 | BQ87: 1 | BT87: 0.222 | BV87: 12.30036016 | BW87: 12.30036016 | BX87: 0 | BY87: 0 | BZ87: 0 | CA87: 3.449014199 | CB87: 1.050890692 | CC87: 3.3613777 | CD87: 0.999999994 | CE87: 151.2988601 | CF87: 41.34615638 | CG87: 492.0144064 | CH87: 61.5018008 | CI87: 1795.852583 | CJ87: 61.30015634 | CK87: 61.5018008 | CL87: 0 | CM87: 12.30036016 | CN87: 0 | CO87: 0 | CP87: 0 | CQ87: 0 | CR87: 0 | CS87: 0 | CT87: 0 | CU87: 0 | CV87: 0 | CW87: 12.30036016 | CX87: 0 | CY87: 0 | CZ87: 0 | DA87: 0 | DB87: 0 | DC87: 0 | DD87: 12.30036016 | DE87: 0 | DF87: 12.30036016 | DG87: 0 | DH87: 24305.51168 | DI87: 0 | DJ87: 12.30036016 | DK87: 12.30036016 | DL87: 12.30036016 | DM87: 0 | DN87: 24576.1196 | DO87: 61.5018008 | DP87: 12.30036016 | DQ87: 24649.92176 | DR87: -21.52563028 | DS87: 12.30036016 | DT87: 12.30036016 | DU87: 12.30036016 | DV87: 12.30036016 | DW87: 12.30036016 | DX87: 12.30036016 | DY87: 12.30036016 | DZ87: 12.30036016 | EA87: 12.30036016 | EB87: 0 | EC87: 0 | ED87: 12.30036016 | EE87: 12.30036016 | EF87: 0 | EG87: 0 | EH87: 0 | EI87: 12.30036016 | EJ87: 12.30036016 | EK87: 0 | EL87: 0 | EM87: 2.730679956
A88: 9 | B88: Beck and Levine (2004) | C88: 1 | D88: 1 | E88: 0 | F88: 0 | G88: 0 | H88: 0.280399448 | I88: 0.085435766 | J88: 0.273274738 | K88: 0.081298432 | L88: 12.30036016 | M88: 3.361377703 | N88: 40 | O88: 5 | P88: 146 | Q88: 4.983606622 | R88: 5 | Z88: 1 | AD88: 1 | AK88: 1 | AM88: 1 | AN88: 0 | AO88: 1976 | AQ88: 1 | AR88: 1 | AS88: 1 | AU88: 1998 | AV88: 5 | AW88: 1 | AX88: 2004 | AY88: -1.75 | AZ88: 1 | BA88: 1 | BB88: 1 | BC88: 1 | BD88: 1 | BE88: 1 | BF88: 1 | BG88: 1 | BH88: 1 | BK88: 1 | BL88: 1 | BP88: 1 | BQ88: 1 | BT88: 0.222 | BV88: 12.30036016 | BW88: 12.30036016 | BX88: 0 | BY88: 0 | BZ88: 0 | CA88: 3.449014199 | CB88: 1.050890692 | CC88: 3.3613777 | CD88: 0.999999994 | CE88: 151.2988601 | CF88: 41.34615638 | CG88: 492.0144064 | CH88: 61.5018008 | CI88: 1795.852583 | CJ88: 61.30015634 | CK88: 61.5018008 | CL88: 0 | CM88: 0 | CN88: 0 | CO88: 0 | CP88: 0 | CQ88: 0 | CR88: 0 | CS88: 12.30036016 | CT88: 0 | CU88: 0 | CV88: 0 | CW88: 12.30036016 | CX88: 0 | CY88: 0 | CZ88: 0 | DA88: 0 | DB88: 0 | DC88: 0 | DD88: 12.30036016 | DE88: 0 | DF88: 12.30036016 | DG88: 0 | DH88: 24305.51168 | DI88: 0 | DJ88: 12.30036016 | DK88: 12.30036016 | DL88: 12.30036016 | DM88: 0 | DN88: 24576.1196 | DO88: 61.5018008 | DP88: 12.30036016 | DQ88: 24649.92176 | DR88: -21.52563028 | DS88: 12.30036016 | DT88: 12.30036016 | DU88: 12.30036016 | DV88: 12.30036016 | DW88: 12.30036016 | DX88: 12.30036016 | DY88: 12.30036016 | DZ88: 12.30036016 | EA88: 12.30036016 | EB88: 0 | EC88: 0 | ED88: 12.30036016 | EE88: 12.30036016 | EF88: 0 | EG88: 0 | EH88: 0 | EI88: 12.30036016 | EJ88: 12.30036016 | EK88: 0 | EL88: 0 | EM88: 2.730679956
A89: 9 | B89: Beck and Levine (2004) | C89: 1 | D89: 1 | E89: 0 | F89: 0 | G89: 0 | H89: 0.280399448 | I89: 0.085435766 | J89: 0.273274738 | K89: 0.081298432 | L89: 12.30036016 | M89: 3.361377703 | N89: 40 | O89: 5 | P89: 146 | Q89: 4.983606622 | R89: 5 | T89: 1 | AD89: 1 | AK89: 1 | AM89: 1 | AN89: 0 | AO89: 1976 | AQ89: 1 | AR89: 1 | AS89: 1 | AU89: 1998 | AV89: 5 | AW89: 1 | AX89: 2004 | AY89: -1.75 | AZ89: 1 | BA89: 1 | BB89: 1 | BC89: 1 | BD89: 1 | BE89: 1 | BF89: 1 | BG89: 1 | BJ89: 1 | BK89: 1 | BL89: 1 | BP89: 1 | BQ89: 1 | BT89: 0.222 | BV89: 12.30036016 | BW89: 12.30036016 | BX89: 0 | BY89: 0 | BZ89: 0 | CA89: 3.449014199 | CB89: 1.050890692 | CC89: 3.3613777 | CD89: 0.999999994 | CE89: 151.2988601 | CF89: 41.34615638 | CG89: 492.0144064 | CH89: 61.5018008 | CI89: 1795.852583 | CJ89: 61.30015634 | CK89: 61.5018008 | CL89: 0 | CM89: 12.30036016 | CN89: 0 | CO89: 0 | CP89: 0 | CQ89: 0 | CR89: 0 | CS89: 0 | CT89: 0 | CU89: 0 | CV89: 0 | CW89: 12.30036016 | CX89: 0 | CY89: 0 | CZ89: 0 | DA89: 0 | DB89: 0 | DC89: 0 | DD89: 12.30036016 | DE89: 0 | DF89: 12.30036016 | DG89: 0 | DH89: 24305.51168 | DI89: 0 | DJ89: 12.30036016 | DK89: 12.30036016 | DL89: 12.30036016 | DM89: 0 | DN89: 24576.1196 | DO89: 61.5018008 | DP89: 12.30036016 | DQ89: 24649.92176 | DR89: -21.52563028 | DS89: 12.30036016 | DT89: 12.30036016 | DU89: 12.30036016 | DV89: 12.30036016 | DW89: 12.30036016 | DX89: 12.30036016 | DY89: 12.30036016 | DZ89: 12.30036016 | EA89: 0 | EB89: 0 | EC89: 12.30036016 | ED89: 12.30036016 | EE89: 12.30036016 | EF89: 0 | EG89: 0 | EH89: 0 | EI89: 12.30036016 | EJ89: 12.30036016 | EK89: 0 | EL89: 0 | EM89: 2.730679956
A90: 9 | B90: Beck and Levine (2004) | C90: 1 | D90: 1 | E90: 0 | F90: 0 | G90: 0 | H90: 0.280399448 | I90: 0.085435766 | J90: 0.273274738 | K90: 0.081298432 | L90: 12.30036016 | M90: 3.361377703 | N90: 40 | O90: 5 | P90: 146 | Q90: 4.983606622 | R90: 5 | Z90: 1 | AD90: 1 | AK90: 1 | AM90: 1 | AN90: 0 | AO90: 1976 | AQ90: 1 | AR90: 1 | AS90: 1 | AU90: 1998 | AV90: 5 | AW90: 1 | AX90: 2004 | AY90: -1.75 | AZ90: 1 | BA90: 1 | BB90: 1 | BC90: 1 | BD90: 1 | BE90: 1 | BF90: 1 | BG90: 1 | BJ90: 1 | BK90: 1 | BL90: 1 | BP90: 1 | BQ90: 1 | BT90: 0.222 | BV90: 12.30036016 | BW90: 12.30036016 | BX90: 0 | BY90: 0 | BZ90: 0 | CA90: 3.449014199 | CB90: 1.050890692 | CC90: 3.3613777 | CD90: 0.999999994 | CE90: 151.2988601 | CF90: 41.34615638 | CG90: 492.0144064 | CH90: 61.5018008 | CI90: 1795.852583 | CJ90: 61.30015634 | CK90: 61.5018008 | CL90: 0 | CM90: 0 | CN90: 0 | CO90: 0 | CP90: 0 | CQ90: 0 | CR90: 0 | CS90: 12.30036016 | CT90: 0 | CU90: 0 | CV90: 0 | CW90: 12.30036016 | CX90: 0 | CY90: 0 | CZ90: 0 | DA90: 0 | DB90: 0 | DC90: 0 | DD90: 12.30036016 | DE90: 0 | DF90: 12.30036016 | DG90: 0 | DH90: 24305.51168 | DI90: 0 | DJ90: 12.30036016 | DK90: 12.30036016 | DL90: 12.30036016 | DM90: 0 | DN90: 24576.1196 | DO90: 61.5018008 | DP90: 12.30036016 | DQ90: 24649.92176 | DR90: -21.52563028 | DS90: 12.30036016 | DT90: 12.30036016 | DU90: 12.30036016 | DV90: 12.30036016 | DW90: 12.30036016 | DX90: 12.30036016 | DY90: 12.30036016 | DZ90: 12.30036016 | EA90: 0 | EB90: 0 | EC90: 12.30036016 | ED90: 12.30036016 | EE90: 12.30036016 | EF90: 0 | EG90: 0 | EH90: 0 | EI90: 12.30036016 | EJ90: 12.30036016 | EK90: 0 | EL90: 0 | EM90: 2.730679956
A91: 9 | B91: Beck and Levine (2004) | C91: 1 | D91: 1 | E91: 0 | F91: 0 | G91: 0 | H91: 0.280399448 | I91: 0.085435766 | J91: 0.273274738 | K91: 0.081298432 | L91: 12.30036016 | M91: 3.361377703 | N91: 40 | O91: 5 | P91: 146 | Q91: 4.983606622 | R91: 5 | T91: 1 | AD91: 1 | AK91: 1 | AM91: 1 | AN91: 0 | AO91: 1976 | AQ91: 1 | AR91: 1 | AS91: 1 | AU91: 1998 | AV91: 5 | AW91: 1 | AX91: 2004 | AY91: -1.75 | AZ91: 1 | BA91: 1 | BB91: 1 | BC91: 1 | BD91: 1 | BE91: 1 | BF91: 1 | BG91: 1 | BH91: 1 | BK91: 1 | BL91: 1 | BP91: 1 | BQ91: 1 | BT91: 0.222 | BV91: 12.30036016 | BW91: 12.30036016 | BX91: 0 | BY91: 0 | BZ91: 0 | CA91: 3.449014199 | CB91: 1.050890692 | CC91: 3.3613777 | CD91: 0.999999994 | CE91: 151.2988601 | CF91: 41.34615638 | CG91: 492.0144064 | CH91: 61.5018008 | CI91: 1795.852583 | CJ91: 61.30015634 | CK91: 61.5018008 | CL91: 0 | CM91: 12.30036016 | CN91: 0 | CO91: 0 | CP91: 0 | CQ91: 0 | CR91: 0 | CS91: 0 | CT91: 0 | CU91: 0 | CV91: 0 | CW91: 12.30036016 | CX91: 0 | CY91: 0 | CZ91: 0 | DA91: 0 | DB91: 0 | DC91: 0 | DD91: 12.30036016 | DE91: 0 | DF91: 12.30036016 | DG91: 0 | DH91: 24305.51168 | DI91: 0 | DJ91: 12.30036016 | DK91: 12.30036016 | DL91: 12.30036016 | DM91: 0 | DN91: 24576.1196 | DO91: 61.5018008 | DP91: 12.30036016 | DQ91: 24649.92176 | DR91: -21.52563028 | DS91: 12.30036016 | DT91: 12.30036016 | DU91: 12.30036016 | DV91: 12.30036016 | DW91: 12.30036016 | DX91: 12.30036016 | DY91: 12.30036016 | DZ91: 12.30036016 | EA91: 12.30036016 | EB91: 0 | EC91: 0 | ED91: 12.30036016 | EE91: 12.30036016 | EF91: 0 | EG91: 0 | EH91: 0 | EI91: 12.30036016 | EJ91: 12.30036016 | EK91: 0 | EL91: 0 | EM91: 2.730679956
A92: 9 | B92: Beck and Levine (2004) | C92: 1 | D92: 1 | E92: 0 | F92: 0 | G92: 0 | H92: 0.280399448 | I92: 0.085435766 | J92: 0.273274738 | K92: 0.081298432 | L92: 12.30036016 | M92: 3.361377703 | N92: 40 | O92: 5 | P92: 146 | Q92: 4.983606622 | R92: 5 | Z92: 1 | AD92: 1 | AK92: 1 | AM92: 1 | AN92: 0 | AO92: 1976 | AQ92: 1 | AR92: 1 | AS92: 1 | AU92: 1998 | AV92: 5 | AW92: 1 | AX92: 2004 | AY92: -1.75 | AZ92: 1 | BA92: 1 | BB92: 1 | BC92: 1 | BD92: 1 | BE92: 1 | BF92: 1 | BG92: 1 | BH92: 1 | BK92: 1 | BL92: 1 | BP92: 1 | BQ92: 1 | BT92: 0.222 | BV92: 12.30036016 | BW92: 12.30036016 | BX92: 0 | BY92: 0 | BZ92: 0 | CA92: 3.449014199 | CB92: 1.050890692 | CC92: 3.3613777 | CD92: 0.999999994 | CE92: 151.2988601 | CF92: 41.34615638 | CG92: 492.0144064 | CH92: 61.5018008 | CI92: 1795.852583 | CJ92: 61.30015634 | CK92: 61.5018008 | CL92: 0 | CM92: 0 | CN92: 0 | CO92: 0 | CP92: 0 | CQ92: 0 | CR92: 0 | CS92: 12.30036016 | CT92: 0 | CU92: 0 | CV92: 0 | CW92: 12.30036016 | CX92: 0 | CY92: 0 | CZ92: 0 | DA92: 0 | DB92: 0 | DC92: 0 | DD92: 12.30036016 | DE92: 0 | DF92: 12.30036016 | DG92: 0 | DH92: 24305.51168 | DI92: 0 | DJ92: 12.30036016 | DK92: 12.30036016 | DL92: 12.30036016 | DM92: 0 | DN92: 24576.1196 | DO92: 61.5018008 | DP92: 12.30036016 | DQ92: 24649.92176 | DR92: -21.52563028 | DS92: 12.30036016 | DT92: 12.30036016 | DU92: 12.30036016 | DV92: 12.30036016 | DW92: 12.30036016 | DX92: 12.30036016 | DY92: 12.30036016 | DZ92: 12.30036016 | EA92: 12.30036016 | EB92: 0 | EC92: 0 | ED92: 12.30036016 | EE92: 12.30036016 | EF92: 0 | EG92: 0 | EH92: 0 | EI92: 12.30036016 | EJ92: 12.30036016 | EK92: 0 | EL92: 0 | EM92: 2.730679956
A93: 9 | B93: Beck and Levine (2004) | C93: 1 | D93: 1 | E93: 0 | F93: 0 | G93: 0 | H93: 0.280399448 | I93: 0.085435766 | J93: 0.273274738 | K93: 0.081298432 | L93: 12.30036016 | M93: 3.361377703 | N93: 40 | O93: 5 | P93: 146 | Q93: 4.983606622 | R93: 5 | T93: 1 | AD93: 1 | AK93: 1 | AM93: 1 | AN93: 0 | AO93: 1976 | AQ93: 1 | AR93: 1 | AS93: 1 | AU93: 1998 | AV93: 5 | AW93: 1 | AX93: 2004 | AY93: -1.75 | AZ93: 1 | BA93: 1 | BB93: 1 | BC93: 1 | BD93: 1 | BE93: 1 | BF93: 1 | BG93: 1 | BJ93: 1 | BK93: 1 | BL93: 1 | BP93: 1 | BQ93: 1 | BT93: 0.222 | BV93: 12.30036016 | BW93: 12.30036016 | BX93: 0 | BY93: 0 | BZ93: 0 | CA93: 3.449014199 | CB93: 1.050890692 | CC93: 3.3613777 | CD93: 0.999999994 | CE93: 151.2988601 | CF93: 41.34615638 | CG93: 492.0144064 | CH93: 61.5018008 | CI93: 1795.852583 | CJ93: 61.30015634 | CK93: 61.5018008 | CL93: 0 | CM93: 12.30036016 | CN93: 0 | CO93: 0 | CP93: 0 | CQ93: 0 | CR93: 0 | CS93: 0 | CT93: 0 | CU93: 0 | CV93: 0 | CW93: 12.30036016 | CX93: 0 | CY93: 0 | CZ93: 0 | DA93: 0 | DB93: 0 | DC93: 0 | DD93: 12.30036016 | DE93: 0 | DF93: 12.30036016 | DG93: 0 | DH93: 24305.51168 | DI93: 0 | DJ93: 12.30036016 | DK93: 12.30036016 | DL93: 12.30036016 | DM93: 0 | DN93: 24576.1196 | DO93: 61.5018008 | DP93: 12.30036016 | DQ93: 24649.92176 | DR93: -21.52563028 | DS93: 12.30036016 | DT93: 12.30036016 | DU93: 12.30036016 | DV93: 12.30036016 | DW93: 12.30036016 | DX93: 12.30036016 | DY93: 12.30036016 | DZ93: 12.30036016 | EA93: 0 | EB93: 0 | EC93: 12.30036016 | ED93: 12.30036016 | EE93: 12.30036016 | EF93: 0 | EG93: 0 | EH93: 0 | EI93: 12.30036016 | EJ93: 12.30036016 | EK93: 0 | EL93: 0 | EM93: 2.730679956
A94: 9 | B94: Beck and Levine (2004) | C94: 1 | D94: 1 | E94: 0 | F94: 0 | G94: 0 | H94: 0.280399448 | I94: 0.085435766 | J94: 0.273274738 | K94: 0.081298432 | L94: 12.30036016 | M94: 3.361377703 | N94: 40 | O94: 5 | P94: 146 | Q94: 4.983606622 | R94: 5 | Z94: 1 | AD94: 1 | AK94: 1 | AM94: 1 | AN94: 0 | AO94: 1976 | AQ94: 1 | AR94: 1 | AS94: 1 | AU94: 1998 | AV94: 5 | AW94: 1 | AX94: 2004 | AY94: -1.75 | AZ94: 1 | BA94: 1 | BB94: 1 | BC94: 1 | BD94: 1 | BE94: 1 | BF94: 1 | BG94: 1 | BJ94: 1 | BK94: 1 | BL94: 1 | BP94: 1 | BQ94: 1 | BT94: 0.222 | BV94: 12.30036016 | BW94: 12.30036016 | BX94: 0 | BY94: 0 | BZ94: 0 | CA94: 3.449014199 | CB94: 1.050890692 | CC94: 3.3613777 | CD94: 0.999999994 | CE94: 151.2988601 | CF94: 41.34615638 | CG94: 492.0144064 | CH94: 61.5018008 | CI94: 1795.852583 | CJ94: 61.30015634 | CK94: 61.5018008 | CL94: 0 | CM94: 0 | CN94: 0 | CO94: 0 | CP94: 0 | CQ94: 0 | CR94: 0 | CS94: =Z94*$L94 -> 12.30036016 | CT94: 0 | CU94: 0 | CV94: 0 | CW94: 12.30036016 | CX94: 0 | CY94: 0 | CZ94: 0 | DA94: 0 | DB94: 0 | DC94: 0 | DD94: 12.30036016 | DE94: 0 | DF94: 12.30036016 | DG94: 0 | DH94: 24305.51168 | DI94: 0 | DJ94: 12.30036016 | DK94: 12.30036016 | DL94: 12.30036016 | DM94: 0 | DN94: 24576.1196 | DO94: 61.5018008 | DP94: 12.30036016 | DQ94: 24649.92176 | DR94: -21.52563028 | DS94: 12.30036016 | DT94: 12.30036016 | DU94: 12.30036016 | DV94: 12.30036016 | DW94: 12.30036016 | DX94: 12.30036016 | DY94: 12.30036016 | DZ94: 12.30036016 | EA94: 0 | EB94: 0 | EC94: 12.30036016 | ED94: 12.30036016 | EE94: 12.30036016 | EF94: 0 | EG94: 0 | EH94: 0 | EI94: 12.30036016 | EJ94: 12.30036016 | EK94: 0 | EL94: 0 | EM94: 2.730679956
A95: 9 | B95: Beck and Levine (2004) | C95: 1 | D95: 1 | E95: 0 | F95: 0 | G95: 0 | H95: 0.08616255 | I95: 0.101015254 | J95: 0.085949958 | K95: 0.099135501 | L95: 10.08720377 | M95: 0.866994745 | N95: 40 | O95: 5 | P95: 106 | Q95: 4.663439094 | R95: 5 | T95: 1 | AD95: 1 | AJ95: 1 | AM95: 1 | AN95: 0 | AO95: 1976 | AQ95: 1 | AR95: 1 | AS95: 1 | AU95: 1998 | AV95: 4 | AW95: 1 | AX95: 2004 | AY95: -1.75 | AZ95: 1 | BA95: 1 | BB95: 1 | BC95: 1 | BD95: 1 | BE95: 1 | BF95: 1 | BG95: 1 | BK95: 1 | BL95: 1 | BP95: 1 | BQ95: 1 | BT95: 0.222 | BV95: 10.08720377 | BW95: 10.08720377 | BX95: 0 | BY95: 0 | BZ95: 0 | CA95: 0.8691391992 | CB95: 1.018961451 | CC95: 0.8669947404 | CD95: 0.9999999994 | CE95: 101.7516799 | CF95: 8.74555266 | CG95: 403.4881508 | CH95: 50.43601885 | CI95: 1069.2436 | CJ95: 47.04106041 | CK95: 50.43601885 | CL95: 0 | CM95: 10.08720377 | CN95: 0 | CO95: 0 | CP95: 0 | CQ95: 0 | CR95: 0 | CS95: 0 | CT95: 0 | CU95: 0 | CV95: 0 | CW95: 10.08720377 | CX95: 0 | CY95: 0 | CZ95: 0 | DA95: 0 | DB95: 0 | DC95: 10.08720377 | DD95: 0 | DE95: 0 | DF95: 10.08720377 | DG95: 0 | DH95: 19932.31465 | DI95: 0 | DJ95: 10.08720377 | DK95: 10.08720377 | DL95: 10.08720377 | DM95: 0 | DN95: 20154.23313 | DO95: 40.34881508 | DP95: 10.08720377 | DQ95: 20214.75636 | DR95: -17.6526066 | DS95: 10.08720377 | DT95: 10.08720377 | DU95: 10.08720377 | DV95: 10.08720377 | DW95: 10.08720377 | DX95: 10.08720377 | DY95: 10.08720377 | DZ95: =BG95*$L95 -> 10.08720377 | EA95: 0 | EB95: 0 | EC95: 0 | ED95: 10.08720377 | EE95: 10.08720377 | EF95: 0 | EG95: 0 | EH95: 0 | EI95: 10.08720377 | EJ95: 10.08720377 | EK95: 0 | EL95: 0 | EM95: 2.239359237
A96: 9 | B96: Beck and Levine (2004) | C96: 1 | D96: 1 | E96: 0 | F96: 0 | G96: 0 | H96: 0.041967571 | I96: 0.101015254 | J96: 0.041942949 | K96: 0.099416156 | L96: 10.05872723 | M96: 0.421892687 | N96: 40 | O96: 5 | P96: 106 | Q96: 4.663439094 | R96: 5 | Z96: 1 | AD96: 1 | AJ96: 1 | AM96: 1 | AN96: 0 | AO96: 1976 | AQ96: 1 | AR96: 1 | AS96: 1 | AU96: 1998 | AV96: 4 | AW96: 1 | AX96: 2004 | AY96: -1.75 | AZ96: 1 | BA96: 1 | BB96: 1 | BC96: 1 | BD96: 1 | BE96: 1 | BF96: 1 | BG96: 1 | BK96: 1 | BL96: 1 | BP96: 1 | BQ96: 1 | BT96: 0.222 | BV96: 10.05872723 | BW96: 10.05872723 | BX96: 0 | BY96: 0 | BZ96: 0 | CA96: 0.4221403492 | CB96: 1.016084886 | CC96: 0.4218926832 | CD96: 0.9999999955 | CE96: 101.1779935 | CF96: 4.243703459 | CG96: =N96*$L96 -> 402.3490892 | CH96: 50.29363615 | CI96: 1066.225086 | CJ96: 46.9082618 | CK96: 50.29363615 | CL96: 0 | CM96: 0 | CN96: 0 | CO96: 0 | CP96: 0 | CQ96: 0 | CR96: 0 | CS96: 10.05872723 | CT96: 0 | CU96: 0 | CV96: 0 | CW96: 10.05872723 | CX96: 0 | CY96: 0 | CZ96: 0 | DA96: 0 | DB96: 0 | DC96: 10.05872723 | DD96: 0 | DE96: 0 | DF96: 10.05872723 | DG96: 0 | DH96: 19876.04501 | DI96: 0 | DJ96: 10.05872723 | DK96: 10.05872723 | DL96: 10.05872723 | DM96: 0 | DN96: 20097.33701 | DO96: 40.23490892 | DP96: 10.05872723 | DQ96: 20157.68937 | DR96: -17.60277265 | DS96: 10.05872723 | DT96: 10.05872723 | DU96: 10.05872723 | DV96: 10.05872723 | DW96: 10.05872723 | DX96: 10.05872723 | DY96: 10.05872723 | DZ96: 10.05872723 | EA96: 0 | EB96: 0 | EC96: 0 | ED96: 10.05872723 | EE96: 10.05872723 | EF96: 0 | EG96: 0 | EH96: 0 | EI96: 10.05872723 | EJ96: 10.05872723 | EK96: 0 | EL96: 0 | EM96: 2.233037445
A97: 9 | B97: Beck and Levine (2004) | C97: 1 | D97: 1 | E97: 0 | F97: 0 | G97: 0 | H97: 0.079847026 | I97: 0.101534617 | J97: 0.079677769 | K97: 0.099682067 | L97: 10.03189468 | M97: 0.799318982 | N97: 40 | O97: 5 | P97: 106 | Q97: 4.663439094 | R97: 5 | T97: 1 | AD97: 1 | AJ97: 1 | AM97: 1 | AN97: 0 | AO97: 1976 | AQ97: 1 | AR97: 1 | AS97: 1 | AU97: 1998 | AV97: 5 | AW97: 1 | AX97: 2004 | AY97: -1.75 | AZ97: 1 | BA97: 1 | BB97: 1 | BC97: 1 | BD97: 1 | BE97: 1 | BF97: 1 | BG97: 1 | BH97: 1 | BK97: 1 | BL97: 1 | BP97: 1 | BQ97: 1 | BT97: 0.222 | BV97: 10.03189468 | BW97: 10.03189468 | BX97: 0 | BY97: 0 | BZ97: 0 | CA97: 0.8010169553 | CB97: 1.018584584 | CC97: 0.7993189869 | CD97: 0.9999999976 | CE97: 100.6389109 | CF97: 8.018683843 | CG97: 401.2757872 | CH97: 50.1594734 | CI97: 1063.380836 | CJ97: 46.78312984 | CK97: 50.1594734 | CL97: 0 | CM97: 10.03189468 | CN97: 0 | CO97: 0 | CP97: 0 | CQ97: 0 | CR97: 0 | CS97: 0 | CT97: 0 | CU97: 0 | CV97: 0 | CW97: 10.03189468 | CX97: 0 | CY97: 0 | CZ97: 0 | DA97: 0 | DB97: 0 | DC97: 10.03189468 | DD97: 0 | DE97: 0 | DF97: 10.03189468 | DG97: 0 | DH97: 19823.02389 | DI97: 0 | DJ97: 10.03189468 | DK97: 10.03189468 | DL97: 10.03189468 | DM97: 0 | DN97: 20043.72557 | DO97: 50.1594734 | DP97: 10.03189468 | DQ97: 20103.91694 | DR97: -17.55581569 | DS97: 10.03189468 | DT97: 10.03189468 | DU97: 10.03189468 | DV97: 10.03189468 | DW97: 10.03189468 | DX97: 10.03189468 | DY97: 10.03189468 | DZ97: 10.03189468 | EA97: 10.03189468 | EB97: 0 | EC97: 0 | ED97: 10.03189468 | EE97: 10.03189468 | EF97: 0 | EG97: 0 | EH97: 0 | EI97: 10.03189468 | EJ97: 10.03189468 | EK97: 0 | EL97: 0 | EM97: 2.227080619
A98: 9 | B98: Beck and Levine (2004) | C98: 1 | D98: 1 | E98: 0 | F98: 0 | G98: 0 | H98: 0.025010388 | I98: 0.101534617 | J98: 0.025005174 | K98: 0.099968732 | L98: 10.00312776 | M98: 0.25012995 | N98: 40 | O98: 5 | P98: 106 | Q98: 4.663439094 | R98: 5 | Z98: 1 | AD98: 1 | AJ98: 1 | AM98: 1 | AN98: 0 | AO98: 1976 | AQ98: 1 | AR98: 1 | AS98: 1 | AU98: 1998 | AV98: 5 | AW98: 1 | AX98: 2004 | AY98: -1.75 | AZ98: 1 | BA98: 1 | BB98: 1 | BC98: 1 | BD98: 1 | BE98: 1 | BF98: 1 | BG98: 1 | BH98: 1 | BK98: 1 | BL98: 1 | BP98: 1 | BQ98: 1 | BT98: 0.222 | BV98: 10.00312776 | BW98: 10.00312776 | BX98: 0 | BY98: 0 | BZ98: 0 | CA98: 0.2501821065 | CB98: 1.015663746 | CC98: 0.2501299502 | CD98: 0.9999999982 | CE98: 100.062565 | CF98: 2.502081846 | CG98: 400.1251104 | CH98: 50.0156388 | CI98: 1060.331543 | CJ98: 46.64897706 | CK98: 50.0156388 | CL98: 0 | CM98: 0 | CN98: 0 | CO98: 0 | CP98: 0 | CQ98: 0 | CR98: 0 | CS98: 10.00312776 | CT98: 0 | CU98: 0 | CV98: 0 | CW98: 10.00312776 | CX98: 0 | CY98: 0 | CZ98: 0 | DA98: 0 | DB98: 0 | DC98: 10.00312776 | DD98: 0 | DE98: 0 | DF98: 10.00312776 | DG98: 0 | DH98: 19766.18045 | DI98: 0 | DJ98: 10.00312776 | DK98: 10.00312776 | DL98: 10.00312776 | DM98: 0 | DN98: 19986.24926 | DO98: 50.0156388 | DP98: 10.00312776 | DQ98: 20046.26803 | DR98: -17.50547358 | DS98: 10.00312776 | DT98: 10.00312776 | DU98: 10.00312776 | DV98: 10.00312776 | DW98: 10.00312776 | DX98: 10.00312776 | DY98: 10.00312776 | DZ98: 10.00312776 | EA98: 10.00312776 | EB98: 0 | EC98: 0 | ED98: 10.00312776 | EE98: 10.00312776 | EF98: 0 | EG98: 0 | EH98: 0 | EI98: 10.00312776 | EJ98: 10.00312776 | EK98: 0 | EL98: 0 | EM98: 2.220694363
A99: 9 | B99: Beck and Levine (2004) | C99: 1 | D99: 1 | E99: 0 | F99: 0 | G99: 0 | H99: 0.046335276 | I99: 0.101534617 | J99: 0.046302145 | K99: 0.099892748 | L99: 10.01073671 | M99: 0.463518581 | N99: 40 | O99: 5 | P99: 106 | Q99: 4.663439094 | R99: 5 | T99: 1 | AD99: 1 | AJ99: 1 | AM99: 1 | AN99: 0 | AO99: 1976 | AQ99: 1 | AR99: 1 | AS99: 1 | AU99: 1998 | AV99: 5 | AW99: 1 | AX99: 2004 | AY99: -1.75 | AZ99: 1 | BA99: 1 | BB99: 1 | BC99: 1 | BD99: 1 | BE99: 1 | BF99: 1 | BG99: 1 | BJ99: 1 | BK99: 1 | BL99: 1 | BP99: 1 | BQ99: 1 | BT99: 0.222 | BV99: 10.01073671 | BW99: 10.01073671 | BX99: 0 | BY99: 0 | BZ99: 0 | CA99: 0.4638502484 | CB99: 1.016436318 | CC99: 0.4635185827 | CD99: 0.9999999995 | CE99: 100.2148495 | CF99: 4.640162475 | CG99: 400.4294684 | CH99: 50.05368355 | CI99: 1061.138091 | CJ99: 46.68446093 | CK99: 50.05368355 | CL99: 0 | CM99: 10.01073671 | CN99: 0 | CO99: 0 | CP99: 0 | CQ99: 0 | CR99: 0 | CS99: 0 | CT99: 0 | CU99: 0 | CV99: 0 | CW99: 10.01073671 | CX99: 0 | CY99: 0 | CZ99: 0 | DA99: 0 | DB99: 0 | DC99: 10.01073671 | DD99: 0 | DE99: 0 | DF99: 10.01073671 | DG99: 0 | DH99: 19781.21574 | DI99: 0 | DJ99: 10.01073671 | DK99: 10.01073671 | DL99: 10.01073671 | DM99: 0 | DN99: 20001.45195 | DO99: 50.05368355 | DP99: 10.01073671 | DQ99: 20061.51637 | DR99: -17.51878924 | DS99: 10.01073671 | DT99: 10.01073671 | DU99: 10.01073671 | DV99: 10.01073671 | DW99: 10.01073671 | DX99: 10.01073671 | DY99: 10.01073671 | DZ99: 10.01073671 | EA99: 0 | EB99: 0 | EC99: 10.01073671 | ED99: 10.01073671 | EE99: 10.01073671 | EF99: 0 | EG99: 0 | EH99: 0 | EI99: 10.01073671 | EJ99: 10.01073671 | EK99: 0 | EL99: 0 | EM99: 2.22238355
A100: 9 | B100: Beck and Levine (2004) | C100: 1 | D100: 1 | E100: 0 | F100: 0 | G100: 0 | H100: 0.152478846 | I100: 0.101534617 | J100: 0.151308033 | K100: 0.098848666 | L100: 10.1164744 | M100: 1.53070384 | N100: 40 | O100: 5 | P100: 106 | Q100: 4.663439094 | R100: 5 | Z100: 1 | AD100: 1 | AJ100: 1 | AM100: 1 | AN100: 0 | AO100: 1976 | AQ100: 1 | AR100: 1 | AS100: 1 | AU100: 1998 | AV100: 5 | AW100: 1 | AX100: 2004 | AY100: -1.75 | AZ100: 1 | BA100: 1 | BB100: 1 | BC100: 1 | BD100: 1 | BE100: 1 | BF100: 1 | BG100: 1 | BJ100: 1 | BK100: 1 | BL100: 1 | BP100: 1 | BQ100: 1 | BT100: 0.222 | BV100: 10.1164744 | BW100: 10.1164744 | BX100: 0 | BY100: 0 | BZ100: 0 | CA100: 1.542548342 | CB100: 1.027172354 | CC100: 1.530703842 | CD100: 0.9999999991 | CE100: 102.3430543 | CF100: 15.48532621 | CG100: 404.658976 | CH100: 50.582372 | CI100: 1072.346286 | CJ100: 47.17756221 | CK100: 50.582372 | CL100: 0 | CM100: 0 | CN100: 0 | CO100: 0 | CP100: 0 | CQ100: 0 | CR100: 0 | CS100: 10.1164744 | CT100: 0 | CU100: 0 | CV100: 0 | CW100: 10.1164744 | CX100: 0 | CY100: 0 | CZ100: 0 | DA100: 0 | DB100: 0 | DC100: 10.1164744 | DD100: 0 | DE100: 0 | DF100: 10.1164744 | DG100: 0 | DH100: 19990.15341 | DI100: 0 | DJ100: 10.1164744 | DK100: 10.1164744 | DL100: 10.1164744 | DM100: 0 | DN100: 20212.71585 | DO100: 50.582372 | DP100: 10.1164744 | DQ100: 20273.4147 | DR100: -17.7038302 | DS100: 10.1164744 | DT100: 10.1164744 | DU100: 10.1164744 | DV100: 10.1164744 | DW100: 10.1164744 | DX100: 10.1164744 | DY100: 10.1164744 | DZ100: 10.1164744 | EA100: 0 | EB100: 0 | EC100: 10.1164744 | ED100: 10.1164744 | EE100: 10.1164744 | EF100: 0 | EG100: 0 | EH100: 0 | EI100: 10.1164744 | EJ100: 10.1164744 | EK100: 0 | EL100: 0 | EM100: 2.245857317
A101: 9 | B101: Beck and Levine (2004) | C101: 1 | D101: 1 | E101: 0 | F101: 0 | G101: 0 | H101: 0.044663151 | I101: 0.101534617 | J101: 0.044633477 | K101: 0.099900343 | L101: 10.00997564 | M101: 0.446780017 | N101: 40 | O101: 5 | P101: 106 | Q101: 4.663439094 | R101: 5 | T101: 1 | AD101: 1 | AJ101: 1 | AM101: 1 | AN101: 0 | AO101: 1976 | AQ101: 1 | AR101: 1 | AS101: 1 | AU101: 1998 | AV101: 5 | AW101: 1 | AX101: 2004 | AY101: -1.75 | AZ101: 1 | BA101: 1 | BB101: 1 | BC101: 1 | BD101: 1 | BE101: 1 | BF101: 1 | BG101: 1 | BH101: 1 | BK101: 1 | BL101: 1 | BP101: 1 | BQ101: 1 | BT101: 0.222 | BV101: 10.00997564 | BW101: 10.00997564 | BX101: 0 | BY101: 0 | BZ101: 0 | CA101: 0.4470770535 | CB101: 1.016359043 | CC101: 0.4467800175 | CD101: 0.9999999999 | CE101: 100.1996123 | CF101: 4.472257087 | CG101: 400.3990256 | CH101: 50.0498782 | CI101: 1061.057418 | CJ101: 46.68091173 | CK101: 50.0498782 | CL101: 0 | CM101: 10.00997564 | CN101: 0 | CO101: 0 | CP101: 0 | CQ101: 0 | CR101: 0 | CS101: 0 | CT101: 0 | CU101: 0 | CV101: 0 | CW101: 10.00997564 | CX101: 0 | CY101: 0 | CZ101: 0 | DA101: 0 | DB101: 0 | DC101: 10.00997564 | DD101: 0 | DE101: 0 | DF101: 10.00997564 | DG101: 0 | DH101: 19779.71186 | DI101: 0 | DJ101: 10.00997564 | DK101: 10.00997564 | DL101: 10.00997564 | DM101: 0 | DN101: 19999.93133 | DO101: 50.0498782 | DP101: 10.00997564 | DQ101: 20059.99118 | DR101: -17.51745737 | DS101: 10.00997564 | DT101: 10.00997564 | DU101: 10.00997564 | DV101: 10.00997564 | DW101: 10.00997564 | DX101: 10.00997564 | DY101: 10.00997564 | DZ101: 10.00997564 | EA101: 10.00997564 | EB101: 0 | EC101: 0 | ED101: 10.00997564 | EE101: 10.00997564 | EF101: 0 | EG101: 0 | EH101: 0 | EI101: 10.00997564 | EJ101: 10.00997564 | EK101: 0 | EL101: 0 | EM101: 2.222214592
A102: 9 | B102: Beck and Levine (2004) | C102: 1 | D102: 1 | E102: 0 | F102: 0 | G102: 0 | H102: 0.021781978 | I102: 0.101534617 | J102: 0.021778534 | K102: 0.099976282 | L102: 10.00237237 | M102: 0.217837003 | N102: 40 | O102: 5 | P102: 106 | Q102: 4.663439094 | R102: 5 | Z102: 1 | AD102: 1 | AJ102: 1 | AM102: 1 | AN102: 0 | AO102: 1976 | AQ102: 1 | AR102: 1 | AS102: 1 | AU102: 1998 | AV102: 5 | AW102: 1 | AX102: 2004 | AY102: -1.75 | AZ102: 1 | BA102: 1 | BB102: 1 | BC102: 1 | BD102: 1 | BE102: 1 | BF102: 1 | BG102: 1 | BH102: 1 | BK102: 1 | BL102: 1 | BP102: 1 | BQ102: 1 | BT102: 0.222 | BV102: 10.00237237 | BW102: 10.00237237 | BX102: 0 | BY102: 0 | BZ102: 0 | CA102: 0.2178714549 | CB102: 1.015587048 | CC102: 0.2178370067 | CD102: 1.000000001 | CE102: 100.047453 | CF102: 2.17888682 | CG102: 400.0948948 | CH102: 50.01186185 | CI102: 1060.251471 | CJ102: 46.64545434 | CK102: 50.01186185 | CL102: 0 | CM102: 0 | CN102: 0 | CO102: 0 | CP102: 0 | CQ102: 0 | CR102: 0 | CS102: 10.00237237 | CT102: 0 | CU102: 0 | CV102: 0 | CW102: 10.00237237 | CX102: 0 | CY102: 0 | CZ102: 0 | DA102: 0 | DB102: 0 | DC102: 10.00237237 | DD102: 0 | DE102: 0 | DF102: 10.00237237 | DG102: 0 | DH102: 19764.6878 | DI102: 0 | DJ102: 10.00237237 | DK102: 10.00237237 | DL102: 10.00237237 | DM102: 0 | DN102: 19984.74 | DO102: 50.01186185 | DP102: 10.00237237 | DQ102: 20044.75423 | DR102: -17.50415165 | DS102: 10.00237237 | DT102: 10.00237237 | DU102: 10.00237237 | DV102: 10.00237237 | DW102: 10.00237237 | DX102: 10.00237237 | DY102: 10.00237237 | DZ102: 10.00237237 | EA102: 10.00237237 | EB102: 0 | EC102: 0 | ED102: 10.00237237 | EE102: 10.00237237 | EF102: 0 | EG102: 0 | EH102: 0 | EI102: 10.00237237 | EJ102: 10.00237237 | EK102: 0 | EL102: 0 | EM102: 2.220526666
A103: 9 | B103: Beck and Levine (2004) | C103: 1 | D103: 1 | E103: 0 | F103: 0 | G103: 0 | H103: 0.059643082 | I103: 0.101534617 | J103: 0.05957246 | K103: 0.099822398 | L103: 10.01779176 | M103: 0.596784495 | N103: 40 | O103: 5 | P103: 106 | Q103: 4.663439094 | R103: 5 | T103: 1 | AD103: 1 | AJ103: 1 | AM103: 1 | AN103: 0 | AO103: 1976 | AQ103: 1 | AR103: 1 | AS103: 1 | AU103: 1998 | AV103: 5 | AW103: 1 | AX103: 2004 | AY103: -1.75 | AZ103: 1 | BA103: 1 | BB103: 1 | BC103: 1 | BD103: 1 | BE103: 1 | BF103: 1 | BG103: 1 | BJ103: 1 | BK103: 1 | BL103: 1 | BP103: 1 | BQ103: 1 | BT103: 0.222 | BV103: 10.01779176 | BW103: 10.01779176 | BX103: 0 | BY103: 0 | BZ103: 0 | CA103: 0.5974919754 | CB103: 1.01715265 | CC103: 0.5967844989 | CD103: 0.9999999961 | CE103: 100.3561517 | CF103: 5.978462797 | CG103: 400.7116704 | CH103: 50.0889588 | CI103: 1061.885927 | CJ103: 46.71736173 | CK103: 50.0889588 | CL103: 0 | CM103: 10.01779176 | CN103: 0 | CO103: 0 | CP103: 0 | CQ103: 0 | CR103: 0 | CS103: 0 | CT103: 0 | CU103: 0 | CV103: 0 | CW103: 10.01779176 | CX103: 0 | CY103: 0 | CZ103: 0 | DA103: 0 | DB103: 0 | DC103: 10.01779176 | DD103: 0 | DE103: 0 | DF103: 10.01779176 | DG103: 0 | DH103: 19795.15652 | DI103: 0 | DJ103: 10.01779176 | DK103: 10.01779176 | DL103: 10.01779176 | DM103: 0 | DN103: 20015.54794 | DO103: 50.0889588 | DP103: 10.01779176 | DQ103: 20075.65469 | DR103: -17.53113558 | DS103: 10.01779176 | DT103: 10.01779176 | DU103: 10.01779176 | DV103: 10.01779176 | DW103: 10.01779176 | DX103: 10.01779176 | DY103: 10.01779176 | DZ103: 10.01779176 | EA103: 0 | EB103: 0 | EC103: 10.01779176 | ED103: 10.01779176 | EE103: 10.01779176 | EF103: 0 | EG103: 0 | EH103: 0 | EI103: 10.01779176 | EJ103: 10.01779176 | EK103: 0 | EL103: 0 | EM103: 2.223949771
A104: 9 | B104: Beck and Levine (2004) | C104: 1 | D104: 1 | E104: 0 | F104: 0 | G104: 0 | H104: 0.06669901 | I104: 0.101534617 | J104: 0.066600277 | K104: 0.099777974 | L104: 10.02225204 | M104: 0.667484758 | N104: 40 | O104: 5 | P104: 106 | Q104: 4.663439094 | R104: 5 | Z104: 1 | AD104: 1 | AJ104: 1 | AM104: 1 | AN104: 0 | AO104: 1976 | AQ104: 1 | AR104: 1 | AS104: 1 | AU104: 1988 | AV104: 5 | AW104: 1 | AX104: 2004 | AY104: -1.75 | AZ104: 1 | BA104: 1 | BB104: 1 | BC104: 1 | BD104: 1 | BE104: 1 | BF104: 1 | BG104: 1 | BJ104: 1 | BK104: 1 | BL104: 1 | BP104: 1 | BQ104: 1 | BT104: 0.222 | BV104: 10.02225204 | BW104: 10.02225204 | BX104: 0 | BY104: 0 | BZ104: 0 | CA104: 0.668474289 | CB104: 1.017605522 | CC104: 0.667484762 | CD104: 1.000000003 | CE104: 100.445536 | CF104: 6.689700478 | CG104: 400.8900816 | CH104: 50.1112602 | CI104: 1062.358716 | CJ104: 46.73816197 | CK104: 50.1112602 | CL104: 0 | CM104: 0 | CN104: 0 | CO104: 0 | CP104: 0 | CQ104: 0 | CR104: 0 | CS104: 10.02225204 | CT104: 0 | CU104: 0 | CV104: 0 | CW104: 10.02225204 | CX104: 0 | CY104: 0 | CZ104: 0 | DA104: 0 | DB104: 0 | DC104: 10.02225204 | DD104: 0 | DE104: 0 | DF104: 10.02225204 | DG104: 0 | DH104: 19803.97003 | DI104: 0 | DJ104: 10.02225204 | DK104: 10.02225204 | DL104: 10.02225204 | DM104: 0 | DN104: 19924.23706 | DO104: 50.1112602 | DP104: 10.02225204 | DQ104: 20084.59309 | DR104: -17.53894107 | DS104: 10.02225204 | DT104: 10.02225204 | DU104: 10.02225204 | DV104: 10.02225204 | DW104: 10.02225204 | DX104: 10.02225204 | DY104: 10.02225204 | DZ104: 10.02225204 | EA104: 0 | EB104: 0 | EC104: 10.02225204 | ED104: 10.02225204 | EE104: 10.02225204 | EF104: 0 | EG104: 0 | EH104: 0 | EI104: 10.02225204 | EJ104: 10.02225204 | EK104: 0 | EL104: =BS104*$L104 -> 0 | EM104: 2.224939953
A105: 9 | B105: Beck and Levine (2004) | C105: 1 | D105: 1 | E105: 0 | F105: 0 | G105: 0 | H105: 0.026216777 | I105: 0.085125653 | J105: 0.026210772 | K105: 0.084186259 | L105: 11.87842305 | M105: 0.311342642 | N105: 40 | O105: 5 | P105: 146 | Q105: 4.983606622 | R105: 5 | T105: 1 | AD105: 1 | AL105: 1 | AM105: 1 | AN105: 0 | AO105: 1976 | AQ105: 1 | AR105: 1 | AS105: 1 | AU105: 1988 | AV105: 4 | AW105: 1 | AX105: 2004 | AY105: -1.75 | AZ105: 1 | BA105: 1 | BB105: 1 | BC105: 1 | BD105: 1 | BE105: 1 | BF105: 1 | BG105: 1 | BK105: 1 | BL105: 1 | BP105: 1 | BQ105: 1 | BT105: 0.222 | BV105: 11.87842305 | BW105: 11.87842305 | BX105: 0 | BY105: 0 | BZ105: 0 | CA105: 0.3114139682 | CB105: 1.011158519 | CC105: 0.3113426383 | CD105: 0.9999999994 | CE105: 141.0969342 | CF105: 3.698259615 | CG105: 475.136922 | CH105: 59.39211525 | CI105: 1734.249765 | CJ105: 59.19738777 | CK105: 59.39211525 | CL105: 0 | CM105: 11.87842305 | CN105: 0 | CO105: 0 | CP105: 0 | CQ105: 0 | CR105: 0 | CS105: 0 | CT105: 0 | CU105: 0 | CV105: 0 | CW105: 11.87842305 | CX105: 0 | CY105: 0 | CZ105: 0 | DA105: 0 | DB105: 0 | DC105: 0 | DD105: 0 | DE105: 11.87842305 | DF105: 11.87842305 | DG105: 0 | DH105: 23471.76395 | DI105: 0 | DJ105: 11.87842305 | DK105: 11.87842305 | DL105: 11.87842305 | DM105: 0 | DN105: 23614.30502 | DO105: 47.5136922 | DP105: 11.87842305 | DQ105: 23804.35979 | DR105: -20.78724034 | DS105: 11.87842305 | DT105: 11.87842305 | DU105: 11.87842305 | DV105: 11.87842305 | DW105: 11.87842305 | DX105: 11.87842305 | DY105: 11.87842305 | DZ105: 11.87842305 | EA105: 0 | EB105: 0 | EC105: 0 | ED105: 11.87842305 | EE105: 11.87842305 | EF105: 0 | EG105: 0 | EH105: 0 | EI105: 11.87842305 | EJ105: 11.87842305 | EK105: 0 | EL105: 0 | EM105: 2.637009917
A106: 9 | B106: Beck and Levine (2004) | C106: 1 | D106: 1 | E106: 0 | F106: 0 | G106: 0 | H106: 0.143724472 | I106: 0.085125653 | J106: 0.142742955 | K106: 0.083352811 | L106: 11.99719585 | M106: 1.71251519 | N106: 40 | O106: 5 | P106: 146 | Q106: 4.983606622 | R106: 5 | Z106: 1 | AD106: 1 | AL106: 1 | AM106: 1 | AN106: 0 | AO106: 1976 | AQ106: 1 | AR106: 1 | AS106: 1 | AU106: 1988 | AV106: 4 | AW106: 1 | AX106: 2004 | AY106: -1.75 | AZ106: 1 | BA106: 1 | BB106: 1 | BC106: 1 | BD106: 1 | BE106: 1 | BF106: 1 | BG106: 1 | BK106: 1 | BL106: 1 | BP106: 1 | BQ106: 1 | BT106: 0.222 | BV106: 11.99719585 | BW106: 11.99719585 | BX106: 0 | BY106: 0 | BZ106: 0 | CA106: 1.724290639 | CB106: 1.021269131 | CC106: 1.712515187 | CD106: 0.9999999982 | CE106: 143.9327083 | CF106: 20.54538013 | CG106: 479.887834 | CH106: 59.98597925 | CI106: 1751.590594 | CJ106: 59.78930468 | CK106: 59.98597925 | CL106: 0 | CM106: 0 | CN106: 0 | CO106: 0 | CP106: 0 | CQ106: 0 | CR106: 0 | CS106: 11.99719585 | CT106: 0 | CU106: 0 | CV106: 0 | CW106: 11.99719585 | CX106: 0 | CY106: 0 | CZ106: 0 | DA106: 0 | DB106: 0 | DC106: 0 | DD106: 0 | DE106: 11.99719585 | DF106: 11.99719585 | DG106: 0 | DH106: 23706.459 | DI106: 0 | DJ106: 11.99719585 | DK106: 11.99719585 | DL106: 11.99719585 | DM106: 0 | DN106: 23850.42535 | DO106: 47.9887834 | DP106: 11.99719585 | DQ106: 24042.38048 | DR106: -20.99509274 | DS106: 11.99719585 | DT106: 11.99719585 | DU106: 11.99719585 | DV106: 11.99719585 | DW106: 11.99719585 | DX106: 11.99719585 | DY106: 11.99719585 | DZ106: 11.99719585 | EA106: 0 | EB106: 0 | EC106: 0 | ED106: 11.99719585 | EE106: 11.99719585 | EF106: 0 | EG106: 0 | EH106: 0 | EI106: 11.99719585 | EJ106: 11.99719585 | EK106: 0 | EL106: 0 | EM106: 2.663377479
A107: 9 | B107: Beck and Levine (2004) | C107: 1 | D107: 1 | E107: 0 | F107: 0 | G107: 0 | H107: 0.206668275 | I107: 0.085435766 | J107: 0.203775301 | K107: 0.082742096 | L107: 12.08574651 | M107: 2.462776636 | N107: 40 | O107: 5 | P107: 146 | Q107: 4.983606622 | R107: 5 | T107: 1 | AD107: 1 | AL107: 1 | AM107: 1 | AN107: 0 | AO107: 1976 | AQ107: 1 | AR107: 1 | AS107: 1 | AU107: 1988 | AV107: 5 | AW107: 1 | AX107: 2004 | AY107: -1.75 | AZ107: 1 | BA107: 1 | BB107: 1 | BC107: 1 | BD107: 1 | BE107: 1 | BF107: 1 | BG107: 1 | BH107: 1 | BK107: 1 | BL107: 1 | BP107: 1 | BQ107: 1 | BT107: 0.222 | BV107: 12.08574651 | BW107: 12.08574651 | BX107: 0 | BY107: 0 | BZ107: 0 | CA107: 2.497740383 | CB107: 1.032555011 | CC107: 2.462776633 | CD107: 0.999999998 | CE107: 146.0652687 | CF107: 29.76449413 | CG107: 483.4298604 | CH107: 60.42873255 | CI107: 1764.51899 | CJ107: 60.23060634 | CK107: 60.42873255 | CL107: 0 | CM107: 12.08574651 | CN107: 0 | CO107: 0 | CP107: 0 | CQ107: 0 | CR107: 0 | CS107: 0 | CT107: 0 | CU107: 0 | CV107: 0 | CW107: 12.08574651 | CX107: 0 | CY107: 0 | CZ107: 0 | DA107: 0 | DB107: 0 | DC107: 0 | DD107: 0 | DE107: 12.08574651 | DF107: 12.08574651 | DG107: 0 | DH107: 23881.4351 | DI107: 0 | DJ107: 12.08574651 | DK107: 12.08574651 | DL107: 12.08574651 | DM107: 0 | DN107: 24026.46406 | DO107: 60.42873255 | DP107: 12.08574651 | DQ107: 24219.83601 | DR107: -21.15005639 | DS107: 12.08574651 | DT107: 12.08574651 | DU107: 12.08574651 | DV107: 12.08574651 | DW107: 12.08574651 | DX107: 12.08574651 | DY107: 12.08574651 | DZ107: 12.08574651 | EA107: 12.08574651 | EB107: 0 | EC107: 0 | ED107: 12.08574651 | EE107: 12.08574651 | EF107: 0 | EG107: 0 | EH107: 0 | EI107: 12.08574651 | EJ107: 12.08574651 | EK107: 0 | EL107: 0 | EM107: 2.683035725
A108: 9 | B108: Beck and Levine (2004) | C108: 1 | D108: 1 | E108: 0 | F108: 0 | G108: 0 | H108: 0.126069886 | I108: 0.085435766 | J108: 0.125406203 | K108: 0.083848217 | L108: 11.92631207 | M108: 1.495633511 | N108: 40 | O108: 5 | P108: 146 | Q108: 4.983606622 | R108: 5 | Z108: 1 | AD108: 1 | AL108: 1 | AM108: 1 | AN108: 0 | AO108: 1976 | AQ108: 1 | AR108: 1 | AS108: 1 | AU108: 1988 | AV108: 5 | AW108: 1 | AX108: 2004 | AY108: -1.75 | AZ108: 1 | BA108: 1 | BB108: 1 | BC108: 1 | BD108: 1 | BE108: 1 | BF108: 1 | BG108: 1 | BH108: 1 | BK108: 1 | BL108: 1 | BP108: 1 | BQ108: 1 | BT108: 0.222 | BV108: 11.92631207 | BW108: 11.92631207 | BX108: 0 | BY108: 0 | BZ108: 0 | CA108: 1.503548803 | CB108: 1.018933607 | CC108: 1.495633512 | CD108: 1.000000002 | CE108: 142.2369196 | CF108: 17.83739199 | CG108: 477.0524828 | CH108: 59.63156035 | CI108: 1741.241562 | CJ108: 59.4360478 | CK108: 59.63156035 | CL108: 0 | CM108: 0 | CN108: 0 | CO108: 0 | CP108: =W108*$L108 -> 0 | CQ108: 0 | CR108: 0 | CS108: 11.92631207 | CT108: 0 | CU108: 0 | CV108: 0 | CW108: 11.92631207 | CX108: 0 | CY108: 0 | CZ108: 0 | DA108: 0 | DB108: 0 | DC108: 0 | DD108: 0 | DE108: 11.92631207 | DF108: 11.92631207 | DG108: 0 | DH108: 23566.39265 | DI108: 0 | DJ108: 11.92631207 | DK108: 11.92631207 | DL108: 11.92631207 | DM108: 0 | DN108: 23709.5084 | DO108: 59.63156035 | DP108: 11.92631207 | DQ108: 23900.32939 | DR108: -20.87104612 | DS108: 11.92631207 | DT108: 11.92631207 | DU108: 11.92631207 | DV108: 11.92631207 | DW108: 11.92631207 | DX108: 11.92631207 | DY108: 11.92631207 | DZ108: 11.92631207 | EA108: 11.92631207 | EB108: 0 | EC108: 0 | ED108: 11.92631207 | EE108: 11.92631207 | EF108: 0 | EG108: 0 | EH108: 0 | EI108: 11.92631207 | EJ108: 11.92631207 | EK108: 0 | EL108: 0 | EM108: 2.64764128
A109: 9 | B109: Beck and Levine (2004) | C109: 1 | D109: 1 | E109: 0 | F109: 0 | G109: 0 | H109: 0.030804931 | I109: 0.085435766 | J109: 0.030795191 | K109: 0.084475341 | L109: 11.83777404 | M109: 0.364546509 | N109: 40 | O109: 5 | P109: 146 | Q109: 4.983606622 | R109: 5 | T109: 1 | AD109: 1 | AL109: 1 | AM109: 1 | AN109: 0 | AO109: 1976 | AQ109: 1 | AR109: 1 | AS109: 1 | AU109: 1988 | AV109: 5 | AW109: 1 | AX109: 2004 | AY109: -1.75 | AZ109: 1 | BA109: 1 | BB109: 1 | BC109: 1 | BD109: 1 | BE109: 1 | BF109: 1 | BG109: 1 | BJ109: 1 | BK109: 1 | BL109: 1 | BP109: 1 | BQ109: 1 | BT109: 0.222 | BV109: 11.83777404 | BW109: 11.83777404 | BX109: 0 | BY109: 0 | BZ109: 0 | CA109: 0.3646618125 | CB109: 1.011369293 | CC109: 0.3645465126 | CD109: 0.9999999987 | CE109: 140.1328942 | CF109: 4.315419201 | CG109: 473.5109616 | CH109: 59.1888702 | CI109: 1728.31501 | CJ109: 58.99480909 | CK109: =R109*$L109 -> 59.1888702 | CL109: 0 | CM109: 11.83777404 | CN109: 0 | CO109: 0 | CP109: 0 | CQ109: 0 | CR109: 0 | CS109: 0 | CT109: 0 | CU109: 0 | CV109: 0 | CW109: 11.83777404 | CX109: 0 | CY109: 0 | CZ109: 0 | DA109: 0 | DB109: 0 | DC109: 0 | DD109: 0 | DE109: 11.83777404 | DF109: 11.83777404 | DG109: 0 | DH109: 23391.4415 | DI109: 0 | DJ109: 11.83777404 | DK109: 11.83777404 | DL109: 11.83777404 | DM109: 0 | DN109: 23533.49479 | DO109: 59.1888702 | DP109: 11.83777404 | DQ109: 23722.89918 | DR109: -20.71610457 | DS109: 11.83777404 | DT109: 11.83777404 | DU109: 11.83777404 | DV109: 11.83777404 | DW109: 11.83777404 | DX109: 11.83777404 | DY109: 11.83777404 | DZ109: 11.83777404 | EA109: 0 | EB109: 0 | EC109: 11.83777404 | ED109: 11.83777404 | EE109: 11.83777404 | EF109: 0 | EG109: 0 | EH109: 0 | EI109: 11.83777404 | EJ109: 11.83777404 | EK109: 0 | EL109: 0 | EM109: 2.627985837
A110: 9 | B110: Beck and Levine (2004) | C110: 1 | D110: 1 | E110: 0 | F110: 0 | G110: 0 | H110: 0.244889265 | I110: 0.085435766 | J110: 0.240108516 | K110: 0.082043016 | L110: 12.18872796 | M110: 2.926617384 | N110: 40 | O110: 5 | P110: 146 | Q110: 4.983606622 | R110: 5 | Z110: 1 | AD110: 1 | AL110: 1 | AM110: 1 | AN110: 0 | AO110: 1976 | AQ110: 1 | AR110: 1 | AS110: 1 | AU110: 1988 | AV110: 5 | AW110: 1 | AX110: 2004 | AY110: -1.75 | AZ110: 1 | BA110: 1 | BB110: 1 | BC110: 1 | BD110: 1 | BE110: 1 | BF110: 1 | BG110: 1 | BJ110: 1 | BK110: 1 | BL110: 1 | BP110: 1 | BQ110: 1 | BT110: 0.222 | BV110: 12.18872796 | BW110: 12.18872796 | BX110: 0 | BY110: 0 | BZ110: 0 | CA110: 2.984888631 | CB110: 1.04135331 | CC110: 2.926617382 | CD110: 1.000000003 | CE110: 148.5650893 | CF110: 35.67174314 | CG110: 487.5491184 | CH110: 60.9436398 | CI110: 1779.554282 | CJ110: 60.74382537 | CK110: 60.9436398 | CL110: 0 | CM110: 0 | CN110: 0 | CO110: 0 | CP110: 0 | CQ110: 0 | CR110: 0 | CS110: 12.18872796 | CT110: 0 | CU110: 0 | CV110: 0 | CW110: 12.18872796 | CX110: 0 | CY110: 0 | CZ110: 0 | DA110: 0 | DB110: 0 | DC110: 0 | DD110: 0 | DE110: 12.18872796 | DF110: 12.18872796 | DG110: 0 | DH110: 24084.92645 | DI110: 0 | DJ110: 12.18872796 | DK110: 12.18872796 | DL110: 12.18872796 | DM110: 0 | DN110: 24231.19118 | DO110: 60.9436398 | DP110: 12.18872796 | DQ110: 24426.21083 | DR110: -21.33027393 | DS110: 12.18872796 | DT110: 12.18872796 | DU110: 12.18872796 | DV110: 12.18872796 | DW110: 12.18872796 | DX110: 12.18872796 | DY110: =BF110*$L110 -> 12.18872796 | DZ110: 12.18872796 | EA110: 0 | EB110: 0 | EC110: 12.18872796 | ED110: 12.18872796 | EE110: 12.18872796 | EF110: 0 | EG110: 0 | EH110: 0 | EI110: 12.18872796 | EJ110: 12.18872796 | EK110: 0 | EL110: 0 | EM110: 2.705897607
A111: 9 | B111: Beck and Levine (2004) | C111: 1 | D111: 1 | E111: 0 | F111: 0 | G111: 0 | H111: 0.006160044 | I111: 0.085435766 | J111: 0.006159966 | K111: 0.084513822 | L111: 11.83238406 | M111: 0.072887086 | N111: 40 | O111: 5 | P111: 146 | Q111: 4.983606622 | R111: 5 | T111: 1 | AD111: 1 | AL111: 1 | AM111: 1 | AN111: 0 | AO111: 1976 | AQ111: 1 | AR111: 1 | AS111: 1 | AU111: 1988 | AV111: 5 | AW111: 1 | AX111: 2004 | AY111: -1.75 | AZ111: 1 | BA111: 1 | BB111: 1 | BC111: 1 | BD111: 1 | BE111: 1 | BF111: 1 | BG111: 1 | BH111: 1 | BK111: 1 | BL111: 1 | BP111: 1 | BQ111: 1 | BT111: 0.222 | BV111: 11.83238406 | BW111: 11.83238406 | BX111: 0 | BY111: 0 | BZ111: 0 | CA111: 0.07288800643 | CB111: 1.010908796 | CC111: 0.07288708351 | CD111: 1 | CE111: 140.0053125 | CF111: 0.8624279946 | CG111: 473.2953624 | CH111: 59.1619203 | CI111: 1727.528073 | CJ111: 58.96794755 | CK111: 59.1619203 | CL111: 0 | CM111: 11.83238406 | CN111: 0 | CO111: 0 | CP111: 0 | CQ111: 0 | CR111: 0 | CS111: 0 | CT111: 0 | CU111: 0 | CV111: 0 | CW111: 11.83238406 | CX111: 0 | CY111: 0 | CZ111: 0 | DA111: 0 | DB111: 0 | DC111: 0 | DD111: 0 | DE111: 11.83238406 | DF111: 11.83238406 | DG111: 0 | DH111: 23380.7909 | DI111: 0 | DJ111: 11.83238406 | DK111: 11.83238406 | DL111: 11.83238406 | DM111: 0 | DN111: 23522.77951 | DO111: 59.1619203 | DP111: 11.83238406 | DQ111: 23712.09766 | DR111: -20.70667211 | DS111: =AZ111*$L111 -> 11.83238406 | DT111: 11.83238406 | DU111: 11.83238406 | DV111: 11.83238406 | DW111: 11.83238406 | DX111: 11.83238406 | DY111: 11.83238406 | DZ111: 11.83238406 | EA111: 11.83238406 | EB111: 0 | EC111: 0 | ED111: 11.83238406 | EE111: 11.83238406 | EF111: 0 | EG111: 0 | EH111: 0 | EI111: 11.83238406 | EJ111: 11.83238406 | EK111: 0 | EL111: 0 | EM111: 2.626789261
A112: 9 | B112: Beck and Levine (2004) | C112: 1 | D112: 1 | E112: 0 | F112: 0 | G112: 0 | H112: 0.280399448 | I112: 0.085435766 | J112: 0.273274738 | K112: 0.081298432 | L112: 12.30036016 | M112: 3.361377703 | N112: 40 | O112: 5 | P112: 146 | Q112: 4.983606622 | R112: 5 | Z112: 1 | AD112: 1 | AL112: 1 | AM112: 1 | AN112: 0 | AO112: 1976 | AQ112: 1 | AR112: 1 | AS112: 1 | AU112: 1988 | AV112: 5 | AW112: 1 | AX112: 2004 | AY112: -1.75 | AZ112: 1 | BA112: 1 | BB112: 1 | BC112: 1 | BD112: 1 | BE112: 1 | BF112: 1 | BG112: 1 | BH112: 1 | BK112: 1 | BL112: 1 | BP112: 1 | BQ112: 1 | BT112: 0.222 | BV112: 12.30036016 | BW112: 12.30036016 | BX112: 0 | BY112: 0 | BZ112: 0 | CA112: 3.449014199 | CB112: 1.050890692 | CC112: 3.3613777 | CD112: 0.999999994 | CE112: 151.2988601 | CF112: 41.34615638 | CG112: 492.0144064 | CH112: 61.5018008 | CI112: 1795.852583 | CJ112: 61.30015634 | CK112: 61.5018008 | CL112: 0 | CM112: 0 | CN112: 0 | CO112: 0 | CP112: 0 | CQ112: 0 | CR112: 0 | CS112: 12.30036016 | CT112: 0 | CU112: 0 | CV112: 0 | CW112: 12.30036016 | CX112: 0 | CY112: 0 | CZ112: 0 | DA112: 0 | DB112: 0 | DC112: 0 | DD112: 0 | DE112: 12.30036016 | DF112: 12.30036016 | DG112: 0 | DH112: 24305.51168 | DI112: 0 | DJ112: 12.30036016 | DK112: 12.30036016 | DL112: 12.30036016 | DM112: 0 | DN112: 24453.116 | DO112: 61.5018008 | DP112: 12.30036016 | DQ112: 24649.92176 | DR112: -21.52563028 | DS112: 12.30036016 | DT112: 12.30036016 | DU112: 12.30036016 | DV112: 12.30036016 | DW112: 12.30036016 | DX112: 12.30036016 | DY112: 12.30036016 | DZ112: 12.30036016 | EA112: 12.30036016 | EB112: 0 | EC112: 0 | ED112: 12.30036016 | EE112: 12.30036016 | EF112: 0 | EG112: 0 | EH112: 0 | EI112: 12.30036016 | EJ112: 12.30036016 | EK112: 0 | EL112: 0 | EM112: 2.730679956
A113: 9 | B113: Beck and Levine (2004) | C113: 1 | D113: 1 | E113: 0 | F113: 0 | G113: 0 | H113: 0.038070507 | I113: 0.085435766 | J113: 0.038052125 | K113: 0.084454216 | L113: 11.84073515 | M113: 0.450565134 | N113: 40 | O113: 5 | P113: 146 | Q113: 4.983606622 | R113: 5 | T113: 1 | AD113: 1 | AL113: 1 | AM113: 1 | AN113: 0 | AO113: 1976 | AQ113: 1 | AR113: 1 | AS113: 1 | AU113: 1988 | AV113: 5 | AW113: 1 | AX113: 2004 | AY113: -1.75 | AZ113: 1 | BA113: 1 | BB113: 1 | BC113: 1 | BD113: 1 | BE113: 1 | BF113: 1 | BG113: 1 | BJ113: 1 | BK113: 1 | BL113: 1 | BP113: 1 | BQ113: 1 | BT113: 0.222 | BV113: 11.84073515 | BW113: 11.84073515 | BX113: 0 | BY113: 0 | BZ113: 0 | CA113: 0.4507827904 | CB113: 1.011622278 | CC113: 0.450565134 | CD113: 1.000000004 | CE113: 140.2030089 | CF113: 5.33502242 | CG113: 473.629406 | CH113: 59.20367575 | CI113: 1728.747332 | CJ113: 59.0095661 | CK113: 59.20367575 | CL113: 0 | CM113: 11.84073515 | CN113: 0 | CO113: 0 | CP113: 0 | CQ113: 0 | CR113: 0 | CS113: 0 | CT113: 0 | CU113: 0 | CV113: 0 | CW113: 11.84073515 | CX113: 0 | CY113: 0 | CZ113: 0 | DA113: =AH113*$L113 -> 0 | DB113: 0 | DC113: 0 | DD113: 0 | DE113: 11.84073515 | DF113: 11.84073515 | DG113: 0 | DH113: 23397.29266 | DI113: 0 | DJ113: 11.84073515 | DK113: 11.84073515 | DL113: 11.84073515 | DM113: 0 | DN113: 23539.38148 | DO113: 59.20367575 | DP113: 11.84073515 | DQ113: 23728.83324 | DR113: -20.72128651 | DS113: 11.84073515 | DT113: 11.84073515 | DU113: 11.84073515 | DV113: 11.84073515 | DW113: 11.84073515 | DX113: 11.84073515 | DY113: 11.84073515 | DZ113: 11.84073515 | EA113: 0 | EB113: 0 | EC113: 11.84073515 | ED113: 11.84073515 | EE113: 11.84073515 | EF113: 0 | EG113: 0 | EH113: 0 | EI113: 11.84073515 | EJ113: 11.84073515 | EK113: 0 | EL113: 0 | EM113: 2.628643203
A114: 9 | B114: Beck and Levine (2004) | C114: 1 | D114: 1 | E114: 0 | F114: 0 | G114: 0 | H114: 0.182057947 | I114: 0.085435766 | J114: 0.180072819 | K114: 0.083133876 | L114: 12.02879081 | M114: 2.16605827 | N114: 40 | O114: 5 | P114: 146 | Q114: 4.983606622 | R114: 5 | Z114: 1 | AD114: 1 | AL114: 1 | AM114: 1 | AN114: 0 | AO114: 1976 | AQ114: 1 | AR114: 1 | AS114: 1 | AU114: 1988 | AV114: 5 | AW114: 1 | AX114: 2004 | AY114: -1.75 | AZ114: 1 | BA114: 1 | BB114: 1 | BC114: 1 | BD114: 1 | BE114: 1 | BF114: 1 | BG114: 1 | BJ114: 1 | BK114: 1 | BL114: 1 | BP114: 1 | BQ114: 1 | BT114: 0.222 | BV114: 12.02879081 | BW114: 12.02879081 | BX114: 0 | BY114: 0 | BZ114: 0 | CA114: 2.18993696 | CB114: 1.027688957 | CC114: 2.16605827 | CD114: 1.000000004 | CE114: 144.6918084 | CF114: 26.05506181 | CG114: 481.1516324 | CH114: 60.14395405 | CI114: 1756.203458 | CJ114: 59.94676153 | CK114: 60.14395405 | CL114: 0 | CM114: 0 | CN114: 0 | CO114: 0 | CP114: 0 | CQ114: 0 | CR114: 0 | CS114: 12.02879081 | CT114: 0 | CU114: 0 | CV114: 0 | CW114: 12.02879081 | CX114: 0 | CY114: 0 | CZ114: 0 | DA114: 0 | DB114: 0 | DC114: 0 | DD114: 0 | DE114: 12.02879081 | DF114: 12.02879081 | DG114: =AN114*$L114 -> 0 | DH114: 23768.89064 | DI114: 0 | DJ114: 12.02879081 | DK114: 12.02879081 | DL114: 12.02879081 | DM114: 0 | DN114: 23913.23613 | DO114: 60.14395405 | DP114: 12.02879081 | DQ114: 24105.69678 | DR114: -21.05038392 | DS114: 12.02879081 | DT114: 12.02879081 | DU114: 12.02879081 | DV114: 12.02879081 | DW114: 12.02879081 | DX114: 12.02879081 | DY114: 12.02879081 | DZ114: 12.02879081 | EA114: 0 | EB114: 0 | EC114: 12.02879081 | ED114: 12.02879081 | EE114: 12.02879081 | EF114: 0 | EG114: 0 | EH114: 0 | EI114: 12.02879081 | EJ114: 12.02879081 | EK114: 0 | EL114: 0 | EM114: 2.67039156
A115: 9 | B115: Beck and Levine (2004) | C115: 1 | D115: 1 | E115: 0 | F115: 0 | G115: 0 | H115: 0.279387035 | I115: 0.085125653 | J115: 0.272337672 | K115: 0.081032005 | L115: 12.34080294 | M115: 3.360865548 | N115: 40 | O115: 5 | P115: 146 | Q115: 4.983606622 | R115: 5 | T115: 1 | AD115: 1 | AK115: 1 | AM115: 1 | AN115: 0 | AO115: 1976 | AQ115: 1 | AR115: 1 | AS115: 1 | AU115: 1998 | AV115: 4 | AW115: 1 | AX115: 2004 | AY115: -1.75 | AZ115: 1 | BA115: 1 | BB115: 1 | BC115: 1 | BD115: 1 | BE115: 1 | BF115: 1 | BG115: 1 | BK115: 1 | BL115: 1 | BP115: 1 | BQ115: 1 | BT115: 0.222 | BV115: 12.34080294 | BW115: 12.34080294 | BX115: 0 | BY115: 0 | BZ115: 0 | CA115: 3.447860343 | CB115: 1.050518909 | CC115: 3.360865543 | CD115: 1.000000006 | CE115: 152.2954172 | CF115: 41.47577944 | CG115: 493.6321176 | CH115: 61.7040147 | CI115: 1801.757229 | CJ115: 61.50170725 | CK115: 61.7040147 | CL115: 0 | CM115: 12.34080294 | CN115: 0 | CO115: 0 | CP115: 0 | CQ115: 0 | CR115: 0 | CS115: 0 | CT115: 0 | CU115: 0 | CV115: 0 | CW115: 12.34080294 | CX115: 0 | CY115: 0 | CZ115: 0 | DA115: 0 | DB115: 0 | DC115: 0 | DD115: 12.34080294 | DE115: 0 | DF115: 12.34080294 | DG115: 0 | DH115: 24385.42661 | DI115: 0 | DJ115: 12.34080294 | DK115: 12.34080294 | DL115: 12.34080294 | DM115: 0 | DN115: 24656.92427 | DO115: 49.36321176 | DP115: 12.34080294 | DQ115: 24730.96909 | DR115: -21.59640514 | DS115: 12.34080294 | DT115: 12.34080294 | DU115: 12.34080294 | DV115: 12.34080294 | DW115: 12.34080294 | DX115: 12.34080294 | DY115: 12.34080294 | DZ115: 12.34080294 | EA115: 0 | EB115: 0 | EC115: 0 | ED115: 12.34080294 | EE115: 12.34080294 | EF115: 0 | EG115: 0 | EH115: 0 | EI115: 12.34080294 | EJ115: 12.34080294 | EK115: 0 | EL115: 0 | EM115: 2.739658253
A116: 9 | B116: Beck and Levine (2004) | C116: 1 | D116: 1 | E116: 0 | F116: 0 | G116: 0 | H116: 0.212728903 | I116: 0.085125653 | J116: 0.209577029 | K116: 0.082344953 | L116: 12.14403512 | M116: 2.545110797 | N116: 40 | O116: 5 | P116: 146 | Q116: 4.983606622 | R116: 5 | Z116: 1 | AD116: 1 | AK116: 1 | AM116: 1 | AN116: 0 | AO116: 1976 | AQ116: 1 | AR116: 1 | AS116: 1 | AU116: 1998 | AV116: 4 | AW116: 1 | AX116: 2004 | AY116: -1.75 | AZ116: 1 | BA116: 1 | BB116: 1 | BC116: 1 | BD116: 1 | BE116: 1 | BF116: 1 | BG116: 1 | BK116: 1 | BL116: 1 | BP116: 1 | BQ116: 1 | BT116: 0.222 | BV116: 12.14403512 | BW116: 12.14403512 | BX116: 0 | BY116: 0 | BZ116: 0 | CA116: 2.583387269 | CB116: 1.03376892 | CC116: 2.545110801 | CD116: 1.000000001 | CE116: 147.477589 | CF116: 30.9079149 | CG116: 485.7614048 | CH116: 60.7201756 | CI116: 1773.029128 | CJ116: 60.52109384 | CK116: 60.7201756 | CL116: 0 | CM116: 0 | CN116: 0 | CO116: 0 | CP116: 0 | CQ116: 0 | CR116: 0 | CS116: 12.14403512 | CT116: 0 | CU116: 0 | CV116: 0 | CW116: 12.14403512 | CX116: 0 | CY116: 0 | CZ116: 0 | DA116: 0 | DB116: 0 | DC116: 0 | DD116: 12.14403512 | DE116: 0 | DF116: 12.14403512 | DG116: 0 | DH116: 23996.6134 | DI116: 0 | DJ116: 12.14403512 | DK116: 12.14403512 | DL116: 12.14403512 | DM116: 0 | DN116: 24263.78217 | DO116: 48.57614048 | DP116: 12.14403512 | DQ116: 24336.64638 | DR116: -21.25206146 | DS116: 12.14403512 | DT116: 12.14403512 | DU116: 12.14403512 | DV116: 12.14403512 | DW116: 12.14403512 | DX116: 12.14403512 | DY116: 12.14403512 | DZ116: 12.14403512 | EA116: 0 | EB116: 0 | EC116: 0 | ED116: 12.14403512 | EE116: 12.14403512 | EF116: 0 | EG116: 0 | EH116: 0 | EI116: 12.14403512 | EJ116: 12.14403512 | EK116: 0 | EL116: 0 | EM116: 2.695975797
A117: 9 | B117: Beck and Levine (2004) | C117: 1 | D117: 1 | E117: 0 | F117: 0 | G117: 0 | H117: 0.19034068 | I117: 0.085435766 | J117: 0.188074857 | K117: 0.083007222 | L117: 12.04714451 | M117: 2.265764976 | N117: 40 | O117: 5 | P117: 146 | Q117: 4.983606622 | R117: 5 | T117: 1 | AD117: 1 | AK117: 1 | AM117: 1 | AN117: 0 | AO117: 1976 | AQ117: 1 | AR117: 1 | AS117: 1 | AU117: 1998 | AV117: 5 | AW117: 1 | AX117: 2004 | AY117: -1.75 | AZ117: 1 | BA117: 1 | BB117: 1 | BC117: 1 | BD117: 1 | BE117: 1 | BF117: 1 | BG117: 1 | BH117: 1 | BK117: 1 | BL117: 1 | BP117: 1 | BQ117: 1 | BT117: 0.222 | BV117: 12.04714451 | BW117: 12.04714451 | BX117: 0 | BY117: 0 | BZ117: 0 | CA117: 2.293061678 | CB117: 1.029257019 | CC117: 2.265764981 | CD117: 0.9999999988 | CE117: 145.1336908 | CF117: 27.29599809 | CG117: 481.8857804 | CH117: 60.23572255 | CI117: 1758.883098 | CJ117: 60.03822915 | CK117: 60.23572255 | CL117: 0 | CM117: 12.04714451 | CN117: 0 | CO117: 0 | CP117: 0 | CQ117: 0 | CR117: 0 | CS117: 0 | CT117: 0 | CU117: 0 | CV117: 0 | CW117: 12.04714451 | CX117: 0 | CY117: 0 | CZ117: 0 | DA117: 0 | DB117: 0 | DC117: 0 | DD117: 12.04714451 | DE117: 0 | DF117: 12.04714451 | DG117: 0 | DH117: 23805.15755 | DI117: 0 | DJ117: 12.04714451 | DK117: 12.04714451 | DL117: 12.04714451 | DM117: 0 | DN117: 24070.19473 | DO117: 60.23572255 | DP117: 12.04714451 | DQ117: 24142.4776 | DR117: -21.08250289 | DS117: 12.04714451 | DT117: 12.04714451 | DU117: 12.04714451 | DV117: 12.04714451 | DW117: 12.04714451 | DX117: 12.04714451 | DY117: 12.04714451 | DZ117: 12.04714451 | EA117: 12.04714451 | EB117: 0 | EC117: 0 | ED117: 12.04714451 | EE117: 12.04714451 | EF117: 0 | EG117: 0 | EH117: 0 | EI117: 12.04714451 | EJ117: 12.04714451 | EK117: 0 | EL117: 0 | EM117: 2.674466081
A118: 9 | B118: Beck and Levine (2004) | C118: 1 | D118: 1 | E118: 0 | F118: 0 | G118: 0 | H118: 0.157138527 | I118: 0.085435766 | J118: 0.155857793 | K118: 0.083482605 | L118: 11.97854331 | M118: 1.866949327 | N118: 40 | O118: 5 | P118: 146 | Q118: 4.983606622 | R118: 5 | Z118: 1 | AD118: 1 | AK118: 1 | AM118: 1 | AN118: 0 | AO118: 1976 | AQ118: 1 | AR118: 1 | AS118: 1 | AU118: 1998 | AV118: 5 | AW118: 1 | AX118: 2004 | AY118: -1.75 | AZ118: 1 | BA118: 1 | BB118: 1 | BC118: 1 | BD118: 1 | BE118: 1 | BF118: 1 | BG118: 1 | BH118: 1 | BK118: 1 | BL118: 1 | BP118: 1 | BQ118: 1 | BT118: 0.222 | BV118: 11.97854331 | BW118: 11.97854331 | BX118: 0 | BY118: 0 | BZ118: 0 | CA118: 1.882290651 | CB118: 1.023396023 | CC118: 1.866949324 | CD118: =K118*$L118 -> 0.9999999996 | CE118: 143.4854998 | CF118: 22.36333337 | CG118: 479.1417324 | CH118: 59.89271655 | CI118: 1748.867323 | CJ118: 59.69634776 | CK118: 59.89271655 | CL118: 0 | CM118: 0 | CN118: 0 | CO118: 0 | CP118: 0 | CQ118: 0 | CR118: 0 | CS118: 11.97854331 | CT118: 0 | CU118: 0 | CV118: 0 | CW118: 11.97854331 | CX118: 0 | CY118: 0 | CZ118: 0 | DA118: 0 | DB118: 0 | DC118: 0 | DD118: 11.97854331 | DE118: 0 | DF118: 11.97854331 | DG118: 0 | DH118: 23669.60158 | DI118: 0 | DJ118: 11.97854331 | DK118: 11.97854331 | DL118: 11.97854331 | DM118: 0 | DN118: 23933.12953 | DO118: 59.89271655 | DP118: 11.97854331 | DQ118: 24005.00079 | DR118: -20.96245079 | DS118: 11.97854331 | DT118: 11.97854331 | DU118: 11.97854331 | DV118: 11.97854331 | DW118: 11.97854331 | DX118: 11.97854331 | DY118: 11.97854331 | DZ118: 11.97854331 | EA118: 11.97854331 | EB118: 0 | EC118: 0 | ED118: 11.97854331 | EE118: 11.97854331 | EF118: 0 | EG118: 0 | EH118: 0 | EI118: =BP118*$L118 -> 11.97854331 | EJ118: 11.97854331 | EK118: 0 | EL118: 0 | EM118: 2.659236615
A119: 9 | B119: Beck and Levine (2004) | C119: 1 | D119: 1 | E119: 0 | F119: 0 | G119: 0 | H119: 0.167807424 | I119: 0.085435766 | J119: 0.16624985 | K119: 0.08333928 | L119: 11.99914371 | M119: 1.994855846 | N119: 40 | O119: 5 | P119: 146 | Q119: 4.983606622 | R119: 5 | T119: 1 | AD119: 1 | AK119: 1 | AM119: 1 | AN119: 0 | AO119: 1976 | AQ119: 1 | AR119: 1 | AS119: 1 | AU119: 1998 | AV119: 5 | AW119: 1 | AX119: 2004 | AY119: -1.75 | AZ119: 1 | BA119: 1 | BB119: 1 | BC119: 1 | BD119: 1 | BE119: 1 | BF119: 1 | BG119: 1 | BJ119: 1 | BK119: 1 | BL119: 1 | BP119: 1 | BQ119: 1 | BT119: 0.222 | BV119: 11.99914371 | BW119: 11.99914371 | BX119: 0 | BY119: 0 | BZ119: 0 | CA119: =H119*$L119 -> 2.013545396 | CB119: 1.025156034 | CC119: 1.994855842 | CD119: 0.9999999974 | CE119: 143.9794498 | CF119: 23.93656198 | CG119: 479.9657484 | CH119: 59.99571855 | CI119: 1751.874982 | CJ119: 59.79901205 | CK119: 59.99571855 | CL119: 0 | CM119: 11.99914371 | CN119: 0 | CO119: 0 | CP119: 0 | CQ119: 0 | CR119: 0 | CS119: 0 | CT119: 0 | CU119: 0 | CV119: 0 | CW119: 11.99914371 | CX119: 0 | CY119: 0 | CZ119: 0 | DA119: 0 | DB119: 0 | DC119: 0 | DD119: 11.99914371 | DE119: 0 | DF119: 11.99914371 | DG119: 0 | DH119: 23710.30797 | DI119: 0 | DJ119: 11.99914371 | DK119: 11.99914371 | DL119: 11.99914371 | DM119: 0 | DN119: 23974.28913 | DO119: =AV119*$L119 -> 59.99571855 | DP119: 11.99914371 | DQ119: 24046.28399 | DR119: -20.99850149 | DS119: 11.99914371 | DT119: 11.99914371 | DU119: 11.99914371 | DV119: 11.99914371 | DW119: 11.99914371 | DX119: 11.99914371 | DY119: 11.99914371 | DZ119: 11.99914371 | EA119: 0 | EB119: 0 | EC119: 11.99914371 | ED119: 11.99914371 | EE119: 11.99914371 | EF119: 0 | EG119: 0 | EH119: 0 | EI119: 11.99914371 | EJ119: 11.99914371 | EK119: 0 | EL119: 0 | EM119: 2.663809904
A120: 9 | B120: Beck and Levine (2004) | C120: 1 | D120: 1 | E120: 0 | F120: 0 | G120: 0 | H120: 0.11576662 | I120: 0.085435766 | J120: 0.115252213 | K120: 0.083952237 | L120: 11.91153493 | M120: 1.372830762 | N120: 40 | O120: 5 | P120: 146 | Q120: 4.983606622 | R120: 5 | Z120: 1 | AD120: 1 | AK120: 1 | AM120: 1 | AN120: 0 | AO120: 1976 | AQ120: 1 | AR120: 1 | AS120: 1 | AU120: 1998 | AV120: 5 | AW120: 1 | AX120: 2004 | AY120: -1.75 | AZ120: 1 | BA120: 1 | BB120: 1 | BC120: 1 | BD120: 1 | BE120: 1 | BF120: 1 | BG120: 1 | BJ120: 1 | BK120: 1 | BL120: 1 | BP120: 1 | BQ120: 1 | BT120: 0.222 | BV120: 11.91153493 | BW120: 11.91153493 | BX120: 0 | BY120: 0 | BZ120: 0 | CA120: 1.378958138 | CB120: 1.017671111 | CC120: 1.372830761 | CD120: 1.000000003 | CE120: 141.8846644 | CF120: 16.35252157 | CG120: 476.4613972 | CH120: 59.55767465 | CI120: 1739.0841 | CJ120: 59.36240435 | CK120: 59.55767465 | CL120: 0 | CM120: 0 | CN120: 0 | CO120: 0 | CP120: 0 | CQ120: 0 | CR120: 0 | CS120: 11.91153493 | CT120: 0 | CU120: 0 | CV120: 0 | CW120: 11.91153493 | CX120: 0 | CY120: 0 | CZ120: 0 | DA120: 0 | DB120: 0 | DC120: 0 | DD120: 11.91153493 | DE120: 0 | DF120: 11.91153493 | DG120: 0 | DH120: 23537.19302 | DI120: 0 | DJ120: 11.91153493 | DK120: 11.91153493 | DL120: 11.91153493 | DM120: 0 | DN120: 23799.24679 | DO120: 59.55767465 | DP120: 11.91153493 | DQ120: 23870.716 | DR120: -20.84518613 | DS120: 11.91153493 | DT120: 11.91153493 | DU120: 11.91153493 | DV120: 11.91153493 | DW120: 11.91153493 | DX120: 11.91153493 | DY120: 11.91153493 | DZ120: 11.91153493 | EA120: 0 | EB120: 0 | EC120: 11.91153493 | ED120: 11.91153493 | EE120: 11.91153493 | EF120: 0 | EG120: 0 | EH120: 0 | EI120: 11.91153493 | EJ120: 11.91153493 | EK120: 0 | EL120: 0 | EM120: 2.644360754
A121: 9 | B121: Beck and Levine (2004) | C121: 1 | D121: 1 | E121: 0 | F121: 0 | G121: 0 | H121: 0.252589573 | I121: 0.085435766 | J121: 0.247351352 | K121: 0.081889181 | L121: 12.21162541 | M121: 3.02056205 | N121: 40 | O121: 5 | P121: 146 | Q121: 4.983606622 | R121: 5 | T121: 1 | AD121: 1 | AK121: 1 | AM121: 1 | AN121: 0 | AO121: 1976 | AQ121: 1 | AR121: 1 | AS121: 1 | AU121: 1998 | AV121: 5 | AW121: 1 | AX121: 2004 | AY121: -1.75 | AZ121: 1 | BA121: 1 | BB121: 1 | BC121: 1 | BD121: 1 | BE121: 1 | BF121: 1 | BG121: 1 | BH121: 1 | BK121: 1 | BL121: 1 | BP121: 1 | BQ121: 1 | BT121: 0.222 | BV121: 12.21162541 | BW121: 12.21162541 | BX121: 0 | BY121: 0 | BZ121: 0 | CA121: 3.084529248 | CB121: 1.043309571 | CC121: 3.020562055 | CD121: 1.000000004 | CE121: 149.1237952 | CF121: 36.88597228 | CG121: 488.4650164 | CH121: 61.05812705 | CI121: 1782.89731 | CJ121: 60.85793726 | CK121: 61.05812705 | CL121: 0 | CM121: 12.21162541 | CN121: 0 | CO121: 0 | CP121: 0 | CQ121: 0 | CR121: 0 | CS121: 0 | CT121: 0 | CU121: 0 | CV121: 0 | CW121: 12.21162541 | CX121: 0 | CY121: 0 | CZ121: 0 | DA121: 0 | DB121: 0 | DC121: 0 | DD121: 12.21162541 | DE121: 0 | DF121: 12.21162541 | DG121: 0 | DH121: 24130.17181 | DI121: 0 | DJ121: 12.21162541 | DK121: 12.21162541 | DL121: 12.21162541 | DM121: 0 | DN121: 24398.82757 | DO121: 61.05812705 | DP121: 12.21162541 | DQ121: 24472.09732 | DR121: -21.37034447 | DS121: 12.21162541 | DT121: 12.21162541 | DU121: 12.21162541 | DV121: 12.21162541 | DW121: 12.21162541 | DX121: 12.21162541 | DY121: 12.21162541 | DZ121: 12.21162541 | EA121: 12.21162541 | EB121: 0 | EC121: 0 | ED121: 12.21162541 | EE121: 12.21162541 | EF121: 0 | EG121: 0 | EH121: 0 | EI121: 12.21162541 | EJ121: 12.21162541 | EK121: 0 | EL121: 0 | EM121: 2.710980841
A122: 9 | B122: Beck and Levine (2004) | C122: 1 | D122: 1 | E122: 0 | F122: 0 | G122: 0 | H122: 0.225484306 | I122: 0.085435766 | J122: 0.221739011 | K122: 0.082411503 | L122: 12.13422843 | M122: 2.690631813 | N122: 40 | O122: 5 | P122: 146 | Q122: 4.983606622 | R122: 5 | Z122: 1 | AD122: 1 | AK122: 1 | AM122: 1 | AN122: 0 | AO122: 1976 | AQ122: 1 | AR122: 1 | AS122: 1 | AU122: 1998 | AV122: 5 | AW122: 1 | AX122: 2004 | AY122: -1.75 | AZ122: 1 | BA122: 1 | BB122: 1 | BC122: 1 | BD122: 1 | BE122: 1 | BF122: 1 | BG122: 1 | BH122: 1 | BK122: 1 | BL122: 1 | BP122: 1 | BQ122: 1 | BT122: 0.222 | BV122: 12.13422843 | BW122: 12.13422843 | BX122: 0 | BY122: 0 | BZ122: 0 | CA122: 2.736078076 | CB122: 1.036697101 | CC122: 2.690631811 | CD122: 1.000000003 | CE122: 147.2394996 | CF122: 32.64874104 | CG122: 485.3691372 | CH122: 60.67114215 | CI122: 1771.597351 | CJ122: 60.47222115 | CK122: 60.67114215 | CL122: 0 | CM122: 0 | CN122: 0 | CO122: 0 | CP122: 0 | CQ122: 0 | CR122: 0 | CS122: 12.13422843 | CT122: 0 | CU122: 0 | CV122: 0 | CW122: 12.13422843 | CX122: 0 | CY122: 0 | CZ122: 0 | DA122: 0 | DB122: 0 | DC122: 0 | DD122: 12.13422843 | DE122: 0 | DF122: 12.13422843 | DG122: 0 | DH122: 23977.23538 | DI122: 0 | DJ122: 12.13422843 | DK122: 12.13422843 | DL122: 12.13422843 | DM122: 0 | DN122: 24244.1884 | DO122: 60.67114215 | DP122: 12.13422843 | DQ122: 24316.99377 | DR122: -21.23489975 | DS122: 12.13422843 | DT122: 12.13422843 | DU122: 12.13422843 | DV122: 12.13422843 | DW122: 12.13422843 | DX122: 12.13422843 | DY122: 12.13422843 | DZ122: 12.13422843 | EA122: 12.13422843 | EB122: 0 | EC122: 0 | ED122: 12.13422843 | EE122: 12.13422843 | EF122: 0 | EG122: 0 | EH122: 0 | EI122: 12.13422843 | EJ122: 12.13422843 | EK122: 0 | EL122: 0 | EM122: 2.693798711
A123: 9 | B123: Beck and Levine (2004) | C123: 1 | D123: 1 | E123: 0 | F123: 0 | G123: 0 | H123: 0.280399448 | I123: 0.085435766 | J123: 0.273274738 | K123: 0.081298432 | L123: 12.30036016 | M123: 3.361377703 | N123: 40 | O123: 5 | P123: 146 | Q123: 4.983606622 | R123: 5 | T123: 1 | AD123: 1 | AK123: 1 | AM123: 1 | AN123: 0 | AO123: 1976 | AQ123: 1 | AR123: 1 | AS123: 1 | AU123: 1998 | AV123: 5 | AW123: 1 | AX123: 2004 | AY123: -1.75 | AZ123: 1 | BA123: 1 | BB123: 1 | BC123: 1 | BD123: 1 | BE123: 1 | BF123: 1 | BG123: 1 | BJ123: 1 | BK123: 1 | BL123: 1 | BP123: 1 | BQ123: 1 | BT123: 0.222 | BV123: 12.30036016 | BW123: 12.30036016 | BX123: 0 | BY123: 0 | BZ123: 0 | CA123: 3.449014199 | CB123: 1.050890692 | CC123: 3.3613777 | CD123: 0.999999994 | CE123: 151.2988601 | CF123: 41.34615638 | CG123: 492.0144064 | CH123: 61.5018008 | CI123: 1795.852583 | CJ123: 61.30015634 | CK123: 61.5018008 | CL123: 0 | CM123: 12.30036016 | CN123: 0 | CO123: 0 | CP123: 0 | CQ123: 0 | CR123: 0 | CS123: 0 | CT123: 0 | CU123: 0 | CV123: 0 | CW123: 12.30036016 | CX123: 0 | CY123: 0 | CZ123: 0 | DA123: 0 | DB123: 0 | DC123: 0 | DD123: 12.30036016 | DE123: 0 | DF123: 12.30036016 | DG123: 0 | DH123: 24305.51168 | DI123: 0 | DJ123: 12.30036016 | DK123: 12.30036016 | DL123: 12.30036016 | DM123: 0 | DN123: 24576.1196 | DO123: 61.5018008 | DP123: 12.30036016 | DQ123: 24649.92176 | DR123: -21.52563028 | DS123: 12.30036016 | DT123: 12.30036016 | DU123: 12.30036016 | DV123: 12.30036016 | DW123: 12.30036016 | DX123: 12.30036016 | DY123: 12.30036016 | DZ123: 12.30036016 | EA123: 0 | EB123: 0 | EC123: 12.30036016 | ED123: 12.30036016 | EE123: 12.30036016 | EF123: 0 | EG123: 0 | EH123: 0 | EI123: 12.30036016 | EJ123: 12.30036016 | EK123: 0 | EL123: 0 | EM123: 2.730679956
A124: 9 | B124: Beck and Levine (2004) | C124: 1 | D124: 1 | E124: 0 | F124: 0 | G124: 0 | H124: 0.208797711 | I124: 0.085435766 | J124: 0.205815425 | K124: 0.08270602 | L124: 12.09101824 | M124: 2.488518064 | N124: 40 | O124: 5 | P124: 146 | Q124: 4.983606622 | R124: 5 | Z124: 1 | AD124: 1 | AK124: 1 | AM124: 1 | AN124: 0 | AO124: 1976 | AQ124: 1 | AR124: 1 | AS124: 1 | AU124: 1998 | AV124: 5 | AW124: 1 | AX124: 2004 | AY124: -1.75 | AZ124: 1 | BA124: 1 | BB124: 1 | BC124: 1 | BD124: 1 | BE124: 1 | BF124: 1 | BG124: 1 | BJ124: 1 | BK124: 1 | BL124: 1 | BP124: 1 | BQ124: 1 | BT124: 0.222 | BV124: 12.09101824 | BW124: 12.09101824 | BX124: 0 | BY124: 0 | BZ124: 0 | CA124: 2.524576932 | CB124: 1.033005405 | CC124: 2.488518058 | CD124: 0.9999999964 | CE124: 146.1927221 | CF124: 30.0887173 | CG124: 483.6407296 | CH124: 60.4550912 | CI124: 1765.288663 | CJ124: 60.25687856 | CK124: 60.4550912 | CL124: 0 | CM124: 0 | CN124: 0 | CO124: 0 | CP124: 0 | CQ124: 0 | CR124: 0 | CS124: 12.09101824 | CT124: 0 | CU124: 0 | CV124: 0 | CW124: 12.09101824 | CX124: 0 | CY124: 0 | CZ124: 0 | DA124: 0 | DB124: 0 | DC124: 0 | DD124: 12.09101824 | DE124: 0 | DF124: 12.09101824 | DG124: 0 | DH124: 23891.85204 | DI124: 0 | DJ124: 12.09101824 | DK124: 12.09101824 | DL124: 12.09101824 | DM124: 0 | DN124: 24157.85444 | DO124: 60.4550912 | DP124: 12.09101824 | DQ124: 24230.40055 | DR124: -21.15928192 | DS124: 12.09101824 | DT124: 12.09101824 | DU124: 12.09101824 | DV124: 12.09101824 | DW124: 12.09101824 | DX124: 12.09101824 | DY124: 12.09101824 | DZ124: 12.09101824 | EA124: 0 | EB124: 0 | EC124: 12.09101824 | ED124: 12.09101824 | EE124: 12.09101824 | EF124: 0 | EG124: 0 | EH124: 0 | EI124: 12.09101824 | EJ124: 12.09101824 | EK124: 0 | EL124: 0 | EM124: 2.684206049
A125: 9 | B125: Beck and Levine (2004) | C125: 1 | D125: 1 | E125: 0 | F125: 0 | G125: 0 | H125: 0.031434667 | I125: 0.040522045 | J125: 0.031424317 | K125: 0.040402641 | L125: 24.75085736 | M125: 0.777778786 | N125: 40 | O125: 1 | P125: 616 | Q125: 6.423246964 | R125: 1 | T125: 1 | AD125: 1 | AK125: 1 | AM125: 1 | AN125: 0 | AO125: 1976 | AQ125: 1 | AR125: 1 | AS125: 1 | AU125: 1998 | AV125: 3 | AW125: 1 | AX125: 2004 | AY125: -1.75 | AZ125: 1 | BA125: 1 | BB125: 1 | BC125: 1 | BD125: 1 | BE125: 1 | BF125: 1 | BG125: 1 | BK125: 1 | BP125: 1 | BQ125: 1 | BT125: 0.222 | BV125: 24.75085736 | BW125: 24.75085736 | BX125: 0 | BY125: 0 | BZ125: 0 | CA125: 0.7780349591 | CB125: 1.002955356 | CC125: 0.7777787877 | CD125: 1.000000004 | CE125: 612.6049401 | CF125: 19.25069179 | CG125: 990.0342944 | CH125: 24.75085736 | CI125: 15246.52813 | CJ125: 158.9808694 | CK125: 24.75085736 | CL125: 0 | CM125: 24.75085736 | CN125: 0 | CO125: 0 | CP125: 0 | CQ125: 0 | CR125: 0 | CS125: 0 | CT125: 0 | CU125: 0 | CV125: 0 | CW125: 24.75085736 | CX125: 0 | CY125: 0 | CZ125: 0 | DA125: 0 | DB125: 0 | DC125: 0 | DD125: 24.75085736 | DE125: 0 | DF125: 24.75085736 | DG125: 0 | DH125: 48907.69414 | DI125: 0 | DJ125: 24.75085736 | DK125: 24.75085736 | DL125: 24.75085736 | DM125: 0 | DN125: 49452.21301 | DO125: 74.25257208 | DP125: 24.75085736 | DQ125: 49600.71815 | DR125: -43.31400038 | DS125: 24.75085736 | DT125: 24.75085736 | DU125: 24.75085736 | DV125: 24.75085736 | DW125: 24.75085736 | DX125: 24.75085736 | DY125: 24.75085736 | DZ125: 24.75085736 | EA125: 0 | EB125: 0 | EC125: 0 | ED125: 24.75085736 | EE125: 0 | EF125: 0 | EG125: 0 | EH125: 0 | EI125: 24.75085736 | EJ125: 24.75085736 | EK125: 0 | EL125: 0 | EM125: 5.494690334
A126: 9 | B126: Beck and Levine (2004) | C126: 1 | D126: 1 | E126: 0 | F126: 0 | G126: 0 | H126: 0.133262357 | I126: 0.040522045 | J126: 0.132479058 | K126: 0.040066311 | L126: 24.95862394 | M126: 3.306494987 | N126: 40 | O126: 1 | P126: 616 | Q126: 6.423246964 | R126: 1 | Z126: 1 | AD126: 1 | AK126: 1 | AM126: 1 | AN126: 0 | AO126: 1976 | AQ126: 1 | AR126: 1 | AS126: 1 | AU126: 1998 | AV126: 3 | AW126: 1 | AX126: 2004 | AY126: -1.75 | AZ126: 1 | BA126: 1 | BB126: 1 | BC126: 1 | BD126: 1 | BE126: 1 | BF126: 1 | BG126: 1 | BK126: 1 | BP126: 1 | BQ126: 1 | BT126: 0.222 | BV126: 24.95862394 | BW126: 24.95862394 | BX126: 0 | BY126: 0 | BZ126: 0 | CA126: 3.326045054 | CB126: 1.011374482 | CC126: 3.306494989 | CD126: 0.9999999889 | CE126: 622.932909 | CF126: 82.52556494 | CG126: 998.3449576 | CH126: 24.95862394 | CI126: 15374.51235 | CJ126: 160.3154054 | CK126: 24.95862394 | CL126: 0 | CM126: 0 | CN126: 0 | CO126: 0 | CP126: 0 | CQ126: 0 | CR126: 0 | CS126: 24.95862394 | CT126: 0 | CU126: 0 | CV126: 0 | CW126: 24.95862394 | CX126: 0 | CY126: 0 | CZ126: 0 | DA126: 0 | DB126: 0 | DC126: 0 | DD126: 24.95862394 | DE126: 0 | DF126: 24.95862394 | DG126: 0 | DH126: 49318.24091 | DI126: 0 | DJ126: 24.95862394 | DK126: 24.95862394 | DL126: 24.95862394 | DM126: 0 | DN126: 49867.33063 | DO126: 74.87587182 | DP126: 24.95862394 | DQ126: 50017.08238 | DR126: -43.67759189 | DS126: 24.95862394 | DT126: 24.95862394 | DU126: 24.95862394 | DV126: 24.95862394 | DW126: 24.95862394 | DX126: 24.95862394 | DY126: 24.95862394 | DZ126: 24.95862394 | EA126: 0 | EB126: 0 | EC126: 0 | ED126: 24.95862394 | EE126: 0 | EF126: 0 | EG126: 0 | EH126: 0 | EI126: 24.95862394 | EJ126: 24.95862394 | EK126: 0 | EL126: 0 | EM126: 5.540814515
A127: 9 | B127: Beck and Levine (2004) | C127: 1 | D127: 1 | E127: 0 | F127: 0 | G127: 0 | H127: 0.048094746 | I127: 0.042070316 | J127: 0.048057698 | K127: 0.041910587 | L127: 23.86031971 | M127: 1.146672032 | N127: 40 | O127: 1 | P127: 572 | Q127: 6.349138991 | R127: 1 | T127: 1 | AD127: 1 | AK127: 1 | AM127: 1 | AN127: 0 | AO127: 1976 | AQ127: 1 | AR127: 1 | AS127: 1 | AU127: 1998 | AV127: 3 | AW127: 1 | AX127: 2004 | AY127: -1.75 | AZ127: 1 | BA127: 1 | BB127: 1 | BC127: 1 | BD127: 1 | BE127: 1 | BF127: 1 | BG127: 1 | BK127: 1 | BP127: 1 | BQ127: 1 | BT127: 0.222 | BV127: 23.86031971 | BW127: 23.86031971 | BX127: 0 | BY127: 0 | BZ127: 0 | CA127: 1.147556016 | CB127: 1.00381119 | CC127: 1.146672039 | CD127: 1.000000005 | CE127: 569.3148567 | CF127: 27.35996129 | CG127: 954.4127884 | CH127: 23.86031971 | CI127: 13648.10287 | CJ127: 151.4924862 | CK127: 23.86031971 | CL127: 0 | CM127: 23.86031971 | CN127: 0 | CO127: 0 | CP127: 0 | CQ127: 0 | CR127: 0 | CS127: 0 | CT127: 0 | CU127: 0 | CV127: 0 | CW127: 23.86031971 | CX127: 0 | CY127: 0 | CZ127: 0 | DA127: 0 | DB127: 0 | DC127: 0 | DD127: 23.86031971 | DE127: 0 | DF127: 23.86031971 | DG127: 0 | DH127: 47147.99175 | DI127: 0 | DJ127: 23.86031971 | DK127: 23.86031971 | DL127: 23.86031971 | DM127: 0 | DN127: 47672.91878 | DO127: 71.58095913 | DP127: 23.86031971 | DQ127: 47816.0807 | DR127: -41.75555949 | DS127: 23.86031971 | DT127: 23.86031971 | DU127: 23.86031971 | DV127: 23.86031971 | DW127: 23.86031971 | DX127: 23.86031971 | DY127: 23.86031971 | DZ127: 23.86031971 | EA127: 0 | EB127: 0 | EC127: 0 | ED127: 23.86031971 | EE127: 0 | EF127: 0 | EG127: 0 | EH127: 0 | EI127: 23.86031971 | EJ127: 23.86031971 | EK127: 0 | EL127: 0 | EM127: 5.296990976
A128: 9 | B128: Beck and Levine (2004) | C128: 1 | D128: 1 | E128: 0 | F128: 0 | G128: 0 | H128: 0.138347841 | I128: 0.042070316 | J128: 0.137471882 | K128: 0.041560695 | L128: 24.06119551 | M128: 3.307737829 | N128: 40 | O128: 1 | P128: 572 | Q128: 6.349138991 | R128: 1 | Z128: 1 | AD128: 1 | AK128: 1 | AM128: 1 | AN128: 0 | AO128: 1976 | AQ128: 1 | AR128: 1 | AS128: 1 | AU128: 1998 | AV128: 3 | AW128: 1 | AX128: 2004 | AY128: -1.75 | AZ128: 1 | BA128: 1 | BB128: 1 | BC128: 1 | BD128: 1 | BE128: 1 | BF128: 1 | BG128: 1 | BK128: 1 | BP128: 1 | BQ128: 1 | BT128: 0.222 | BV128: 24.06119551 | BW128: 24.06119551 | BX128: 0 | BY128: 0 | BZ128: 0 | CA128: 3.328814451 | CB128: 1.012262098 | CC128: 3.30773783 | CD128: 1.000000008 | CE128: 578.9411294 | CF128: 79.5881266 | CG128: 962.4478204 | CH128: 24.06119551 | CI128: 13763.00383 | CJ128: 152.7678746 | CK128: 24.06119551 | CL128: 0 | CM128: 0 | CN128: 0 | CO128: 0 | CP128: 0 | CQ128: 0 | CR128: 0 | CS128: 24.06119551 | CT128: 0 | CU128: 0 | CV128: 0 | CW128: 24.06119551 | CX128: 0 | CY128: 0 | CZ128: 0 | DA128: 0 | DB128: 0 | DC128: 0 | DD128: 24.06119551 | DE128: 0 | DF128: 24.06119551 | DG128: 0 | DH128: 47544.92233 | DI128: 0 | DJ128: 24.06119551 | DK128: 24.06119551 | DL128: 24.06119551 | DM128: 0 | DN128: 48074.26863 | DO128: 72.18358653 | DP128: 24.06119551 | DQ128: 48218.6358 | DR128: -42.10709214 | DS128: 24.06119551 | DT128: 24.06119551 | DU128: 24.06119551 | DV128: 24.06119551 | DW128: 24.06119551 | DX128: 24.06119551 | DY128: 24.06119551 | DZ128: 24.06119551 | EA128: 0 | EB128: 0 | EC128: 0 | ED128: 24.06119551 | EE128: 0 | EF128: 0 | EG128: 0 | EH128: 0 | EI128: 24.06119551 | EJ128: 24.06119551 | EK128: 0 | EL128: 0 | EM128: 5.341585403
A129: 10 | B129: Beck et al. (2000) | C129: 1 | D129: 1 | E129: 0 | F129: 0 | G129: 0 | H129: 0.392871217 | I129: 0.133630621 | J129: 0.373832836 | K129: 0.120749707 | L129: 8.281593605 | M129: 3.095931628 | N129: 63 | O129: 1 | P129: 63 | Q129: 4.143134726 | R129: 36 | T129: 1 | AJ129: 1 | AM129: 1 | AN129: 0 | AO129: 1960 | AP129: 1 | AQ129: 1 | AR129: 1 | AS129: 1 | AU129: 1995 | AV129: 3 | AW129: 1 | AX129: 2000 | AY129: -5.75 | AZ129: 1 | BA129: 1 | BB129: 1 | BC129: 1 | BD129: 1 | BE129: 1 | BF129: 1 | BG129: 1 | BK129: 1 | BL129: 1 | BP129: 1 | BR129: 1 | BT129: 1.544 | BV129: 8.281593605 | BW129: 8.281593605 | BX129: 0 | BY129: 0 | BZ129: 0 | CA129: 3.253599758 | CB129: 1.106674496 | CC129: 3.095931624 | CD129: 1.000000001 | CE129: 68.58479264 | CF129: 25.63924757 | CG129: 521.7403971 | CH129: 8.281593605 | CI129: 521.7403971 | CJ129: 34.31175805 | CK129: 298.1373698 | CL129: 0 | CM129: 8.281593605 | CN129: 0 | CO129: 0 | CP129: 0 | CQ129: 0 | CR129: 0 | CS129: 0 | CT129: 0 | CU129: 0 | CV129: 0 | CW129: 0 | CX129: 0 | CY129: 0 | CZ129: 0 | DA129: 0 | DB129: 0 | DC129: 8.281593605 | DD129: 0 | DE129: 0 | DF129: 8.281593605 | DG129: 0 | DH129: 16231.92347 | DI129: 8.281593605 | DJ129: 8.281593605 | DK129: 8.281593605 | DL129: 8.281593605 | DM129: 0 | DN129: 16521.77924 | DO129: 24.84478082 | DP129: 8.281593605 | DQ129: 16563.18721 | DR129: -47.61916323 | DS129: 8.281593605 | DT129: 8.281593605 | DU129: 8.281593605 | DV129: 8.281593605 | DW129: 8.281593605 | DX129: 8.281593605 | DY129: 8.281593605 | DZ129: 8.281593605 | EA129: 0 | EB129: 0 | EC129: 0 | ED129: 8.281593605 | EE129: 8.281593605 | EF129: 0 | EG129: 0 | EH129: 0 | EI129: 8.281593605 | EJ129: 0 | EK129: 8.281593605 | EL129: 0 | EM129: 12.78678053
A130: 10 | B130: Beck et al. (2000) | C130: 1 | D130: 1 | E130: 0 | F130: 0 | G130: 0 | H130: 0.343557871 | I130: 0.138675049 | J130: 0.330650005 | K130: 0.127255689 | L130: 7.858194837 | M130: 2.598312163 | N130: 63 | O130: 1 | P130: 63 | Q130: 4.143134726 | R130: 36 | T130: 1 | AJ130: 1 | AM130: 1 | AN130: 0 | AO130: 1960 | AP130: 1 | AQ130: 1 | AR130: 1 | AS130: 1 | AU130: 1995 | AV130: 7 | AW130: 1 | AX130: 2000 | AY130: -5.75 | AZ130: 1 | BA130: 1 | BB130: 1 | BC130: 1 | BD130: 1 | BE130: 1 | BF130: 1 | BG130: 1 | BH130: 1 | BJ130: 1 | BK130: 1 | BL130: 1 | BP130: 1 | BR130: 1 | BT130: 1.544 | BV130: 7.858194837 | BW130: 7.858194837 | BX130: 0 | BY130: 0 | BZ130: 0 | CA130: 2.699744688 | CB130: 1.089735554 | CC130: 2.598312162 | CD130: 0.9999999983 | CE130: 61.7512261 | CF130: 20.41804322 | CG130: 495.0662747 | CH130: 7.858194837 | CI130: 495.0662747 | CJ130: 32.55755992 | CK130: 282.8950141 | CL130: 0 | CM130: 7.858194837 | CN130: 0 | CO130: 0 | CP130: 0 | CQ130: 0 | CR130: 0 | CS130: 0 | CT130: 0 | CU130: 0 | CV130: 0 | CW130: 0 | CX130: 0 | CY130: 0 | CZ130: 0 | DA130: 0 | DB130: 0 | DC130: 7.858194837 | DD130: 0 | DE130: 0 | DF130: 7.858194837 | DG130: 0 | DH130: 15402.06188 | DI130: 7.858194837 | DJ130: 7.858194837 | DK130: 7.858194837 | DL130: 7.858194837 | DM130: 0 | DN130: 15677.0987 | DO130: 55.00736386 | DP130: 7.858194837 | DQ130: 15716.38967 | DR130: =AY130*L130 -> -45.18462031 | DS130: 7.858194837 | DT130: 7.858194837 | DU130: 7.858194837 | DV130: 7.858194837 | DW130: 7.858194837 | DX130: 7.858194837 | DY130: 7.858194837 | DZ130: 7.858194837 | EA130: 7.858194837 | EB130: 0 | EC130: 7.858194837 | ED130: 7.858194837 | EE130: 7.858194837 | EF130: 0 | EG130: 0 | EH130: 0 | EI130: 7.858194837 | EJ130: 0 | EK130: 7.858194837 | EL130: 0 | EM130: =BT130*L130 -> 12.13305283
A131: 10 | B131: Beck et al. (2000) | C131: 1 | D131: =IF(C131=1,1,0) -> 1 | E131: =IF(C131=2,1,0) -> 0 | F131: =IF(C131=3,1,0) -> 0 | G131: =IF(C131=4,1,0) -> 0 | H131: 0.173739381 | I131: 0.052851642 | J131: 0.172012104 | K131: 0.051847097 | L131: 19.2874831 | M131: 3.317680544 | N131: 77 | O131: 7 | P131: 365 | Q131: =LN(P131) -> 5.899897354 | R131: 5 | T131: 1 | AJ131: 1 | AM131: =AJ131+AK131+AL131 -> 1 | AN131: 0 | AO131: 1960 | AP131: 1 | AQ131: 1 | AR131: 1 | AS131: 1 | AU131: 1995 | AV131: 3 | AW131: 1 | AX131: 2000 | AY131: =AX131-2005.75 -> -5.75 | AZ131: 1 | BA131: 1 | BB131: 1 | BC131: 1 | BD131: 1 | BE131: 1 | BF131: 1 | BG131: 1 | BK131: 1 | BL131: 1 | BO131: 1 | BP131: 1 | BQ131: 1 | BT131: 1.544 | BV131: 19.2874831 | BW131: =D131*L131 -> 19.2874831 | BX131: =E131*L131 -> 0 | BY131: =F131*L131 -> 0 | BZ131: =G131*L131 -> 0 | CA131: 3.350995375 | CB131: 1.019375152 | CC131: 3.317680549 | CD131: 1.000000007 | CE131: 372.0070043 | CF131: 63.98970742 | CG131: 1485.136199 | CH131: 135.0123817 | CI131: 7039.931331 | CJ131: =Q131*L131 -> 113.7941705 | CK131: 96.4374155 | CL131: 0 | CM131: 19.2874831 | CN131: 0 | CO131: 0 | CP131: 0 | CQ131: 0 | CR131: 0 | CS131: 0 | CT131: 0 | CU131: 0 | CV131: 0 | CW131: 0 | CX131: 0 | CY131: 0 | CZ131: 0 | DA131: 0 | DB131: 0 | DC131: 19.2874831 | DD131: 0 | DE131: 0 | DF131: =AM131*L131 -> 19.2874831 | DG131: 0 | DH131: 37803.46688 | DI131: 19.2874831 | DJ131: 19.2874831 | DK131: 19.2874831 | DL131: 19.2874831 | DM131: 0 | DN131: 38478.52878 | DO131: 57.8624493 | DP131: 19.2874831 | DQ131: 38574.9662 | DR131: -110.9030278 | DS131: 19.2874831 | DT131: 19.2874831 | DU131: 19.2874831 | DV131: 19.2874831 | DW131: 19.2874831 | DX131: 19.2874831 | DY131: 19.2874831 | DZ131: 19.2874831 | EA131: 0 | EB131: 0 | EC131: 0 | ED131: 19.2874831 | EE131: 19.2874831 | EF131: 0 | EG131: 0 | EH131: 19.2874831 | EI131: 19.2874831 | EJ131: 19.2874831 | EK131: 0 | EL131: 0 | EM131: 29.77987391
A132: 10 | B132: Beck et al. (2000) | C132: 1 | D132: 1 | E132: 0 | F132: 0 | G132: 0 | H132: 0.17471625 | I132: 0.0531494 | J132: 0.172959909 | K132: 0.052127963 | L132: 19.18356167 | M132: 3.317987086 | N132: 77 | O132: 7 | P132: 365 | Q132: 5.899897354 | R132: 5 | T132: 1 | AJ132: 1 | AM132: 1 | AN132: 0 | AO132: 1960 | AP132: 1 | AQ132: 1 | AR132: 1 | AS132: 1 | AU132: 1995 | AV132: 7 | AW132: 1 | AX132: 2000 | AY132: -5.75 | AZ132: 1 | BA132: 1 | BB132: 1 | BC132: 1 | BD132: 1 | BE132: 1 | BF132: 1 | BG132: 1 | BH132: 1 | BJ132: 1 | BK132: 1 | BL132: 1 | BO132: 1 | BP132: 1 | BQ132: 1 | BT132: 1.544 | BV132: 19.18356167 | BW132: 19.18356167 | BX132: 0 | BY132: 0 | BZ132: 0 | CA132: 3.351679957 | CB132: 1.019594793 | CC132: 3.317987081 | CD132: 0.9999999929 | CE132: 368.0090383 | CF132: 63.65080988 | CG132: 1477.134249 | CH132: 134.2849317 | CI132: 7002.00001 | CJ132: 113.1810447 | CK132: 95.91780835 | CL132: 0 | CM132: 19.18356167 | CN132: 0 | CO132: 0 | CP132: 0 | CQ132: 0 | CR132: 0 | CS132: 0 | CT132: 0 | CU132: 0 | CV132: 0 | CW132: 0 | CX132: 0 | CY132: 0 | CZ132: 0 | DA132: 0 | DB132: 0 | DC132: 19.18356167 | DD132: 0 | DE132: 0 | DF132: 19.18356167 | DG132: 0 | DH132: 37599.78087 | DI132: 19.18356167 | DJ132: 19.18356167 | DK132: 19.18356167 | DL132: 19.18356167 | DM132: 0 | DN132: 38271.20553 | DO132: 134.2849317 | DP132: 19.18356167 | DQ132: 38367.12334 | DR132: -110.3054796 | DS132: 19.18356167 | DT132: 19.18356167 | DU132: 19.18356167 | DV132: 19.18356167 | DW132: 19.18356167 | DX132: 19.18356167 | DY132: 19.18356167 | DZ132: 19.18356167 | EA132: 19.18356167 | EB132: 0 | EC132: 19.18356167 | ED132: 19.18356167 | EE132: 19.18356167 | EF132: 0 | EG132: 0 | EH132: 19.18356167 | EI132: 19.18356167 | EJ132: 19.18356167 | EK132: 0 | EL132: 0 | EM132: 29.61941922
A133: 11 | B133: Benhabib and Spiegel (2000) | C133: 3 | D133: 0 | E133: 0 | F133: 1 | G133: 0 | H133: 0.147629619 | I133: 0.053605627 | J133: 0.146566383 | K133: 0.052799635 | L133: 18.93952502 | M133: 2.77589767 | N133: 77 | O133: 5 | P133: 360 | Q133: 5.886104031 | R133: 5 | S133: 1 | AD133: 1 | AJ133: 1 | AM133: 1 | AO133: 1965 | AP133: 1 | AQ133: 1 | AR133: 1 | AU133: 1985 | AV133: 8 | AW133: 1 | AX133: 2000 | AY133: -5.75 | AZ133: 1 | BA133: 1 | BB133: 1 | BC133: 1 | BD133: 1 | BE133: 1 | BF133: 1 | BG133: 1 | BL133: 1 | BP133: 1 | BQ133: 1 | BT133: 2.539 | BV133: =C133*$L133 -> 56.81857506 | BW133: 0 | BX133: 0 | BY133: 18.93952502 | BZ133: 0 | CA133: 2.796034863 | CB133: 1.015265114 | CC133: 2.775897678 | CD133: 1.000000008 | CE133: 358.705608 | CF133: 52.57418337 | CG133: 1458.343427 | CH133: 94.6976251 | CI133: 6818.229007 | CJ133: 111.4800146 | CK133: 94.6976251 | CL133: 18.93952502 | CM133: 0 | CN133: 0 | CO133: 0 | CP133: 0 | CQ133: 0 | CR133: 0 | CS133: 0 | CT133: 0 | CU133: 0 | CV133: 0 | CW133: 18.93952502 | CX133: 0 | CY133: 0 | CZ133: 0 | DA133: 0 | DB133: 0 | DC133: 18.93952502 | DD133: 0 | DE133: 0 | DF133: 18.93952502 | DG133: 0 | DH133: 37216.16666 | DI133: 18.93952502 | DJ133: 18.93952502 | DK133: 18.93952502 | DL133: 0 | DM133: 0 | DN133: 37594.95716 | DO133: 151.5162002 | DP133: 18.93952502 | DQ133: 37879.05004 | DR133: -108.9022689 | DS133: 18.93952502 | DT133: 18.93952502 | DU133: 18.93952502 | DV133: 18.93952502 | DW133: 18.93952502 | DX133: 18.93952502 | DY133: 18.93952502 | DZ133: 18.93952502 | EA133: 0 | EB133: 0 | EC133: 0 | ED133: 0 | EE133: 18.93952502 | EF133: 0 | EG133: 0 | EH133: 0 | EI133: 18.93952502 | EJ133: 18.93952502 | EK133: 0 | EL133: 0 | EM133: 48.08745403
A134: 11 | B134: Benhabib and Spiegel (2000) | C134: 3 | D134: 0 | E134: 0 | F134: 1 | G134: 0 | H134: 0.145347466 | I134: 0.053605627 | J134: 0.144332511 | K134: 0.052817164 | L134: 18.93323931 | M134: 2.73268197 | N134: 77 | O134: 5 | P134: 360 | Q134: 5.886104031 | R134: 5 | V134: 1 | AD134: 1 | AJ134: 1 | AM134: 1 | AO134: 1965 | AP134: 1 | AQ134: 1 | AR134: 1 | AU134: 1985 | AV134: 8 | AW134: 1 | AX134: 2000 | AY134: -5.75 | AZ134: 1 | BA134: 1 | BB134: 1 | BC134: 1 | BD134: 1 | BE134: 1 | BF134: 1 | BG134: 1 | BL134: 1 | BP134: 1 | BQ134: 1 | BT134: 2.539 | BV134: 56.79971793 | BW134: 0 | BX134: 0 | BY134: 18.93323931 | BZ134: 0 | CA134: 2.751898357 | CB134: 1.014928164 | CC134: 2.732681971 | CD134: 1.000000006 | CE134: 358.4675508 | CF134: 51.7385217 | CG134: 1457.859427 | CH134: 94.66619655 | CI134: 6815.966152 | CJ134: 111.4430162 | CK134: 94.66619655 | CL134: 0 | CM134: 0 | CN134: 0 | CO134: 18.93323931 | CP134: 0 | CQ134: 0 | CR134: 0 | CS134: 0 | CT134: 0 | CU134: 0 | CV134: 0 | CW134: 18.93323931 | CX134: 0 | CY134: 0 | CZ134: 0 | DA134: 0 | DB134: 0 | DC134: 18.93323931 | DD134: 0 | DE134: 0 | DF134: 18.93323931 | DG134: 0 | DH134: 37203.81524 | DI134: 18.93323931 | DJ134: 18.93323931 | DK134: 18.93323931 | DL134: 0 | DM134: 0 | DN134: 37582.48003 | DO134: 151.4659145 | DP134: 18.93323931 | DQ134: 37866.47862 | DR134: -108.866126 | DS134: 18.93323931 | DT134: 18.93323931 | DU134: 18.93323931 | DV134: 18.93323931 | DW134: 18.93323931 | DX134: 18.93323931 | DY134: 18.93323931 | DZ134: 18.93323931 | EA134: 0 | EB134: 0 | EC134: 0 | ED134: 0 | EE134: 18.93323931 | EF134: 0 | EG134: 0 | EH134: 0 | EI134: 18.93323931 | EJ134: 18.93323931 | EK134: 0 | EL134: 0 | EM134: 48.07149461
A135: 11 | B135: Benhabib and Spiegel (2000) | C135: 3 | D135: 0 | E135: 0 | F135: 1 | G135: 0 | H135: 0.147629619 | I135: 0.053605627 | J135: 0.146566383 | K135: 0.052799635 | L135: 18.93952502 | M135: 2.77589767 | N135: 77 | O135: 5 | P135: 360 | Q135: 5.886104031 | R135: 5 | T135: 1 | AD135: 1 | AJ135: 1 | AM135: 1 | AO135: 1965 | AP135: 1 | AQ135: 1 | AR135: 1 | AU135: 1985 | AV135: 8 | AW135: 1 | AX135: 2000 | AY135: -5.75 | AZ135: 1 | BA135: 1 | BB135: 1 | BC135: 1 | BD135: 1 | BE135: 1 | BF135: 1 | BG135: 1 | BL135: 1 | BP135: 1 | BQ135: 1 | BT135: 2.539 | BV135: 56.81857506 | BW135: 0 | BX135: 0 | BY135: 18.93952502 | BZ135: 0 | CA135: 2.796034863 | CB135: 1.015265114 | CC135: 2.775897678 | CD135: 1.000000008 | CE135: 358.705608 | CF135: 52.57418337 | CG135: 1458.343427 | CH135: 94.6976251 | CI135: 6818.229007 | CJ135: 111.4800146 | CK135: 94.6976251 | CL135: 0 | CM135: 18.93952502 | CN135: 0 | CO135: 0 | CP135: 0 | CQ135: 0 | CR135: 0 | CS135: 0 | CT135: 0 | CU135: 0 | CV135: =AC135*$L135 -> 0 | CW135: 18.93952502 | CX135: 0 | CY135: 0 | CZ135: 0 | DA135: 0 | DB135: 0 | DC135: 18.93952502 | DD135: 0 | DE135: 0 | DF135: 18.93952502 | DG135: 0 | DH135: 37216.16666 | DI135: 18.93952502 | DJ135: 18.93952502 | DK135: 18.93952502 | DL135: 0 | DM135: 0 | DN135: 37594.95716 | DO135: 151.5162002 | DP135: 18.93952502 | DQ135: 37879.05004 | DR135: -108.9022689 | DS135: 18.93952502 | DT135: 18.93952502 | DU135: 18.93952502 | DV135: 18.93952502 | DW135: 18.93952502 | DX135: 18.93952502 | DY135: 18.93952502 | DZ135: 18.93952502 | EA135: 0 | EB135: 0 | EC135: 0 | ED135: 0 | EE135: 18.93952502 | EF135: 0 | EG135: 0 | EH135: 0 | EI135: 18.93952502 | EJ135: 18.93952502 | EK135: 0 | EL135: 0 | EM135: 48.08745403
A136: 11 | B136: Benhabib and Spiegel (2000) | C136: 3 | D136: 0 | E136: 0 | F136: 1 | G136: 0 | H136: 0.120115215 | I136: 0.053605627 | J136: 0.119540869 | K136: 0.052993307 | L136: 18.87030767 | M136: 2.255772969 | N136: 77 | O136: 5 | P136: 360 | Q136: 5.886104031 | R136: 5 | S136: 1 | AD136: 1 | AJ136: 1 | AM136: 1 | AO136: 1965 | AP136: 1 | AQ136: 1 | AR136: 1 | AU136: 1985 | AV136: 8 | AW136: 1 | AX136: 2000 | AY136: -5.75 | AZ136: 1 | BA136: 1 | BB136: 1 | BC136: 1 | BD136: 1 | BE136: 1 | BF136: 1 | BG136: 1 | BL136: 1 | BP136: 1 | BQ136: 1 | BT136: 2.539 | BV136: 56.61092301 | BW136: 0 | BX136: 0 | BY136: 18.87030767 | BZ136: 0 | CA136: 2.266611063 | CB136: 1.011554674 | CC136: 2.255772977 | CD136: 1.000000008 | CE136: 356.0885116 | CF136: 42.56712996 | CG136: 1453.013691 | CH136: 94.35153835 | CI136: 6793.310761 | CJ136: 111.0725941 | CK136: 94.35153835 | CL136: 18.87030767 | CM136: 0 | CN136: 0 | CO136: 0 | CP136: 0 | CQ136: 0 | CR136: 0 | CS136: 0 | CT136: 0 | CU136: 0 | CV136: 0 | CW136: 18.87030767 | CX136: 0 | CY136: 0 | CZ136: 0 | DA136: 0 | DB136: 0 | DC136: 18.87030767 | DD136: 0 | DE136: 0 | DF136: 18.87030767 | DG136: 0 | DH136: 37080.15457 | DI136: 18.87030767 | DJ136: 18.87030767 | DK136: 18.87030767 | DL136: 0 | DM136: 0 | DN136: 37457.56072 | DO136: 150.9624614 | DP136: 18.87030767 | DQ136: 37740.61534 | DR136: -108.5042691 | DS136: 18.87030767 | DT136: 18.87030767 | DU136: 18.87030767 | DV136: 18.87030767 | DW136: 18.87030767 | DX136: 18.87030767 | DY136: 18.87030767 | DZ136: 18.87030767 | EA136: 0 | EB136: 0 | EC136: 0 | ED136: 0 | EE136: 18.87030767 | EF136: 0 | EG136: 0 | EH136: 0 | EI136: 18.87030767 | EJ136: 18.87030767 | EK136: 0 | EL136: 0 | EM136: 47.91171117
A137: 11 | B137: Benhabib and Spiegel (2000) | C137: 3 | D137: 0 | E137: 0 | F137: 1 | G137: 0 | H137: 0.119948394 | I137: 0.053605627 | J137: 0.119376429 | K137: 0.052994363 | L137: 18.86993163 | M137: 2.252625048 | N137: 77 | O137: 5 | P137: 360 | Q137: 5.886104031 | R137: 5 | V137: 1 | AD137: 1 | AJ137: 1 | AM137: 1 | AO137: 1965 | AP137: 1 | AQ137: 1 | AR137: 1 | AU137: 1985 | AV137: 8 | AW137: 1 | AX137: 2000 | AY137: -5.75 | AZ137: 1 | BA137: 1 | BB137: 1 | BC137: 1 | BD137: 1 | BE137: 1 | BF137: 1 | BG137: 1 | BL137: 1 | BP137: 1 | BQ137: 1 | BT137: 2.539 | BV137: 56.60979489 | BW137: 0 | BX137: 0 | BY137: 18.86993163 | BZ137: 0 | CA137: 2.263417994 | CB137: 1.011534516 | CC137: 2.252625053 | CD137: 1.000000007 | CE137: 356.0743197 | CF137: 42.50688064 | CG137: 1452.984736 | CH137: 94.34965815 | CI137: 6793.175387 | CJ137: 111.0703806 | CK137: 94.34965815 | CL137: 0 | CM137: 0 | CN137: 0 | CO137: 18.86993163 | CP137: 0 | CQ137: 0 | CR137: 0 | CS137: 0 | CT137: 0 | CU137: 0 | CV137: 0 | CW137: 18.86993163 | CX137: 0 | CY137: 0 | CZ137: 0 | DA137: 0 | DB137: 0 | DC137: 18.86993163 | DD137: 0 | DE137: 0 | DF137: 18.86993163 | DG137: 0 | DH137: 37079.41565 | DI137: 18.86993163 | DJ137: 18.86993163 | DK137: 18.86993163 | DL137: 0 | DM137: 0 | DN137: 37456.81429 | DO137: 150.959453 | DP137: 18.86993163 | DQ137: 37739.86326 | DR137: -108.5021069 | DS137: 18.86993163 | DT137: 18.86993163 | DU137: 18.86993163 | DV137: 18.86993163 | DW137: 18.86993163 | DX137: 18.86993163 | DY137: 18.86993163 | DZ137: 18.86993163 | EA137: 0 | EB137: 0 | EC137: 0 | ED137: 0 | EE137: 18.86993163 | EF137: 0 | EG137: 0 | EH137: 0 | EI137: 18.86993163 | EJ137: 18.86993163 | EK137: 0 | EL137: 0 | EM137: 47.91075641
A138: 11 | B138: Benhabib and Spiegel (2000) | C138: 3 | D138: 0 | E138: 0 | F138: 1 | G138: 0 | H138: 0.115831748 | I138: 0.053605627 | J138: 0.115316475 | K138: 0.053019969 | L138: 18.86081823 | M138: 2.174963081 | N138: 77 | O138: 5 | P138: 360 | Q138: 5.886104031 | R138: 5 | T138: 1 | AD138: 1 | AJ138: 1 | AM138: 1 | AO138: 1965 | AP138: 1 | AQ138: 1 | AR138: 1 | AU138: 1985 | AV138: 8 | AW138: 1 | AX138: 2000 | AY138: -5.75 | AZ138: 1 | BA138: 1 | BB138: 1 | BC138: 1 | BD138: 1 | BE138: 1 | BF138: 1 | BG138: 1 | BL138: 1 | BP138: 1 | BQ138: 1 | BT138: 2.539 | BV138: 56.58245469 | BW138: 0 | BX138: 0 | BY138: 18.86081823 | BZ138: 0 | CA138: 2.184681544 | CB138: 1.011045987 | CC138: 2.174963074 | CD138: 0.9999999979 | CE138: 355.7304643 | CF138: 41.02158333 | CG138: 1452.283004 | CH138: 94.30409115 | CI138: 6789.894563 | CJ138: 111.0167382 | CK138: 94.30409115 | CL138: 0 | CM138: 18.86081823 | CN138: 0 | CO138: 0 | CP138: 0 | CQ138: 0 | CR138: 0 | CS138: 0 | CT138: 0 | CU138: 0 | CV138: 0 | CW138: 18.86081823 | CX138: 0 | CY138: 0 | CZ138: 0 | DA138: 0 | DB138: 0 | DC138: 18.86081823 | DD138: 0 | DE138: 0 | DF138: 18.86081823 | DG138: 0 | DH138: 37061.50782 | DI138: 18.86081823 | DJ138: 18.86081823 | DK138: 18.86081823 | DL138: 0 | DM138: 0 | DN138: 37438.72419 | DO138: 150.8865458 | DP138: 18.86081823 | DQ138: 37721.63646 | DR138: -108.4497048 | DS138: 18.86081823 | DT138: 18.86081823 | DU138: 18.86081823 | DV138: 18.86081823 | DW138: 18.86081823 | DX138: 18.86081823 | DY138: 18.86081823 | DZ138: 18.86081823 | EA138: 0 | EB138: 0 | EC138: 0 | ED138: 0 | EE138: 18.86081823 | EF138: 0 | EG138: 0 | EH138: 0 | EI138: 18.86081823 | EJ138: 18.86081823 | EK138: 0 | EL138: 0 | EM138: 47.88761749
A139: 11 | B139: Benhabib and Spiegel (2000) | C139: 3 | D139: 0 | E139: 0 | F139: 1 | G139: 0 | H139: 0.142098238 | I139: 0.053682813 | J139: 0.141149489 | K139: 0.0529171 | L139: 18.89748298 | M139: 2.667370062 | N139: 77 | O139: 5 | P139: 360 | Q139: 5.886104031 | R139: 5 | S139: 1 | AD139: 1 | AJ139: 1 | AM139: 1 | AO139: 1965 | AP139: 1 | AQ139: 1 | AR139: 1 | AU139: 1985 | AV139: 9 | AW139: 1 | AX139: 2000 | AY139: -5.75 | AZ139: 1 | BA139: 1 | BB139: 1 | BC139: 1 | BD139: 1 | BE139: 1 | BF139: 1 | BG139: 1 | BL139: 1 | BP139: 1 | BQ139: 1 | BT139: 2.539 | BV139: 56.69244894 | BW139: 0 | BX139: 0 | BY139: 18.89748298 | BZ139: 0 | CA139: 2.685299034 | CB139: 1.014470045 | CC139: 2.667370066 | CD139: 0.9999999966 | CE139: 357.114863 | CF139: 50.40658035 | CG139: 1455.106189 | CH139: 94.4874149 | CI139: 6803.093873 | CJ139: 111.2325508 | CK139: 94.4874149 | CL139: 18.89748298 | CM139: 0 | CN139: 0 | CO139: 0 | CP139: 0 | CQ139: 0 | CR139: 0 | CS139: 0 | CT139: 0 | CU139: 0 | CV139: 0 | CW139: 18.89748298 | CX139: 0 | CY139: 0 | CZ139: 0 | DA139: 0 | DB139: 0 | DC139: 18.89748298 | DD139: 0 | DE139: 0 | DF139: 18.89748298 | DG139: 0 | DH139: 37133.55406 | DI139: 18.89748298 | DJ139: 18.89748298 | DK139: 18.89748298 | DL139: 0 | DM139: 0 | DN139: 37511.50372 | DO139: 170.0773468 | DP139: 18.89748298 | DQ139: 37794.96596 | DR139: -108.6605271 | DS139: 18.89748298 | DT139: 18.89748298 | DU139: 18.89748298 | DV139: 18.89748298 | DW139: 18.89748298 | DX139: 18.89748298 | DY139: 18.89748298 | DZ139: 18.89748298 | EA139: 0 | EB139: 0 | EC139: 0 | ED139: 0 | EE139: 18.89748298 | EF139: 0 | EG139: 0 | EH139: 0 | EI139: 18.89748298 | EJ139: 18.89748298 | EK139: 0 | EL139: 0 | EM139: 47.98070929
A140: 11 | B140: Benhabib and Spiegel (2000) | C140: 3 | D140: 0 | E140: 0 | F140: 1 | G140: 0 | H140: 0.13709104 | I140: 0.053682813 | J140: 0.13623862 | K140: 0.052953862 | L140: 18.88436377 | M140: 2.572779658 | N140: 77 | O140: 5 | P140: 360 | Q140: 5.886104031 | R140: 5 | V140: 1 | AD140: 1 | AJ140: 1 | AM140: 1 | AO140: 1965 | AP140: 1 | AQ140: 1 | AR140: 1 | AU140: 1985 | AV140: 9 | AW140: 1 | AX140: 2000 | AY140: -5.75 | AZ140: 1 | BA140: 1 | BB140: 1 | BC140: 1 | BD140: 1 | BE140: 1 | BF140: 1 | BG140: 1 | BL140: 1 | BP140: 1 | BQ140: 1 | BT140: 2.539 | BV140: 56.65309131 | BW140: 0 | BX140: 0 | BY140: 18.88436377 | BZ140: 0 | CA140: 2.588877069 | CB140: 1.013765769 | CC140: 2.57277966 | CD140: 0.999999993 | CE140: 356.619195 | CF140: 48.58530696 | CG140: 1454.09601 | CH140: 94.42181885 | CI140: 6798.370957 | CJ140: 111.1553297 | CK140: 94.42181885 | CL140: 0 | CM140: 0 | CN140: 0 | CO140: 18.88436377 | CP140: 0 | CQ140: 0 | CR140: 0 | CS140: 0 | CT140: 0 | CU140: 0 | CV140: 0 | CW140: 18.88436377 | CX140: 0 | CY140: 0 | CZ140: 0 | DA140: 0 | DB140: 0 | DC140: 18.88436377 | DD140: 0 | DE140: 0 | DF140: 18.88436377 | DG140: 0 | DH140: 37107.77481 | DI140: 18.88436377 | DJ140: 18.88436377 | DK140: 18.88436377 | DL140: 0 | DM140: 0 | DN140: 37485.46208 | DO140: 169.9592739 | DP140: 18.88436377 | DQ140: 37768.72754 | DR140: -108.5850917 | DS140: 18.88436377 | DT140: 18.88436377 | DU140: 18.88436377 | DV140: 18.88436377 | DW140: 18.88436377 | DX140: 18.88436377 | DY140: 18.88436377 | DZ140: 18.88436377 | EA140: 0 | EB140: 0 | EC140: 0 | ED140: 0 | EE140: 18.88436377 | EF140: 0 | EG140: 0 | EH140: 0 | EI140: 18.88436377 | EJ140: 18.88436377 | EK140: 0 | EL140: 0 | EM140: 47.94739961
A141: 11 | B141: Benhabib and Spiegel (2000) | C141: 3 | D141: 0 | E141: 0 | F141: 1 | G141: 0 | H141: 0.131355331 | I141: 0.053682813 | J141: 0.130605031 | K141: 0.052994402 | L141: 18.86991761 | M141: 2.464506173 | N141: 77 | O141: 5 | P141: 360 | Q141: 5.886104031 | R141: 5 | T141: 1 | AD141: 1 | AJ141: 1 | AM141: 1 | AO141: 1965 | AP141: 1 | AQ141: 1 | AR141: 1 | AU141: 1985 | AV141: 9 | AW141: 1 | AX141: 2000 | AY141: -5.75 | AZ141: 1 | BA141: 1 | BB141: 1 | BC141: 1 | BD141: 1 | BE141: 1 | BF141: 1 | BG141: 1 | BL141: 1 | BP141: 1 | BQ141: 1 | BT141: 2.539 | BV141: 56.60975283 | BW141: 0 | BX141: 0 | BY141: 18.86991761 | BZ141: 0 | CA141: 2.478664274 | CB141: 1.012990258 | CC141: 2.464506174 | CD141: 0.9999999995 | CE141: 356.0737906 | CF141: 46.50502843 | CG141: 1452.983656 | CH141: 94.34958805 | CI141: 6793.17034 | CJ141: 111.0702981 | CK141: 94.34958805 | CL141: 0 | CM141: 18.86991761 | CN141: 0 | CO141: 0 | CP141: 0 | CQ141: 0 | CR141: 0 | CS141: 0 | CT141: 0 | CU141: 0 | CV141: 0 | CW141: 18.86991761 | CX141: 0 | CY141: 0 | CZ141: 0 | DA141: 0 | DB141: 0 | DC141: 18.86991761 | DD141: 0 | DE141: 0 | DF141: 18.86991761 | DG141: 0 | DH141: 37079.3881 | DI141: 18.86991761 | DJ141: 18.86991761 | DK141: 18.86991761 | DL141: 0 | DM141: 0 | DN141: 37456.78646 | DO141: 169.8292585 | DP141: 18.86991761 | DQ141: 37739.83522 | DR141: -108.5020263 | DS141: 18.86991761 | DT141: 18.86991761 | DU141: 18.86991761 | DV141: 18.86991761 | DW141: 18.86991761 | DX141: 18.86991761 | DY141: 18.86991761 | DZ141: 18.86991761 | EA141: 0 | EB141: 0 | EC141: 0 | ED141: 0 | EE141: 18.86991761 | EF141: 0 | EG141: 0 | EH141: 0 | EI141: 18.86991761 | EJ141: 18.86991761 | EK141: 0 | EL141: 0 | EM141: 47.91072081
A142: 11 | B142: Benhabib and Spiegel (2000) | C142: 3 | D142: 0 | E142: 0 | F142: 1 | G142: 0 | H142: 0.121140684 | I142: 0.053682813 | J142: 0.120551559 | K142: 0.053062425 | L142: 18.84572756 | M142: 2.271881845 | N142: 77 | O142: 5 | P142: 360 | Q142: 5.886104031 | R142: 5 | S142: 1 | AD142: 1 | AJ142: 1 | AM142: 1 | AO142: 1965 | AP142: 1 | AQ142: 1 | AR142: 1 | AU142: 1985 | AV142: 9 | AW142: 1 | AX142: 2000 | AY142: -5.75 | AZ142: 1 | BA142: 1 | BB142: 1 | BC142: 1 | BD142: 1 | BE142: 1 | BF142: 1 | BG142: 1 | BL142: 1 | BP142: 1 | BQ142: 1 | BT142: 2.539 | BV142: 56.53718268 | BW142: 0 | BX142: 0 | BY142: 18.84572756 | BZ142: 0 | CA142: 2.282984327 | CB142: 1.011691668 | CC142: 2.271881838 | CD142: 1.000000005 | CE142: 355.1614473 | CF142: 42.8152663 | CG142: 1451.121022 | CH142: 94.2286378 | CI142: 6784.461922 | CJ142: 110.927913 | CK142: 94.2286378 | CL142: 18.84572756 | CM142: 0 | CN142: 0 | CO142: 0 | CP142: 0 | CQ142: 0 | CR142: 0 | CS142: 0 | CT142: 0 | CU142: 0 | CV142: 0 | CW142: 18.84572756 | CX142: 0 | CY142: 0 | CZ142: 0 | DA142: 0 | DB142: 0 | DC142: 18.84572756 | DD142: 0 | DE142: 0 | DF142: 18.84572756 | DG142: 0 | DH142: 37031.85466 | DI142: 18.84572756 | DJ142: 18.84572756 | DK142: 18.84572756 | DL142: 0 | DM142: 0 | DN142: 37408.76921 | DO142: 169.611548 | DP142: 18.84572756 | DQ142: 37691.45512 | DR142: -108.3629335 | DS142: 18.84572756 | DT142: 18.84572756 | DU142: 18.84572756 | DV142: 18.84572756 | DW142: 18.84572756 | DX142: 18.84572756 | DY142: 18.84572756 | DZ142: 18.84572756 | EA142: 0 | EB142: 0 | EC142: 0 | ED142: 0 | EE142: 18.84572756 | EF142: 0 | EG142: 0 | EH142: 0 | EI142: 18.84572756 | EJ142: 18.84572756 | EK142: 0 | EL142: 0 | EM142: 47.84930227
